Workbook

Sheet EVDRE_DATACACHE (hidden)
A1: <EVDRE_CACHE><EVDRE ID="BPC Group|001-00001" DIMENSION="AccountGrp|BU|Category|ConsoScope|Currency|Datasrc|Entity|Flow|iBU|IntCo|Time|MEASURES|" AXIS="AccountGrp|Category|Time|MEASURES|"><CELLS>P110|ACTUAL|2017.DEC|YTD| - -43844.2254666006;P110|ACTUAL|2017.Q1|QTD| - -10012.7508;P110|ACTUAL|2016.Q4|QTD| - -12186.4312399996;P110|ACTUAL|2016.DEC|YTD| - -47659.3096399995;P110|ACTUAL|2012.JUN|YTD| - -22608.7302;P1300151|ACTUAL|2017.DEC|YTD| - -0.857800000000012;P1300151|ACTUAL|2012.JUN|YTD| - -3632.3265;P1300152 | B1: |ACTUAL|2017.DEC|YTD| - 44068.5430724;P1300152|ACTUAL|2017.Q1|QTD| - 10086.4065;P1300152|ACTUAL|2016.Q4|QTD| - 11946.7619;P1300152|ACTUAL|2016.DEC|YTD| - 47382.0951999999;P1300152|ACTUAL|2012.JUN|YTD| - 26232.4705;160|ACTUAL|2017.DEC|YTD| - 223.459805799333;160|ACTUAL|2017.Q1|QTD| - 73.6556999999666;160|ACTUAL|2016.Q4|QTD| - -239.6693399996;160|ACTUAL|2016.DEC|YTD| - -277.214439999603;160|ACTUAL|2012.JUN|YTD| - -8.58620000000883;105005|ACTUAL|2017.DEC|YTD| - 5159445.4511;105005|ACTUAL|2017.Q1|QTD| - 1280912 | C1: .78759;105005|ACTUAL|2016.Q4|QTD| - 1308605.56385;105005|ACTUAL|2016.DEC|YTD| - 5029100.7442;105005|ACTUAL|2012.JUN|YTD| - 2036770.9799;1050102|ACTUAL|2017.DEC|YTD| - 2996.5088;1050102|ACTUAL|2017.Q1|QTD| - 637;1050102|ACTUAL|2016.Q4|QTD| - 996;1050102|ACTUAL|2016.DEC|YTD| - 443;1050102|ACTUAL|2012.JUN|YTD| - 105909;1050101|ACTUAL|2017.DEC|YTD| - 217029.62638;1050101|ACTUAL|2017.Q1|QTD| - 62954.64449;1050101|ACTUAL|2016.Q4|QTD| - 18126.08755;1050101|ACTUAL|2016.DEC|YTD| - -46502.2602;1050101|ACTUAL|2012.JUN | D1: |YTD| - 327627.1062;105010|ACTUAL|2017.DEC|YTD| - 220026.13518;105010|ACTUAL|2017.Q1|QTD| - 63591.64449;105010|ACTUAL|2016.Q4|QTD| - 19122.08755;105010|ACTUAL|2016.DEC|YTD| - -46059.2602;105010|ACTUAL|2012.JUN|YTD| - 433536.1062;105015|ACTUAL|2017.DEC|YTD| - 1504913.73112;105015|ACTUAL|2017.Q1|QTD| - 181859.82502;105015|ACTUAL|2016.Q4|QTD| - 254193.08084;105015|ACTUAL|2016.DEC|YTD| - 1543146.21184;105015|ACTUAL|2012.JUN|YTD| - 352894.575;1050201|ACTUAL|2017.DEC|YTD| - 432474.66738;1050201|ACTUAL|2017.Q1|QTD | E1: | - 69695.68263;1050201|ACTUAL|2016.Q4|QTD| - 106767.33622;1050201|ACTUAL|2016.DEC|YTD| - 448674.00572;1050201|ACTUAL|2012.JUN|YTD| - 153018.5837;1050202|ACTUAL|2017.DEC|YTD| - 661900.3683;1050202|ACTUAL|2017.Q1|QTD| - 110448.88056;1050202|ACTUAL|2016.Q4|QTD| - 158157.75911;1050202|ACTUAL|2016.DEC|YTD| - 672554.46636;1050202|ACTUAL|2012.JUN|YTD| - 242805.9318;1050203|ACTUAL|2017.DEC|YTD| - 40824.26166;1050203|ACTUAL|2017.Q1|QTD| - 8078.34452;1050203|ACTUAL|2016.Q4|QTD| - 12476.05482;1050203|ACTUAL|2016.DEC| | F1: YTD| - 62773.47862;1050203|ACTUAL|2012.JUN|YTD| - 20157.792;105020|ACTUAL|2017.DEC|YTD| - 1135199.29734;105020|ACTUAL|2017.Q1|QTD| - 188222.90771;105020|ACTUAL|2016.Q4|QTD| - 277401.15015;105020|ACTUAL|2016.DEC|YTD| - 1184001.9507;105020|ACTUAL|2012.JUN|YTD| - 415982.3075;105025|ACTUAL|2017.DEC|YTD| - 210887.123235;105025|ACTUAL|2017.Q1|QTD| - 55054.73635;105025|ACTUAL|2016.Q4|QTD| - 46443.90931;105025|ACTUAL|2016.DEC|YTD| - 168842.31736;105025|ACTUAL|2012.JUN|YTD| - 36167.4826;105027|ACTUAL|2017.DEC|YTD| - | G1: 40253.666;105027|ACTUAL|2017.Q1|QTD| - 9777.9736;105027|ACTUAL|2016.Q4|QTD| - 10112.5845;105027|ACTUAL|2016.DEC|YTD| - 39123.7588;105030|ACTUAL|2017.DEC|YTD| - 346875.1054;105030|ACTUAL|2017.Q1|QTD| - 73274.412;105030|ACTUAL|2016.Q4|QTD| - 90911.8812;105030|ACTUAL|2016.DEC|YTD| - 366803.1312;105030|ACTUAL|2012.JUN|YTD| - 90350.7401;105035|ACTUAL|2017.DEC|YTD| - 276477.2392;105035|ACTUAL|2017.Q1|QTD| - 68314.5132;105035|ACTUAL|2016.Q4|QTD| - 65612.2829999999;105035|ACTUAL|2016.DEC|YTD| - 310884.2759;105035| | H1: ACTUAL|2012.JUN|YTD| - 152825.3225;105036|ACTUAL|2017.DEC|YTD| - 38032.9015;105036|ACTUAL|2017.Q1|QTD| - 9353.1103;105036|ACTUAL|2016.Q4|QTD| - 10647.2668;105036|ACTUAL|2016.DEC|YTD| - 37922.8495;105040|ACTUAL|2017.DEC|YTD| - 75466.81794;105040|ACTUAL|2017.Q1|QTD| - 12849.79028;105040|ACTUAL|2016.Q4|QTD| - 18192.83943;105040|ACTUAL|2016.DEC|YTD| - 90288.79518;105040|ACTUAL|2012.JUN|YTD| - 69661.1826;105045|ACTUAL|2017.DEC|YTD| - 240343.1104;105045|ACTUAL|2017.Q1|QTD| - 70620.50338;105045|ACTUAL|2016.Q4|QTD| | I1: - 34258.32825;105045|ACTUAL|2016.DEC|YTD| - 240279.2142;105045|ACTUAL|2012.JUN|YTD| - 124862.4525;105050|ACTUAL|2017.DEC|YTD| - 26396.09518;105050|ACTUAL|2017.Q1|QTD| - 9559.9842;105050|ACTUAL|2016.Q4|QTD| - 11252.5817;105050|ACTUAL|2016.DEC|YTD| - 31826.1518;105050|ACTUAL|2012.JUN|YTD| - 7966.02753999999;105055|ACTUAL|2017.DEC|YTD| - 4976106.15866;105055|ACTUAL|2017.Q1|QTD| - 1182386.6481;105055|ACTUAL|2016.Q4|QTD| - 1182306.3724;105055|ACTUAL|2016.DEC|YTD| - 4720708.02;105055|ACTUAL|2012.JUN|YTD| - 17429 | J1: 89.1035;1050602|ACTUAL|2017.DEC|YTD| - 71311.21832;1050602|ACTUAL|2017.Q1|QTD| - 14299.79372;1050602|ACTUAL|2016.Q4|QTD| - 21933.66949;1050602|ACTUAL|2016.DEC|YTD| - 73463.57914;1050602|ACTUAL|2012.JUN|YTD| - 180286.8209;1050603|ACTUAL|2017.DEC|YTD| - 6062.459;1050603|ACTUAL|2017.Q1|QTD| - -0.000000000000113686837721616;1050603|ACTUAL|2016.Q4|QTD| - 24;1050603|ACTUAL|2016.DEC|YTD| - 30.9999999999968;1050603|ACTUAL|2012.JUN|YTD| - 0.000000000000738964445190504;1050604|ACTUAL|2017.DEC|YTD| - 0;1050604|ACTUAL| | K1: 2012.JUN|YTD| - 0;1050609|ACTUAL|2017.DEC|YTD| - 10.4874000000012;1050609|ACTUAL|2017.Q1|QTD| - 3.44200000000116;1050609|ACTUAL|2016.Q4|QTD| - 3.40480000000039;1050609|ACTUAL|2016.DEC|YTD| - 10.2407999999962;105060|ACTUAL|2017.DEC|YTD| - 77384.16472;105060|ACTUAL|2017.Q1|QTD| - 14303.23572;105060|ACTUAL|2016.Q4|QTD| - 21961.07429;105060|ACTUAL|2016.DEC|YTD| - 73504.81994;105060|ACTUAL|2012.JUN|YTD| - 180286.8209;105|ACTUAL|2017.DEC|YTD| - 14327806.996975;105|ACTUAL|2017.Q1|QTD| - 3220082.07194;105|ACTUAL|20 | L1: 16.Q4|QTD| - 3351021.00327;105|ACTUAL|2016.DEC|YTD| - 13790372.98042;105|ACTUAL|2012.JUN|YTD| - 5644293.10084;1100051|ACTUAL|2012.JUN|YTD| - -842387.0624;1100052|ACTUAL|2017.DEC|YTD| - 20124.9874;1100052|ACTUAL|2017.Q1|QTD| - 6438.7551;1100052|ACTUAL|2016.Q4|QTD| - 6186.9062;1100052|ACTUAL|2016.DEC|YTD| - -1572.3888;1100052|ACTUAL|2012.JUN|YTD| - 3445;1100053|ACTUAL|2017.DEC|YTD| - -1292284.6782338;1100053|ACTUAL|2017.Q1|QTD| - -329572.40898;1100053|ACTUAL|2016.Q4|QTD| - -301000.35102;1100053|ACTUAL|2016.DE | M1: C|YTD| - -997401.63652;1100053|ACTUAL|2012.JUN|YTD| - -144672.1758;110005|ACTUAL|2017.DEC|YTD| - -1272159.6908338;110005|ACTUAL|2017.Q1|QTD| - -323133.65388;110005|ACTUAL|2016.Q4|QTD| - -294813.44482;110005|ACTUAL|2016.DEC|YTD| - -998974.02532;110005|ACTUAL|2012.JUN|YTD| - -983614.2382;1100101|ACTUAL|2017.DEC|YTD| - -111221.1578636;1100101|ACTUAL|2017.Q1|QTD| - -22502.42148;1100101|ACTUAL|2016.Q4|QTD| - -34627.83789;1100101|ACTUAL|2016.DEC|YTD| - -112638.61224;1100101|ACTUAL|2012.JUN|YTD| - -37675.1888;1100 | N1: 102|ACTUAL|2017.DEC|YTD| - -237360.53374;1100102|ACTUAL|2017.Q1|QTD| - -37532.83699;1100102|ACTUAL|2016.Q4|QTD| - -56609.51159;1100102|ACTUAL|2016.DEC|YTD| - -244287.85284;1100102|ACTUAL|2012.JUN|YTD| - -98116.5724;1100103|ACTUAL|2017.DEC|YTD| - -200294.1354364;1100103|ACTUAL|2017.Q1|QTD| - -38124.13779;1100103|ACTUAL|2016.Q4|QTD| - -46227.4529;1100103|ACTUAL|2016.DEC|YTD| - -201185.6254;1100103|ACTUAL|2012.JUN|YTD| - -84991.1976;1100104|ACTUAL|2017.DEC|YTD| - -55359.108316;1100104|ACTUAL|2017.Q1|QTD| - -12 | O1: 633.32853;1100104|ACTUAL|2016.Q4|QTD| - -15528.13678;1100104|ACTUAL|2016.DEC|YTD| - -53648.30728;1100104|ACTUAL|2012.JUN|YTD| - -26415.9334;110010|ACTUAL|2017.DEC|YTD| - -604234.935356;110010|ACTUAL|2017.Q1|QTD| - -110792.72479;110010|ACTUAL|2016.Q4|QTD| - -152992.93916;110010|ACTUAL|2016.DEC|YTD| - -611760.39776;110010|ACTUAL|2012.JUN|YTD| - -247198.8922;1100151|ACTUAL|2017.DEC|YTD| - -308504.3199518;1100151|ACTUAL|2017.Q1|QTD| - -95034.58463;1100151|ACTUAL|2016.Q4|QTD| - -106795.19567;1100151|ACTUAL|2016. | P1: DEC|YTD| - -289126.74932;1100151|ACTUAL|2012.JUN|YTD| - -137460.247;1100152|ACTUAL|2017.DEC|YTD| - -80348.832843;1100152|ACTUAL|2017.Q1|QTD| - -11186.0369;1100152|ACTUAL|2016.Q4|QTD| - -28889.3772;1100152|ACTUAL|2016.DEC|YTD| - -113803.6214;1100152|ACTUAL|2012.JUN|YTD| - -40801.6831;110015|ACTUAL|2017.DEC|YTD| - -388853.1527948;110015|ACTUAL|2017.Q1|QTD| - -106220.62153;110015|ACTUAL|2016.Q4|QTD| - -135684.57287;110015|ACTUAL|2016.DEC|YTD| - -402930.37072;110015|ACTUAL|2012.JUN|YTD| - -178261.9301;1100201|A | Q1: CTUAL|2017.DEC|YTD| - -601598.1046;1100201|ACTUAL|2017.Q1|QTD| - -144902.10623;1100201|ACTUAL|2016.Q4|QTD| - -151417.14175;1100201|ACTUAL|2016.DEC|YTD| - -564450.9708;1100201|ACTUAL|2012.JUN|YTD| - -335628.1062;110020|ACTUAL|2017.DEC|YTD| - -601598.1046;110020|ACTUAL|2017.Q1|QTD| - -144902.10623;110020|ACTUAL|2016.Q4|QTD| - -151417.14175;110020|ACTUAL|2016.DEC|YTD| - -564450.9708;110020|ACTUAL|2012.JUN|YTD| - -335628.1062;110025|ACTUAL|2017.DEC|YTD| - -1125486.5462;110025|ACTUAL|2017.Q1|QTD| - -295657.66268 | R1: ;110025|ACTUAL|2016.Q4|QTD| - -279779.32577;110025|ACTUAL|2016.DEC|YTD| - -1121620.69082;110025|ACTUAL|2012.JUN|YTD| - -450152.5685;110030|ACTUAL|2017.DEC|YTD| - -864021.5784;110030|ACTUAL|2017.Q1|QTD| - -195022.30712;110030|ACTUAL|2016.Q4|QTD| - -171112.29868;110030|ACTUAL|2016.DEC|YTD| - -794862.59428;110030|ACTUAL|2012.JUN|YTD| - -353020.9825;110035|ACTUAL|2017.DEC|YTD| - -252708.7295234;110035|ACTUAL|2017.Q1|QTD| - -66171.43683;110035|ACTUAL|2016.Q4|QTD| - -61864.20471;110035|ACTUAL|2016.DEC|YTD| - -261 | S1: 458.23746;110035|ACTUAL|2012.JUN|YTD| - -115661.9778;110040|ACTUAL|2017.DEC|YTD| - -19779.2374;110040|ACTUAL|2017.Q1|QTD| - -4458.4592;110040|ACTUAL|2016.Q4|QTD| - -2460.1922;110040|ACTUAL|2016.DEC|YTD| - -19246.8572;110040|ACTUAL|2012.JUN|YTD| - -33465.3352;110045|ACTUAL|2017.DEC|YTD| - -280301.56982;110045|ACTUAL|2017.Q1|QTD| - -67122.2826;110045|ACTUAL|2016.Q4|QTD| - -57605.57795;110045|ACTUAL|2016.DEC|YTD| - -267959.9851;110045|ACTUAL|2012.JUN|YTD| - -102318.7383;110050|ACTUAL|2017.DEC|YTD| - -2605136.5 | T1: 627;110050|ACTUAL|2017.Q1|QTD| - -641092.3536;110050|ACTUAL|2016.Q4|QTD| - -651862.966299999;110050|ACTUAL|2016.DEC|YTD| - -2627374.6565;110050|ACTUAL|2012.JUN|YTD| - -1103623.5842;110055|ACTUAL|2017.DEC|YTD| - -242992.29744;110055|ACTUAL|2017.Q1|QTD| - -53763.2995;110055|ACTUAL|2016.Q4|QTD| - -58143.0365;110055|ACTUAL|2016.DEC|YTD| - -219532.2561;110055|ACTUAL|2012.JUN|YTD| - -121931.9208;110056|ACTUAL|2017.DEC|YTD| - -7668.78;110056|ACTUAL|2017.Q1|QTD| - -1822.8156;110056|ACTUAL|2016.Q4|QTD| - -1938.4461; | U1: 110056|ACTUAL|2016.DEC|YTD| - -7510.4606;110060|ACTUAL|2017.DEC|YTD| - -9766.7620815;110060|ACTUAL|2017.Q1|QTD| - -1946.574;110060|ACTUAL|2016.Q4|QTD| - -3637.2014;110060|ACTUAL|2016.DEC|YTD| - -13320.7004;110060|ACTUAL|2012.JUN|YTD| - -1496.5053;110065|ACTUAL|2017.DEC|YTD| - 917;110065|ACTUAL|2016.Q4|QTD| - 596;110065|ACTUAL|2016.DEC|YTD| - 1598;110065|ACTUAL|2012.JUN|YTD| - 528.0457;110070|ACTUAL|2017.DEC|YTD| - -4868.1336404;110070|ACTUAL|2017.Q1|QTD| - -1478.41831;110070|ACTUAL|2016.Q4|QTD| - -1562.5095 | V1: 5;110070|ACTUAL|2016.DEC|YTD| - -1099.3024;110070|ACTUAL|2012.JUN|YTD| - -4732.0258;110075|ACTUAL|2017.DEC|YTD| - -603.644;110075|ACTUAL|2017.Q1|QTD| - -2062.86999;110075|ACTUAL|2016.Q4|QTD| - 4749.36699;110075|ACTUAL|2016.DEC|YTD| - 13178.48104;110075|ACTUAL|2012.JUN|YTD| - -930.1959;110|ACTUAL|2017.DEC|YTD| - -8279366.8220899;110|ACTUAL|2017.Q1|QTD| - -2015648.41146;110|ACTUAL|2016.Q4|QTD| - -2019467.49947;110|ACTUAL|2016.DEC|YTD| - -7897659.50612;110|ACTUAL|2012.JUN|YTD| - -4031508.9553;115|ACTUAL|2017.D | W1: EC|YTD| - 6048440.1748851;115|ACTUAL|2017.Q1|QTD| - 1204433.66048;115|ACTUAL|2016.Q4|QTD| - 1331553.5038;115|ACTUAL|2016.DEC|YTD| - 5892713.4743;115|ACTUAL|2012.JUN|YTD| - 1612784.14554;1200051|ACTUAL|2017.DEC|YTD| - -2095453.855146;1200051|ACTUAL|2017.Q1|QTD| - -505552.0684347;1200051|ACTUAL|2016.Q4|QTD| - -514689.91881;1200051|ACTUAL|2016.DEC|YTD| - -2031266.22256;1200051|ACTUAL|2012.JUN|YTD| - -745746.4364;1200052|ACTUAL|2017.DEC|YTD| - -24825.81308;1200052|ACTUAL|2017.Q1|QTD| - -9965.0605658;1200052|ACT | X1: UAL|2016.Q4|QTD| - -16508.05606;1200052|ACTUAL|2016.DEC|YTD| - -53464.43406;1200052|ACTUAL|2012.JUN|YTD| - 3238.5721;120005|ACTUAL|2017.DEC|YTD| - -2120279.668226;120005|ACTUAL|2017.Q1|QTD| - -515517.1290005;120005|ACTUAL|2016.Q4|QTD| - -531197.97487;120005|ACTUAL|2016.DEC|YTD| - -2084730.65662;120005|ACTUAL|2012.JUN|YTD| - -742507.8643;120010|ACTUAL|2017.DEC|YTD| - -7452;120010|ACTUAL|2017.Q1|QTD| - -1853;120010|ACTUAL|2016.Q4|QTD| - -1888;120010|ACTUAL|2016.DEC|YTD| - -7477;120010|ACTUAL|2012.JUN|YTD| - - | Y1: 1972;120015|ACTUAL|2017.DEC|YTD| - -107019.9299906;120015|ACTUAL|2017.Q1|QTD| - -24996.3659566;120015|ACTUAL|2016.Q4|QTD| - -30646.75489;120015|ACTUAL|2016.DEC|YTD| - -106937.21514;120015|ACTUAL|2012.JUN|YTD| - -34644.31862;120020|ACTUAL|2017.DEC|YTD| - -257.5002;120020|ACTUAL|2017.Q1|QTD| - -557.6773;120020|ACTUAL|2016.Q4|QTD| - -1029.1335;120020|ACTUAL|2016.DEC|YTD| - -3206.251;120020|ACTUAL|2012.JUN|YTD| - -2505.9549;120025|ACTUAL|2017.DEC|YTD| - 33038.3516;120025|ACTUAL|2017.Q1|QTD| - 10687.0843;120025| | Z1: ACTUAL|2016.Q4|QTD| - 12473.9501;120025|ACTUAL|2016.DEC|YTD| - 43255.5076;120025|ACTUAL|2012.JUN|YTD| - 8936.9198;120030|ACTUAL|2017.DEC|YTD| - -2946.0511;120030|ACTUAL|2017.Q1|QTD| - 27.3101;120030|ACTUAL|2016.Q4|QTD| - -1548.37114;120030|ACTUAL|2016.DEC|YTD| - -2540.02454;120030|ACTUAL|2012.JUN|YTD| - -353.6563;120035|ACTUAL|2017.DEC|YTD| - -246775.6597036;120035|ACTUAL|2017.Q1|QTD| - -57694.5846207;120035|ACTUAL|2016.Q4|QTD| - -52652.93704;120035|ACTUAL|2016.DEC|YTD| - -239737.93924;120035|ACTUAL|2012.JU | AA1: N|YTD| - -77395.4396;120040|ACTUAL|2017.DEC|YTD| - -209033.0263248;120040|ACTUAL|2017.Q1|QTD| - -48794.2172822;120040|ACTUAL|2016.Q4|QTD| - -58949.009;120040|ACTUAL|2016.DEC|YTD| - -206572.1847;120040|ACTUAL|2012.JUN|YTD| - -94534.31618;120|ACTUAL|2017.DEC|YTD| - -2660725.483945;120|ACTUAL|2017.Q1|QTD| - -638698.57976;120|ACTUAL|2016.Q4|QTD| - -665438.230340001;120|ACTUAL|2016.DEC|YTD| - -2607945.76364;120|ACTUAL|2012.JUN|YTD| - -944976.6301;1300051|ACTUAL|2017.DEC|YTD| - -85614.1151628;1300051|ACTUAL|2017. | AB1: Q1|QTD| - -25968.9799436;1300051|ACTUAL|2016.Q4|QTD| - -23126.82289;1300051|ACTUAL|2016.DEC|YTD| - -95151.98394;1300051|ACTUAL|2012.JUN|YTD| - -43491.883;1300052|ACTUAL|2017.DEC|YTD| - -108472.71452;1300052|ACTUAL|2017.Q1|QTD| - -24626.9134047;1300052|ACTUAL|2016.Q4|QTD| - -21292.06721;1300052|ACTUAL|2016.DEC|YTD| - -80233.39246;1300052|ACTUAL|2012.JUN|YTD| - -52151.6226;1300053|ACTUAL|2017.DEC|YTD| - -39014.1623686;1300053|ACTUAL|2017.Q1|QTD| - -9634.6713572;1300053|ACTUAL|2016.Q4|QTD| - -9601.42575;130005 | AC1: 3|ACTUAL|2016.DEC|YTD| - -35264.6027;1300053|ACTUAL|2012.JUN|YTD| - -18466.9257;1300054|ACTUAL|2017.DEC|YTD| - -76188.8377568;1300054|ACTUAL|2017.Q1|QTD| - -18417.0229389;1300054|ACTUAL|2016.Q4|QTD| - -18568.38053;1300054|ACTUAL|2016.DEC|YTD| - -80825.88718;1300054|ACTUAL|2012.JUN|YTD| - -37272.9181;130005|ACTUAL|2017.DEC|YTD| - -309289.8298082;130005|ACTUAL|2017.Q1|QTD| - -78647.5876444;130005|ACTUAL|2016.Q4|QTD| - -72588.69638;130005|ACTUAL|2016.DEC|YTD| - -291475.86628;130005|ACTUAL|2012.JUN|YTD| - -1513 | AD1: 83.3494;1300102|ACTUAL|2017.DEC|YTD| - -88420.8899444;1300102|ACTUAL|2017.Q1|QTD| - -16943.06128;1300102|ACTUAL|2016.Q4|QTD| - -38289.07752;1300102|ACTUAL|2016.DEC|YTD| - -101676.30292;1300102|ACTUAL|2012.JUN|YTD| - -8276.0599;13001031|ACTUAL|2017.DEC|YTD| - -5171.8257;13001031|ACTUAL|2017.Q1|QTD| - -1951.03736;13001031|ACTUAL|2016.Q4|QTD| - -1392.27927;13001031|ACTUAL|2016.DEC|YTD| - -7112.07672;13001031|ACTUAL|2012.JUN|YTD| - -3480.4738;13001032|ACTUAL|2017.DEC|YTD| - -446.9033;13001032|ACTUAL|2017.Q1|QTD | AE1: | - -185.7305;13001032|ACTUAL|2016.Q4|QTD| - -133.4407;13001032|ACTUAL|2016.DEC|YTD| - -817.8847;13001032|ACTUAL|2012.JUN|YTD| - -1103.765;13001033|ACTUAL|2017.DEC|YTD| - -411.8349;13001033|ACTUAL|2017.Q1|QTD| - -207.7593;13001033|ACTUAL|2016.Q4|QTD| - -188.0322;13001033|ACTUAL|2016.DEC|YTD| - -2059.8364;13001033|ACTUAL|2012.JUN|YTD| - -351.8773;13001034|ACTUAL|2017.DEC|YTD| - 127.07194;13001034|ACTUAL|2017.Q1|QTD| - -73.87396;13001034|ACTUAL|2016.Q4|QTD| - 5.70450000000005;13001034|ACTUAL|2016.DEC|YTD| - - | AF1: 1720.0339;1300103|ACTUAL|2017.DEC|YTD| - -5903.49196;1300103|ACTUAL|2017.Q1|QTD| - -2418.40112;1300103|ACTUAL|2016.Q4|QTD| - -1708.04767;1300103|ACTUAL|2016.DEC|YTD| - -11709.83172;1300103|ACTUAL|2012.JUN|YTD| - -4936.1161;1300104|ACTUAL|2017.DEC|YTD| - -4239.2954;1300104|ACTUAL|2017.Q1|QTD| - -1297.52638;1300104|ACTUAL|2016.Q4|QTD| - -592.45607;1300104|ACTUAL|2016.DEC|YTD| - -2638.04312;1300104|ACTUAL|2012.JUN|YTD| - -620.3383;1300105|ACTUAL|2017.DEC|YTD| - -62.6783;1300105|ACTUAL|2016.Q4|QTD| - 148.4705;1 | AG1: 300105|ACTUAL|2016.DEC|YTD| - 7.559;1300105|ACTUAL|2012.JUN|YTD| - -932.486;13001063|ACTUAL|2017.DEC|YTD| - 0;13001063|ACTUAL|2017.Q1|QTD| - 0;13001063|ACTUAL|2016.Q4|QTD| - 0;13001063|ACTUAL|2016.DEC|YTD| - 0;13001063|ACTUAL|2012.JUN|YTD| - -200.2872;13001064|ACTUAL|2017.DEC|YTD| - -34;13001064|ACTUAL|2017.Q1|QTD| - -0.000000000000113686837721616;13001064|ACTUAL|2016.Q4|QTD| - 0.000000000000341060513164848;13001064|ACTUAL|2016.DEC|YTD| - 0.000000000000227373675443232;1300106|ACTUAL|2017.DEC|YTD| - -34;1300 | AH1: 106|ACTUAL|2017.Q1|QTD| - -0.000000000000113686837721616;1300106|ACTUAL|2016.Q4|QTD| - 0.000000000000341060513164848;1300106|ACTUAL|2016.DEC|YTD| - 0.000000000000227373675443232;1300106|ACTUAL|2012.JUN|YTD| - -200.2872;130010|ACTUAL|2017.DEC|YTD| - -98660.3556044;130010|ACTUAL|2017.Q1|QTD| - -20658.98878;130010|ACTUAL|2016.Q4|QTD| - -40441.11076;130010|ACTUAL|2016.DEC|YTD| - -116016.61876;130010|ACTUAL|2012.JUN|YTD| - -14965.2875;1300151|ACTUAL|2017.DEC|YTD| - -179416.267973;1300151|ACTUAL|2017.Q1|QTD| - -3 | AI1: 2083.1887766;1300151|ACTUAL|2016.Q4|QTD| - -37082.19261;1300151|ACTUAL|2016.DEC|YTD| - -171513.26186;1300151|ACTUAL|2012.JUN|YTD| - -63609.3102;1300152|ACTUAL|2017.DEC|YTD| - -98260.3165234;1300152|ACTUAL|2017.Q1|QTD| - -20488.09714;1300152|ACTUAL|2016.Q4|QTD| - -3002.86184000003;1300152|ACTUAL|2016.DEC|YTD| - -117267.62724;1300152|ACTUAL|2012.JUN|YTD| - -35816.7138;130020|ACTUAL|2017.DEC|YTD| - -277676.5844964;130020|ACTUAL|2017.Q1|QTD| - -52571.2859166;130020|ACTUAL|2016.Q4|QTD| - -40085.05445;130020|ACTU | AJ1: AL|2016.DEC|YTD| - -288780.8891;130020|ACTUAL|2012.JUN|YTD| - -99426.024;130|ACTUAL|2017.DEC|YTD| - -685626.769909;130|ACTUAL|2017.Q1|QTD| - -151877.862341;130|ACTUAL|2016.Q4|QTD| - -153114.86159;130|ACTUAL|2016.DEC|YTD| - -696273.37414;130|ACTUAL|2012.JUN|YTD| - -265774.6609;135|ACTUAL|2017.DEC|YTD| - 2702087.9210311;135|ACTUAL|2017.Q1|QTD| - 413857.218379;135|ACTUAL|2016.Q4|QTD| - 513000.411869998;135|ACTUAL|2016.DEC|YTD| - 2588494.33652;135|ACTUAL|2012.JUN|YTD| - 402032.854539999;140|ACTUAL|2017.DEC|YTD| | AK1: - 5591.9976;140|ACTUAL|2017.Q1|QTD| - 6367.1397;140|ACTUAL|2016.Q4|QTD| - -108.373900000001;140|ACTUAL|2016.DEC|YTD| - -2968.7601;140|ACTUAL|2012.JUN|YTD| - -1891.2555;1450051|ACTUAL|2017.DEC|YTD| - -1339.878;1450051|ACTUAL|2017.Q1|QTD| - -825.4039;1450051|ACTUAL|2016.Q4|QTD| - -183.4133;1450051|ACTUAL|2016.DEC|YTD| - -13782.0222;1450051|ACTUAL|2012.JUN|YTD| - 42.4055;145005|ACTUAL|2017.DEC|YTD| - -1339.878;145005|ACTUAL|2017.Q1|QTD| - -825.4039;145005|ACTUAL|2016.Q4|QTD| - -183.4133;145005|ACTUAL|2016.DEC | AL1: |YTD| - -13782.0222;145005|ACTUAL|2012.JUN|YTD| - 42.4055;1450101|ACTUAL|2017.DEC|YTD| - 8257.3376;1450101|ACTUAL|2017.Q1|QTD| - 5155.0148;1450101|ACTUAL|2016.Q4|QTD| - 2273.718;1450101|ACTUAL|2016.DEC|YTD| - 20524.1727;1450101|ACTUAL|2012.JUN|YTD| - 3030.7149;145010|ACTUAL|2017.DEC|YTD| - 8257.3376;145010|ACTUAL|2017.Q1|QTD| - 5155.0148;145010|ACTUAL|2016.Q4|QTD| - 2273.718;145010|ACTUAL|2016.DEC|YTD| - 20524.1727;145010|ACTUAL|2012.JUN|YTD| - 3030.7149;145|ACTUAL|2017.DEC|YTD| - 6917.45959999999;145|ACTUA | AM1: L|2017.Q1|QTD| - 4329.6109;145|ACTUAL|2016.Q4|QTD| - 2090.3047;145|ACTUAL|2016.DEC|YTD| - 6742.1505;145|ACTUAL|2012.JUN|YTD| - 3073.1204;150005|ACTUAL|2017.DEC|YTD| - 52.0702;150005|ACTUAL|2016.Q4|QTD| - -0.538200000000188;150005|ACTUAL|2016.DEC|YTD| - 1742.1768;150010|ACTUAL|2012.JUN|YTD| - 1864;150012|ACTUAL|2016.Q4|QTD| - 0;150012|ACTUAL|2016.DEC|YTD| - 0;150|ACTUAL|2017.DEC|YTD| - 52.0702;150|ACTUAL|2016.Q4|QTD| - -0.538200000000188;150|ACTUAL|2016.DEC|YTD| - 1742.1768;150|ACTUAL|2012.JUN|YTD| - 1864;15 | AN1: 5005|ACTUAL|2017.DEC|YTD| - -941744.9005;155005|ACTUAL|2017.Q1|QTD| - -235688.89697;155005|ACTUAL|2016.Q4|QTD| - -229095.335648;155005|ACTUAL|2016.DEC|YTD| - -935064.260548;155005|ACTUAL|2012.JUN|YTD| - -334602.213;155010|ACTUAL|2017.DEC|YTD| - 8534;155010|ACTUAL|2016.Q4|QTD| - -14999.9655;155010|ACTUAL|2016.DEC|YTD| - -15111.678;155010|ACTUAL|2012.JUN|YTD| - 334.5795;155|ACTUAL|2017.DEC|YTD| - -933210.9005;155|ACTUAL|2017.Q1|QTD| - -235688.89697;155|ACTUAL|2016.Q4|QTD| - -244095.301148;155|ACTUAL|2016.DEC| | AO1: YTD| - -950175.938548;155|ACTUAL|2012.JUN|YTD| - -334267.6335;165|ACTUAL|2017.DEC|YTD| - 1781662.0077369;165|ACTUAL|2017.Q1|QTD| - 188938.727708999;165|ACTUAL|2016.Q4|QTD| - 270646.833981999;165|ACTUAL|2016.DEC|YTD| - 1643556.750732;165|ACTUAL|2012.JUN|YTD| - 70802.4997399991;17000512|ACTUAL|2017.DEC|YTD| - -37766.24206;17000512|ACTUAL|2017.Q1|QTD| - -5912;17000514|ACTUAL|2016.Q4|QTD| - -3;17000514|ACTUAL|2016.DEC|YTD| - -3;170005|ACTUAL|2017.DEC|YTD| - -37766.24206;170005|ACTUAL|2017.Q1|QTD| - -5912;170005 | AP1: |ACTUAL|2016.Q4|QTD| - -3;170005|ACTUAL|2016.DEC|YTD| - -3;170010|ACTUAL|2012.JUN|YTD| - -12830;170015|ACTUAL|2016.Q4|QTD| - -1.48350000000028;170015|ACTUAL|2016.DEC|YTD| - 4802.154;170016|ACTUAL|2016.Q4|QTD| - 1.48349999999937;170016|ACTUAL|2016.DEC|YTD| - -4802.154;170020|ACTUAL|2017.DEC|YTD| - 8963;170020|ACTUAL|2016.Q4|QTD| - -0.367999999999938;170020|ACTUAL|2016.DEC|YTD| - -2.76800000000003;170021|ACTUAL|2017.DEC|YTD| - -11872.4638;170021|ACTUAL|2016.Q4|QTD| - -5792;170021|ACTUAL|2016.DEC|YTD| - -12939 | AQ1: ;170025|ACTUAL|2017.DEC|YTD| - -10.2609999999986;170025|ACTUAL|2016.Q4|QTD| - -7.41849999999999;170025|ACTUAL|2016.DEC|YTD| - 336.9109;170026|ACTUAL|2016.Q4|QTD| - -229.1328;170026|ACTUAL|2016.DEC|YTD| - -229.1328;170026|ACTUAL|2012.JUN|YTD| - 23509;170030|ACTUAL|2017.DEC|YTD| - 0;170030|ACTUAL|2016.Q4|QTD| - 0;170030|ACTUAL|2016.DEC|YTD| - 0;170035|ACTUAL|2012.JUN|YTD| - -2936.8645;170040|ACTUAL|2012.JUN|YTD| - -75000;170|ACTUAL|2017.DEC|YTD| - -40685.96686;170|ACTUAL|2017.Q1|QTD| - -5912;170|ACTUAL|2016.Q | AR1: 4|QTD| - -6031.9193;170|ACTUAL|2016.DEC|YTD| - -12836.9899;170|ACTUAL|2012.JUN|YTD| - -67257.8645;175|ACTUAL|2017.DEC|YTD| - 1740976.0408769;175|ACTUAL|2017.Q1|QTD| - 183026.727708999;175|ACTUAL|2016.Q4|QTD| - 264614.914681999;175|ACTUAL|2016.DEC|YTD| - 1630719.760832;175|ACTUAL|2012.JUN|YTD| - 3544.63523999907;1800051|ACTUAL|2017.DEC|YTD| - 3915.8311;1800051|ACTUAL|2017.Q1|QTD| - 1257.4726;1800051|ACTUAL|2016.Q4|QTD| - 567.274799999999;1800051|ACTUAL|2016.DEC|YTD| - 2263.9543;1800051|ACTUAL|2012.JUN|YTD| - | AS1: 10287.5926;1800052|ACTUAL|2017.DEC|YTD| - 0;1800052|ACTUAL|2017.Q1|QTD| - 0;1800052|ACTUAL|2016.Q4|QTD| - 0;1800052|ACTUAL|2016.DEC|YTD| - 0;1800052|ACTUAL|2012.JUN|YTD| - 0.000000000000397903932025656;1800054|ACTUAL|2017.DEC|YTD| - 107.478530000002;1800054|ACTUAL|2017.Q1|QTD| - 93.2281399999993;1800054|ACTUAL|2016.Q4|QTD| - -427.958999999995;1800054|ACTUAL|2016.DEC|YTD| - 133.604699999989;1800054|ACTUAL|2012.JUN|YTD| - 526.43529999999;180005|ACTUAL|2017.DEC|YTD| - 4023.30963;180005|ACTUAL|2017.Q1|QTD| - 1 | AT1: 350.70074;180005|ACTUAL|2016.Q4|QTD| - 139.315800000004;180005|ACTUAL|2016.DEC|YTD| - 2397.55899999999;180005|ACTUAL|2012.JUN|YTD| - 10814.0279;180010|ACTUAL|2016.Q4|QTD| - 25278.7808;180010|ACTUAL|2016.DEC|YTD| - 25278.7808;1800151|ACTUAL|2017.DEC|YTD| - 200482.48616;1800151|ACTUAL|2017.Q1|QTD| - 9601.79394;1800151|ACTUAL|2016.Q4|QTD| - 19185.6263;1800151|ACTUAL|2016.DEC|YTD| - 75936.692;1800151|ACTUAL|2012.JUN|YTD| - 81997.4309;1800152|ACTUAL|2017.DEC|YTD| - 28267.53468;1800152|ACTUAL|2017.Q1|QTD| - 7317. | AU1: 62785;1800152|ACTUAL|2016.Q4|QTD| - -10192.52019;1800152|ACTUAL|2016.DEC|YTD| - 37578.07536;1800152|ACTUAL|2012.JUN|YTD| - 21394.5018;1800153|ACTUAL|2017.DEC|YTD| - 7123.7721;1800153|ACTUAL|2017.Q1|QTD| - 1050;1800153|ACTUAL|2016.Q4|QTD| - -5254;1800153|ACTUAL|2016.DEC|YTD| - 136882;1800153|ACTUAL|2012.JUN|YTD| - 92;1800154|ACTUAL|2017.DEC|YTD| - 14174;1800154|ACTUAL|2017.Q1|QTD| - 6237;1800154|ACTUAL|2016.Q4|QTD| - 6641;1800154|ACTUAL|2016.DEC|YTD| - 27068;180015|ACTUAL|2017.DEC|YTD| - 250047.79294;180015| | AV1: ACTUAL|2017.Q1|QTD| - 24206.42179;180015|ACTUAL|2016.Q4|QTD| - 10380.10611;180015|ACTUAL|2016.DEC|YTD| - 277464.76736;180015|ACTUAL|2012.JUN|YTD| - 103483.9327;1800251|ACTUAL|2017.DEC|YTD| - 0;1800251|ACTUAL|2017.Q1|QTD| - 0;1800251|ACTUAL|2016.Q4|QTD| - 0;1800251|ACTUAL|2016.DEC|YTD| - -0.000000000000454747350886464;1800251|ACTUAL|2012.JUN|YTD| - 0;1800254|ACTUAL|2017.DEC|YTD| - 2787;1800254|ACTUAL|2016.Q4|QTD| - 0;1800254|ACTUAL|2016.DEC|YTD| - 3213;1800254|ACTUAL|2012.JUN|YTD| - 1369;180025|ACTUAL|2017.D | AW1: EC|YTD| - 2787;180025|ACTUAL|2017.Q1|QTD| - 0;180025|ACTUAL|2016.Q4|QTD| - 0;180025|ACTUAL|2016.DEC|YTD| - 3213;180025|ACTUAL|2012.JUN|YTD| - 1369;180030|ACTUAL|2017.DEC|YTD| - 70.8079;180030|ACTUAL|2017.Q1|QTD| - 3.9115;180030|ACTUAL|2016.Q4|QTD| - 39.8475;180030|ACTUAL|2016.DEC|YTD| - 111.881;180030|ACTUAL|2012.JUN|YTD| - 131.8814;180|ACTUAL|2017.DEC|YTD| - 256928.91047;180|ACTUAL|2017.Q1|QTD| - 25561.03403;180|ACTUAL|2016.Q4|QTD| - 35838.05021;180|ACTUAL|2016.DEC|YTD| - 308465.98816;180|ACTUAL|2012.JUN|Y | AX1: TD| - 115798.842;1850051|ACTUAL|2017.DEC|YTD| - -55889.5837;1850051|ACTUAL|2017.Q1|QTD| - -12338.13921;1850051|ACTUAL|2016.Q4|QTD| - -12798.023278;1850051|ACTUAL|2016.DEC|YTD| - -62119.207528;1850051|ACTUAL|2012.JUN|YTD| - -69889.9909;1850052|ACTUAL|2017.DEC|YTD| - 0;1850052|ACTUAL|2017.Q1|QTD| - 0;1850052|ACTUAL|2016.Q4|QTD| - 0;1850052|ACTUAL|2016.DEC|YTD| - 0;1850052|ACTUAL|2012.JUN|YTD| - 0.000000000000454747350886464;1850053|ACTUAL|2017.DEC|YTD| - -512.5917;1850053|ACTUAL|2017.Q1|QTD| - -122.1826;18500 | AY1: 53|ACTUAL|2016.Q4|QTD| - -44.5144500000001;1850053|ACTUAL|2016.DEC|YTD| - -961.6065;1850053|ACTUAL|2012.JUN|YTD| - -1653.7458;1850054|ACTUAL|2017.DEC|YTD| - -10935.76082;1850054|ACTUAL|2017.Q1|QTD| - -2847.9163;1850054|ACTUAL|2016.Q4|QTD| - -2531.9342;1850054|ACTUAL|2016.DEC|YTD| - -10887.1118;1850054|ACTUAL|2012.JUN|YTD| - -6415.1148;1850055|ACTUAL|2017.DEC|YTD| - -1528.74718;1850055|ACTUAL|2017.Q1|QTD| - -773.271;1850055|ACTUAL|2016.Q4|QTD| - -163.69963;1850055|ACTUAL|2016.DEC|YTD| - -2714.03918;1850055|A | AZ1: CTUAL|2012.JUN|YTD| - -1200.8629;1850056|ACTUAL|2017.DEC|YTD| - -1981;1850056|ACTUAL|2017.Q1|QTD| - -728;1850056|ACTUAL|2016.Q4|QTD| - -410;1850056|ACTUAL|2016.DEC|YTD| - -2299;1850057|ACTUAL|2017.DEC|YTD| - -560.176;1850057|ACTUAL|2017.Q1|QTD| - 119;1850057|ACTUAL|2016.Q4|QTD| - 131;1850057|ACTUAL|2016.DEC|YTD| - 3879;1850057|ACTUAL|2012.JUN|YTD| - 7995;1850058|ACTUAL|2017.DEC|YTD| - 1;1850058|ACTUAL|2017.Q1|QTD| - 10;1850058|ACTUAL|2016.Q4|QTD| - -7;1850058|ACTUAL|2016.DEC|YTD| - -13;1850059|ACTUAL|2017.D | BA1: EC|YTD| - -3406;1850059|ACTUAL|2017.Q1|QTD| - -720;1850059|ACTUAL|2016.Q4|QTD| - -153;1850059|ACTUAL|2016.DEC|YTD| - -2862;185005|ACTUAL|2017.DEC|YTD| - -74812.8594;185005|ACTUAL|2017.Q1|QTD| - -17400.50911;185005|ACTUAL|2016.Q4|QTD| - -15977.171558;185005|ACTUAL|2016.DEC|YTD| - -77976.965008;185005|ACTUAL|2012.JUN|YTD| - -71164.7144;1850151|ACTUAL|2017.DEC|YTD| - -70965.62116;1850151|ACTUAL|2017.Q1|QTD| - -26780.25391;1850151|ACTUAL|2016.Q4|QTD| - -22469.12945;1850151|ACTUAL|2016.DEC|YTD| - -88263.5805;185 | BB1: 0151|ACTUAL|2012.JUN|YTD| - -28550.2694;1850152|ACTUAL|2017.DEC|YTD| - -42930.2375;1850152|ACTUAL|2017.Q1|QTD| - 19087.00027;1850152|ACTUAL|2016.Q4|QTD| - 8035.18305000002;1850152|ACTUAL|2016.DEC|YTD| - -69313.1408;1850152|ACTUAL|2012.JUN|YTD| - -16667.9553;1850153|ACTUAL|2017.DEC|YTD| - -16013;1850153|ACTUAL|2017.Q1|QTD| - -10986;1850153|ACTUAL|2012.JUN|YTD| - -73550;1850154|ACTUAL|2017.DEC|YTD| - -100007;1850154|ACTUAL|2017.Q1|QTD| - -2316;1850154|ACTUAL|2016.Q4|QTD| - -5304;1850154|ACTUAL|2016.DEC|YTD| - | BC1: -94872;185015|ACTUAL|2017.DEC|YTD| - -229915.85866;185015|ACTUAL|2017.Q1|QTD| - -20995.25364;185015|ACTUAL|2016.Q4|QTD| - -19737.9464;185015|ACTUAL|2016.DEC|YTD| - -252448.7213;185015|ACTUAL|2012.JUN|YTD| - -118768.2247;185020|ACTUAL|2016.Q4|QTD| - 267;185020|ACTUAL|2012.JUN|YTD| - -670;185042|ACTUAL|2016.Q4|QTD| - 0;185042|ACTUAL|2016.DEC|YTD| - -34;185042|ACTUAL|2012.JUN|YTD| - 20.6178;185045|ACTUAL|2017.DEC|YTD| - -11183.18016;185045|ACTUAL|2017.Q1|QTD| - -4037.9695;185045|ACTUAL|2016.Q4|QTD| - -3891.13 | BD1: 139999998;185045|ACTUAL|2016.DEC|YTD| - -21508.6661;185045|ACTUAL|2012.JUN|YTD| - -11506.67458;185050|ACTUAL|2017.DEC|YTD| - 4306;185050|ACTUAL|2017.Q1|QTD| - 780;185050|ACTUAL|2016.Q4|QTD| - 420;185050|ACTUAL|2016.DEC|YTD| - 420;185050|ACTUAL|2012.JUN|YTD| - 7033;185|ACTUAL|2017.DEC|YTD| - -311605.89822;185|ACTUAL|2017.Q1|QTD| - -41653.73225;185|ACTUAL|2016.Q4|QTD| - -38919.2493579999;185|ACTUAL|2016.DEC|YTD| - -351548.352408;185|ACTUAL|2012.JUN|YTD| - -195055.99588;187|ACTUAL|2017.DEC|YTD| - -54676.98775; | BE1: 187|ACTUAL|2017.Q1|QTD| - -16092.69822;187|ACTUAL|2016.Q4|QTD| - -3081.19914799991;187|ACTUAL|2016.DEC|YTD| - -43082.364248;187|ACTUAL|2012.JUN|YTD| - -79257.15388;189|ACTUAL|2017.DEC|YTD| - 0;189|ACTUAL|2017.Q1|QTD| - 0.000000000000056843418860808;189|ACTUAL|2016.Q4|QTD| - -0.000000000000454747350886464;189|ACTUAL|2016.DEC|YTD| - -0.00000000000113686837721616;189|ACTUAL|2012.JUN|YTD| - 0;190|ACTUAL|2017.DEC|YTD| - 1686299.0531269;190|ACTUAL|2017.Q1|QTD| - 166934.029488999;190|ACTUAL|2016.Q4|QTD| - 261533.7 | BF1: 15533999;190|ACTUAL|2016.DEC|YTD| - 1587637.396584;190|ACTUAL|2012.JUN|YTD| - -75712.5186400009;19510101|ACTUAL|2017.DEC|YTD| - -45950.0832;19510101|ACTUAL|2017.Q1|QTD| - -12839.8119;19510101|ACTUAL|2016.Q4|QTD| - 5812.98580000003;19510101|ACTUAL|2016.DEC|YTD| - -48624.8012;19510101|ACTUAL|2012.JUN|YTD| - -17262.73844;19510102|ACTUAL|2017.DEC|YTD| - -7545.75099999999;19510102|ACTUAL|2017.Q1|QTD| - -951.605599999999;19510102|ACTUAL|2016.Q4|QTD| - -1258.0222;19510102|ACTUAL|2016.DEC|YTD| - -5495.6976;19510102 | BG1: |ACTUAL|2012.JUN|YTD| - 402.8477;1951010|ACTUAL|2017.DEC|YTD| - -53495.8342;1951010|ACTUAL|2017.Q1|QTD| - -13791.4175;1951010|ACTUAL|2016.Q4|QTD| - 4554.96360000003;1951010|ACTUAL|2016.DEC|YTD| - -54120.4988;1951010|ACTUAL|2012.JUN|YTD| - -16859.89074;1951012|ACTUAL|2017.DEC|YTD| - 3256.705381;1951012|ACTUAL|2017.Q1|QTD| - 1499.03810000001;1951012|ACTUAL|2016.Q4|QTD| - 1242.3806;1951012|ACTUAL|2016.DEC|YTD| - 1785.0611;1951012|ACTUAL|2012.JUN|YTD| - 6529.9411;1951014|ACTUAL|2017.DEC|YTD| - -14276.60403;1951 | BH1: 014|ACTUAL|2017.Q1|QTD| - -1903.96825;1951014|ACTUAL|2016.Q4|QTD| - -3532.0772;1951014|ACTUAL|2016.DEC|YTD| - -5171.5261;1951014|ACTUAL|2012.JUN|YTD| - -1785.70097;1951016|ACTUAL|2017.DEC|YTD| - 620.1423;1951016|ACTUAL|2017.Q1|QTD| - 233.5149;1951016|ACTUAL|2016.Q4|QTD| - -13532.1305;1951016|ACTUAL|2016.DEC|YTD| - 74.4519999999998;1951016|ACTUAL|2012.JUN|YTD| - 892.212;1951018|ACTUAL|2017.DEC|YTD| - -1064.7763;1951018|ACTUAL|2017.Q1|QTD| - -253.9308;1951018|ACTUAL|2016.Q4|QTD| - -529.4952;1951018|ACTUAL|201 | BI1: 6.DEC|YTD| - -1884.6552;1951018|ACTUAL|2012.JUN|YTD| - -5114.667;1951020|ACTUAL|2017.DEC|YTD| - 28.3051;1951020|ACTUAL|2017.Q1|QTD| - -14.8706;1951020|ACTUAL|2016.Q4|QTD| - 1877.9537;1951020|ACTUAL|2016.DEC|YTD| - 4081.3968;1951020|ACTUAL|2012.JUN|YTD| - 10041.735;1951022|ACTUAL|2017.DEC|YTD| - -395;1951022|ACTUAL|2016.Q4|QTD| - 12045.351;1951022|ACTUAL|2016.DEC|YTD| - 12045.351;1951022|ACTUAL|2012.JUN|YTD| - 592;1951024|ACTUAL|2017.DEC|YTD| - -527.7854;1951024|ACTUAL|2017.Q1|QTD| - -1982.4293;1951024|ACTUA | BJ1: L|2016.Q4|QTD| - 9582.4129;1951024|ACTUAL|2016.DEC|YTD| - 6259.1707;1951024|ACTUAL|2012.JUN|YTD| - -24497.2326;1951050|ACTUAL|2017.DEC|YTD| - -65854.847149;1951050|ACTUAL|2017.Q1|QTD| - -16214.06345;1951050|ACTUAL|2016.Q4|QTD| - 11709.3589;1951050|ACTUAL|2016.DEC|YTD| - -36931.2485;1951050|ACTUAL|2012.JUN|YTD| - -30201.60321;1951070|ACTUAL|2017.DEC|YTD| - -2412.5986;1951070|ACTUAL|2017.Q1|QTD| - -581.9143;1951070|ACTUAL|2016.Q4|QTD| - -633.5036;1951070|ACTUAL|2016.DEC|YTD| - -2365.0698;1951070|ACTUAL|2012.J | BK1: UN|YTD| - -1144.53;195|ACTUAL|2017.DEC|YTD| - -68267.445749;195|ACTUAL|2017.Q1|QTD| - -16795.97775;195|ACTUAL|2016.Q4|QTD| - 11075.8553;195|ACTUAL|2016.DEC|YTD| - -39296.3183;195|ACTUAL|2012.JUN|YTD| - -31346.13321;196|ACTUAL|2017.DEC|YTD| - 1618031.6073779;196|ACTUAL|2017.Q1|QTD| - 150138.051738999;196|ACTUAL|2016.Q4|QTD| - 272609.570833999;196|ACTUAL|2016.DEC|YTD| - 1548341.078284;196|ACTUAL|2012.JUN|YTD| - -107058.651850001;100|ACTUAL|2017.DEC|YTD| - 1618031.6073779;100|ACTUAL|2017.Q1|QTD| - 150138.05173 | BL1: 8999;100|ACTUAL|2016.Q4|QTD| - 272609.570833999;100|ACTUAL|2016.DEC|YTD| - 1548341.078284;100|ACTUAL|2012.JUN|YTD| - -107058.651850001;202|ACTUAL|2017.DEC|YTD| - 554530.2756;202|ACTUAL|2017.Q1|QTD| - 557352.3431;202|ACTUAL|2016.Q4|QTD| - 555817.7583;202|ACTUAL|2016.DEC|YTD| - 555817.7583;202|ACTUAL|2012.JUN|YTD| - 364301.1304;204|ACTUAL|2017.DEC|YTD| - 235287.78264;204|ACTUAL|2017.Q1|QTD| - 227791.03168;204|ACTUAL|2016.Q4|QTD| - 195653.98884;204|ACTUAL|2016.DEC|YTD| - 195653.98884;204|ACTUAL|2012.JUN|YTD| - | BM1: 53766.4194;206|ACTUAL|2017.DEC|YTD| - 29430.92454;206|ACTUAL|2017.Q1|QTD| - 36564.09854;206|ACTUAL|2016.Q4|QTD| - 37544.28244;206|ACTUAL|2016.DEC|YTD| - 37544.28244;206|ACTUAL|2012.JUN|YTD| - 2;208204|ACTUAL|2017.DEC|YTD| - 14766.3024;208204|ACTUAL|2017.Q1|QTD| - 8631;208204|ACTUAL|2016.Q4|QTD| - 37049;208204|ACTUAL|2016.DEC|YTD| - 37049;208204|ACTUAL|2012.JUN|YTD| - 42761.4442;208|ACTUAL|2017.DEC|YTD| - 14766.3024;208|ACTUAL|2017.Q1|QTD| - 8631;208|ACTUAL|2016.Q4|QTD| - 37049;208|ACTUAL|2016.DEC|YTD| - 37 | BN1: 049;208|ACTUAL|2012.JUN|YTD| - 42761.4442;220|ACTUAL|2017.DEC|YTD| - 834015.28518;220|ACTUAL|2017.Q1|QTD| - 830338.47332;220|ACTUAL|2016.Q4|QTD| - 826065.02958;220|ACTUAL|2016.DEC|YTD| - 826065.02958;220|ACTUAL|2012.JUN|YTD| - 460830.994;2261010|ACTUAL|2017.DEC|YTD| - 146826.72978;2261010|ACTUAL|2017.Q1|QTD| - 151188.65706;2261010|ACTUAL|2016.Q4|QTD| - 159569.36718;2261010|ACTUAL|2016.DEC|YTD| - 159569.36718;2261010|ACTUAL|2012.JUN|YTD| - 99047.1018;2261014|ACTUAL|2017.DEC|YTD| - 1925.55;2261014|ACTUAL|2017 | BO1: .Q1|QTD| - 2072.2948;2261014|ACTUAL|2016.Q4|QTD| - 2225.3215;2261014|ACTUAL|2016.DEC|YTD| - 2225.3215;2261014|ACTUAL|2012.JUN|YTD| - 5369.3876;226|ACTUAL|2017.DEC|YTD| - 148752.27978;226|ACTUAL|2017.Q1|QTD| - 153260.95186;226|ACTUAL|2016.Q4|QTD| - 161794.68868;226|ACTUAL|2016.DEC|YTD| - 161794.68868;226|ACTUAL|2012.JUN|YTD| - 104416.4894;2281010|ACTUAL|2017.DEC|YTD| - 476285.4398;2281010|ACTUAL|2017.Q1|QTD| - 500199.8402;2281010|ACTUAL|2016.Q4|QTD| - 505866.292;2281010|ACTUAL|2016.DEC|YTD| - 505866.292;2281 | BP1: 010|ACTUAL|2012.JUN|YTD| - 605156.109;2281012|ACTUAL|2017.DEC|YTD| - 2786;2281012|ACTUAL|2017.Q1|QTD| - 3111;2281012|ACTUAL|2016.Q4|QTD| - 3219;2281012|ACTUAL|2016.DEC|YTD| - 3219;2281012|ACTUAL|2012.JUN|YTD| - 4984;2281014|ACTUAL|2017.DEC|YTD| - 1289;2281014|ACTUAL|2017.Q1|QTD| - 1458.3137;2281014|ACTUAL|2016.Q4|QTD| - 1514.7376;2281014|ACTUAL|2016.DEC|YTD| - 1514.7376;2281014|ACTUAL|2012.JUN|YTD| - 2368;228|ACTUAL|2017.DEC|YTD| - 480360.4398;228|ACTUAL|2017.Q1|QTD| - 504769.1539;228|ACTUAL|2016.Q4|QTD| - | BQ1: 510600.0296;228|ACTUAL|2016.DEC|YTD| - 510600.0296;228|ACTUAL|2012.JUN|YTD| - 612508.109;2301010|ACTUAL|2017.DEC|YTD| - 7505419.900852;2301010|ACTUAL|2017.Q1|QTD| - 6964885.577942;2301010|ACTUAL|2016.Q4|QTD| - 6944237.537712;2301010|ACTUAL|2016.DEC|YTD| - 6944237.537712;2301010|ACTUAL|2012.JUN|YTD| - 7271352.2027;230|ACTUAL|2017.DEC|YTD| - 7505419.900852;230|ACTUAL|2017.Q1|QTD| - 6964885.577942;230|ACTUAL|2016.Q4|QTD| - 6944237.537712;230|ACTUAL|2016.DEC|YTD| - 6944237.537712;230|ACTUAL|2012.JUN|YTD| - 7271 | BR1: 352.2027;232|ACTUAL|2017.DEC|YTD| - 492361.6186;232|ACTUAL|2017.Q1|QTD| - 409014.669;232|ACTUAL|2016.Q4|QTD| - 419348.1366;232|ACTUAL|2016.DEC|YTD| - 419348.1366;232|ACTUAL|2012.JUN|YTD| - 203275.9506;2341010|ACTUAL|2017.DEC|YTD| - 0;2341010|ACTUAL|2017.Q1|QTD| - 946290;2341010|ACTUAL|2016.Q4|QTD| - 959777;2341010|ACTUAL|2016.DEC|YTD| - 959777;2341012|ACTUAL|2017.DEC|YTD| - 20909.0258;2341012|ACTUAL|2017.Q1|QTD| - 25168.8405;2341012|ACTUAL|2016.Q4|QTD| - 26813.7216;2341012|ACTUAL|2016.DEC|YTD| - 26813.7216; | BS1: 2341012|ACTUAL|2012.JUN|YTD| - 68290.0102;234|ACTUAL|2017.DEC|YTD| - 20909.0258;234|ACTUAL|2017.Q1|QTD| - 971458.8405;234|ACTUAL|2016.Q4|QTD| - 986590.7216;234|ACTUAL|2016.DEC|YTD| - 986590.7216;234|ACTUAL|2012.JUN|YTD| - 68290.0102;236|ACTUAL|2017.DEC|YTD| - 102408.379933;236|ACTUAL|2017.Q1|QTD| - 112851.224358;236|ACTUAL|2016.Q4|QTD| - 96504.401168;236|ACTUAL|2016.DEC|YTD| - 96504.401168;236|ACTUAL|2012.JUN|YTD| - 85152.97196;238226|ACTUAL|2017.DEC|YTD| - 807;238226|ACTUAL|2017.Q1|QTD| - 303.6351;238226|A | BT1: CTUAL|2016.Q4|QTD| - 130.248;238226|ACTUAL|2016.DEC|YTD| - 130.248;238228|ACTUAL|2017.DEC|YTD| - 0;238228|ACTUAL|2017.Q1|QTD| - 619.1498;238228|ACTUAL|2016.Q4|QTD| - 460.932800000001;238228|ACTUAL|2016.DEC|YTD| - 460.932800000001;238228|ACTUAL|2012.JUN|YTD| - 1741.8788;238230|ACTUAL|2017.DEC|YTD| - 281105.2915;238230|ACTUAL|2017.Q1|QTD| - 205548.6844;238230|ACTUAL|2016.Q4|QTD| - 169768.0696;238230|ACTUAL|2016.DEC|YTD| - 169768.0696;238230|ACTUAL|2012.JUN|YTD| - 599613.8125;238231|ACTUAL|2017.DEC|YTD| - 2111 | BU1: 9.3479;238231|ACTUAL|2017.Q1|QTD| - -13046.7163;238231|ACTUAL|2016.Q4|QTD| - 24266.9984;238231|ACTUAL|2016.DEC|YTD| - 24266.9984;238232|ACTUAL|2017.DEC|YTD| - 2024.1348;238232|ACTUAL|2017.Q1|QTD| - 8149.7154;238232|ACTUAL|2016.Q4|QTD| - 3585.5761;238232|ACTUAL|2016.DEC|YTD| - 3585.5761;238232|ACTUAL|2012.JUN|YTD| - 0;238234|ACTUAL|2017.DEC|YTD| - 2720.4687;238234|ACTUAL|2017.Q1|QTD| - 2124.7486;238234|ACTUAL|2016.Q4|QTD| - 3465.8634;238234|ACTUAL|2016.DEC|YTD| - 3465.8634;238234|ACTUAL|2012.JUN|YTD| - 1227; | BV1: 238|ACTUAL|2017.DEC|YTD| - 307776.2429;238|ACTUAL|2017.Q1|QTD| - 137927.217;238|ACTUAL|2016.Q4|QTD| - 135905.6883;238|ACTUAL|2016.DEC|YTD| - 135905.6883;238|ACTUAL|2012.JUN|YTD| - 602582.6913;240|ACTUAL|2017.DEC|YTD| - 9057987.887665;240|ACTUAL|2017.Q1|QTD| - 9254167.63456;240|ACTUAL|2016.Q4|QTD| - 9254981.20366;240|ACTUAL|2016.DEC|YTD| - 9254981.20366;240|ACTUAL|2012.JUN|YTD| - 8947578.42516;2421010|ACTUAL|2017.DEC|YTD| - 0.356600000253366;2421010|ACTUAL|2017.Q1|QTD| - 0.411299999338183;2421010|ACTUAL|2016 | BW1: .Q4|QTD| - 0.418200000737105;2421010|ACTUAL|2016.DEC|YTD| - 0.418200000737105;2421010|ACTUAL|2012.JUN|YTD| - 0.58679999976312;2421020|ACTUAL|2017.DEC|YTD| - -0.000000000000961009050115536;2421020|ACTUAL|2017.Q1|QTD| - -0.00000000000181898940354586;2421020|ACTUAL|2016.Q4|QTD| - -0.000000000000287769807982841;2421020|ACTUAL|2016.DEC|YTD| - -0.000000000000287769807982841;2421020|ACTUAL|2012.JUN|YTD| - 0;242|ACTUAL|2017.DEC|YTD| - 0.356600000252405;242|ACTUAL|2017.Q1|QTD| - 0.411299999336364;242|ACTUAL|2016.Q4| | BX1: QTD| - 0.418200000736817;242|ACTUAL|2016.DEC|YTD| - 0.418200000736817;242|ACTUAL|2012.JUN|YTD| - 0.58679999976312;2431010|ACTUAL|2017.DEC|YTD| - 33283.66506;2431010|ACTUAL|2017.Q1|QTD| - 35003.68876;2431010|ACTUAL|2016.Q4|QTD| - 28580.57666;2431010|ACTUAL|2016.DEC|YTD| - 28580.57666;2431010|ACTUAL|2012.JUN|YTD| - 3403.1762;243|ACTUAL|2017.DEC|YTD| - 33283.66506;243|ACTUAL|2017.Q1|QTD| - 35003.68876;243|ACTUAL|2016.Q4|QTD| - 28580.57666;243|ACTUAL|2016.DEC|YTD| - 28580.57666;243|ACTUAL|2012.JUN|YTD| - 3403.1 | BY1: 762;244|ACTUAL|2017.Q1|QTD| - 26940;244|ACTUAL|2016.Q4|QTD| - 34546;244|ACTUAL|2016.DEC|YTD| - 34546;245|ACTUAL|2017.DEC|YTD| - 0;245|ACTUAL|2017.Q1|QTD| - 0;245|ACTUAL|2016.Q4|QTD| - 0;245|ACTUAL|2016.DEC|YTD| - 0;245|ACTUAL|2012.JUN|YTD| - 0.0000000000582076609134674;2461012|ACTUAL|2012.JUN|YTD| - 2312;2461014|ACTUAL|2017.DEC|YTD| - 8965;2461014|ACTUAL|2017.Q1|QTD| - 8965;2461014|ACTUAL|2016.Q4|QTD| - 8965;2461014|ACTUAL|2016.DEC|YTD| - 8965;2461014|ACTUAL|2012.JUN|YTD| - 19045.678;2461016|ACTUAL|2017.DEC | BZ1: |YTD| - 582.8067;2461016|ACTUAL|2017.Q1|QTD| - 583.0227;2461016|ACTUAL|2016.Q4|QTD| - 583.0047;2461016|ACTUAL|2016.DEC|YTD| - 583.0047;2461016|ACTUAL|2012.JUN|YTD| - 731;246|ACTUAL|2017.DEC|YTD| - 9547.8067;246|ACTUAL|2017.Q1|QTD| - 9548.0227;246|ACTUAL|2016.Q4|QTD| - 9548.0047;246|ACTUAL|2016.DEC|YTD| - 9548.0047;246|ACTUAL|2012.JUN|YTD| - 22088.678;247|ACTUAL|2017.DEC|YTD| - 24389.4924;247|ACTUAL|2017.Q1|QTD| - 24507.8805;247|ACTUAL|2016.Q4|QTD| - 24496.348;247|ACTUAL|2016.DEC|YTD| - 24496.348;247|ACTUAL| | CA1: 2012.JUN|YTD| - 101681.6852;248|ACTUAL|2017.DEC|YTD| - 111298.7809;248|ACTUAL|2017.Q1|QTD| - 269.2035;248|ACTUAL|2016.Q4|QTD| - 268.5135;248|ACTUAL|2016.DEC|YTD| - 268.5135;249|ACTUAL|2017.DEC|YTD| - 63584.24025;249|ACTUAL|2017.Q1|QTD| - 85184.5593;249|ACTUAL|2016.Q4|QTD| - 94647.7922;249|ACTUAL|2016.DEC|YTD| - 94647.7922;249|ACTUAL|2012.JUN|YTD| - 114816.2515;250|ACTUAL|2017.DEC|YTD| - 242104.34191;250|ACTUAL|2017.Q1|QTD| - 181453.766059999;250|ACTUAL|2016.Q4|QTD| - 192087.653260001;250|ACTUAL|2016.DEC|YTD | CB1: | - 192087.653260001;250|ACTUAL|2012.JUN|YTD| - 241990.3777;252|ACTUAL|2017.DEC|YTD| - 10134107.514755;252|ACTUAL|2017.Q1|QTD| - 10265959.87394;252|ACTUAL|2016.Q4|QTD| - 10273133.8865;252|ACTUAL|2016.DEC|YTD| - 10273133.8865;252|ACTUAL|2012.JUN|YTD| - 9650399.79686;2551010|ACTUAL|2017.DEC|YTD| - 71293.6709;2551010|ACTUAL|2017.Q1|QTD| - 64267.276;2551010|ACTUAL|2016.Q4|QTD| - 66585.2504;2551010|ACTUAL|2016.DEC|YTD| - 66585.2504;2551010|ACTUAL|2012.JUN|YTD| - 40014.2994;2551012|ACTUAL|2017.DEC|YTD| - 9941.299 | CC1: 1;2551012|ACTUAL|2017.Q1|QTD| - 6992.0773;2551012|ACTUAL|2016.Q4|QTD| - 7000.3535;2551012|ACTUAL|2016.DEC|YTD| - 7000.3535;2551012|ACTUAL|2012.JUN|YTD| - 18635.2875;2551014|ACTUAL|2017.DEC|YTD| - 74546.194;2551014|ACTUAL|2017.Q1|QTD| - 57007.3053;2551014|ACTUAL|2016.Q4|QTD| - 65628.6468;2551014|ACTUAL|2016.DEC|YTD| - 65628.6468;2551014|ACTUAL|2012.JUN|YTD| - 106963.0698;255|ACTUAL|2017.DEC|YTD| - 155781.164;255|ACTUAL|2017.Q1|QTD| - 128266.6586;255|ACTUAL|2016.Q4|QTD| - 139214.2507;255|ACTUAL|2016.DEC|YTD| | CD1: - 139214.2507;255|ACTUAL|2012.JUN|YTD| - 165612.6567;2601014|ACTUAL|2017.DEC|YTD| - 0.00000000000522959453519434;2601014|ACTUAL|2017.Q1|QTD| - -0.0000000000145519152283669;2601014|ACTUAL|2016.Q4|QTD| - 0.0000000000101749719760846;2601014|ACTUAL|2016.DEC|YTD| - 0.0000000000101749719760846;2601014|ACTUAL|2012.JUN|YTD| - -0.00000000000113686837721616;260|ACTUAL|2017.DEC|YTD| - 0.00000000000522959453519434;260|ACTUAL|2017.Q1|QTD| - -0.0000000000145519152283669;260|ACTUAL|2016.Q4|QTD| - 0.00000000001017497197608 | CE1: 46;260|ACTUAL|2016.DEC|YTD| - 0.0000000000101749719760846;260|ACTUAL|2012.JUN|YTD| - -0.00000000000113686837721616;261|ACTUAL|2017.DEC|YTD| - 74050.80734;261|ACTUAL|2017.Q1|QTD| - 53843.8549;261|ACTUAL|2016.Q4|QTD| - 52209.9787;261|ACTUAL|2016.DEC|YTD| - 52209.9787;261|ACTUAL|2012.JUN|YTD| - 46950;2621010|ACTUAL|2017.DEC|YTD| - 1644965.6148552;2621010|ACTUAL|2017.Q1|QTD| - 1740551.30623;2621010|ACTUAL|2016.Q4|QTD| - 1584469.4845;2621010|ACTUAL|2016.DEC|YTD| - 1584469.4845;2621010|ACTUAL|2012.JUN|YTD| - 1550 | CF1: 044.5216;2621011|ACTUAL|2017.DEC|YTD| - 87660.636304;2621011|ACTUAL|2017.Q1|QTD| - 111234.6372;2621011|ACTUAL|2016.Q4|QTD| - 64620.6239;2621011|ACTUAL|2016.DEC|YTD| - 64620.6239;2621011|ACTUAL|2012.JUN|YTD| - 45806.7056;2621012|ACTUAL|2017.DEC|YTD| - -15686.58585;2621012|ACTUAL|2017.Q1|QTD| - -6229.6516;2621012|ACTUAL|2016.Q4|QTD| - -6928.6226;2621012|ACTUAL|2016.DEC|YTD| - -6928.6226;2621012|ACTUAL|2012.JUN|YTD| - -42109.3377;2621013|ACTUAL|2017.DEC|YTD| - -17946.4201285;2621013|ACTUAL|2017.Q1|QTD| - -2844 | CG1: 0.9872;2621013|ACTUAL|2016.Q4|QTD| - -26638.679;2621013|ACTUAL|2016.DEC|YTD| - -26638.679;262|ACTUAL|2017.DEC|YTD| - 1687548.8470751;262|ACTUAL|2017.Q1|QTD| - 1804511.29063;262|ACTUAL|2016.Q4|QTD| - 1602193.7326;262|ACTUAL|2016.DEC|YTD| - 1602193.7326;262|ACTUAL|2012.JUN|YTD| - 1553741.8895;2631010|ACTUAL|2017.DEC|YTD| - 40071.02592;2631010|ACTUAL|2017.Q1|QTD| - 40012.6933;2631010|ACTUAL|2016.Q4|QTD| - 30791.8618;2631010|ACTUAL|2016.DEC|YTD| - 30791.8618;2631010|ACTUAL|2012.JUN|YTD| - 34649.5558;2631012|ACT | CH1: UAL|2017.DEC|YTD| - 21214.13924;2631012|ACTUAL|2017.Q1|QTD| - 33482.91354;2631012|ACTUAL|2016.Q4|QTD| - 19938.9619;2631012|ACTUAL|2016.DEC|YTD| - 19938.9619;2631012|ACTUAL|2012.JUN|YTD| - 23257.6198;2631014|ACTUAL|2017.DEC|YTD| - -38.9256;2631014|ACTUAL|2017.Q1|QTD| - 2169.9632;2631014|ACTUAL|2016.Q4|QTD| - 13;2631014|ACTUAL|2016.DEC|YTD| - 13;2631014|ACTUAL|2012.JUN|YTD| - 7870.6614;2631016|ACTUAL|2012.JUN|YTD| - 7054.6835;2631018|ACTUAL|2017.DEC|YTD| - 4115.7903902;2631018|ACTUAL|2017.Q1|QTD| - 3057.1731; | CI1: 2631018|ACTUAL|2016.Q4|QTD| - 3427.3752;2631018|ACTUAL|2016.DEC|YTD| - 3427.3752;2631018|ACTUAL|2012.JUN|YTD| - 3729.8332;2631020|ACTUAL|2012.JUN|YTD| - 562.4334;2631026|ACTUAL|2012.JUN|YTD| - 12326;2631028|ACTUAL|2017.DEC|YTD| - 44796.61894;2631028|ACTUAL|2017.Q1|QTD| - 56639.7259;2631028|ACTUAL|2016.Q4|QTD| - 58678.17088;2631028|ACTUAL|2016.DEC|YTD| - 58678.17088;2631028|ACTUAL|2012.JUN|YTD| - 57578.36005;2631030|ACTUAL|2017.DEC|YTD| - 886;2631030|ACTUAL|2017.Q1|QTD| - 2858;2631030|ACTUAL|2016.Q4|QTD| - 8 | CJ1: 96;2631030|ACTUAL|2016.DEC|YTD| - 896;2631030|ACTUAL|2012.JUN|YTD| - 184;263|ACTUAL|2017.DEC|YTD| - 111044.6488902;263|ACTUAL|2017.Q1|QTD| - 138220.46904;263|ACTUAL|2016.Q4|QTD| - 113745.36978;263|ACTUAL|2016.DEC|YTD| - 113745.36978;263|ACTUAL|2012.JUN|YTD| - 147213.14715;264|ACTUAL|2017.DEC|YTD| - 90732.0077719;264|ACTUAL|2017.Q1|QTD| - 132444.91916;264|ACTUAL|2016.Q4|QTD| - 84172.0962;264|ACTUAL|2016.DEC|YTD| - 84172.0962;264|ACTUAL|2012.JUN|YTD| - 158022.57663;265|ACTUAL|2017.DEC|YTD| - 431.8042;265|ACTU | CK1: AL|2017.Q1|QTD| - 431.3982;265|ACTUAL|2016.Q4|QTD| - 431.1952;265|ACTUAL|2016.DEC|YTD| - 431.1952;265|ACTUAL|2012.JUN|YTD| - 28775.8406;266|ACTUAL|2017.DEC|YTD| - 12723.134;266|ACTUAL|2017.Q1|QTD| - 140.454;266|ACTUAL|2016.Q4|QTD| - 140.094;266|ACTUAL|2016.DEC|YTD| - 140.094;268|ACTUAL|2017.DEC|YTD| - 5001.2611;268|ACTUAL|2017.Q1|QTD| - 8451.9148;268|ACTUAL|2016.Q4|QTD| - 4868.5058;268|ACTUAL|2016.DEC|YTD| - 4868.5058;268|ACTUAL|2012.JUN|YTD| - 12148.98856;269|ACTUAL|2017.DEC|YTD| - 3800;269|ACTUAL|2017.Q1| | CL1: QTD| - 17885;269|ACTUAL|2016.Q4|QTD| - 25046;269|ACTUAL|2016.DEC|YTD| - 25046;270|ACTUAL|2017.DEC|YTD| - 2141113.6743772;270|ACTUAL|2017.Q1|QTD| - 2284195.95933;270|ACTUAL|2016.Q4|QTD| - 2022021.22298;270|ACTUAL|2016.DEC|YTD| - 2022021.22298;270|ACTUAL|2012.JUN|YTD| - 2112465.09914;2821010|ACTUAL|2017.DEC|YTD| - 0;2821010|ACTUAL|2017.Q1|QTD| - 0;2821010|ACTUAL|2016.Q4|QTD| - 0;2821010|ACTUAL|2016.DEC|YTD| - 0;2821010|ACTUAL|2012.JUN|YTD| - 0;282|ACTUAL|2017.DEC|YTD| - 0;282|ACTUAL|2017.Q1|QTD| - 0;282|ACTUA | CM1: L|2016.Q4|QTD| - 0;282|ACTUAL|2016.DEC|YTD| - 0;282|ACTUAL|2012.JUN|YTD| - 0;2831010|ACTUAL|2012.JUN|YTD| - 34101;283|ACTUAL|2012.JUN|YTD| - 34101;2840101|ACTUAL|2017.DEC|YTD| - 1033175.90104;2840101|ACTUAL|2017.Q1|QTD| - 279021.5284;2840101|ACTUAL|2016.Q4|QTD| - 695612.8033;2840101|ACTUAL|2016.DEC|YTD| - 695612.8033;2840101|ACTUAL|2012.JUN|YTD| - 1002064.83802;2841012|ACTUAL|2017.DEC|YTD| - 0;2841012|ACTUAL|2017.Q1|QTD| - 0;2841012|ACTUAL|2016.Q4|QTD| - 0;2841012|ACTUAL|2016.DEC|YTD| - 0;2841012|ACTUAL|201 | CN1: 2.JUN|YTD| - 0;284|ACTUAL|2017.DEC|YTD| - 1033175.90104;284|ACTUAL|2017.Q1|QTD| - 279021.5284;284|ACTUAL|2016.Q4|QTD| - 695612.8033;284|ACTUAL|2016.DEC|YTD| - 695612.8033;284|ACTUAL|2012.JUN|YTD| - 1002064.83802;285|ACTUAL|2017.DEC|YTD| - 1033175.90104;285|ACTUAL|2017.Q1|QTD| - 279021.5284;285|ACTUAL|2016.Q4|QTD| - 695612.8033;285|ACTUAL|2016.DEC|YTD| - 695612.8033;285|ACTUAL|2012.JUN|YTD| - 1036165.83802;287|ACTUAL|2017.DEC|YTD| - 3174289.5754172;287|ACTUAL|2017.Q1|QTD| - 2563217.48773;287|ACTUAL|2016.Q4|Q | CO1: TD| - 2717634.02628;287|ACTUAL|2016.DEC|YTD| - 2717634.02628;287|ACTUAL|2012.JUN|YTD| - 3148630.93716;2881010|ACTUAL|2017.DEC|YTD| - -0.00000000000344968498211529;2881010|ACTUAL|2017.Q1|QTD| - -0.00000000000181898940354586;2881010|ACTUAL|2016.Q4|QTD| - 13493.436;2881010|ACTUAL|2016.DEC|YTD| - 13493.436;2881010|ACTUAL|2012.JUN|YTD| - 25273.56;2881020|ACTUAL|2016.Q4|QTD| - 0.0000000000107149844552623;2881020|ACTUAL|2016.DEC|YTD| - 0.0000000000107149844552623;288|ACTUAL|2017.DEC|YTD| - -0.000000000003449684982 | CP1: 11529;288|ACTUAL|2017.Q1|QTD| - -0.00000000000181898940354586;288|ACTUAL|2016.Q4|QTD| - 13493.436;288|ACTUAL|2016.DEC|YTD| - 13493.436;288|ACTUAL|2012.JUN|YTD| - 25273.56;200|ACTUAL|2017.DEC|YTD| - 13308397.0901722;200|ACTUAL|2017.Q1|QTD| - 12829177.36167;200|ACTUAL|2016.Q4|QTD| - 13004261.34878;200|ACTUAL|2016.DEC|YTD| - 13004261.34878;200|ACTUAL|2012.JUN|YTD| - 12824304.29402;302|ACTUAL|2017.DEC|YTD| - 3675893.8354;302|ACTUAL|2017.Q1|QTD| - 3440847.8481;302|ACTUAL|2016.Q4|QTD| - 3796961.8726;302|ACTUAL|20 | CQ1: 16.DEC|YTD| - 3796961.8726;302|ACTUAL|2012.JUN|YTD| - 4152293.7549;303|ACTUAL|2017.DEC|YTD| - -10333982.89904;303|ACTUAL|2017.Q1|QTD| - -10213321.9098;303|ACTUAL|2016.Q4|QTD| - -10200078.69197;303|ACTUAL|2016.DEC|YTD| - -10200078.69197;303|ACTUAL|2012.JUN|YTD| - -6502566.7887;304|ACTUAL|2017.DEC|YTD| - -740751.39639;304|ACTUAL|2017.Q1|QTD| - -796415.04372;304|ACTUAL|2016.Q4|QTD| - -796948.48198;304|ACTUAL|2016.DEC|YTD| - -796948.48198;304|ACTUAL|2012.JUN|YTD| - -845007.90987;306|ACTUAL|2017.DEC|YTD| - -6832 | CR1: 8;306|ACTUAL|2017.Q1|QTD| - 28307.5237;306|ACTUAL|2016.Q4|QTD| - 38055.8632;306|ACTUAL|2016.DEC|YTD| - 38055.8632;306|ACTUAL|2012.JUN|YTD| - -87500.2215;308|ACTUAL|2017.DEC|YTD| - 951.038;308|ACTUAL|2017.Q1|QTD| - 947.209;308|ACTUAL|2016.Q4|QTD| - 946.726;308|ACTUAL|2016.DEC|YTD| - 946.726;308|ACTUAL|2012.JUN|YTD| - -8.07599999999999;310|ACTUAL|2017.DEC|YTD| - -46976;310|ACTUAL|2017.Q1|QTD| - -82088;310|ACTUAL|2016.Q4|QTD| - -58929;310|ACTUAL|2016.DEC|YTD| - -58929;310|ACTUAL|2012.JUN|YTD| - -35271;312|ACTU | CS1: AL|2017.DEC|YTD| - 831853;312|ACTUAL|2017.Q1|QTD| - 181117;312|ACTUAL|2016.Q4|QTD| - 626113;312|ACTUAL|2016.DEC|YTD| - 626113;312|ACTUAL|2012.JUN|YTD| - 285677.0784;314|ACTUAL|2017.DEC|YTD| - -4526129.0584;314|ACTUAL|2017.Q1|QTD| - -2728557.4212;314|ACTUAL|2016.Q4|QTD| - -2860554.446;314|ACTUAL|2016.DEC|YTD| - -2860554.446;314|ACTUAL|2012.JUN|YTD| - -883806.2058;3161010|ACTUAL|2017.DEC|YTD| - 8321277.4785406;3161010|ACTUAL|2017.Q1|QTD| - 5690494.66962889;3161010|ACTUAL|2016.Q4|QTD| - 5227871.1340237;3161010 | CT1: |ACTUAL|2016.DEC|YTD| - 5227871.1340237;3161010|ACTUAL|2012.JUN|YTD| - 1196029.6521289;3161011|ACTUAL|2017.DEC|YTD| - 4088303.32588;3161011|ACTUAL|2017.Q1|QTD| - 4348154.57488;3161011|ACTUAL|2016.Q4|QTD| - 4227029.01713;3161011|ACTUAL|2016.DEC|YTD| - 4227029.01713;3161011|ACTUAL|2012.JUN|YTD| - 4276561.91343;3161012|ACTUAL|2017.DEC|YTD| - 4585949.814521;3161012|ACTUAL|2017.Q1|QTD| - 4549065.864491;3161012|ACTUAL|2016.Q4|QTD| - 4548750.775776;3161012|ACTUAL|2016.DEC|YTD| - 4548750.775776;3161012|ACTUAL|2012. | CU1: JUN|YTD| - 4166429.183952;3161013|ACTUAL|2017.DEC|YTD| - -205752.2482;3161013|ACTUAL|2017.Q1|QTD| - -205558.9222;3161013|ACTUAL|2016.Q4|QTD| - -205462.2592;3161013|ACTUAL|2016.DEC|YTD| - -205462.2592;3161013|ACTUAL|2012.JUN|YTD| - -139;3161014|ACTUAL|2017.DEC|YTD| - -3685634.1319245;3161014|ACTUAL|2017.Q1|QTD| - -2930503.9789791;3161014|ACTUAL|2016.Q4|QTD| - -2427598.8901096;3161014|ACTUAL|2016.DEC|YTD| - -2427598.8901096;3161014|ACTUAL|2012.JUN|YTD| - -226351.8354;3161016|ACTUAL|2017.DEC|YTD| - 3031804.410 | CV1: 8;3161016|ACTUAL|2017.Q1|QTD| - 3098114.4929;3161016|ACTUAL|2016.Q4|QTD| - 3087895.453;3161016|ACTUAL|2016.DEC|YTD| - 3087895.453;316|ACTUAL|2017.DEC|YTD| - 16135948.6496171;316|ACTUAL|2017.Q1|QTD| - 14549766.7007208;316|ACTUAL|2016.Q4|QTD| - 14458485.2306201;316|ACTUAL|2016.DEC|YTD| - 14458485.2306201;316|ACTUAL|2012.JUN|YTD| - 9412529.9141109;317|ACTUAL|2017.DEC|YTD| - 1437546.5209;317|ACTUAL|2017.Q1|QTD| - 1448967.5805;317|ACTUAL|2016.Q4|QTD| - 1448539.9424;317|ACTUAL|2016.DEC|YTD| - 1448539.9424;317|ACT | CW1: UAL|2012.JUN|YTD| - 1133995.0214;318|ACTUAL|2017.DEC|YTD| - 6613733.6900871;318|ACTUAL|2017.Q1|QTD| - 6065376.48730079;318|ACTUAL|2016.Q4|QTD| - 6684613.0148701;318|ACTUAL|2016.DEC|YTD| - 6684613.0148701;318|ACTUAL|2012.JUN|YTD| - 6630335.5669409;320|ACTUAL|2017.DEC|YTD| - 6613733.6900871;320|ACTUAL|2017.Q1|QTD| - 6065376.48730079;320|ACTUAL|2016.Q4|QTD| - 6684613.0148701;320|ACTUAL|2016.DEC|YTD| - 6684613.0148701;320|ACTUAL|2012.JUN|YTD| - 6630335.5669409;321|ACTUAL|2017.DEC|YTD| - 197119.1304;321|ACTUAL|2 | CX1: 017.Q1|QTD| - 193295.9406;321|ACTUAL|2016.Q4|QTD| - 191183.7068;321|ACTUAL|2016.DEC|YTD| - 191183.7068;321|ACTUAL|2012.JUN|YTD| - 166414.5516;322|ACTUAL|2017.DEC|YTD| - 359589.800675;322|ACTUAL|2017.Q1|QTD| - 440724.880925;322|ACTUAL|2016.Q4|QTD| - 442208.25112;322|ACTUAL|2016.DEC|YTD| - 442208.25112;322|ACTUAL|2012.JUN|YTD| - 264355.24662;323|ACTUAL|2017.DEC|YTD| - 19016.843658;323|ACTUAL|2017.Q1|QTD| - 17555.046618;323|ACTUAL|2016.Q4|QTD| - 17953.810048;323|ACTUAL|2016.DEC|YTD| - 17953.810048;323|ACTUAL|2 | CY1: 012.JUN|YTD| - 15269;3241014|ACTUAL|2017.DEC|YTD| - 3234.06222;3241014|ACTUAL|2017.Q1|QTD| - 2750.8458;3241014|ACTUAL|2016.Q4|QTD| - 3777.8148;3241014|ACTUAL|2016.DEC|YTD| - 3777.8148;3241014|ACTUAL|2012.JUN|YTD| - 1208.924;3241100|ACTUAL|2017.DEC|YTD| - 23739.7991;3241100|ACTUAL|2017.Q1|QTD| - 16297.1361;3241100|ACTUAL|2016.Q4|QTD| - 16303.7196;3241100|ACTUAL|2016.DEC|YTD| - 16303.7196;3241100|ACTUAL|2012.JUN|YTD| - 27025.8472;324|ACTUAL|2017.DEC|YTD| - 42424.86132;324|ACTUAL|2017.Q1|QTD| - 53958.6269;324| | CZ1: ACTUAL|2016.Q4|QTD| - 54907.2944;324|ACTUAL|2016.DEC|YTD| - 54907.2944;324|ACTUAL|2012.JUN|YTD| - 28234.7712;3251012|ACTUAL|2017.DEC|YTD| - 1278161.7663;3251012|ACTUAL|2017.Q1|QTD| - 759378;3251012|ACTUAL|2016.Q4|QTD| - 771264;3251012|ACTUAL|2016.DEC|YTD| - 771264;3251012|ACTUAL|2012.JUN|YTD| - 2497926.7208;3251014|ACTUAL|2017.DEC|YTD| - 1529.4835;3251014|ACTUAL|2017.Q1|QTD| - 1511.9251;3251014|ACTUAL|2016.Q4|QTD| - 2073.684;3251014|ACTUAL|2016.DEC|YTD| - 2073.684;3251014|ACTUAL|2012.JUN|YTD| - 44840.6156;3 | DA1: 25|ACTUAL|2017.DEC|YTD| - 1279691.2498;325|ACTUAL|2017.Q1|QTD| - 760889.9251;325|ACTUAL|2016.Q4|QTD| - 773337.684;325|ACTUAL|2016.DEC|YTD| - 773337.684;325|ACTUAL|2012.JUN|YTD| - 2542767.3364;326|ACTUAL|2017.DEC|YTD| - 1442098;326|ACTUAL|2017.Q1|QTD| - 499230;326|ACTUAL|2016.Q4|QTD| - 1071252;326|ACTUAL|2016.DEC|YTD| - 1071252;326|ACTUAL|2012.JUN|YTD| - 488067;328|ACTUAL|2017.DEC|YTD| - 185383;328|ACTUAL|2017.Q1|QTD| - 231558;328|ACTUAL|2016.Q4|QTD| - 231402;328|ACTUAL|2016.DEC|YTD| - 231402;329|ACTUAL|2017 | DB1: .DEC|YTD| - 94758;329|ACTUAL|2017.Q1|QTD| - 9562;329|ACTUAL|2016.Q4|QTD| - 145624;329|ACTUAL|2016.DEC|YTD| - 145624;330|ACTUAL|2017.DEC|YTD| - 0.0000000000663931132294238;330|ACTUAL|2017.Q1|QTD| - 0;330|ACTUAL|2016.Q4|QTD| - -0.0000000000291038304567337;330|ACTUAL|2016.DEC|YTD| - -0.0000000000291038304567337;330|ACTUAL|2012.JUN|YTD| - -6.84499999991385;332|ACTUAL|2017.DEC|YTD| - 24389.4924;332|ACTUAL|2017.Q1|QTD| - 24568.7378;332|ACTUAL|2016.Q4|QTD| - 24904.4584;332|ACTUAL|2016.DEC|YTD| - 24904.4584;332|ACT | DC1: UAL|2012.JUN|YTD| - 26552.1722;350|ACTUAL|2017.DEC|YTD| - 3644470.378253;350|ACTUAL|2017.Q1|QTD| - 2231343.157943;350|ACTUAL|2016.Q4|QTD| - 2952773.204768;350|ACTUAL|2016.DEC|YTD| - 2952773.204768;350|ACTUAL|2012.JUN|YTD| - 3531653.23302;351|ACTUAL|2017.DEC|YTD| - 124905;351|ACTUAL|2017.Q1|QTD| - 567413;351|ACTUAL|2012.JUN|YTD| - 3400;3521012|ACTUAL|2017.DEC|YTD| - 142191.2564;3521012|ACTUAL|2017.Q1|QTD| - 85299;3521012|ACTUAL|2016.Q4|QTD| - 85288;3521012|ACTUAL|2016.DEC|YTD| - 85288;3521012|ACTUAL|2012.JUN | DD1: |YTD| - 654737.4106;3521014|ACTUAL|2017.DEC|YTD| - 3278.733;3521014|ACTUAL|2017.Q1|QTD| - 752315.8742;3521014|ACTUAL|2016.Q4|QTD| - 772331.7071;3521014|ACTUAL|2016.DEC|YTD| - 772331.7071;3521014|ACTUAL|2012.JUN|YTD| - 16136.3306;352|ACTUAL|2017.DEC|YTD| - 145469.9894;352|ACTUAL|2017.Q1|QTD| - 837614.8742;352|ACTUAL|2016.Q4|QTD| - 857619.7071;352|ACTUAL|2016.DEC|YTD| - 857619.7071;352|ACTUAL|2012.JUN|YTD| - 670873.7412;353|ACTUAL|2017.DEC|YTD| - 72083.0193;353|ACTUAL|2017.Q1|QTD| - 246301;353|ACTUAL|2016.Q4| | DE1: QTD| - 46280;353|ACTUAL|2016.DEC|YTD| - 46280;353|ACTUAL|2012.JUN|YTD| - 609.5388;3541008|ACTUAL|2017.DEC|YTD| - 1200673.1528011;3541008|ACTUAL|2017.Q1|QTD| - 1106018.264849;3541008|ACTUAL|2016.Q4|QTD| - 1057119.871774;3541008|ACTUAL|2016.DEC|YTD| - 1057119.871774;3541008|ACTUAL|2012.JUN|YTD| - 531870.59094;3541010|ACTUAL|2017.DEC|YTD| - 130704.0971;3541010|ACTUAL|2017.Q1|QTD| - 104495.0817;3541010|ACTUAL|2016.Q4|QTD| - 102056.3494;3541010|ACTUAL|2016.DEC|YTD| - 102056.3494;3541010|ACTUAL|2012.JUN|YTD| - 12 | DF1: 4433.265;3541012|ACTUAL|2017.DEC|YTD| - 206528.552369;3541012|ACTUAL|2017.Q1|QTD| - 171917.9220565;3541012|ACTUAL|2016.Q4|QTD| - 202137.423032;3541012|ACTUAL|2016.DEC|YTD| - 202137.423032;3541012|ACTUAL|2012.JUN|YTD| - 132262.4184;3541014|ACTUAL|2017.DEC|YTD| - 38838.1537;3541014|ACTUAL|2017.Q1|QTD| - 45867.2184;3541014|ACTUAL|2016.Q4|QTD| - 35245.3997;3541014|ACTUAL|2016.DEC|YTD| - 35245.3997;3541014|ACTUAL|2012.JUN|YTD| - 110017.0668;3541016|ACTUAL|2017.DEC|YTD| - 151854.502972;3541016|ACTUAL|2017.Q1|QTD| | DG1: - 170544.0702;3541016|ACTUAL|2016.Q4|QTD| - 139660.5846;3541016|ACTUAL|2016.DEC|YTD| - 139660.5846;3541016|ACTUAL|2012.JUN|YTD| - 134606.5672;3541018|ACTUAL|2017.DEC|YTD| - 10625.4649;3541018|ACTUAL|2017.Q1|QTD| - 35454.8605;3541018|ACTUAL|2016.Q4|QTD| - 40064.410344;3541018|ACTUAL|2016.DEC|YTD| - 40064.410344;3541018|ACTUAL|2012.JUN|YTD| - 2122.931;3541020|ACTUAL|2017.DEC|YTD| - 7856.95;3541020|ACTUAL|2017.Q1|QTD| - 7673.5311;3541020|ACTUAL|2016.Q4|QTD| - 7607.4432;3541020|ACTUAL|2016.DEC|YTD| - 7607.4432 | DH1: ;3541020|ACTUAL|2012.JUN|YTD| - 4574.1522;3541022|ACTUAL|2017.DEC|YTD| - 4329.5469;3541022|ACTUAL|2017.Q1|QTD| - 27984.3584;3541022|ACTUAL|2016.Q4|QTD| - 27260.4566;3541022|ACTUAL|2016.DEC|YTD| - 27260.4566;3541022|ACTUAL|2012.JUN|YTD| - 41191.2735;3541024|ACTUAL|2017.DEC|YTD| - 4051.8556;3541024|ACTUAL|2017.Q1|QTD| - 5801.3057;3541024|ACTUAL|2016.Q4|QTD| - 5974.4619;3541024|ACTUAL|2016.DEC|YTD| - 5974.4619;3541024|ACTUAL|2012.JUN|YTD| - 5831.0998;3541026|ACTUAL|2017.DEC|YTD| - 3616.6791;3541026|ACTUAL|2017 | DI1: .Q1|QTD| - 6044.8895;3541026|ACTUAL|2016.Q4|QTD| - 5385.8832;3541026|ACTUAL|2016.DEC|YTD| - 5385.8832;3541026|ACTUAL|2012.JUN|YTD| - 9431.2278;3541028|ACTUAL|2017.DEC|YTD| - 4374.53228;3541028|ACTUAL|2017.Q1|QTD| - 5168.3093;3541028|ACTUAL|2016.Q4|QTD| - 4944.3604;3541028|ACTUAL|2016.DEC|YTD| - 4944.3604;3541028|ACTUAL|2012.JUN|YTD| - 7632.7674;3541030|ACTUAL|2017.DEC|YTD| - 20721.2596;3541030|ACTUAL|2017.Q1|QTD| - 20245.8898;3541030|ACTUAL|2016.Q4|QTD| - 21441.5657;3541030|ACTUAL|2016.DEC|YTD| - 21441.5657 | DJ1: ;3541030|ACTUAL|2012.JUN|YTD| - 12923.9667;3541032|ACTUAL|2017.DEC|YTD| - 6016.9308;3541032|ACTUAL|2017.Q1|QTD| - 12537;3541032|ACTUAL|2016.Q4|QTD| - 8638;3541032|ACTUAL|2016.DEC|YTD| - 8638;3541032|ACTUAL|2012.JUN|YTD| - 60704.2688;3541036|ACTUAL|2016.Q4|QTD| - 6899.1232;3541036|ACTUAL|2016.DEC|YTD| - 6899.1232;3541038|ACTUAL|2017.DEC|YTD| - 56832.522465;3541038|ACTUAL|2017.Q1|QTD| - 103162.0232;3541038|ACTUAL|2016.Q4|QTD| - 57829.13958;3541038|ACTUAL|2016.DEC|YTD| - 57829.13958;3541038|ACTUAL|2012.JUN|YTD | DK1: | - 49475.9774;354|ACTUAL|2017.DEC|YTD| - 1847024.2005871;354|ACTUAL|2017.Q1|QTD| - 1822914.7247055;354|ACTUAL|2016.Q4|QTD| - 1722264.47263;354|ACTUAL|2016.DEC|YTD| - 1722264.47263;354|ACTUAL|2012.JUN|YTD| - 1227077.57294;355|ACTUAL|2017.DEC|YTD| - 23766.8039;355|ACTUAL|2017.Q1|QTD| - 34137.34435;355|ACTUAL|2016.Q4|QTD| - 30197.5875;355|ACTUAL|2016.DEC|YTD| - 30197.5875;355|ACTUAL|2012.JUN|YTD| - 58806.7875;3561010|ACTUAL|2012.JUN|YTD| - 6563.6922;3561014|ACTUAL|2017.DEC|YTD| - 9647.5445;3561014|ACTUAL|2017 | DL1: .Q1|QTD| - 7306.3389;3561014|ACTUAL|2016.Q4|QTD| - 6487.6784;3561014|ACTUAL|2016.DEC|YTD| - 6487.6784;3561014|ACTUAL|2012.JUN|YTD| - 3586.106;3561100|ACTUAL|2017.DEC|YTD| - 10752.6744;3561100|ACTUAL|2017.Q1|QTD| - 16280.541;3561100|ACTUAL|2016.Q4|QTD| - 17114.2162;3561100|ACTUAL|2016.DEC|YTD| - 17114.2162;3561100|ACTUAL|2012.JUN|YTD| - 16580.633;356|ACTUAL|2017.DEC|YTD| - 35138.3789;356|ACTUAL|2017.Q1|QTD| - 67760.5249;356|ACTUAL|2016.Q4|QTD| - 67137.6546;356|ACTUAL|2016.DEC|YTD| - 67137.6546;356|ACTUAL|201 | DM1: 2.JUN|YTD| - 26730.4312;3571010|ACTUAL|2017.DEC|YTD| - 1.08749999999964;3571010|ACTUAL|2017.Q1|QTD| - -1.24010000000999;3571010|ACTUAL|2016.Q4|QTD| - -2.69620000003488;3571010|ACTUAL|2016.DEC|YTD| - -2.69620000003488;3571010|ACTUAL|2012.JUN|YTD| - 5.47479999973439;3571014|ACTUAL|2017.DEC|YTD| - -32.0106562998699;3571014|ACTUAL|2017.Q1|QTD| - -31.7676999999676;3571014|ACTUAL|2016.Q4|QTD| - -22.8248999999487;3571014|ACTUAL|2016.DEC|YTD| - -22.8248999999487;3571014|ACTUAL|2012.JUN|YTD| - 11.7435000002151;35710 | DN1: 16|ACTUAL|2017.DEC|YTD| - 0;3571016|ACTUAL|2017.Q1|QTD| - 0;3571016|ACTUAL|2016.Q4|QTD| - 0;3571016|ACTUAL|2016.DEC|YTD| - 0;3571016|ACTUAL|2012.JUN|YTD| - 0;357|ACTUAL|2017.DEC|YTD| - -30.9231562998702;357|ACTUAL|2017.Q1|QTD| - -33.0077999999776;357|ACTUAL|2016.Q4|QTD| - -25.5210999999836;357|ACTUAL|2016.DEC|YTD| - -25.5210999999836;357|ACTUAL|2012.JUN|YTD| - 17.2182999999495;358|ACTUAL|2017.DEC|YTD| - 40131.927;358|ACTUAL|2017.Q1|QTD| - 32290.9698;358|ACTUAL|2016.Q4|QTD| - 28355.2492;358|ACTUAL|2016.DEC|Y | DO1: TD| - 28355.2492;358|ACTUAL|2012.JUN|YTD| - 74.334;3601014|ACTUAL|2017.DEC|YTD| - 73896.5081034;3601014|ACTUAL|2017.Q1|QTD| - 90731.332011;3601014|ACTUAL|2016.Q4|QTD| - 64017.7249;3601014|ACTUAL|2016.DEC|YTD| - 64017.7249;3601014|ACTUAL|2012.JUN|YTD| - 77035.3045;3601016|ACTUAL|2017.DEC|YTD| - 356117.6315715;3601016|ACTUAL|2017.Q1|QTD| - 325469.4778;3601016|ACTUAL|2016.Q4|QTD| - 335896.95364;3601016|ACTUAL|2016.DEC|YTD| - 335896.95364;3601016|ACTUAL|2012.JUN|YTD| - 154327.5463;3601017|ACTUAL|2017.DEC|YTD| - | DP1: -2099.52923;3601017|ACTUAL|2017.Q1|QTD| - 5132.79217;3601017|ACTUAL|2016.Q4|QTD| - 5101.46312;3601017|ACTUAL|2016.DEC|YTD| - 5101.46312;3601017|ACTUAL|2012.JUN|YTD| - 19807.8572;3601018|ACTUAL|2012.JUN|YTD| - 54642;3601020|ACTUAL|2012.JUN|YTD| - 79137;3601031|ACTUAL|2017.DEC|YTD| - 8947.289334;3601031|ACTUAL|2017.Q1|QTD| - 12135.6181;3601031|ACTUAL|2016.Q4|QTD| - 12147.729;3601031|ACTUAL|2016.DEC|YTD| - 12147.729;3601031|ACTUAL|2012.JUN|YTD| - 8649.9531;3601032|ACTUAL|2017.DEC|YTD| - 52733.034381;3601032|A | DQ1: CTUAL|2017.Q1|QTD| - 73580.253443;3601032|ACTUAL|2016.Q4|QTD| - 54789.076568;3601032|ACTUAL|2016.DEC|YTD| - 54789.076568;3601032|ACTUAL|2012.JUN|YTD| - -28106.4447;360|ACTUAL|2017.DEC|YTD| - 489594.9341599;360|ACTUAL|2017.Q1|QTD| - 507049.473524;360|ACTUAL|2016.Q4|QTD| - 471952.947228;360|ACTUAL|2016.DEC|YTD| - 471952.947228;360|ACTUAL|2012.JUN|YTD| - 365493.2164;361|ACTUAL|2017.DEC|YTD| - 4.87925999978324;361|ACTUAL|2017.Q1|QTD| - -3.81139999977313;361|ACTUAL|2016.Q4|QTD| - -11.0332000002963;361|ACTUAL|201 | DR1: 6.DEC|YTD| - -11.0332000002963;361|ACTUAL|2012.JUN|YTD| - 15.7505999999994;362|ACTUAL|2017.DEC|YTD| - 159336.2981;362|ACTUAL|2017.Q1|QTD| - 271804.7418;362|ACTUAL|2016.Q4|QTD| - 138874.44428;362|ACTUAL|2016.DEC|YTD| - 138874.44428;362|ACTUAL|2012.JUN|YTD| - 250796.8848;363|ACTUAL|2017.DEC|YTD| - 0;363|ACTUAL|2017.Q1|QTD| - 0;363|ACTUAL|2016.Q4|QTD| - 0;363|ACTUAL|2016.DEC|YTD| - 0;363|ACTUAL|2012.JUN|YTD| - 1523.847;364|ACTUAL|2017.DEC|YTD| - 1476.8512;364|ACTUAL|2017.Q1|QTD| - 4016.5818;364|ACTUAL|2016.Q4| | DS1: QTD| - 4011.6384;364|ACTUAL|2016.DEC|YTD| - 4011.6384;364|ACTUAL|2012.JUN|YTD| - 9198.8396;365|ACTUAL|2012.JUN|YTD| - 47643.1942;366|ACTUAL|2017.DEC|YTD| - 111288;366|ACTUAL|2017.Q1|QTD| - 141197;366|ACTUAL|2016.Q4|QTD| - 220;366|ACTUAL|2016.DEC|YTD| - 220;380|ACTUAL|2017.DEC|YTD| - 3050189.3586507;380|ACTUAL|2017.Q1|QTD| - 4532463.4158795;380|ACTUAL|2016.Q4|QTD| - 3366877.146638;380|ACTUAL|2016.DEC|YTD| - 3366877.146638;380|ACTUAL|2012.JUN|YTD| - 2662261.35654;385|ACTUAL|2017.DEC|YTD| - 6694659.7369037;385 | DT1: |ACTUAL|2017.Q1|QTD| - 6763806.5738225;385|ACTUAL|2016.Q4|QTD| - 6319650.351406;385|ACTUAL|2016.DEC|YTD| - 6319650.351406;385|ACTUAL|2012.JUN|YTD| - 6193914.58956;300|ACTUAL|2017.DEC|YTD| - 13308393.4269908;300|ACTUAL|2017.Q1|QTD| - 12829183.0611233;300|ACTUAL|2016.Q4|QTD| - 13004263.3662761;300|ACTUAL|2016.DEC|YTD| - 13004263.3662761;300|ACTUAL|2012.JUN|YTD| - 12824250.1565009;</CELLS></EVDRE><EVDRE ID="BPC Ship|001-00001" DIMENSION="AccountGrp|BU|Category|ConsoScope|Currency|Datasrc|Entity|Flow|iBU|IntCo| | DU1: Time|MEASURES|" AXIS="AccountGrp|Category|Time|MEASURES|"><CELLS>P110|ACTUAL|2017.DEC|YTD| - -44766.36478380033;P110|ACTUAL|2017.Q4|QTD| - -10248.675833800404;P110|ACTUAL|2016.Q4|QTD| - -11966.650020000021;P110|ACTUAL|2016.DEC|YTD| - -48712.2889200002;P110|ACTUAL|2012.JUN|YTD| - -25803.3203000001;P1300151|ACTUAL|2017.DEC|YTD| - 0.121599999999997;P1300151|ACTUAL|2017.Q4|QTD| - -0.269200000000001;P1300152|ACTUAL|2017.DEC|YTD| - 45034.49917239999;P1300152|ACTUAL|2017.Q4|QTD| - 10569.301172399885;P1300152|ACTUA | DV1: L|2016.Q4|QTD| - 11751.33810000001;P1300152|ACTUAL|2016.DEC|YTD| - 48469.37860000001;P1300152|ACTUAL|2012.JUN|YTD| - 25800.748;160|ACTUAL|2017.DEC|YTD| - 268.25598859957892;160|ACTUAL|2017.Q4|QTD| - 320.3561385995151;160|ACTUAL|2016.Q4|QTD| - -215.31191999997082;160|ACTUAL|2016.DEC|YTD| - -242.9103200001261;160|ACTUAL|2012.JUN|YTD| - -2.572300000145334;105005|ACTUAL|2017.DEC|YTD| - 5690755.6740760;105005|ACTUAL|2017.Q4|QTD| - 1448806.5497686;105005|ACTUAL|2016.Q4|QTD| - 1398567.39885;105005|ACTUAL|2016.DEC| | DW1: YTD| - 5412912.2766;105005|ACTUAL|2012.JUN|YTD| - 2118351.9332;1050102|ACTUAL|2017.DEC|YTD| - 3006.5088;1050102|ACTUAL|2017.Q4|QTD| - 980.5088;1050102|ACTUAL|2016.Q4|QTD| - 996;1050102|ACTUAL|2016.DEC|YTD| - 443;1050102|ACTUAL|2012.JUN|YTD| - 101450;1050101|ACTUAL|2017.DEC|YTD| - 251046.3219780;1050101|ACTUAL|2017.Q4|QTD| - 74644.7194234;1050101|ACTUAL|2016.Q4|QTD| - 24477.40095000000000003;1050101|ACTUAL|2016.DEC|YTD| - -34813.9598;1050101|ACTUAL|2012.JUN|YTD| - 347147;105010|ACTUAL|2017.DEC|YTD| - 254052. | DX1: 8307780;105010|ACTUAL|2017.Q4|QTD| - 75625.2282234;105010|ACTUAL|2016.Q4|QTD| - 25473.40095000000000003;105010|ACTUAL|2016.DEC|YTD| - -34370.9598;105010|ACTUAL|2012.JUN|YTD| - 448597;105015|ACTUAL|2017.DEC|YTD| - 1504913.73112;105015|ACTUAL|2017.Q4|QTD| - 251905.6668578;105015|ACTUAL|2016.Q4|QTD| - 254231.08084;105015|ACTUAL|2016.DEC|YTD| - 1543622.21184;105015|ACTUAL|2012.JUN|YTD| - 352894.575;1050201|ACTUAL|2017.DEC|YTD| - 432474.66738;1050201|ACTUAL|2017.Q4|QTD| - 103624.3143606;1050201|ACTUAL|2016.Q4|QT | DY1: D| - 106767.33622;1050201|ACTUAL|2016.DEC|YTD| - 448674.00572;1050201|ACTUAL|2012.JUN|YTD| - 153018.5837;1050202|ACTUAL|2017.DEC|YTD| - 661900.3683;1050202|ACTUAL|2017.Q4|QTD| - 156082.9729;1050202|ACTUAL|2016.Q4|QTD| - 158157.75911;1050202|ACTUAL|2016.DEC|YTD| - 672554.46636;1050202|ACTUAL|2012.JUN|YTD| - 242805.9318;1050203|ACTUAL|2017.DEC|YTD| - 42137.13556;1050203|ACTUAL|2017.Q4|QTD| - 10200.5217694;1050203|ACTUAL|2016.Q4|QTD| - 12828.73532;1050203|ACTUAL|2016.DEC|YTD| - 63931.74992;1050203|ACTUAL|2012. | DZ1: JUN|YTD| - 20683.7920;105020|ACTUAL|2017.DEC|YTD| - 1136512.17124;105020|ACTUAL|2017.Q4|QTD| - 269907.80903;105020|ACTUAL|2016.Q4|QTD| - 277753.83065;105020|ACTUAL|2016.DEC|YTD| - 1185160.2220;105020|ACTUAL|2012.JUN|YTD| - 416508.3075;105025|ACTUAL|2017.DEC|YTD| - 211624.4410350;105025|ACTUAL|2017.Q4|QTD| - 56325.9328506;105025|ACTUAL|2016.Q4|QTD| - 47049.50821;105025|ACTUAL|2016.DEC|YTD| - 171801.87496;105025|ACTUAL|2012.JUN|YTD| - 33663.0000;105027|ACTUAL|2017.DEC|YTD| - 40253.666;105027|ACTUAL|2017.Q4|QT | EA1: D| - 10053.8066;105027|ACTUAL|2016.Q4|QTD| - 10112.5845;105027|ACTUAL|2016.DEC|YTD| - 39123.7588;105030|ACTUAL|2017.DEC|YTD| - 346875.1054;105030|ACTUAL|2017.Q4|QTD| - 89785.0507;105030|ACTUAL|2016.Q4|QTD| - 90911.8812;105030|ACTUAL|2016.DEC|YTD| - 366803.1312;105030|ACTUAL|2012.JUN|YTD| - 90350.7401;105035|ACTUAL|2017.DEC|YTD| - 268165.9617;105035|ACTUAL|2017.Q4|QTD| - 70650.2612;105035|ACTUAL|2016.Q4|QTD| - 73776.1535;105035|ACTUAL|2016.DEC|YTD| - 333122.0069;105035|ACTUAL|2012.JUN|YTD| - 144622.1338;1050 | EB1: 36|ACTUAL|2017.DEC|YTD| - 30928.7365;105036|ACTUAL|2017.Q4|QTD| - 6803.0178;105036|ACTUAL|2016.Q4|QTD| - 6846.0872;105036|ACTUAL|2016.DEC|YTD| - 28591.2182;105040|ACTUAL|2017.DEC|YTD| - 75474.25654;105040|ACTUAL|2017.Q4|QTD| - 15938.2751033;105040|ACTUAL|2016.Q4|QTD| - 18131.79583;105040|ACTUAL|2016.DEC|YTD| - 90366.91158;105040|ACTUAL|2012.JUN|YTD| - 52228.5922;105045|ACTUAL|2017.DEC|YTD| - 229044.7175000;105045|ACTUAL|2017.Q4|QTD| - 49308.7223975;105045|ACTUAL|2016.Q4|QTD| - 29790.00985;105045|ACTUAL|2016 | EC1: .DEC|YTD| - 222193.5197;105045|ACTUAL|2012.JUN|YTD| - 81584.8912;105050|ACTUAL|2017.DEC|YTD| - 19466.1922;105050|ACTUAL|2017.Q4|QTD| - 5248.9435;105050|ACTUAL|2016.Q4|QTD| - 10111.8459;105050|ACTUAL|2016.DEC|YTD| - 23798.6735;105050|ACTUAL|2012.JUN|YTD| - 2864.18624;105055|ACTUAL|2016.Q4|QTD| - 42.3759;105055|ACTUAL|2016.DEC|YTD| - 91.9478;105055|ACTUAL|2012.JUN|YTD| - 6281.1761;1050602|ACTUAL|2017.DEC|YTD| - 37496.64052;1050602|ACTUAL|2017.Q4|QTD| - 17557.163518;1050602|ACTUAL|2016.Q4|QTD| - 10673.65834000 | ED1: 0000001;1050602|ACTUAL|2016.DEC|YTD| - 43214.59984;1050602|ACTUAL|2012.JUN|YTD| - 12194.0484;1050603|ACTUAL|2017.DEC|YTD| - 46868.8246000;1050603|ACTUAL|2017.Q4|QTD| - 13004.9906232;1050603|ACTUAL|2016.Q4|QTD| - 10737.80170;1050603|ACTUAL|2016.DEC|YTD| - 41701.53860;1050603|ACTUAL|2012.JUN|YTD| - 16404.5192;1050604|ACTUAL|2017.DEC|YTD| - 0;1050604|ACTUAL|2017.Q4|QTD| - 0;105060|ACTUAL|2017.DEC|YTD| - 84365.4651200;105060|ACTUAL|2017.Q4|QTD| - 30562.1541412;105060|ACTUAL|2016.Q4|QTD| - 21411.46004;105060|ACT | EE1: UAL|2016.DEC|YTD| - 84916.13844;105060|ACTUAL|2012.JUN|YTD| - 28598.5676;105|ACTUAL|2017.DEC|YTD| - 9892432.9492090;105|ACTUAL|2017.Q4|QTD| - 2380921.4181724;105|ACTUAL|2016.Q4|QTD| - 2264209.413420001;105|ACTUAL|2016.DEC|YTD| - 9468132.93172;105|ACTUAL|2012.JUN|YTD| - 3776545.10294;1100051|ACTUAL|2012.JUN|YTD| - -794703;1100052|ACTUAL|2017.DEC|YTD| - 20124.9874;1100052|ACTUAL|2017.Q4|QTD| - 5049.0444;1100052|ACTUAL|2016.Q4|QTD| - 6186.9062;1100052|ACTUAL|2016.DEC|YTD| - -1572.3888;1100052|ACTUAL|2012.JUN|Y | EF1: TD| - 3445;1100053|ACTUAL|2017.DEC|YTD| - -1258602.3914338;1100053|ACTUAL|2017.Q4|QTD| - -336355.563285600000014;1100053|ACTUAL|2016.Q4|QTD| - -293657.149720000000184;1100053|ACTUAL|2016.DEC|YTD| - -973166.96772;1100053|ACTUAL|2012.JUN|YTD| - -126820.5007;110005|ACTUAL|2017.DEC|YTD| - -1238477.4040338;110005|ACTUAL|2017.Q4|QTD| - -331306.518885600000014;110005|ACTUAL|2016.Q4|QTD| - -287470.243520000000184;110005|ACTUAL|2016.DEC|YTD| - -974739.35652;110005|ACTUAL|2012.JUN|YTD| - -918078.5007;1100101|ACTUAL|2 | EG1: 017.DEC|YTD| - -109586.8538636;1100101|ACTUAL|2017.Q4|QTD| - -28078.2249331;1100101|ACTUAL|2016.Q4|QTD| - -32399.2809900000000096;1100101|ACTUAL|2016.DEC|YTD| - -111268.33604;1100101|ACTUAL|2012.JUN|YTD| - -36433.2118;1100102|ACTUAL|2017.DEC|YTD| - -237360.53374;1100102|ACTUAL|2017.Q4|QTD| - -57345.1657986;1100102|ACTUAL|2016.Q4|QTD| - -56609.51159;1100102|ACTUAL|2016.DEC|YTD| - -244287.85284;1100102|ACTUAL|2012.JUN|YTD| - -98116.5724;1100103|ACTUAL|2017.DEC|YTD| - -200294.1354364;1100103|ACTUAL|2017.Q4|QTD | EH1: | - -49984.7187252;1100103|ACTUAL|2016.Q4|QTD| - -46227.4529;1100103|ACTUAL|2016.DEC|YTD| - -201185.6254;1100103|ACTUAL|2012.JUN|YTD| - -84991.1976;1100104|ACTUAL|2017.DEC|YTD| - -56302.665916;1100104|ACTUAL|2017.Q4|QTD| - -15027.0471004;1100104|ACTUAL|2016.Q4|QTD| - -15992.19418000000001;1100104|ACTUAL|2016.DEC|YTD| - -54449.50868;1100104|ACTUAL|2012.JUN|YTD| - -21702.2934;110010|ACTUAL|2017.DEC|YTD| - -603544.188956;110010|ACTUAL|2017.Q4|QTD| - -150435.1565573;110010|ACTUAL|2016.Q4|QTD| - -151228.43966;11 | EI1: 0010|ACTUAL|2016.DEC|YTD| - -611191.32296;110010|ACTUAL|2012.JUN|YTD| - -241243.2752;1100151|ACTUAL|2017.DEC|YTD| - -302168.9459518;1100151|ACTUAL|2017.Q4|QTD| - -82413.8774094;1100151|ACTUAL|2016.Q4|QTD| - -103374.45007000000056;1100151|ACTUAL|2016.DEC|YTD| - -285187.53362;1100151|ACTUAL|2012.JUN|YTD| - -133085.0400;1100152|ACTUAL|2017.DEC|YTD| - -87501.358043;1100152|ACTUAL|2017.Q4|QTD| - -25828.5442323;1100152|ACTUAL|2016.Q4|QTD| - -28553.0792;1100152|ACTUAL|2016.DEC|YTD| - -111411.5192;1100152|ACTUAL|20 | EJ1: 12.JUN|YTD| - -39403.5999;110015|ACTUAL|2017.DEC|YTD| - -389670.3039948;110015|ACTUAL|2017.Q4|QTD| - -108242.4216417;110015|ACTUAL|2016.Q4|QTD| - -131927.52927000000053;110015|ACTUAL|2016.DEC|YTD| - -396599.05282;110015|ACTUAL|2012.JUN|YTD| - -172488.6399;1100201|ACTUAL|2017.DEC|YTD| - -536751.7792000;1100201|ACTUAL|2017.Q4|QTD| - -139845.1577279;1100201|ACTUAL|2016.Q4|QTD| - -135367.24005;1100201|ACTUAL|2016.DEC|YTD| - -503435.5558;1100201|ACTUAL|2012.JUN|YTD| - -290206.1907;110020|ACTUAL|2017.DEC|YTD| - - | EK1: 536751.7792000;110020|ACTUAL|2017.Q4|QTD| - -139845.1577279;110020|ACTUAL|2016.Q4|QTD| - -135367.24005;110020|ACTUAL|2016.DEC|YTD| - -503435.5558;110020|ACTUAL|2012.JUN|YTD| - -290206.1907;110025|ACTUAL|2017.DEC|YTD| - -1035280.1396;110025|ACTUAL|2017.Q4|QTD| - -231979.7953088;110025|ACTUAL|2016.Q4|QTD| - -259681.83547;110025|ACTUAL|2016.DEC|YTD| - -1041205.73002;110025|ACTUAL|2012.JUN|YTD| - -402555.5507;110030|ACTUAL|2017.DEC|YTD| - -848686.4214;110030|ACTUAL|2017.Q4|QTD| - -232264.1192;110030|ACTUAL|2016 | EL1: .Q4|QTD| - -167706.34488;110030|ACTUAL|2016.DEC|YTD| - -779603.30088;110030|ACTUAL|2012.JUN|YTD| - -328484.5258;110035|ACTUAL|2017.DEC|YTD| - -236778.0869234;110035|ACTUAL|2017.Q4|QTD| - -57851.9750608;110035|ACTUAL|2016.Q4|QTD| - -57812.23021;110035|ACTUAL|2016.DEC|YTD| - -244947.21826;110035|ACTUAL|2012.JUN|YTD| - -96493.4124;110040|ACTUAL|2017.DEC|YTD| - -19779.2374;110040|ACTUAL|2017.Q4|QTD| - -4443.7938;110040|ACTUAL|2016.Q4|QTD| - -2460.1922;110040|ACTUAL|2016.DEC|YTD| - -19246.8572;110040|ACTUAL|2012 | EM1: .JUN|YTD| - -33465.3352;110045|ACTUAL|2017.DEC|YTD| - -36557.0471;110045|ACTUAL|2017.Q4|QTD| - -6496.1724;110045|ACTUAL|2016.Q4|QTD| - -5814.7627;110045|ACTUAL|2016.DEC|YTD| - -32452.9627;110045|ACTUAL|2012.JUN|YTD| - -14225.7260;110050|ACTUAL|2017.DEC|YTD| - -19578.8508;110050|ACTUAL|2017.Q4|QTD| - -5751.1996;110050|ACTUAL|2016.Q4|QTD| - -5025.6453;110050|ACTUAL|2016.DEC|YTD| - -24930.9688;110050|ACTUAL|2012.JUN|YTD| - -1031.858;110055|ACTUAL|2017.DEC|YTD| - -4442;110055|ACTUAL|2017.Q4|QTD| - -1030;110055| | EN1: ACTUAL|2016.Q4|QTD| - -982.9954;110055|ACTUAL|2016.DEC|YTD| - -4027.8904;110055|ACTUAL|2012.JUN|YTD| - -4760;110060|ACTUAL|2017.DEC|YTD| - -9112.8496815;110060|ACTUAL|2017.Q4|QTD| - -2324.9791815;110060|ACTUAL|2016.Q4|QTD| - -3517.6119;110060|ACTUAL|2016.DEC|YTD| - -12680.1009;110060|ACTUAL|2012.JUN|YTD| - -628.770;110065|ACTUAL|2017.DEC|YTD| - 917;110065|ACTUAL|2017.Q4|QTD| - 989;110065|ACTUAL|2016.Q4|QTD| - 596;110065|ACTUAL|2016.DEC|YTD| - 1598;110065|ACTUAL|2012.JUN|YTD| - 476;110070|ACTUAL|2017.DEC|YTD | EO1: | - -6527.3718404;110070|ACTUAL|2017.Q4|QTD| - -5346.7756797;110070|ACTUAL|2016.Q4|QTD| - -1484.97515;110070|ACTUAL|2016.DEC|YTD| - -429.371900000001;110070|ACTUAL|2012.JUN|YTD| - -4558.7242;110075|ACTUAL|2017.DEC|YTD| - 7379.8938;110075|ACTUAL|2017.Q4|QTD| - 7444.9804254;110075|ACTUAL|2016.Q4|QTD| - 4944.99084;110075|ACTUAL|2016.DEC|YTD| - 12663.36884;110075|ACTUAL|2012.JUN|YTD| - -205.4599;110|ACTUAL|2017.DEC|YTD| - -4976888.7871299;110|ACTUAL|2017.Q4|QTD| - -1268884.0846179;110|ACTUAL|2016.Q4|QTD| - -120 | EP1: 4939.30987;110|ACTUAL|2016.DEC|YTD| - -4631236.90532;110|ACTUAL|2012.JUN|YTD| - -2507949.9687;115|ACTUAL|2017.DEC|YTD| - 4915544.1620791;115|ACTUAL|2017.Q4|QTD| - 1112037.3335545;115|ACTUAL|2016.Q4|QTD| - 1059270.10355;115|ACTUAL|2016.DEC|YTD| - 4836896.02640;115|ACTUAL|2012.JUN|YTD| - 1268595.1342399999;1200051|ACTUAL|2017.DEC|YTD| - -1356222.2846460;1200051|ACTUAL|2017.Q4|QTD| - -339947.0697876;1200051|ACTUAL|2016.Q4|QTD| - -334376.87544;1200051|ACTUAL|2016.DEC|YTD| - -1340194.87594;1200051|ACTUAL|2012.JU | EQ1: N|YTD| - -522836.7694;1200052|ACTUAL|2017.DEC|YTD| - -7375.1520;1200052|ACTUAL|2017.Q4|QTD| - 1173.1539701;1200052|ACTUAL|2016.Q4|QTD| - -8799.04516;1200052|ACTUAL|2016.DEC|YTD| - -21778.98356;1200052|ACTUAL|2012.JUN|YTD| - 963.9849;120005|ACTUAL|2017.DEC|YTD| - -1363597.4366460;120005|ACTUAL|2017.Q4|QTD| - -338773.9158175;120005|ACTUAL|2016.Q4|QTD| - -343175.9206;120005|ACTUAL|2016.DEC|YTD| - -1361973.8595;120005|ACTUAL|2012.JUN|YTD| - -521872.7845;120015|ACTUAL|2017.DEC|YTD| - -69119.3115306;120015|ACTUAL | ER1: |2017.Q4|QTD| - -20076.5628508;120015|ACTUAL|2016.Q4|QTD| - -22627.21413;120015|ACTUAL|2016.DEC|YTD| - -75677.71158;120015|ACTUAL|2012.JUN|YTD| - -23673.34692;120020|ACTUAL|2017.DEC|YTD| - 267.7896;120020|ACTUAL|2017.Q4|QTD| - 267.7896;120020|ACTUAL|2016.Q4|QTD| - -573.0366;120020|ACTUAL|2016.DEC|YTD| - -1362.4716;120020|ACTUAL|2012.JUN|YTD| - -944.4916;120025|ACTUAL|2017.DEC|YTD| - 1532.3516;120025|ACTUAL|2017.Q4|QTD| - 491.1296;120025|ACTUAL|2016.Q4|QTD| - 2052.9501;120025|ACTUAL|2016.DEC|YTD| - 8286.5076 | ES1: ;120025|ACTUAL|2012.JUN|YTD| - 12.9198;120030|ACTUAL|2017.DEC|YTD| - -1986.9375;120030|ACTUAL|2017.Q4|QTD| - -1368.1307;120030|ACTUAL|2016.Q4|QTD| - -1114.41324;120030|ACTUAL|2016.DEC|YTD| - -1886.27664;120030|ACTUAL|2012.JUN|YTD| - -170.6563;120035|ACTUAL|2017.DEC|YTD| - -142950.9642036;120035|ACTUAL|2017.Q4|QTD| - -35355.1373494;120035|ACTUAL|2016.Q4|QTD| - -28558.21282;120035|ACTUAL|2016.DEC|YTD| - -142752.60262;120035|ACTUAL|2012.JUN|YTD| - -49870.6501;120040|ACTUAL|2017.DEC|YTD| - -145205.6482848;12004 | ET1: 0|ACTUAL|2017.Q4|QTD| - -37204.0779676;120040|ACTUAL|2016.Q4|QTD| - -38103.0635;120040|ACTUAL|2016.DEC|YTD| - -145300.5343;120040|ACTUAL|2012.JUN|YTD| - -73333.25128;120|ACTUAL|2017.DEC|YTD| - -1721060.1569650;120|ACTUAL|2017.Q4|QTD| - -432018.9054853;120|ACTUAL|2016.Q4|QTD| - -432098.91079;120|ACTUAL|2016.DEC|YTD| - -1720666.94864;120|ACTUAL|2012.JUN|YTD| - -669852.2609;1300051|ACTUAL|2017.DEC|YTD| - -70531.3147028;1300051|ACTUAL|2017.Q4|QTD| - -16286.9352549;1300051|ACTUAL|2016.Q4|QTD| - -15361.20741;1300 | EU1: 051|ACTUAL|2016.DEC|YTD| - -71568.68006;1300051|ACTUAL|2012.JUN|YTD| - -75576.0155;1300052|ACTUAL|2017.DEC|YTD| - -145540.1987;1300052|ACTUAL|2017.Q4|QTD| - -40735.3048922;1300052|ACTUAL|2016.Q4|QTD| - -25340.11501;1300052|ACTUAL|2016.DEC|YTD| - -118655.69736;1300052|ACTUAL|2012.JUN|YTD| - -56902.6721;1300053|ACTUAL|2017.DEC|YTD| - -20442.9204486;1300053|ACTUAL|2017.Q4|QTD| - -5803.6074249;1300053|ACTUAL|2016.Q4|QTD| - -4760.08555;1300053|ACTUAL|2016.DEC|YTD| - -17814.2687;1300053|ACTUAL|2012.JUN|YTD| - -10 | EV1: 254.4449;1300054|ACTUAL|2017.DEC|YTD| - -29763.0966168;1300054|ACTUAL|2017.Q4|QTD| - -8519.7643675;1300054|ACTUAL|2016.Q4|QTD| - -8849.79892999999999997;1300054|ACTUAL|2016.DEC|YTD| - -36713.82678;1300054|ACTUAL|2012.JUN|YTD| - -14227.4017;130005|ACTUAL|2017.DEC|YTD| - -266277.5304682;130005|ACTUAL|2017.Q4|QTD| - -71345.6119395;130005|ACTUAL|2016.Q4|QTD| - -54311.20690000001;130005|ACTUAL|2016.DEC|YTD| - -244752.4729;130005|ACTUAL|2012.JUN|YTD| - -156960.5342;1300102|ACTUAL|2017.DEC|YTD| - -34505.8246244;13 | EW1: 00102|ACTUAL|2017.Q4|QTD| - -8811.48635270001;1300102|ACTUAL|2016.Q4|QTD| - -14419.19472;1300102|ACTUAL|2016.DEC|YTD| - -45843.99532;1300102|ACTUAL|2012.JUN|YTD| - -4021.3237;13001031|ACTUAL|2017.DEC|YTD| - -998.7997;13001031|ACTUAL|2017.Q4|QTD| - 198.2897804;13001031|ACTUAL|2016.Q4|QTD| - -111.058870000001;13001031|ACTUAL|2016.DEC|YTD| - -1910.43332;13001031|ACTUAL|2012.JUN|YTD| - -405.0716;13001032|ACTUAL|2017.DEC|YTD| - -124.4866;13001032|ACTUAL|2017.Q4|QTD| - 71.4289;13001032|ACTUAL|2016.Q4|QTD| - -202. | EX1: 4666;13001032|ACTUAL|2016.DEC|YTD| - -511.1401;13001032|ACTUAL|2012.JUN|YTD| - -201.884;13001033|ACTUAL|2017.DEC|YTD| - -37.8349;13001033|ACTUAL|2017.Q4|QTD| - 80.9083;13001033|ACTUAL|2016.Q4|QTD| - -106.2546;13001033|ACTUAL|2016.DEC|YTD| - -346.6366;13001033|ACTUAL|2012.JUN|YTD| - -260.0071;13001034|ACTUAL|2017.Q4|QTD| - 86.0871;13001034|ACTUAL|2016.Q4|QTD| - -52.0021;13001034|ACTUAL|2016.DEC|YTD| - -115.5861;1300103|ACTUAL|2017.DEC|YTD| - -1161.1212;1300103|ACTUAL|2017.Q4|QTD| - 436.7140804;1300103|ACTUAL | EY1: |2016.Q4|QTD| - -471.782170000001;1300103|ACTUAL|2016.DEC|YTD| - -2883.79612;1300103|ACTUAL|2012.JUN|YTD| - -866.9627;1300104|ACTUAL|2017.DEC|YTD| - -795.8009;1300104|ACTUAL|2017.Q4|QTD| - -319.6426421;1300104|ACTUAL|2016.Q4|QTD| - 578.82163;1300104|ACTUAL|2016.DEC|YTD| - -488.40512;1300105|ACTUAL|2017.DEC|YTD| - -62.6783;1300105|ACTUAL|2017.Q4|QTD| - -31.8363;1300105|ACTUAL|2016.Q4|QTD| - 148.5005;1300105|ACTUAL|2016.DEC|YTD| - 10.7662;1300105|ACTUAL|2012.JUN|YTD| - -856.8874;13001063|ACTUAL|2017.DEC|YTD| | EZ1: - -108359.000;13001063|ACTUAL|2017.Q4|QTD| - -24319.000;13001063|ACTUAL|2016.Q4|QTD| - -26056.0000;13001063|ACTUAL|2016.DEC|YTD| - -99235.0000;13001063|ACTUAL|2012.JUN|YTD| - -200.2872;13001064|ACTUAL|2017.DEC|YTD| - -11648.9016328;13001064|ACTUAL|2017.Q4|QTD| - -2954.7144881;13001064|ACTUAL|2016.Q4|QTD| - -2549.034;13001064|ACTUAL|2016.DEC|YTD| - -10487.8284;1300106|ACTUAL|2017.DEC|YTD| - -120007.9016328;1300106|ACTUAL|2017.Q4|QTD| - -27273.7144881;1300106|ACTUAL|2016.Q4|QTD| - -28605.0340;1300106|ACTUAL|2 | FA1: 016.DEC|YTD| - -109722.8284;1300106|ACTUAL|2012.JUN|YTD| - -200.2872;130010|ACTUAL|2017.DEC|YTD| - -156533.3266572;130010|ACTUAL|2017.Q4|QTD| - -35999.9657025;130010|ACTUAL|2016.Q4|QTD| - -42768.68876;130010|ACTUAL|2016.DEC|YTD| - -158928.25876;130010|ACTUAL|2012.JUN|YTD| - -5945.461;1300151|ACTUAL|2017.DEC|YTD| - -162664.892793;1300151|ACTUAL|2017.Q4|QTD| - -33881.6065395;1300151|ACTUAL|2016.Q4|QTD| - -33873.74361;1300151|ACTUAL|2016.DEC|YTD| - -158868.55936;1300151|ACTUAL|2012.JUN|YTD| - -62629.2409;13001 | FB1: 52|ACTUAL|2017.DEC|YTD| - -96557.5302234;1300152|ACTUAL|2017.Q4|QTD| - -7811.2440006;1300152|ACTUAL|2016.Q4|QTD| - -1250.08674;1300152|ACTUAL|2016.DEC|YTD| - -114356.64564;1300152|ACTUAL|2012.JUN|YTD| - -26896.6107;130020|ACTUAL|2017.DEC|YTD| - -259222.4230164;130020|ACTUAL|2017.Q4|QTD| - -41692.8505400999;130020|ACTUAL|2016.Q4|QTD| - -35123.83035;130020|ACTUAL|2016.DEC|YTD| - -273225.2050;130020|ACTUAL|2012.JUN|YTD| - -89525.8516;130|ACTUAL|2017.DEC|YTD| - -682033.2801418;130|ACTUAL|2017.Q4|QTD| - -149038. | FC1: 4281821;130|ACTUAL|2016.Q4|QTD| - -132203.72601;130|ACTUAL|2016.DEC|YTD| - -676905.93666;130|ACTUAL|2012.JUN|YTD| - -252431.8468;135|ACTUAL|2017.DEC|YTD| - 2512450.72497229950269;135|ACTUAL|2017.Q4|QTD| - 530979.9998870965553;135|ACTUAL|2016.Q4|QTD| - 494967.46675000020448;135|ACTUAL|2016.DEC|YTD| - 2439323.141100000143;135|ACTUAL|2012.JUN|YTD| - 346311.026540001051196;140|ACTUAL|2017.DEC|YTD| - 5911.1976;140|ACTUAL|2017.Q4|QTD| - 687.3716;140|ACTUAL|2016.Q4|QTD| - 109.1111;140|ACTUAL|2016.DEC|YTD| - -2594. | FD1: 0037;140|ACTUAL|2012.JUN|YTD| - 426.972;1450051|ACTUAL|2017.DEC|YTD| - -91.8772;1450051|ACTUAL|2017.Q4|QTD| - -76.0026;1450051|ACTUAL|2016.Q4|QTD| - 29.8300000000017;1450051|ACTUAL|2016.DEC|YTD| - -13308.6425;1450051|ACTUAL|2012.JUN|YTD| - 62.0958;145005|ACTUAL|2017.DEC|YTD| - -91.8772;145005|ACTUAL|2017.Q4|QTD| - -76.0026;145005|ACTUAL|2016.Q4|QTD| - 29.8300000000017;145005|ACTUAL|2016.DEC|YTD| - -13308.6425;145005|ACTUAL|2012.JUN|YTD| - 62.0958;1450101|ACTUAL|2017.DEC|YTD| - 673.2344;1450101|ACTUAL|2017.Q | FE1: 4|QTD| - 35.6406999999999;1450101|ACTUAL|2016.Q4|QTD| - 125.6119;1450101|ACTUAL|2016.DEC|YTD| - 15722.6532;1450101|ACTUAL|2012.JUN|YTD| - 554.5649;145010|ACTUAL|2017.DEC|YTD| - 673.2344;145010|ACTUAL|2017.Q4|QTD| - 35.6406999999999;145010|ACTUAL|2016.Q4|QTD| - 125.6119;145010|ACTUAL|2016.DEC|YTD| - 15722.6532;145010|ACTUAL|2012.JUN|YTD| - 554.5649;145|ACTUAL|2017.DEC|YTD| - 581.3572;145|ACTUAL|2017.Q4|QTD| - -40.3619000000001;145|ACTUAL|2016.Q4|QTD| - 155.441900000002;145|ACTUAL|2016.DEC|YTD| - 2414.0107;14 | FF1: 5|ACTUAL|2012.JUN|YTD| - 616.6607;150005|ACTUAL|2016.Q4|QTD| - -0.538200000000188;150005|ACTUAL|2016.DEC|YTD| - 1742.1768;150|ACTUAL|2016.Q4|QTD| - -0.538200000000188;150|ACTUAL|2016.DEC|YTD| - 1742.1768;155005|ACTUAL|2017.DEC|YTD| - -801444.1045;155005|ACTUAL|2017.Q4|QTD| - -198149.43625;155005|ACTUAL|2016.Q4|QTD| - -196069.68105;155005|ACTUAL|2016.DEC|YTD| - -812922.3362;155005|ACTUAL|2012.JUN|YTD| - -285639.4553;155010|ACTUAL|2017.DEC|YTD| - 9311;155010|ACTUAL|2017.Q4|QTD| - 9311;155010|ACTUAL|2016.Q4|QT | FG1: D| - -14999.9655;155010|ACTUAL|2016.DEC|YTD| - -15111.678;155|ACTUAL|2017.DEC|YTD| - -792133.1045;155|ACTUAL|2017.Q4|QTD| - -188838.43625;155|ACTUAL|2016.Q4|QTD| - -211069.64655;155|ACTUAL|2016.DEC|YTD| - -828034.0142;155|ACTUAL|2012.JUN|YTD| - -285639.4553;165|ACTUAL|2017.DEC|YTD| - 1727078.4312608992349537514258;165|ACTUAL|2017.Q4|QTD| - 343108.92947569616947013289814;165|ACTUAL|2016.Q4|QTD| - 283946.52307999934231106837979;165|ACTUAL|2016.DEC|YTD| - 1612608.4003800000312638803735;165|ACTUAL|2012.JUN|YTD| | FH1: - 61712.631640000634971128823236;17000512|ACTUAL|2017.DEC|YTD| - -17350.8772;17000512|ACTUAL|2017.Q4|QTD| - -17350.8772;170005|ACTUAL|2017.DEC|YTD| - -17350.8772;170005|ACTUAL|2017.Q4|QTD| - -17350.8772;170010|ACTUAL|2012.JUN|YTD| - -3850;170015|ACTUAL|2016.Q4|QTD| - -1.48350000000028;170015|ACTUAL|2016.DEC|YTD| - 4802.154;170016|ACTUAL|2016.Q4|QTD| - 1.48349999999937;170016|ACTUAL|2016.DEC|YTD| - -4802.154;170020|ACTUAL|2017.DEC|YTD| - 8963;170020|ACTUAL|2017.Q4|QTD| - 0;170020|ACTUAL|2016.Q4|QTD| - -0.36 | FI1: 7999999999938;170020|ACTUAL|2016.DEC|YTD| - -2.76800000000003;170021|ACTUAL|2017.DEC|YTD| - 1193;170021|ACTUAL|2017.Q4|QTD| - 1547;170021|ACTUAL|2016.Q4|QTD| - -5792;170021|ACTUAL|2016.DEC|YTD| - -12939;170025|ACTUAL|2017.DEC|YTD| - -10.2609999999986;170025|ACTUAL|2017.Q4|QTD| - -18.7004999999917;170030|ACTUAL|2017.DEC|YTD| - 0;170030|ACTUAL|2017.Q4|QTD| - 0;170030|ACTUAL|2016.Q4|QTD| - 0;170030|ACTUAL|2016.DEC|YTD| - 0;170|ACTUAL|2017.DEC|YTD| - -7205.1382;170|ACTUAL|2017.Q4|QTD| - -15822.5777;170|ACTUAL|2 | FJ1: 016.Q4|QTD| - -5792.368;170|ACTUAL|2016.DEC|YTD| - -12941.768;170|ACTUAL|2012.JUN|YTD| - -3850;175|ACTUAL|2017.DEC|YTD| - 1719873.2930608992095767341662;175|ACTUAL|2017.Q4|QTD| - 327286.35177569613868056462293;175|ACTUAL|2016.Q4|QTD| - 278154.15507999934381564758718;175|ACTUAL|2016.DEC|YTD| - 1599666.6323800000323314791080;175|ACTUAL|2012.JUN|YTD| - 57862.631640000634971128823236;1800051|ACTUAL|2017.DEC|YTD| - 66.1182;1800051|ACTUAL|2017.Q4|QTD| - 33.8425;1800051|ACTUAL|2016.Q4|QTD| - 130.5088;1800051|ACTUA | FK1: L|2016.DEC|YTD| - 132.0984;1800051|ACTUAL|2012.JUN|YTD| - 247.5354;1800052|ACTUAL|2017.DEC|YTD| - 721.0295;1800052|ACTUAL|2017.Q4|QTD| - 9.5673;1800052|ACTUAL|2016.Q4|QTD| - 17.249300000000134;1800052|ACTUAL|2016.DEC|YTD| - 77.6196;1800052|ACTUAL|2012.JUN|YTD| - 1479.5880;1800054|ACTUAL|2017.DEC|YTD| - 122.8781;1800054|ACTUAL|2017.Q4|QTD| - 8.98999999999999;1800054|ACTUAL|2016.Q4|QTD| - -30.1731;1800054|ACTUAL|2016.DEC|YTD| - 99.6136;1800054|ACTUAL|2012.JUN|YTD| - 113.99980000000042;180005|ACTUAL|2017.DEC|Y | FL1: TD| - 910.0258;180005|ACTUAL|2017.Q4|QTD| - 52.3998;180005|ACTUAL|2016.Q4|QTD| - 117.585000000000034;180005|ACTUAL|2016.DEC|YTD| - 309.3316;180005|ACTUAL|2012.JUN|YTD| - 1841.1232;1800151|ACTUAL|2017.DEC|YTD| - 20567.5248;1800151|ACTUAL|2017.Q4|QTD| - 5589.8235;1800151|ACTUAL|2016.Q4|QTD| - 6265.0365;1800151|ACTUAL|2016.DEC|YTD| - 18218.4301;1800151|ACTUAL|2012.JUN|YTD| - 2192.2561;1800152|ACTUAL|2017.DEC|YTD| - 13772.707;1800152|ACTUAL|2017.Q4|QTD| - 2599.8229;1800152|ACTUAL|2016.Q4|QTD| - -432.39648999999 | FM1: 9;1800152|ACTUAL|2016.DEC|YTD| - 17960.76506;1800152|ACTUAL|2012.JUN|YTD| - 653.1546;1800153|ACTUAL|2017.DEC|YTD| - 0.7721;1800153|ACTUAL|2017.Q4|QTD| - 0.7721;180015|ACTUAL|2017.DEC|YTD| - 34341.0039;180015|ACTUAL|2017.Q4|QTD| - 8190.4185;180015|ACTUAL|2016.Q4|QTD| - 5832.64001;180015|ACTUAL|2016.DEC|YTD| - 36179.19516;180015|ACTUAL|2012.JUN|YTD| - 2845.4107;1800251|ACTUAL|2017.DEC|YTD| - 0;1800251|ACTUAL|2017.Q4|QTD| - 0;1800251|ACTUAL|2016.Q4|QTD| - 0;1800251|ACTUAL|2016.DEC|YTD| - 0;1800251|ACTUAL|2012. | FN1: JUN|YTD| - 0;180025|ACTUAL|2017.DEC|YTD| - 0;180025|ACTUAL|2017.Q4|QTD| - 0;180025|ACTUAL|2016.Q4|QTD| - 0;180025|ACTUAL|2016.DEC|YTD| - 0;180025|ACTUAL|2012.JUN|YTD| - 0;180030|ACTUAL|2017.DEC|YTD| - 11.2991;180030|ACTUAL|2017.Q4|QTD| - -0.0191999999999997;180030|ACTUAL|2016.Q4|QTD| - -0.020700000000005;180030|ACTUAL|2016.DEC|YTD| - 67.0068;180030|ACTUAL|2012.JUN|YTD| - 12.9198;180|ACTUAL|2017.DEC|YTD| - 35262.3288;180|ACTUAL|2017.Q4|QTD| - 8242.7991;180|ACTUAL|2016.Q4|QTD| - 5950.2043100000177;180|ACTUAL| | FO1: 2016.DEC|YTD| - 36555.53356;180|ACTUAL|2012.JUN|YTD| - 4699.4537;1850051|ACTUAL|2017.DEC|YTD| - -6014.2493;1850051|ACTUAL|2017.Q4|QTD| - -5962.6091;1850051|ACTUAL|2016.Q4|QTD| - -4.83519000000001;1850051|ACTUAL|2016.DEC|YTD| - -111.33444;1850051|ACTUAL|2012.JUN|YTD| - -3881.2791;1850052|ACTUAL|2017.DEC|YTD| - -27255.20537;1850052|ACTUAL|2017.Q4|QTD| - -4634.94744;1850052|ACTUAL|2016.Q4|QTD| - -10485.943700000000034;1850052|ACTUAL|2016.DEC|YTD| - -47644.6856;1850052|ACTUAL|2012.JUN|YTD| - -35497.8796;1850054 | FP1: |ACTUAL|2017.Q4|QTD| - 66.9357;1850054|ACTUAL|2016.Q4|QTD| - -22.3126;1850054|ACTUAL|2016.DEC|YTD| - -96.7876;1850054|ACTUAL|2012.JUN|YTD| - -149.2336;1850055|ACTUAL|2017.DEC|YTD| - -6.6665;1850055|ACTUAL|2017.Q4|QTD| - -13.977;1850055|ACTUAL|2016.Q4|QTD| - 5.5415;1850055|ACTUAL|2016.DEC|YTD| - -19.9767;1850055|ACTUAL|2012.JUN|YTD| - -271.9881;1850057|ACTUAL|2017.DEC|YTD| - -1190.176;1850057|ACTUAL|2017.Q4|QTD| - 2297.9177;185005|ACTUAL|2017.DEC|YTD| - -34466.29717;185005|ACTUAL|2017.Q4|QTD| - -8246.68014;1 | FQ1: 85005|ACTUAL|2016.Q4|QTD| - -10507.549990000000034;185005|ACTUAL|2016.DEC|YTD| - -47872.78434;185005|ACTUAL|2012.JUN|YTD| - -39800.3804;1850151|ACTUAL|2017.DEC|YTD| - -15652.88956;1850151|ACTUAL|2017.Q4|QTD| - -1997.96936;1850151|ACTUAL|2016.Q4|QTD| - -4832.42495;1850151|ACTUAL|2016.DEC|YTD| - -17822.0632;1850151|ACTUAL|2012.JUN|YTD| - -844.1166;1850152|ACTUAL|2017.DEC|YTD| - 1716.1443;1850152|ACTUAL|2017.Q4|QTD| - 154.82839;1850152|ACTUAL|2016.Q4|QTD| - -5972.51987;1850152|ACTUAL|2016.DEC|YTD| - -166.03442 | FR1: ;1850152|ACTUAL|2012.JUN|YTD| - -6969.041;185015|ACTUAL|2017.DEC|YTD| - -13936.74526;185015|ACTUAL|2017.Q4|QTD| - -1843.14097;185015|ACTUAL|2016.Q4|QTD| - -10804.94482;185015|ACTUAL|2016.DEC|YTD| - -17988.09762;185015|ACTUAL|2012.JUN|YTD| - -7813.1576;185045|ACTUAL|2017.DEC|YTD| - -2542.45052;185045|ACTUAL|2017.Q4|QTD| - -452.91084;185045|ACTUAL|2016.Q4|QTD| - -644.3353;185045|ACTUAL|2016.DEC|YTD| - -3290.5209;185045|ACTUAL|2012.JUN|YTD| - -1105.26472;185|ACTUAL|2017.DEC|YTD| - -50945.49295;185|ACTUAL|2017. | FS1: Q4|QTD| - -10542.73195;185|ACTUAL|2016.Q4|QTD| - -21956.830110000000034;185|ACTUAL|2016.DEC|YTD| - -69151.40286;185|ACTUAL|2012.JUN|YTD| - -48718.80272;187|ACTUAL|2017.DEC|YTD| - -15683.16415;187|ACTUAL|2017.Q4|QTD| - -2299.93285;187|ACTUAL|2016.Q4|QTD| - -16006.6257999999886;187|ACTUAL|2016.DEC|YTD| - -32595.8693;187|ACTUAL|2012.JUN|YTD| - -44019.34902;189|ACTUAL|2017.DEC|YTD| - 14320.9108;189|ACTUAL|2017.Q4|QTD| - 17178.103;189|ACTUAL|2016.Q4|QTD| - -163.543599999999;189|ACTUAL|2016.DEC|YTD| - 9835.0404;1 | FT1: 89|ACTUAL|2012.JUN|YTD| - -59306.4108;190|ACTUAL|2017.DEC|YTD| - 1718511.0397108994095767341662;190|ACTUAL|2017.Q4|QTD| - 342164.52192569543868056462293;190|ACTUAL|2016.Q4|QTD| - 261983.98567999935381564758718;190|ACTUAL|2016.DEC|YTD| - 1576905.8034800001323314791080;190|ACTUAL|2012.JUN|YTD| - -45463.128179999437554136088118;19510101|ACTUAL|2017.DEC|YTD| - -40507.6672;19510101|ACTUAL|2017.Q4|QTD| - -11438.0945;19510101|ACTUAL|2016.Q4|QTD| - -1025.4976;19510101|ACTUAL|2016.DEC|YTD| - -32010.4461;19510101|ACT | FU1: UAL|2012.JUN|YTD| - 5850.59034;19510102|ACTUAL|2017.DEC|YTD| - -3384.5104;19510102|ACTUAL|2017.Q4|QTD| - -1236.1978;19510102|ACTUAL|2016.Q4|QTD| - -1062.259;19510102|ACTUAL|2016.DEC|YTD| - -3877.081;19510102|ACTUAL|2012.JUN|YTD| - 890.84968;1951010|ACTUAL|2017.DEC|YTD| - -43892.1776;1951010|ACTUAL|2017.Q4|QTD| - -12674.2923;1951010|ACTUAL|2016.Q4|QTD| - -2087.7566;1951010|ACTUAL|2016.DEC|YTD| - -35887.5271;1951010|ACTUAL|2012.JUN|YTD| - 6741.44002;1951012|ACTUAL|2017.DEC|YTD| - 5720.43930000001;1951012|ACTU | FV1: AL|2017.Q4|QTD| - 2869.08790000001;1951012|ACTUAL|2016.Q4|QTD| - 864.811799999999;1951012|ACTUAL|2016.DEC|YTD| - 4768.6683;1951012|ACTUAL|2012.JUN|YTD| - 2065.5304;1951014|ACTUAL|2017.DEC|YTD| - -548.0121;1951014|ACTUAL|2017.Q4|QTD| - -251.7139;1951014|ACTUAL|2016.Q4|QTD| - -289.1875;1951014|ACTUAL|2016.DEC|YTD| - -483.8605;1951014|ACTUAL|2012.JUN|YTD| - -150.98727;1951016|ACTUAL|2017.DEC|YTD| - 1197.8091;1951016|ACTUAL|2017.Q4|QTD| - -602.042;1951016|ACTUAL|2016.Q4|QTD| - -9555.1655;1951016|ACTUAL|2016.DEC | FW1: |YTD| - 74.452;1951018|ACTUAL|2017.DEC|YTD| - 44.6316;1951018|ACTUAL|2017.Q4|QTD| - -216.5231;1951018|ACTUAL|2016.Q4|QTD| - -428.6022;1951018|ACTUAL|2016.DEC|YTD| - -830.7037;1951018|ACTUAL|2012.JUN|YTD| - -133.8318;1951020|ACTUAL|2017.DEC|YTD| - 335.578;1951020|ACTUAL|2017.Q4|QTD| - 298.3915;1951020|ACTUAL|2016.Q4|QTD| - 1092.9377;1951020|ACTUAL|2016.DEC|YTD| - 2750.0316;1951020|ACTUAL|2012.JUN|YTD| - 600;1951022|ACTUAL|2016.Q4|QTD| - -81.9513;1951022|ACTUAL|2016.DEC|YTD| - -81.9513;1951024|ACTUAL|2017.DEC | FX1: |YTD| - -3111.3178;1951024|ACTUAL|2017.Q4|QTD| - 749.6152;1951024|ACTUAL|2016.Q4|QTD| - 2713.5323;1951024|ACTUAL|2016.DEC|YTD| - 1559.7617;1951024|ACTUAL|2012.JUN|YTD| - -533.9856;1951050|ACTUAL|2017.DEC|YTD| - -40253.0495;1951050|ACTUAL|2017.Q4|QTD| - -9827.47669999996;1951050|ACTUAL|2016.Q4|QTD| - -7771.3813;1951050|ACTUAL|2016.DEC|YTD| - -28131.129;1951050|ACTUAL|2012.JUN|YTD| - 8588.16575;1951070|ACTUAL|2017.DEC|YTD| - -230.5966;1951070|ACTUAL|2017.Q4|QTD| - -66.976;1951070|ACTUAL|2016.Q4|QTD| - -59.511 | FY1: ;1951070|ACTUAL|2016.DEC|YTD| - -223.356;1951070|ACTUAL|2012.JUN|YTD| - -194.53;195|ACTUAL|2017.DEC|YTD| - -40483.6461;195|ACTUAL|2017.Q4|QTD| - -9894.45269999996;195|ACTUAL|2016.Q4|QTD| - -7830.8923;195|ACTUAL|2016.DEC|YTD| - -28354.485;195|ACTUAL|2012.JUN|YTD| - 8393.63575;196|ACTUAL|2017.DEC|YTD| - 1678027.3936108994095767341662;196|ACTUAL|2017.Q4|QTD| - 332270.06922569743868056462293;196|ACTUAL|2016.Q4|QTD| - 254153.09337999935381564758718;196|ACTUAL|2016.DEC|YTD| - 1548551.3184800001323314791080;196|AC | FZ1: TUAL|2012.JUN|YTD| - -37069.492429999437554136088118;100|ACTUAL|2017.DEC|YTD| - 1678027.3936108994095767341662;100|ACTUAL|2017.Q4|QTD| - 332270.06922569743868056462293;100|ACTUAL|2016.Q4|QTD| - 254153.09337999935381564758718;100|ACTUAL|2016.DEC|YTD| - 1548551.3184800001323314791080;100|ACTUAL|2012.JUN|YTD| - -37069.492429999437554136088118;202|ACTUAL|2017.DEC|YTD| - 226813.3196;202|ACTUAL|2017.Q4|QTD| - 226813.3196;202|ACTUAL|2016.Q4|QTD| - 227843.9776;202|ACTUAL|2016.DEC|YTD| - 227843.9776;202|ACTUAL|2012. | GA1: JUN|YTD| - 201499.3736;204|ACTUAL|2017.DEC|YTD| - -0.0000000000000728306304154103;204|ACTUAL|2017.Q4|QTD| - -0.0000000000000728306304154103;204|ACTUAL|2016.Q4|QTD| - 0.0000000000000275335310107039;204|ACTUAL|2016.DEC|YTD| - 0.0000000000000275335310107039;206|ACTUAL|2016.Q4|QTD| - 0.0000000000000126565424807268;206|ACTUAL|2016.DEC|YTD| - 0.0000000000000126565424807268;206|ACTUAL|2012.JUN|YTD| - 0;208204|ACTUAL|2017.DEC|YTD| - 1310.3024;208204|ACTUAL|2017.Q4|QTD| - 1310.3024;208|ACTUAL|2017.DEC|YTD| - 1310.30 | GB1: 24;208|ACTUAL|2017.Q4|QTD| - 1310.3024;220|ACTUAL|2017.DEC|YTD| - 228123.622;220|ACTUAL|2017.Q4|QTD| - 228123.622;220|ACTUAL|2016.Q4|QTD| - 227843.9776;220|ACTUAL|2016.DEC|YTD| - 227843.9776;220|ACTUAL|2012.JUN|YTD| - 201499.3736;2261010|ACTUAL|2017.DEC|YTD| - 16713.8005;2261010|ACTUAL|2017.Q4|QTD| - 16713.8005;2261010|ACTUAL|2016.Q4|QTD| - 17180.8984;2261010|ACTUAL|2016.DEC|YTD| - 17180.8984;2261010|ACTUAL|2012.JUN|YTD| - 21492.4192;2261014|ACTUAL|2017.DEC|YTD| - 424.3593;2261014|ACTUAL|2017.Q4|QTD| - 424. | GC1: 3593;2261014|ACTUAL|2016.Q4|QTD| - 557.58;2261014|ACTUAL|2016.DEC|YTD| - 557.58;2261014|ACTUAL|2012.JUN|YTD| - 838.4194;226|ACTUAL|2017.DEC|YTD| - 17138.1598;226|ACTUAL|2017.Q4|QTD| - 17138.1598;226|ACTUAL|2016.Q4|QTD| - 17738.4784;226|ACTUAL|2016.DEC|YTD| - 17738.4784;226|ACTUAL|2012.JUN|YTD| - 22330.8386;2281010|ACTUAL|2017.DEC|YTD| - 474864.545;2281010|ACTUAL|2017.Q4|QTD| - 474864.545;2281010|ACTUAL|2016.Q4|QTD| - 505866.292;2281010|ACTUAL|2016.DEC|YTD| - 505866.292;2281010|ACTUAL|2012.JUN|YTD| - 605156. | GD1: 109;2281012|ACTUAL|2017.DEC|YTD| - 2786;2281012|ACTUAL|2017.Q4|QTD| - 2786;2281012|ACTUAL|2016.Q4|QTD| - 3219;2281012|ACTUAL|2016.DEC|YTD| - 3219;2281012|ACTUAL|2012.JUN|YTD| - 4984;2281014|ACTUAL|2017.DEC|YTD| - 1289;2281014|ACTUAL|2017.Q4|QTD| - 1289;2281014|ACTUAL|2016.Q4|QTD| - 1514.7376;2281014|ACTUAL|2016.DEC|YTD| - 1514.7376;2281014|ACTUAL|2012.JUN|YTD| - 2368;228|ACTUAL|2017.DEC|YTD| - 478939.545;228|ACTUAL|2017.Q4|QTD| - 478939.545;228|ACTUAL|2016.Q4|QTD| - 510600.0296;228|ACTUAL|2016.DEC|YTD| - 51 | GE1: 0600.0296;228|ACTUAL|2012.JUN|YTD| - 612508.109;2301010|ACTUAL|2017.DEC|YTD| - 7462671.152052;2301010|ACTUAL|2017.Q4|QTD| - 7462671.152052;2301010|ACTUAL|2016.Q4|QTD| - 6896416.308912;2301010|ACTUAL|2016.DEC|YTD| - 6896416.308912;2301010|ACTUAL|2012.JUN|YTD| - 7173722.3975;230|ACTUAL|2017.DEC|YTD| - 7462671.152052;230|ACTUAL|2017.Q4|QTD| - 7462671.152052;230|ACTUAL|2016.Q4|QTD| - 6896416.308912;230|ACTUAL|2016.DEC|YTD| - 6896416.308912;230|ACTUAL|2012.JUN|YTD| - 7173722.3975;232|ACTUAL|2017.DEC|YTD| - 68074 | GF1: .3652;232|ACTUAL|2017.Q4|QTD| - 68074.3652;232|ACTUAL|2016.Q4|QTD| - 59561.4056;232|ACTUAL|2016.DEC|YTD| - 59561.4056;232|ACTUAL|2012.JUN|YTD| - 52172;2341010|ACTUAL|2017.DEC|YTD| - 0;2341010|ACTUAL|2017.Q4|QTD| - 0;2341010|ACTUAL|2016.Q4|QTD| - 959777;2341010|ACTUAL|2016.DEC|YTD| - 959777;2341012|ACTUAL|2012.JUN|YTD| - 20436;234|ACTUAL|2017.DEC|YTD| - 0;234|ACTUAL|2017.Q4|QTD| - 0;234|ACTUAL|2016.Q4|QTD| - 959777;234|ACTUAL|2016.DEC|YTD| - 959777;234|ACTUAL|2012.JUN|YTD| - 20436;236|ACTUAL|2017.DEC|YTD| - | GG1: 75594.34982;236|ACTUAL|2017.Q4|QTD| - 75594.34982;236|ACTUAL|2016.Q4|QTD| - 66194.00392;236|ACTUAL|2016.DEC|YTD| - 66194.00392;236|ACTUAL|2012.JUN|YTD| - 60222.67304;238226|ACTUAL|2016.Q4|QTD| - 0;238226|ACTUAL|2016.DEC|YTD| - 0;238228|ACTUAL|2017.DEC|YTD| - 0;238228|ACTUAL|2017.Q4|QTD| - 0;238228|ACTUAL|2016.Q4|QTD| - 460.932800000001;238228|ACTUAL|2016.DEC|YTD| - 460.932800000001;238228|ACTUAL|2012.JUN|YTD| - 1741.8788;238230|ACTUAL|2017.DEC|YTD| - 281105.2915;238230|ACTUAL|2017.Q4|QTD| - 281105.2915;2382 | GH1: 30|ACTUAL|2016.Q4|QTD| - 169768.0696;238230|ACTUAL|2016.DEC|YTD| - 169768.0696;238230|ACTUAL|2012.JUN|YTD| - 599613.8125;238231|ACTUAL|2017.DEC|YTD| - 21119.3479;238231|ACTUAL|2017.Q4|QTD| - 21119.3479;238231|ACTUAL|2016.Q4|QTD| - 24266.9984;238231|ACTUAL|2016.DEC|YTD| - 24266.9984;238232|ACTUAL|2017.DEC|YTD| - 1637;238232|ACTUAL|2017.Q4|QTD| - 1637;238232|ACTUAL|2016.Q4|QTD| - 1899;238232|ACTUAL|2016.DEC|YTD| - 1899;238234|ACTUAL|2017.DEC|YTD| - 834.5818;238234|ACTUAL|2017.Q4|QTD| - 834.5818;238234|ACTUAL| | GI1: 2016.Q4|QTD| - 1264.6296;238234|ACTUAL|2016.DEC|YTD| - 1264.6296;238234|ACTUAL|2012.JUN|YTD| - 0;238|ACTUAL|2017.DEC|YTD| - 304696.2212;238|ACTUAL|2017.Q4|QTD| - 304696.2212;238|ACTUAL|2016.Q4|QTD| - 131887.6304;238|ACTUAL|2016.DEC|YTD| - 131887.6304;238|ACTUAL|2012.JUN|YTD| - 601355.6913;240|ACTUAL|2017.DEC|YTD| - 8407113.793072;240|ACTUAL|2017.Q4|QTD| - 8407113.793072;240|ACTUAL|2016.Q4|QTD| - 8642174.856832;240|ACTUAL|2016.DEC|YTD| - 8642174.856832;240|ACTUAL|2012.JUN|YTD| - 8542747.70944;2421010|ACTUAL| | GJ1: 2017.DEC|YTD| - 2868080.30924;2421010|ACTUAL|2017.Q4|QTD| - 2868080.30924;2421010|ACTUAL|2016.Q4|QTD| - 2680406.88444;2421010|ACTUAL|2016.DEC|YTD| - 2680406.88444;2421010|ACTUAL|2012.JUN|YTD| - 2680829.33309;242|ACTUAL|2017.DEC|YTD| - 2868080.30924;242|ACTUAL|2017.Q4|QTD| - 2868080.30924;242|ACTUAL|2016.Q4|QTD| - 2680406.88444;242|ACTUAL|2016.DEC|YTD| - 2680406.88444;242|ACTUAL|2012.JUN|YTD| - 2680829.33309;2431010|ACTUAL|2017.DEC|YTD| - 33372.64506;2431010|ACTUAL|2017.Q4|QTD| - 33372.64506;2431010|ACTUAL|2 | GK1: 016.Q4|QTD| - 28384.75666;2431010|ACTUAL|2016.DEC|YTD| - 28384.75666;2431010|ACTUAL|2012.JUN|YTD| - 641.123;243|ACTUAL|2017.DEC|YTD| - 33372.64506;243|ACTUAL|2017.Q4|QTD| - 33372.64506;243|ACTUAL|2016.Q4|QTD| - 28384.75666;243|ACTUAL|2016.DEC|YTD| - 28384.75666;243|ACTUAL|2012.JUN|YTD| - 641.123;245|ACTUAL|2017.DEC|YTD| - 0;245|ACTUAL|2017.Q4|QTD| - 0;245|ACTUAL|2016.Q4|QTD| - 0;245|ACTUAL|2016.DEC|YTD| - 0;245|ACTUAL|2012.JUN|YTD| - 0;247|ACTUAL|2012.JUN|YTD| - 96.6342;248|ACTUAL|2017.DEC|YTD| - 111298.780 | GL1: 9;248|ACTUAL|2017.Q4|QTD| - 111298.7809;248|ACTUAL|2016.Q4|QTD| - 268.5135;248|ACTUAL|2016.DEC|YTD| - 268.5135;249|ACTUAL|2017.DEC|YTD| - 2828.905;249|ACTUAL|2017.Q4|QTD| - 2828.905;249|ACTUAL|2016.Q4|QTD| - 18072.6436;249|ACTUAL|2016.DEC|YTD| - 18072.6436;249|ACTUAL|2012.JUN|YTD| - 28492.628;250|ACTUAL|2017.DEC|YTD| - 3015580.6402;250|ACTUAL|2017.Q4|QTD| - 3015580.6402;250|ACTUAL|2016.Q4|QTD| - 2727132.7982;250|ACTUAL|2016.DEC|YTD| - 2727132.7982;250|ACTUAL|2012.JUN|YTD| - 2710059.71829;252|ACTUAL|2017.DEC | GM1: |YTD| - 11650818.055272;252|ACTUAL|2017.Q4|QTD| - 11650818.055272;252|ACTUAL|2016.Q4|QTD| - 11597151.632632;252|ACTUAL|2016.DEC|YTD| - 11597151.632632;252|ACTUAL|2012.JUN|YTD| - 11454306.80133;2551010|ACTUAL|2017.DEC|YTD| - 68036.686;2551010|ACTUAL|2017.Q4|QTD| - 68036.686;2551010|ACTUAL|2016.Q4|QTD| - 64425.7288;2551010|ACTUAL|2016.DEC|YTD| - 64425.7288;2551010|ACTUAL|2012.JUN|YTD| - 37837.8313;2551012|ACTUAL|2017.DEC|YTD| - 9061.8903;2551012|ACTUAL|2017.Q4|QTD| - 9061.8903;2551012|ACTUAL|2016.Q4|QTD| - 63 | GN1: 45.256;2551012|ACTUAL|2016.DEC|YTD| - 6345.256;2551012|ACTUAL|2012.JUN|YTD| - 17669.5797;2551014|ACTUAL|2017.DEC|YTD| - 74057.4304;2551014|ACTUAL|2017.Q4|QTD| - 74057.4304;2551014|ACTUAL|2016.Q4|QTD| - 64255.7072;2551014|ACTUAL|2016.DEC|YTD| - 64255.7072;2551014|ACTUAL|2012.JUN|YTD| - 100512.945;255|ACTUAL|2017.DEC|YTD| - 151156.0067;255|ACTUAL|2017.Q4|QTD| - 151156.0067;255|ACTUAL|2016.Q4|QTD| - 135026.692;255|ACTUAL|2016.DEC|YTD| - 135026.692;255|ACTUAL|2012.JUN|YTD| - 156020.356;2601014|ACTUAL|2017.DEC|Y | GO1: TD| - 129735.7519081;2601014|ACTUAL|2017.Q4|QTD| - 129735.7519081;2601014|ACTUAL|2016.Q4|QTD| - 74139.6759;2601014|ACTUAL|2016.DEC|YTD| - 74139.6759;2601014|ACTUAL|2012.JUN|YTD| - 104148.6977;260|ACTUAL|2017.DEC|YTD| - 129735.7519081;260|ACTUAL|2017.Q4|QTD| - 129735.7519081;260|ACTUAL|2016.Q4|QTD| - 74139.6759;260|ACTUAL|2016.DEC|YTD| - 74139.6759;260|ACTUAL|2012.JUN|YTD| - 104148.6977;261|ACTUAL|2017.DEC|YTD| - 8422.0004;261|ACTUAL|2017.Q4|QTD| - 8422.0004;261|ACTUAL|2016.Q4|QTD| - 2967.3859;261|ACTUAL|201 | GP1: 6.DEC|YTD| - 2967.3859;261|ACTUAL|2012.JUN|YTD| - 833;2621010|ACTUAL|2017.DEC|YTD| - 744153.5305552;2621010|ACTUAL|2017.Q4|QTD| - 744153.5305552;2621010|ACTUAL|2016.Q4|QTD| - 713342.2139;2621010|ACTUAL|2016.DEC|YTD| - 713342.2139;2621010|ACTUAL|2012.JUN|YTD| - 791405.357;2621011|ACTUAL|2017.DEC|YTD| - -20741.717896;2621011|ACTUAL|2017.Q4|QTD| - -20741.717896;2621011|ACTUAL|2016.Q4|QTD| - -25652.7282;2621011|ACTUAL|2016.DEC|YTD| - -25652.7282;2621011|ACTUAL|2012.JUN|YTD| - 24910.4575;2621012|ACTUAL|2017.DEC| | GQ1: YTD| - -5025.3075;2621012|ACTUAL|2017.Q4|QTD| - -5025.3075;2621012|ACTUAL|2016.Q4|QTD| - -743.44;2621012|ACTUAL|2016.DEC|YTD| - -743.44;2621012|ACTUAL|2012.JUN|YTD| - -19549.9159;262|ACTUAL|2017.DEC|YTD| - 698119.9588451;262|ACTUAL|2017.Q4|QTD| - 698119.9588451;262|ACTUAL|2016.Q4|QTD| - 655807.3333;262|ACTUAL|2016.DEC|YTD| - 655807.3333;262|ACTUAL|2012.JUN|YTD| - 796765.8986;2631010|ACTUAL|2017.DEC|YTD| - 21227.41302;2631010|ACTUAL|2017.Q4|QTD| - 21227.41302;2631010|ACTUAL|2016.Q4|QTD| - 23354.036;2631010|A | GR1: CTUAL|2016.DEC|YTD| - 23354.036;2631010|ACTUAL|2012.JUN|YTD| - 19398.7596;2631012|ACTUAL|2017.DEC|YTD| - 4367.3428;2631012|ACTUAL|2017.Q4|QTD| - 4367.3428;2631012|ACTUAL|2016.Q4|QTD| - 3048.0422;2631012|ACTUAL|2016.DEC|YTD| - 3048.0422;2631012|ACTUAL|2012.JUN|YTD| - 8779.9816;2631014|ACTUAL|2016.Q4|QTD| - 13;2631014|ACTUAL|2016.DEC|YTD| - 13;2631014|ACTUAL|2012.JUN|YTD| - 66.9006;2631018|ACTUAL|2017.DEC|YTD| - 1660.2127;2631018|ACTUAL|2017.Q4|QTD| - 1660.2127;2631018|ACTUAL|2016.Q4|QTD| - 1568.6584;2631018| | GS1: ACTUAL|2016.DEC|YTD| - 1568.6584;2631018|ACTUAL|2012.JUN|YTD| - 386.5368;2631020|ACTUAL|2012.JUN|YTD| - 7.4334;2631028|ACTUAL|2017.DEC|YTD| - 34425.8049;2631028|ACTUAL|2017.Q4|QTD| - 34425.8049;2631028|ACTUAL|2016.Q4|QTD| - 34450.1215;2631028|ACTUAL|2016.DEC|YTD| - 34450.1215;2631028|ACTUAL|2012.JUN|YTD| - 35438.5259;2631030|ACTUAL|2017.DEC|YTD| - 886;2631030|ACTUAL|2017.Q4|QTD| - 886;2631030|ACTUAL|2016.Q4|QTD| - 896;2631030|ACTUAL|2016.DEC|YTD| - 896;2631030|ACTUAL|2012.JUN|YTD| - 184;263|ACTUAL|2017.DEC| | GT1: YTD| - 62566.77342;263|ACTUAL|2017.Q4|QTD| - 62566.77342;263|ACTUAL|2016.Q4|QTD| - 63329.8581;263|ACTUAL|2016.DEC|YTD| - 63329.8581;263|ACTUAL|2012.JUN|YTD| - 64262.1379;264|ACTUAL|2017.DEC|YTD| - 61654.8553319;264|ACTUAL|2017.Q4|QTD| - 61654.8553319;264|ACTUAL|2016.Q4|QTD| - 49152.8827;264|ACTUAL|2016.DEC|YTD| - 49152.8827;264|ACTUAL|2012.JUN|YTD| - 76034.50652;265|ACTUAL|2017.DEC|YTD| - 431.8042;265|ACTUAL|2017.Q4|QTD| - 431.8042;265|ACTUAL|2016.Q4|QTD| - 431.1952;265|ACTUAL|2016.DEC|YTD| - 431.1952;265|A | GU1: CTUAL|2012.JUN|YTD| - 4.3058;266|ACTUAL|2017.DEC|YTD| - 136.134;266|ACTUAL|2017.Q4|QTD| - 136.134;266|ACTUAL|2016.Q4|QTD| - 140.094;266|ACTUAL|2016.DEC|YTD| - 140.094;268|ACTUAL|2017.DEC|YTD| - 335.0205;268|ACTUAL|2017.Q4|QTD| - 335.0205;268|ACTUAL|2016.Q4|QTD| - 1439.812;268|ACTUAL|2016.DEC|YTD| - 1439.812;268|ACTUAL|2012.JUN|YTD| - 4848.6602;270|ACTUAL|2017.DEC|YTD| - 1112558.3053051;270|ACTUAL|2017.Q4|QTD| - 1112558.3053051;270|ACTUAL|2016.Q4|QTD| - 982434.9291;270|ACTUAL|2016.DEC|YTD| - 982434.9291;270| | GV1: ACTUAL|2012.JUN|YTD| - 1202917.56272;2821010|ACTUAL|2017.DEC|YTD| - 0;2821010|ACTUAL|2017.Q4|QTD| - 0;2821010|ACTUAL|2016.Q4|QTD| - 0;2821010|ACTUAL|2016.DEC|YTD| - 0;2821010|ACTUAL|2012.JUN|YTD| - 1157266.2813;282|ACTUAL|2017.DEC|YTD| - 0;282|ACTUAL|2017.Q4|QTD| - 0;282|ACTUAL|2016.Q4|QTD| - 0;282|ACTUAL|2016.DEC|YTD| - 0;282|ACTUAL|2012.JUN|YTD| - 1157266.2813;2840101|ACTUAL|2017.DEC|YTD| - 73415.74296;2840101|ACTUAL|2017.Q4|QTD| - 73415.74296;2840101|ACTUAL|2016.Q4|QTD| - 38401.8716;2840101|ACTUAL|2016.D | GW1: EC|YTD| - 38401.8716;2840101|ACTUAL|2012.JUN|YTD| - 147061.3288;2841012|ACTUAL|2017.DEC|YTD| - 884370.8938;2841012|ACTUAL|2017.Q4|QTD| - 884370.8938;2841012|ACTUAL|2016.Q4|QTD| - 924249.6357;2841012|ACTUAL|2016.DEC|YTD| - 924249.6357;2841012|ACTUAL|2012.JUN|YTD| - 39397.3286;284|ACTUAL|2017.DEC|YTD| - 957786.63676;284|ACTUAL|2017.Q4|QTD| - 957786.63676;284|ACTUAL|2016.Q4|QTD| - 962651.5073;284|ACTUAL|2016.DEC|YTD| - 962651.5073;284|ACTUAL|2012.JUN|YTD| - 186458.6574;285|ACTUAL|2017.DEC|YTD| - 957786.63676;2 | GX1: 85|ACTUAL|2017.Q4|QTD| - 957786.63676;285|ACTUAL|2016.Q4|QTD| - 962651.5073;285|ACTUAL|2016.DEC|YTD| - 962651.5073;285|ACTUAL|2012.JUN|YTD| - 1343724.9387;287|ACTUAL|2017.DEC|YTD| - 2070344.9420651;287|ACTUAL|2017.Q4|QTD| - 2070344.9420651;287|ACTUAL|2016.Q4|QTD| - 1945086.4364;287|ACTUAL|2016.DEC|YTD| - 1945086.4364;287|ACTUAL|2012.JUN|YTD| - 2546642.50142;2881020|ACTUAL|2016.Q4|QTD| - 0.0000000000107149844552623;2881020|ACTUAL|2016.DEC|YTD| - 0.0000000000107149844552623;288|ACTUAL|2016.Q4|QTD| - 0.0000000 | GY1: 000107149844552623;288|ACTUAL|2016.DEC|YTD| - 0.0000000000107149844552623;200|ACTUAL|2017.DEC|YTD| - 13721162.9973371;200|ACTUAL|2017.Q4|QTD| - 13721162.9973371;200|ACTUAL|2016.Q4|QTD| - 13542238.069032;200|ACTUAL|2016.DEC|YTD| - 13542238.069032;200|ACTUAL|2012.JUN|YTD| - 14000949.30275;302|ACTUAL|2017.DEC|YTD| - 1544233.3784;302|ACTUAL|2017.Q4|QTD| - 1544233.3784;302|ACTUAL|2016.Q4|QTD| - 1599313.2568;302|ACTUAL|2016.DEC|YTD| - 1599313.2568;302|ACTUAL|2012.JUN|YTD| - 2275003.8777;303|ACTUAL|2017.DEC|YTD| - | GZ1: -1283551.23468;303|ACTUAL|2017.Q4|QTD| - -1283551.23468;303|ACTUAL|2016.Q4|QTD| - -1287617.50153;303|ACTUAL|2016.DEC|YTD| - -1287617.50153;303|ACTUAL|2012.JUN|YTD| - -1351701.00763;304|ACTUAL|2017.DEC|YTD| - -880090.51287;304|ACTUAL|2017.Q4|QTD| - -880090.51287;304|ACTUAL|2016.Q4|QTD| - -880471.32902;304|ACTUAL|2016.DEC|YTD| - -880471.32902;304|ACTUAL|2012.JUN|YTD| - -881307.84457;306|ACTUAL|2017.DEC|YTD| - 0;306|ACTUAL|2017.Q4|QTD| - 0;306|ACTUAL|2016.Q4|QTD| - -721.1368;306|ACTUAL|2016.DEC|YTD| - -721.13 | HA1: 68;306|ACTUAL|2012.JUN|YTD| - -721.2215;312|ACTUAL|2017.DEC|YTD| - 252107;312|ACTUAL|2017.Q4|QTD| - 252107;312|ACTUAL|2016.Q4|QTD| - 260867;312|ACTUAL|2016.DEC|YTD| - 260867;312|ACTUAL|2012.JUN|YTD| - 286412.985;314|ACTUAL|2017.DEC|YTD| - -2004344.9935;314|ACTUAL|2017.Q4|QTD| - -2004344.9935;314|ACTUAL|2016.Q4|QTD| - -1468511.836;314|ACTUAL|2016.DEC|YTD| - -1468511.836;314|ACTUAL|2012.JUN|YTD| - -883583.2038;3161010|ACTUAL|2017.DEC|YTD| - 7873142.8240408;3161010|ACTUAL|2017.Q4|QTD| - 7873142.8240408;3161010 | HB1: |ACTUAL|2016.Q4|QTD| - 5438545.9998668;3161010|ACTUAL|2016.DEC|YTD| - 5438545.9998668;3161010|ACTUAL|2012.JUN|YTD| - 1471092.85286;3161011|ACTUAL|2017.DEC|YTD| - 2912805.06247;3161011|ACTUAL|2017.Q4|QTD| - 2912805.06247;3161011|ACTUAL|2016.Q4|QTD| - 2925714.47467;3161011|ACTUAL|2016.DEC|YTD| - 2925714.47467;3161011|ACTUAL|2012.JUN|YTD| - 2927173.57467;3161012|ACTUAL|2017.DEC|YTD| - 555346.263799;3161012|ACTUAL|2017.Q4|QTD| - 555346.263799;3161012|ACTUAL|2016.Q4|QTD| - 520281.488044;3161012|ACTUAL|2016.DEC|Y | HC1: TD| - 520281.488044;3161012|ACTUAL|2012.JUN|YTD| - 433011.9521;3161013|ACTUAL|2017.DEC|YTD| - -205613.2482;3161013|ACTUAL|2017.Q4|QTD| - -205613.2482;3161013|ACTUAL|2016.Q4|QTD| - -205323.2592;3161013|ACTUAL|2016.DEC|YTD| - -205323.2592;3161014|ACTUAL|2017.DEC|YTD| - -457768.5838;3161014|ACTUAL|2017.Q4|QTD| - -457768.5838;3161014|ACTUAL|2016.Q4|QTD| - 205188.5054;3161014|ACTUAL|2016.DEC|YTD| - 205188.5054;3161014|ACTUAL|2012.JUN|YTD| - -1967.7396;3161016|ACTUAL|2017.DEC|YTD| - 673186.8671;3161016|ACTUAL|201 | HD1: 7.Q4|QTD| - 673186.8671;3161016|ACTUAL|2016.Q4|QTD| - 662897.9671;3161016|ACTUAL|2016.DEC|YTD| - 662897.9671;316|ACTUAL|2017.DEC|YTD| - 11351099.1854098;316|ACTUAL|2017.Q4|QTD| - 11351099.1854098;316|ACTUAL|2016.Q4|QTD| - 9547305.1758808;316|ACTUAL|2016.DEC|YTD| - 9547305.1758808;316|ACTUAL|2012.JUN|YTD| - 4829310.64003;317|ACTUAL|2017.DEC|YTD| - 399389.9763;317|ACTUAL|2017.Q4|QTD| - 399389.9763;317|ACTUAL|2016.Q4|QTD| - 398839.9128;317|ACTUAL|2016.DEC|YTD| - 398839.9128;317|ACTUAL|2012.JUN|YTD| - 242830.47 | HE1: 3;318|ACTUAL|2017.DEC|YTD| - 9378842.7990598;318|ACTUAL|2017.Q4|QTD| - 9378842.7990598;318|ACTUAL|2016.Q4|QTD| - 8169003.5421308;318|ACTUAL|2016.DEC|YTD| - 8169003.5421308;318|ACTUAL|2012.JUN|YTD| - 4516244.69823;320|ACTUAL|2017.DEC|YTD| - 9378842.7990598;320|ACTUAL|2017.Q4|QTD| - 9378842.7990598;320|ACTUAL|2016.Q4|QTD| - 8169003.5421308;320|ACTUAL|2016.DEC|YTD| - 8169003.5421308;320|ACTUAL|2012.JUN|YTD| - 4516244.69823;321|ACTUAL|2017.DEC|YTD| - 179266.0063;321|ACTUAL|2017.Q4|QTD| - 179266.0063;321|ACTUAL| | HF1: 2016.Q4|QTD| - 168739.0874;321|ACTUAL|2016.DEC|YTD| - 168739.0874;321|ACTUAL|2012.JUN|YTD| - 154969.4662;322|ACTUAL|2017.DEC|YTD| - 6648.2957;322|ACTUAL|2017.Q4|QTD| - 6648.2957;322|ACTUAL|2016.Q4|QTD| - 6906.5576;322|ACTUAL|2016.DEC|YTD| - 6906.5576;322|ACTUAL|2012.JUN|YTD| - 5715.5456;323|ACTUAL|2017.DEC|YTD| - 13467.843508;323|ACTUAL|2017.Q4|QTD| - 13467.843508;323|ACTUAL|2016.Q4|QTD| - 13126.411748;323|ACTUAL|2016.DEC|YTD| - 13126.411748;323|ACTUAL|2012.JUN|YTD| - 5148;3241100|ACTUAL|2017.DEC|YTD| - 188 | HG1: 20.7072;3241100|ACTUAL|2017.Q4|QTD| - 18820.7072;3241100|ACTUAL|2016.Q4|QTD| - 14281.4824;3241100|ACTUAL|2016.DEC|YTD| - 14281.4824;3241100|ACTUAL|2012.JUN|YTD| - 27025.8472;324|ACTUAL|2017.DEC|YTD| - 34271.7072;324|ACTUAL|2017.Q4|QTD| - 34271.7072;324|ACTUAL|2016.Q4|QTD| - 44331.4824;324|ACTUAL|2016.DEC|YTD| - 44331.4824;324|ACTUAL|2012.JUN|YTD| - 27025.8472;3251012|ACTUAL|2017.DEC|YTD| - 591772.7663;3251012|ACTUAL|2017.Q4|QTD| - 591772.7663;3251012|ACTUAL|2012.JUN|YTD| - 208961.7208;325|ACTUAL|2017.DEC|YT | HH1: D| - 591772.7663;325|ACTUAL|2017.Q4|QTD| - 591772.7663;325|ACTUAL|2012.JUN|YTD| - 208961.7208;330|ACTUAL|2017.DEC|YTD| - 0;330|ACTUAL|2017.Q4|QTD| - 0;330|ACTUAL|2016.Q4|QTD| - 0;330|ACTUAL|2016.DEC|YTD| - 0;330|ACTUAL|2012.JUN|YTD| - 429169.1325;350|ACTUAL|2017.DEC|YTD| - 825426.619008;350|ACTUAL|2017.Q4|QTD| - 825426.619008;350|ACTUAL|2016.Q4|QTD| - 233103.539148;350|ACTUAL|2016.DEC|YTD| - 233103.539148;350|ACTUAL|2012.JUN|YTD| - 830989.7123;3521012|ACTUAL|2017.DEC|YTD| - 56849.2564;3521012|ACTUAL|2017.Q4 | HI1: |QTD| - 56849.2564;3521012|ACTUAL|2012.JUN|YTD| - 42510.4106;352|ACTUAL|2017.DEC|YTD| - 56849.2564;352|ACTUAL|2017.Q4|QTD| - 56849.2564;352|ACTUAL|2012.JUN|YTD| - 42510.4106;353|ACTUAL|2017.DEC|YTD| - 25737.0193;353|ACTUAL|2017.Q4|QTD| - 25737.0193;353|ACTUAL|2012.JUN|YTD| - 609.5388;3541008|ACTUAL|2017.DEC|YTD| - 732163.9224211;3541008|ACTUAL|2017.Q4|QTD| - 732163.9224211;3541008|ACTUAL|2016.Q4|QTD| - 664591.554274;3541008|ACTUAL|2016.DEC|YTD| - 664591.554274;3541008|ACTUAL|2012.JUN|YTD| - 218791.49118;354 | HJ1: 1010|ACTUAL|2017.DEC|YTD| - 119299.6384;3541010|ACTUAL|2017.Q4|QTD| - 119299.6384;3541010|ACTUAL|2016.Q4|QTD| - 94722.4216;3541010|ACTUAL|2016.DEC|YTD| - 94722.4216;3541010|ACTUAL|2012.JUN|YTD| - 121058.5014;3541012|ACTUAL|2017.DEC|YTD| - 203334.690269;3541012|ACTUAL|2017.Q4|QTD| - 203334.690269;3541012|ACTUAL|2016.Q4|QTD| - 198152.626232;3541012|ACTUAL|2016.DEC|YTD| - 198152.626232;3541012|ACTUAL|2012.JUN|YTD| - 128895.0938;3541014|ACTUAL|2017.DEC|YTD| - 33473.6616;3541014|ACTUAL|2017.Q4|QTD| - 33473.6616; | HK1: 3541014|ACTUAL|2016.Q4|QTD| - 31011.8883;3541014|ACTUAL|2016.DEC|YTD| - 31011.8883;3541014|ACTUAL|2012.JUN|YTD| - 96480.968;3541016|ACTUAL|2017.DEC|YTD| - 6621.0963;3541016|ACTUAL|2017.Q4|QTD| - 6621.0963;3541016|ACTUAL|2016.Q4|QTD| - 6605.2063;3541016|ACTUAL|2016.DEC|YTD| - 6605.2063;3541016|ACTUAL|2012.JUN|YTD| - 7515.7154;3541018|ACTUAL|2017.DEC|YTD| - 9212.2913;3541018|ACTUAL|2017.Q4|QTD| - 9212.2913;3541018|ACTUAL|2016.Q4|QTD| - 38240.410344;3541018|ACTUAL|2016.DEC|YTD| - 38240.410344;3541018|ACTUAL|20 | HL1: 12.JUN|YTD| - 1394.4578;3541020|ACTUAL|2017.DEC|YTD| - 495.0808;3541020|ACTUAL|2017.Q4|QTD| - 495.0808;3541020|ACTUAL|2016.Q4|QTD| - 173.664;3541020|ACTUAL|2016.DEC|YTD| - 173.664;3541020|ACTUAL|2012.JUN|YTD| - 1948.3332;3541022|ACTUAL|2017.DEC|YTD| - 5096.065;3541022|ACTUAL|2017.Q4|QTD| - 5096.065;3541022|ACTUAL|2016.Q4|QTD| - 10695.2482;3541022|ACTUAL|2016.DEC|YTD| - 10695.2482;3541022|ACTUAL|2012.JUN|YTD| - 13274.0392;3541024|ACTUAL|2017.DEC|YTD| - 2474.1126;3541024|ACTUAL|2017.Q4|QTD| - 2474.1126;354102 | HM1: 4|ACTUAL|2016.Q4|QTD| - 4207.3544;3541024|ACTUAL|2016.DEC|YTD| - 4207.3544;3541024|ACTUAL|2012.JUN|YTD| - 3765.4232;3541026|ACTUAL|2017.DEC|YTD| - 16.7824;3541026|ACTUAL|2017.Q4|QTD| - 16.7824;3541026|ACTUAL|2016.Q4|QTD| - 590.4576;3541026|ACTUAL|2016.DEC|YTD| - 590.4576;3541026|ACTUAL|2012.JUN|YTD| - 9141.3252;3541028|ACTUAL|2017.DEC|YTD| - 1228.6424;3541028|ACTUAL|2017.Q4|QTD| - 1228.6424;3541028|ACTUAL|2016.Q4|QTD| - 1362.3913;3541028|ACTUAL|2016.DEC|YTD| - 1362.3913;3541028|ACTUAL|2012.JUN|YTD| - 1343.6 | HN1: 299;3541030|ACTUAL|2017.DEC|YTD| - 2290.3735;3541030|ACTUAL|2017.Q4|QTD| - 2290.3735;3541030|ACTUAL|2016.Q4|QTD| - 900.2739;3541030|ACTUAL|2016.DEC|YTD| - 900.2739;3541030|ACTUAL|2012.JUN|YTD| - 8903.8517;3541032|ACTUAL|2017.DEC|YTD| - 6030.9308;3541032|ACTUAL|2017.Q4|QTD| - 6030.9308;3541032|ACTUAL|2016.Q4|QTD| - 8638;3541032|ACTUAL|2016.DEC|YTD| - 8638;3541032|ACTUAL|2012.JUN|YTD| - 36185.7912;3541038|ACTUAL|2017.DEC|YTD| - 10554.2911;3541038|ACTUAL|2017.Q4|QTD| - 10554.2911;3541038|ACTUAL|2016.Q4|QTD| - | HO1: 16240.756;3541038|ACTUAL|2016.DEC|YTD| - 16240.756;3541038|ACTUAL|2012.JUN|YTD| - 40370.418;354|ACTUAL|2017.DEC|YTD| - 1132291.5788901;354|ACTUAL|2017.Q4|QTD| - 1132291.5788901;354|ACTUAL|2016.Q4|QTD| - 1076132.25245;354|ACTUAL|2016.DEC|YTD| - 1076132.25245;354|ACTUAL|2012.JUN|YTD| - 689069.03918;355|ACTUAL|2017.DEC|YTD| - 6908.9753;355|ACTUAL|2017.Q4|QTD| - 6908.9753;355|ACTUAL|2016.Q4|QTD| - 3750.7872;355|ACTUAL|2016.DEC|YTD| - 3750.7872;355|ACTUAL|2012.JUN|YTD| - 16617.0282;3561010|ACTUAL|2012.JUN|YTD| - | HP1: 6563.6922;3561100|ACTUAL|2017.DEC|YTD| - 997.6166;3561100|ACTUAL|2017.Q4|QTD| - 997.6166;3561100|ACTUAL|2016.Q4|QTD| - 4512.6808;3561100|ACTUAL|2016.DEC|YTD| - 4512.6808;3561100|ACTUAL|2012.JUN|YTD| - 4861.2858;356|ACTUAL|2017.DEC|YTD| - 11120.6166;356|ACTUAL|2017.Q4|QTD| - 11120.6166;356|ACTUAL|2016.Q4|QTD| - 43272.6808;356|ACTUAL|2016.DEC|YTD| - 43272.6808;356|ACTUAL|2012.JUN|YTD| - 11424.978;3571010|ACTUAL|2017.DEC|YTD| - 37.2245;3571010|ACTUAL|2017.Q4|QTD| - 37.2245;3571010|ACTUAL|2016.Q4|QTD| - 37.172 | HQ1: ;3571010|ACTUAL|2016.DEC|YTD| - 37.172;3571010|ACTUAL|2012.JUN|YTD| - 1539017.1226;3571014|ACTUAL|2017.DEC|YTD| - 39163.8922318;3571014|ACTUAL|2017.Q4|QTD| - 39163.8922318;3571014|ACTUAL|2016.Q4|QTD| - 52649.6785;3571014|ACTUAL|2016.DEC|YTD| - 52649.6785;3571014|ACTUAL|2012.JUN|YTD| - 80805.7127;3571016|ACTUAL|2017.DEC|YTD| - 0;3571016|ACTUAL|2017.Q4|QTD| - 0;3571016|ACTUAL|2016.Q4|QTD| - 0;3571016|ACTUAL|2016.DEC|YTD| - 0;3571016|ACTUAL|2012.JUN|YTD| - 150805.323;357|ACTUAL|2017.DEC|YTD| - 39201.1167318;35 | HR1: 7|ACTUAL|2017.Q4|QTD| - 39201.1167318;357|ACTUAL|2016.Q4|QTD| - 52686.8505;357|ACTUAL|2016.DEC|YTD| - 52686.8505;357|ACTUAL|2012.JUN|YTD| - 1770628.1583;358|ACTUAL|2017.DEC|YTD| - 29605.2979;358|ACTUAL|2017.Q4|QTD| - 29605.2979;358|ACTUAL|2016.Q4|QTD| - 19180.7728;358|ACTUAL|2016.DEC|YTD| - 19180.7728;3601014|ACTUAL|2017.DEC|YTD| - 41030.0705881;3601014|ACTUAL|2017.Q4|QTD| - 41030.0705881;3601014|ACTUAL|2016.Q4|QTD| - 33659.9338;3601014|ACTUAL|2016.DEC|YTD| - 33659.9338;3601014|ACTUAL|2012.JUN|YTD| - 61269. | HS1: 2934;3601016|ACTUAL|2017.DEC|YTD| - 247943.4161215;3601016|ACTUAL|2017.Q4|QTD| - 247943.4161215;3601016|ACTUAL|2016.Q4|QTD| - 229460.46794;3601016|ACTUAL|2016.DEC|YTD| - 229460.46794;3601016|ACTUAL|2012.JUN|YTD| - 97024.5215;3601017|ACTUAL|2017.DEC|YTD| - -5997.3219;3601017|ACTUAL|2017.Q4|QTD| - -5997.3219;3601017|ACTUAL|2012.JUN|YTD| - 1542.8572;3601031|ACTUAL|2017.DEC|YTD| - 156.3429;3601031|ACTUAL|2017.Q4|QTD| - 156.3429;3601031|ACTUAL|2012.JUN|YTD| - 1931.1513;3601032|ACTUAL|2017.DEC|YTD| - 23663.165083 | HT1: ;3601032|ACTUAL|2017.Q4|QTD| - 23663.165083;3601032|ACTUAL|2016.Q4|QTD| - 28452.0217;3601032|ACTUAL|2016.DEC|YTD| - 28452.0217;3601032|ACTUAL|2012.JUN|YTD| - -23113.501;360|ACTUAL|2017.DEC|YTD| - 306795.6727926;360|ACTUAL|2017.Q4|QTD| - 306795.6727926;360|ACTUAL|2016.Q4|QTD| - 291572.42344;360|ACTUAL|2016.DEC|YTD| - 291572.42344;360|ACTUAL|2012.JUN|YTD| - 138654.3224;361|ACTUAL|2017.DEC|YTD| - 727727.55986;361|ACTUAL|2017.Q4|QTD| - 727727.55986;361|ACTUAL|2016.Q4|QTD| - 1006647.1576;361|ACTUAL|2016.DEC|YTD| | HU1: - 1006647.1576;362|ACTUAL|2017.DEC|YTD| - 151822.7505;362|ACTUAL|2017.Q4|QTD| - 151822.7505;362|ACTUAL|2016.Q4|QTD| - 127885.69168;362|ACTUAL|2016.DEC|YTD| - 127885.69168;362|ACTUAL|2012.JUN|YTD| - 241176.2794;365|ACTUAL|2012.JUN|YTD| - 7324.653;380|ACTUAL|2017.DEC|YTD| - 2488059.8442745;380|ACTUAL|2017.Q4|QTD| - 2488059.8442745;380|ACTUAL|2016.Q4|QTD| - 2621128.61647;380|ACTUAL|2016.DEC|YTD| - 2621128.61647;380|ACTUAL|2012.JUN|YTD| - 2918014.40788;385|ACTUAL|2017.DEC|YTD| - 3313486.4632825;385|ACTUAL|2017 | HV1: .Q4|QTD| - 3313486.4632825;385|ACTUAL|2016.Q4|QTD| - 2854232.155618;385|ACTUAL|2016.DEC|YTD| - 2854232.155618;385|ACTUAL|2012.JUN|YTD| - 3749004.12018;300|ACTUAL|2017.DEC|YTD| - 12692329.2623423;300|ACTUAL|2017.Q4|QTD| - 12692329.2623423;300|ACTUAL|2016.Q4|QTD| - 11023235.6977488;300|ACTUAL|2016.DEC|YTD| - 11023235.6977488;300|ACTUAL|2012.JUN|YTD| - 8265248.81841;</CELLS></EVDRE><EVDRE ID="BPC Log|001-00001" DIMENSION="AccountGrp|BU|Category|ConsoScope|Currency|Datasrc|Entity|Flow|iBU|IntCo|Time|MEASURES|" | HW1: AXIS="AccountGrp|Category|Time|MEASURES|"><CELLS>P110|ACTUAL|2017.DEC|YTD| - 3140.49266999992;P110|ACTUAL|2017.Q4|QTD| - 1528.805169999771;P110|ACTUAL|2016.Q4|QTD| - -152.8944199999628;P110|ACTUAL|2016.DEC|YTD| - 1342.04248;P110|ACTUAL|2012.JUN|YTD| - 2976.329100000009;P1300151|ACTUAL|2012.JUN|YTD| - -3424.1437;P1300152|ACTUAL|2017.DEC|YTD| - -3108.2044;P1300152|ACTUAL|2017.Q4|QTD| - -1522.744200000004;P1300152|ACTUAL|2016.Q4|QTD| - 159.4355000000034;P1300152|ACTUAL|2016.DEC|YTD| - -1367.4479;P1300152|ACTUA | HX1: L|2012.JUN|YTD| - 431.1883;160|ACTUAL|2017.DEC|YTD| - 32.2882699999195;160|ACTUAL|2017.Q4|QTD| - 6.06096999976807;160|ACTUAL|2016.Q4|QTD| - 6.5410800000407;160|ACTUAL|2016.DEC|YTD| - -25.40542000000191;160|ACTUAL|2012.JUN|YTD| - -16.626299999989912;105005|ACTUAL|2017.DEC|YTD| - 93668.484;105005|ACTUAL|2017.Q4|QTD| - 22962.4092;105005|ACTUAL|2016.Q4|QTD| - 32925.7050;105005|ACTUAL|2016.DEC|YTD| - 119092.9576;105005|ACTUAL|2012.JUN|YTD| - 119837.1172;1050101|ACTUAL|2017.DEC|YTD| - -8791.566;1050101|ACTUAL|201 | HY1: 7.Q4|QTD| - -2220.267;1050101|ACTUAL|2016.Q4|QTD| - -4552.5541;1050101|ACTUAL|2016.DEC|YTD| - -16518.6836;1050101|ACTUAL|2012.JUN|YTD| - 24701.1062;105010|ACTUAL|2017.DEC|YTD| - -8791.566;105010|ACTUAL|2017.Q4|QTD| - -2220.267;105010|ACTUAL|2016.Q4|QTD| - -4552.5541;105010|ACTUAL|2016.DEC|YTD| - -16518.6836;105010|ACTUAL|2012.JUN|YTD| - 24701.1062;1050203|ACTUAL|2017.DEC|YTD| - -140.8739;1050203|ACTUAL|2017.Q4|QTD| - -48.9654;1050203|ACTUAL|2016.Q4|QTD| - -29.6805;1050203|ACTUAL|2016.DEC|YTD| - -115.2713;10 | HZ1: 50203|ACTUAL|2012.JUN|YTD| - -48;105020|ACTUAL|2017.DEC|YTD| - -140.8739;105020|ACTUAL|2017.Q4|QTD| - -48.9654;105020|ACTUAL|2016.Q4|QTD| - -29.6805;105020|ACTUAL|2016.DEC|YTD| - -115.2713;105020|ACTUAL|2012.JUN|YTD| - -48;105025|ACTUAL|2017.DEC|YTD| - 2257.542;105025|ACTUAL|2017.Q4|QTD| - 460.60799999999999992;105025|ACTUAL|2016.Q4|QTD| - 968.4011;105025|ACTUAL|2016.DEC|YTD| - 3582.4424;105025|ACTUAL|2012.JUN|YTD| - 6339.4826;105030|ACTUAL|2017.DEC|YTD| - 0;105030|ACTUAL|2017.Q4|QTD| - 0;105030|ACTUAL|2016 | IA1: .Q4|QTD| - 0;105030|ACTUAL|2016.DEC|YTD| - 0;105030|ACTUAL|2012.JUN|YTD| - 0;105035|ACTUAL|2017.DEC|YTD| - 24178.1264;105035|ACTUAL|2017.Q4|QTD| - 5903.3009;105035|ACTUAL|2016.Q4|QTD| - 5209.2455;105035|ACTUAL|2016.DEC|YTD| - 22623.6530;105035|ACTUAL|2012.JUN|YTD| - 24895.5026;105036|ACTUAL|2017.DEC|YTD| - 16805.082;105036|ACTUAL|2017.Q4|QTD| - 4090.3638;105036|ACTUAL|2016.Q4|QTD| - 4212.8491;105036|ACTUAL|2016.DEC|YTD| - 18414.1388;105040|ACTUAL|2017.DEC|YTD| - 0;105040|ACTUAL|2017.Q4|QTD| - 0;105040|ACTUA | IB1: L|2016.Q4|QTD| - -5.0000;105040|ACTUAL|2016.DEC|YTD| - -5.0000;105040|ACTUAL|2012.JUN|YTD| - 17432.5904;105045|ACTUAL|2017.DEC|YTD| - 13954.1772;105045|ACTUAL|2017.Q4|QTD| - 3862.8868;105045|ACTUAL|2016.Q4|QTD| - 4602.9182;105045|ACTUAL|2016.DEC|YTD| - 18795.3948;105045|ACTUAL|2012.JUN|YTD| - 40941.3627;105050|ACTUAL|2017.DEC|YTD| - 18004.57418;105050|ACTUAL|2017.Q4|QTD| - 7778.90888;105050|ACTUAL|2016.Q4|QTD| - 4036.8388;105050|ACTUAL|2016.DEC|YTD| - 17964.5941;105050|ACTUAL|2012.JUN|YTD| - 5101.8413;10505 | IC1: 5|ACTUAL|2017.DEC|YTD| - 4977463.17616;105055|ACTUAL|2017.Q4|QTD| - 1267904.34894;105055|ACTUAL|2016.Q4|QTD| - 1182517.67639999998;105055|ACTUAL|2016.DEC|YTD| - 4722940.5965;105055|ACTUAL|2012.JUN|YTD| - 1743549.1903;1050602|ACTUAL|2017.DEC|YTD| - 8314.6506;1050602|ACTUAL|2017.Q4|QTD| - -316.99217;1050602|ACTUAL|2016.Q4|QTD| - 2386.19595;1050602|ACTUAL|2016.DEC|YTD| - 14773.3541;1050602|ACTUAL|2012.JUN|YTD| - 162289.5662;1050603|ACTUAL|2017.DEC|YTD| - 13949.91650;1050603|ACTUAL|2017.Q4|QTD| - 7868.22410;105 | ID1: 0603|ACTUAL|2016.Q4|QTD| - 2606.3623;1050603|ACTUAL|2016.DEC|YTD| - 8507.4871;1050603|ACTUAL|2012.JUN|YTD| - 4374.7935;1050604|ACTUAL|2012.JUN|YTD| - 0;105060|ACTUAL|2017.DEC|YTD| - 22264.56710;105060|ACTUAL|2017.Q4|QTD| - 7551.23193;105060|ACTUAL|2016.Q4|QTD| - 4992.55825;105060|ACTUAL|2016.DEC|YTD| - 23280.8412;105060|ACTUAL|2012.JUN|YTD| - 166664.3597;105|ACTUAL|2017.DEC|YTD| - 5159663.28914;105|ACTUAL|2017.Q4|QTD| - 1318244.82605;105|ACTUAL|2016.Q4|QTD| - 1234878.95775;105|ACTUAL|2016.DEC|YTD| - 4930055 | IE1: .6635;105|ACTUAL|2012.JUN|YTD| - 2149414.5530;1100051|ACTUAL|2012.JUN|YTD| - -47684.0624;1100053|ACTUAL|2017.DEC|YTD| - -38379.8312;1100053|ACTUAL|2017.Q4|QTD| - -10894.8983;1100053|ACTUAL|2016.Q4|QTD| - -8465.603;1100053|ACTUAL|2016.DEC|YTD| - -28857.798;1100053|ACTUAL|2012.JUN|YTD| - -17851.6751;110005|ACTUAL|2017.DEC|YTD| - -38379.8312;110005|ACTUAL|2017.Q4|QTD| - -10894.8983;110005|ACTUAL|2016.Q4|QTD| - -8465.603;110005|ACTUAL|2016.DEC|YTD| - -28857.798;110005|ACTUAL|2012.JUN|YTD| - -65535.7375;1100101| | IF1: ACTUAL|2017.DEC|YTD| - -1634.304;1100101|ACTUAL|2017.Q4|QTD| - -420.76919999999999992;1100101|ACTUAL|2016.Q4|QTD| - -336.8919;1100101|ACTUAL|2016.DEC|YTD| - -1370.2762;1100101|ACTUAL|2012.JUN|YTD| - -1241.977;1100104|ACTUAL|2017.DEC|YTD| - -213.864;1100104|ACTUAL|2017.Q4|QTD| - -53.5097999999999993;1100104|ACTUAL|2016.Q4|QTD| - -78.2996;1100104|ACTUAL|2016.DEC|YTD| - -133.9006;1100104|ACTUAL|2012.JUN|YTD| - -4712.6400;110010|ACTUAL|2017.DEC|YTD| - -1848.168;110010|ACTUAL|2017.Q4|QTD| - -474.2789999999999989 | IG1: ;110010|ACTUAL|2016.Q4|QTD| - -415.1915;110010|ACTUAL|2016.DEC|YTD| - -1504.1768;110010|ACTUAL|2012.JUN|YTD| - -5954.6170;1100151|ACTUAL|2017.DEC|YTD| - -9586.374;1100151|ACTUAL|2017.Q4|QTD| - -3269.707799999999994;1100151|ACTUAL|2016.Q4|QTD| - -2237.4969;1100151|ACTUAL|2016.DEC|YTD| - -7128.002;1100151|ACTUAL|2012.JUN|YTD| - -6797.207;1100152|ACTUAL|2017.DEC|YTD| - -2470.4748;1100152|ACTUAL|2017.Q4|QTD| - -650.6376;1100152|ACTUAL|2016.Q4|QTD| - -261.823;1100152|ACTUAL|2016.DEC|YTD| - -2392.1022;1100152|ACT | IH1: UAL|2012.JUN|YTD| - -1398.0832;110015|ACTUAL|2017.DEC|YTD| - -12056.8488;110015|ACTUAL|2017.Q4|QTD| - -3920.345399999999994;110015|ACTUAL|2016.Q4|QTD| - -2499.3199;110015|ACTUAL|2016.DEC|YTD| - -9520.1042;110015|ACTUAL|2012.JUN|YTD| - -8195.2902;1100201|ACTUAL|2017.DEC|YTD| - -64846.3254;1100201|ACTUAL|2017.Q4|QTD| - -16066.5828;1100201|ACTUAL|2016.Q4|QTD| - -16049.9017;1100201|ACTUAL|2016.DEC|YTD| - -61015.4150;1100201|ACTUAL|2012.JUN|YTD| - -47205.8461;110020|ACTUAL|2017.DEC|YTD| - -64846.3254;110020|ACTU | II1: AL|2017.Q4|QTD| - -16066.5828;110020|ACTUAL|2016.Q4|QTD| - -16049.9017;110020|ACTUAL|2016.DEC|YTD| - -61015.4150;110020|ACTUAL|2012.JUN|YTD| - -47205.8461;110025|ACTUAL|2017.DEC|YTD| - -101411.5462;110025|ACTUAL|2017.Q4|QTD| - -24945.8166;110025|ACTUAL|2016.Q4|QTD| - -22975.832200000001;110025|ACTUAL|2016.DEC|YTD| - -90857.0255;110025|ACTUAL|2012.JUN|YTD| - -53134.1933;110030|ACTUAL|2017.DEC|YTD| - -17826.0694;110030|ACTUAL|2017.Q4|QTD| - -4496.129499999999999;110030|ACTUAL|2016.Q4|QTD| - -3696.0034;110030| | IJ1: ACTUAL|2016.DEC|YTD| - -17541.1024;110030|ACTUAL|2012.JUN|YTD| - -24536.4567;110035|ACTUAL|2017.DEC|YTD| - -16630.9841;110035|ACTUAL|2017.Q4|QTD| - -4312.74759999999996;110035|ACTUAL|2016.Q4|QTD| - -4283.5164;110035|ACTUAL|2016.DEC|YTD| - -17393.4707;110035|ACTUAL|2012.JUN|YTD| - -32999.6602;110040|ACTUAL|2012.JUN|YTD| - 0;110045|ACTUAL|2017.DEC|YTD| - -264809.07782;110045|ACTUAL|2017.Q4|QTD| - -75793.23906;110045|ACTUAL|2016.Q4|QTD| - -57861.70595;110045|ACTUAL|2016.DEC|YTD| - -256841.5531;110045|ACTUAL|20 | IK1: 12.JUN|YTD| - -88029.7197;110050|ACTUAL|2017.DEC|YTD| - -2594398.0862;110050|ACTUAL|2017.Q4|QTD| - -623817.399989998;110050|ACTUAL|2016.Q4|QTD| - -649460.371899997;110050|ACTUAL|2016.DEC|YTD| - -2614746.13610;110050|ACTUAL|2012.JUN|YTD| - -1135326.5491;110055|ACTUAL|2017.DEC|YTD| - -887384.82884000001;110055|ACTUAL|2017.Q4|QTD| - -256011.18489000001;110055|ACTUAL|2016.Q4|QTD| - -188044.5945;110055|ACTUAL|2016.DEC|YTD| - -739875.1046;110055|ACTUAL|2012.JUN|YTD| - -333735.6793;110056|ACTUAL|2017.DEC|YTD| - -7 | IL1: 668.78;110056|ACTUAL|2017.Q4|QTD| - -1866.6186;110056|ACTUAL|2016.Q4|QTD| - -1938.4461;110056|ACTUAL|2016.DEC|YTD| - -7510.4606;110060|ACTUAL|2017.DEC|YTD| - -653.9124;110060|ACTUAL|2017.Q4|QTD| - -95.1695999999999;110060|ACTUAL|2016.Q4|QTD| - -121.9484;110060|ACTUAL|2016.DEC|YTD| - -642.9584;110060|ACTUAL|2012.JUN|YTD| - -1038.7426;110065|ACTUAL|2012.JUN|YTD| - 52.0457;110070|ACTUAL|2017.DEC|YTD| - -16.5618;110070|ACTUAL|2017.Q4|QTD| - 103.7371;110070|ACTUAL|2016.Q4|QTD| - -80.1593999999999;110070|ACTUAL|2 | IM1: 016.DEC|YTD| - -950.5605;110070|ACTUAL|2012.JUN|YTD| - -173.3016;110075|ACTUAL|2017.DEC|YTD| - -3983.5378;110075|ACTUAL|2017.Q4|QTD| - -642.000820000001;110075|ACTUAL|2016.Q4|QTD| - -195.62385;110075|ACTUAL|2016.DEC|YTD| - 515.1122;110075|ACTUAL|2012.JUN|YTD| - -724.736;110|ACTUAL|2017.DEC|YTD| - -4012018.65526;110|ACTUAL|2017.Q4|QTD| - -1023032.08666;110|ACTUAL|2016.Q4|QTD| - -956026.97190;110|ACTUAL|2016.DEC|YTD| - -3847066.65040;110|ACTUAL|2012.JUN|YTD| - -1796538.4836;115|ACTUAL|2017.DEC|YTD| - 1147644. | IN1: 63388;115|ACTUAL|2017.Q4|QTD| - 295212.7393900032;115|ACTUAL|2016.Q4|QTD| - 278851.98585000502;115|ACTUAL|2016.DEC|YTD| - 1082989.0131000001;115|ACTUAL|2012.JUN|YTD| - 352876.0694;1200051|ACTUAL|2017.DEC|YTD| - -542053.9932;1200051|ACTUAL|2017.Q4|QTD| - -135727.81921;1200051|ACTUAL|2016.Q4|QTD| - -133366.01897;1200051|ACTUAL|2016.DEC|YTD| - -514882.77022;1200051|ACTUAL|2012.JUN|YTD| - -150679.4062;1200052|ACTUAL|2017.DEC|YTD| - -3771.61358;1200052|ACTUAL|2017.Q4|QTD| - -779.564029999999999;1200052|ACTUAL|20 | IO1: 16.Q4|QTD| - -541.7497;1200052|ACTUAL|2016.DEC|YTD| - -8327.2893;1200052|ACTUAL|2012.JUN|YTD| - 1528.0605;120005|ACTUAL|2017.DEC|YTD| - -545825.60678;120005|ACTUAL|2017.Q4|QTD| - -136507.38324;120005|ACTUAL|2016.Q4|QTD| - -133907.76867;120005|ACTUAL|2016.DEC|YTD| - -523210.05952;120005|ACTUAL|2012.JUN|YTD| - -149151.3457;120015|ACTUAL|2017.DEC|YTD| - -20161.12716;120015|ACTUAL|2017.Q4|QTD| - -5204.47278;120015|ACTUAL|2016.Q4|QTD| - -4517.15546;120015|ACTUAL|2016.DEC|YTD| - -17851.14076;120015|ACTUAL|2012.JU | IP1: N|YTD| - -5373.3513;120020|ACTUAL|2017.DEC|YTD| - -525.2898;120020|ACTUAL|2017.Q4|QTD| - -118.1547;120020|ACTUAL|2016.Q4|QTD| - -456.0969;120020|ACTUAL|2016.DEC|YTD| - -1843.7794;120020|ACTUAL|2012.JUN|YTD| - -1159.9679;120030|ACTUAL|2017.DEC|YTD| - -766.1136;120030|ACTUAL|2017.Q4|QTD| - -723.9271;120030|ACTUAL|2016.Q4|QTD| - -320.0743;120030|ACTUAL|2016.DEC|YTD| - -501.8643;120030|ACTUAL|2012.JUN|YTD| - -10;120035|ACTUAL|2017.DEC|YTD| - -95687.9034;120035|ACTUAL|2017.Q4|QTD| - -24632.64782;120035|ACTUAL|20 | IQ1: 16.Q4|QTD| - -22247.14372;120035|ACTUAL|2016.DEC|YTD| - -89677.72062;120035|ACTUAL|2012.JUN|YTD| - -24925.149;120040|ACTUAL|2017.DEC|YTD| - -39353.04854;120040|ACTUAL|2017.Q4|QTD| - -8345.66618;120040|ACTUAL|2016.Q4|QTD| - -11068.1366;120040|ACTUAL|2016.DEC|YTD| - -36531.0710;120040|ACTUAL|2012.JUN|YTD| - -15328.2119;120|ACTUAL|2017.DEC|YTD| - -702319.08928;120|ACTUAL|2017.Q4|QTD| - -175532.25182;120|ACTUAL|2016.Q4|QTD| - -172516.37565;120|ACTUAL|2016.DEC|YTD| - -669615.6356;120|ACTUAL|2012.JUN|YTD| - -1959 | IR1: 48.0258;1300051|ACTUAL|2017.DEC|YTD| - -23709.54066;1300051|ACTUAL|2017.Q4|QTD| - -4151.760249999999;1300051|ACTUAL|2016.Q4|QTD| - 64.41361999999;1300051|ACTUAL|2016.DEC|YTD| - -27384.40928;1300051|ACTUAL|2012.JUN|YTD| - -28779.7331;1300052|ACTUAL|2017.DEC|YTD| - -45107.96642;1300052|ACTUAL|2017.Q4|QTD| - -10795.02401;1300052|ACTUAL|2016.Q4|QTD| - -6707.4771;1300052|ACTUAL|2016.DEC|YTD| - -36253.4518;1300052|ACTUAL|2012.JUN|YTD| - -19260.0527;1300053|ACTUAL|2017.DEC|YTD| - -7962.60072;1300053|ACTUAL|2017.Q4 | IS1: |QTD| - -2198.23388;1300053|ACTUAL|2016.Q4|QTD| - -2262.9186000000000151;1300053|ACTUAL|2016.DEC|YTD| - -7659.6964;1300053|ACTUAL|2012.JUN|YTD| - -3788.359;1300054|ACTUAL|2017.DEC|YTD| - -18639.63724;1300054|ACTUAL|2017.Q4|QTD| - -4577.3880400000004;1300054|ACTUAL|2016.Q4|QTD| - -3177.6551;1300054|ACTUAL|2016.DEC|YTD| - -17599.8808;1300054|ACTUAL|2012.JUN|YTD| - -10393.8439;130005|ACTUAL|2017.DEC|YTD| - -95419.74504;130005|ACTUAL|2017.Q4|QTD| - -21722.40618000001;130005|ACTUAL|2016.Q4|QTD| - -12083.63718;13 | IT1: 0005|ACTUAL|2016.DEC|YTD| - -88897.43828;130005|ACTUAL|2012.JUN|YTD| - -62221.9887;1300102|ACTUAL|2017.DEC|YTD| - -36652.43562;1300102|ACTUAL|2017.Q4|QTD| - -10818.49802;1300102|ACTUAL|2016.Q4|QTD| - -13294.4045;1300102|ACTUAL|2016.DEC|YTD| - -28461.1136;1300102|ACTUAL|2012.JUN|YTD| - -2024.1261;13001031|ACTUAL|2017.DEC|YTD| - -2100.0262;13001031|ACTUAL|2017.Q4|QTD| - -227.65408;13001031|ACTUAL|2016.Q4|QTD| - -695.078200000001;13001031|ACTUAL|2016.DEC|YTD| - -3171.2738;13001031|ACTUAL|2012.JUN|YTD| - -1640. | IU1: 1316;13001032|ACTUAL|2017.DEC|YTD| - -144.4167;13001032|ACTUAL|2017.Q4|QTD| - -33.5254;13001032|ACTUAL|2016.Q4|QTD| - -33.3423;13001032|ACTUAL|2016.DEC|YTD| - -195.7446;13001033|ACTUAL|2017.DEC|YTD| - -62;13001033|ACTUAL|2017.Q4|QTD| - 160.0797;13001033|ACTUAL|2016.Q4|QTD| - -33.7776;13001033|ACTUAL|2016.DEC|YTD| - -266.1998;13001033|ACTUAL|2012.JUN|YTD| - -16.8702;13001034|ACTUAL|2017.DEC|YTD| - 145.07194;13001034|ACTUAL|2017.Q4|QTD| - 316.45454;13001034|ACTUAL|2016.Q4|QTD| - 67.7066;13001034|ACTUAL|2016.D | IV1: EC|YTD| - -113.4478;1300103|ACTUAL|2017.DEC|YTD| - -2161.37096;1300103|ACTUAL|2017.Q4|QTD| - 215.35476;1300103|ACTUAL|2016.Q4|QTD| - -694.491500000001;1300103|ACTUAL|2016.DEC|YTD| - -3746.666;1300103|ACTUAL|2012.JUN|YTD| - -1657.0018;1300104|ACTUAL|2017.DEC|YTD| - -813.9682;1300104|ACTUAL|2017.Q4|QTD| - -172.3831;1300104|ACTUAL|2016.Q4|QTD| - -104.6592;1300104|ACTUAL|2016.DEC|YTD| - -325.2725;1300104|ACTUAL|2012.JUN|YTD| - -368.3383;1300105|ACTUAL|2016.Q4|QTD| - -0.0299999999999998;1300105|ACTUAL|2016.DEC|Y
A2: TD| - -3.2072;1300105|ACTUAL|2012.JUN|YTD| - -75.5986;13001063|ACTUAL|2017.DEC|YTD| - -26453.1516;13001063|ACTUAL|2017.Q4|QTD| - -5534.1516;13001063|ACTUAL|2016.Q4|QTD| - -4672.0000;13001063|ACTUAL|2016.DEC|YTD| - -21034.0000;13001064|ACTUAL|2017.DEC|YTD| - -15493.05225;13001064|ACTUAL|2017.Q4|QTD| - -3913.52895;13001064|ACTUAL|2016.Q4|QTD| - -3391.4646;13001064|ACTUAL|2016.DEC|YTD| - -13529.2208;1300106|ACTUAL|2017.DEC|YTD| - -41946.20385;1300106|ACTUAL|2017.Q4|QTD| - -9447.68055;1300106|ACTUAL|2016.Q4|QTD | B2: | - -8063.4646;1300106|ACTUAL|2016.DEC|YTD| - -34563.2208;130010|ACTUAL|2017.DEC|YTD| - -81573.97863;130010|ACTUAL|2017.Q4|QTD| - -20223.20691;130010|ACTUAL|2016.Q4|QTD| - -22157.0498;130010|ACTUAL|2016.DEC|YTD| - -67099.4801;130010|ACTUAL|2012.JUN|YTD| - -4125.0648;1300151|ACTUAL|2017.DEC|YTD| - -2742.49738;1300151|ACTUAL|2017.Q4|QTD| - -773.723299999999;1300151|ACTUAL|2016.Q4|QTD| - -611.449000000001;1300151|ACTUAL|2016.DEC|YTD| - -1658.7025;1300151|ACTUAL|2012.JUN|YTD| - -980.9468;1300152|ACTUAL|2017.DEC | C2: |YTD| - -2313.0241;1300152|ACTUAL|2017.Q4|QTD| - -160.0477;1300152|ACTUAL|2016.Q4|QTD| - -1851.3843;1300152|ACTUAL|2016.DEC|YTD| - -3347.9626;1300152|ACTUAL|2012.JUN|YTD| - -10509.1031;130020|ACTUAL|2017.DEC|YTD| - -5055.52148;130020|ACTUAL|2017.Q4|QTD| - -933.7710;130020|ACTUAL|2016.Q4|QTD| - -2462.8333;130020|ACTUAL|2016.DEC|YTD| - -5006.6651;130020|ACTUAL|2012.JUN|YTD| - -11490.0499;130|ACTUAL|2017.DEC|YTD| - -182049.24515;130|ACTUAL|2017.Q4|QTD| - -42879.38409;130|ACTUAL|2016.Q4|QTD| - -36703.5202800001 | D2: ;130|ACTUAL|2016.DEC|YTD| - -161003.58348;130|ACTUAL|2012.JUN|YTD| - -77837.1034;135|ACTUAL|2017.DEC|YTD| - 263276.2994500010862;135|ACTUAL|2017.Q4|QTD| - 76801.10348000334016;135|ACTUAL|2016.Q4|QTD| - 69632.08992000437543;135|ACTUAL|2016.DEC|YTD| - 252369.79402000406778;135|ACTUAL|2012.JUN|YTD| - 79090.940200000010817;140|ACTUAL|2017.DEC|YTD| - -319.2;140|ACTUAL|2017.Q4|QTD| - -319.2;140|ACTUAL|2016.Q4|QTD| - -217.485;140|ACTUAL|2016.DEC|YTD| - -374.7564;140|ACTUAL|2012.JUN|YTD| - 98.18;1450051|ACTUAL|2017 | E2: .DEC|YTD| - -1248.0008;1450051|ACTUAL|2017.Q4|QTD| - -244.7323;1450051|ACTUAL|2016.Q4|QTD| - -77.9345;1450051|ACTUAL|2016.DEC|YTD| - -338.0709;1450051|ACTUAL|2012.JUN|YTD| - -19.6903;145005|ACTUAL|2017.DEC|YTD| - -1248.0008;145005|ACTUAL|2017.Q4|QTD| - -244.7323;145005|ACTUAL|2016.Q4|QTD| - -77.9345;145005|ACTUAL|2016.DEC|YTD| - -338.0709;145005|ACTUAL|2012.JUN|YTD| - -19.6903;1450101|ACTUAL|2017.DEC|YTD| - 6197.9622;1450101|ACTUAL|2017.Q4|QTD| - 1437.2935;1450101|ACTUAL|2016.Q4|QTD| - 1555.1061;1450101|ACT | F2: UAL|2016.DEC|YTD| - 4208.5195;1450101|ACTUAL|2012.JUN|YTD| - 2476.15;145010|ACTUAL|2017.DEC|YTD| - 6197.9622;145010|ACTUAL|2017.Q4|QTD| - 1437.2935;145010|ACTUAL|2016.Q4|QTD| - 1555.1061;145010|ACTUAL|2016.DEC|YTD| - 4208.5195;145010|ACTUAL|2012.JUN|YTD| - 2476.15;145|ACTUAL|2017.DEC|YTD| - 4949.9614;145|ACTUAL|2017.Q4|QTD| - 1192.5612;145|ACTUAL|2016.Q4|QTD| - 1477.1716;145|ACTUAL|2016.DEC|YTD| - 3870.4486;145|ACTUAL|2012.JUN|YTD| - 2456.4597;150005|ACTUAL|2017.DEC|YTD| - 52.0702;150005|ACTUAL|2017.Q4|QTD| | G2: - 52.0702;150010|ACTUAL|2012.JUN|YTD| - 1864;150012|ACTUAL|2016.Q4|QTD| - 0;150012|ACTUAL|2016.DEC|YTD| - 0;150|ACTUAL|2017.DEC|YTD| - 52.0702;150|ACTUAL|2017.Q4|QTD| - 52.0702;150|ACTUAL|2016.Q4|QTD| - 0;150|ACTUAL|2016.DEC|YTD| - 0;150|ACTUAL|2012.JUN|YTD| - 1864;155005|ACTUAL|2017.DEC|YTD| - -100928.8881;155005|ACTUAL|2017.Q4|QTD| - -26865.06418;155005|ACTUAL|2016.Q4|QTD| - -25338.711798;155005|ACTUAL|2016.DEC|YTD| - -94390.545548;155005|ACTUAL|2012.JUN|YTD| - -34761.7577;155010|ACTUAL|2017.DEC|YTD| - - | H2: 777;155010|ACTUAL|2017.Q4|QTD| - -777;155010|ACTUAL|2012.JUN|YTD| - 334.5795;155|ACTUAL|2017.DEC|YTD| - -101705.8881;155|ACTUAL|2017.Q4|QTD| - -27642.06418;155|ACTUAL|2016.Q4|QTD| - -25338.711798;155|ACTUAL|2016.DEC|YTD| - -94390.545548;155|ACTUAL|2012.JUN|YTD| - -34427.1782;165|ACTUAL|2017.DEC|YTD| - 166285.53122000100797228949523;165|ACTUAL|2017.Q4|QTD| - 50090.531670002999603864150776;165|ACTUAL|2016.Q4|QTD| - 45559.605802004475955233821878;165|ACTUAL|2016.DEC|YTD| - 161449.53525200409602096067974;165|AC | I2: TUAL|2012.JUN|YTD| - 49065.775400000007275957614183;17000514|ACTUAL|2016.Q4|QTD| - -3;17000514|ACTUAL|2016.DEC|YTD| - -3;170005|ACTUAL|2016.Q4|QTD| - -3;170005|ACTUAL|2016.DEC|YTD| - -3;170010|ACTUAL|2012.JUN|YTD| - -3850;170021|ACTUAL|2017.DEC|YTD| - -13065.4638;170021|ACTUAL|2017.Q4|QTD| - -13065.4638;170025|ACTUAL|2016.Q4|QTD| - -7.41849999999999;170025|ACTUAL|2016.DEC|YTD| - 336.9109;170026|ACTUAL|2016.Q4|QTD| - -229.1328;170026|ACTUAL|2016.DEC|YTD| - -229.1328;170030|ACTUAL|2017.DEC|YTD| - 0;170030|ACT | J2: UAL|2017.Q4|QTD| - 0;170030|ACTUAL|2016.Q4|QTD| - 0;170030|ACTUAL|2016.DEC|YTD| - 0;170040|ACTUAL|2012.JUN|YTD| - -75000;170|ACTUAL|2017.DEC|YTD| - -13065.4638;170|ACTUAL|2017.Q4|QTD| - -13065.4638;170|ACTUAL|2016.Q4|QTD| - -239.5513;170|ACTUAL|2016.DEC|YTD| - 104.7781;170|ACTUAL|2012.JUN|YTD| - -78850;175|ACTUAL|2017.DEC|YTD| - 153220.06742000100590727384202;175|ACTUAL|2017.Q4|QTD| - 37025.067870002996222566424767;175|ACTUAL|2016.Q4|QTD| - 45320.05450200398;175|ACTUAL|2016.DEC|YTD| - 161554.313352004;175|A | K2: CTUAL|2012.JUN|YTD| - -29784.224599999992724042385817;1800051|ACTUAL|2017.DEC|YTD| - 122.1412;1800051|ACTUAL|2017.Q4|QTD| - -35.605;1800051|ACTUAL|2016.Q4|QTD| - 10.0207;1800051|ACTUAL|2016.DEC|YTD| - 160.4869;1800051|ACTUAL|2012.JUN|YTD| - 372.9318;1800052|ACTUAL|2017.DEC|YTD| - 27.0543;1800052|ACTUAL|2017.Q4|QTD| - 2.9691;1800052|ACTUAL|2016.Q4|QTD| - 23.904200000000005;1800052|ACTUAL|2016.DEC|YTD| - 108.1035;1800052|ACTUAL|2012.JUN|YTD| - 1294.3944;1800054|ACTUAL|2017.DEC|YTD| - 1.5442;1800054|ACTUAL|201 | L2: 7.Q4|QTD| - 1.5442;1800054|ACTUAL|2016.Q4|QTD| - -426.5636;1800054|ACTUAL|2016.DEC|YTD| - 6.2904;1800054|ACTUAL|2012.JUN|YTD| - 415.3929;180005|ACTUAL|2017.DEC|YTD| - 150.7397;180005|ACTUAL|2017.Q4|QTD| - -31.0916999999999;180005|ACTUAL|2016.Q4|QTD| - -392.638699999999995;180005|ACTUAL|2016.DEC|YTD| - 274.8808;180005|ACTUAL|2012.JUN|YTD| - 2082.7191;1800151|ACTUAL|2017.DEC|YTD| - 17497.58306;1800151|ACTUAL|2017.Q4|QTD| - 6720.42166;1800151|ACTUAL|2016.Q4|QTD| - 3691.52159999999;1800151|ACTUAL|2016.DEC|YTD| | M2: - 20622.6947;1800151|ACTUAL|2012.JUN|YTD| - 3449.133;1800152|ACTUAL|2017.DEC|YTD| - 1534.06298;1800152|ACTUAL|2017.Q4|QTD| - -833.84407;1800152|ACTUAL|2016.Q4|QTD| - -1079.7375;1800152|ACTUAL|2016.DEC|YTD| - -4659.9525;1800152|ACTUAL|2012.JUN|YTD| - 2313.3472;180015|ACTUAL|2017.DEC|YTD| - 19031.64604;180015|ACTUAL|2017.Q4|QTD| - 5886.57759;180015|ACTUAL|2016.Q4|QTD| - 2611.78409999999;180015|ACTUAL|2016.DEC|YTD| - 15962.7422;180015|ACTUAL|2012.JUN|YTD| - 5762.4802;1800251|ACTUAL|2017.DEC|YTD| - 0;1800251|AC | N2: TUAL|2017.Q4|QTD| - 0;1800251|ACTUAL|2016.Q4|QTD| - 0;1800251|ACTUAL|2016.DEC|YTD| - 0;1800251|ACTUAL|2012.JUN|YTD| - 0;180025|ACTUAL|2017.DEC|YTD| - 0;180025|ACTUAL|2017.Q4|QTD| - 0;180025|ACTUAL|2016.Q4|QTD| - 0;180025|ACTUAL|2016.DEC|YTD| - 0;180025|ACTUAL|2012.JUN|YTD| - 0;180030|ACTUAL|2017.DEC|YTD| - 59.5088;180030|ACTUAL|2017.Q4|QTD| - 22.3223;180030|ACTUAL|2016.Q4|QTD| - 39.8682;180030|ACTUAL|2016.DEC|YTD| - 44.8742;180030|ACTUAL|2012.JUN|YTD| - 118.9616;180|ACTUAL|2017.DEC|YTD| - 19241.89454;180|AC | O2: TUAL|2017.Q4|QTD| - 5877.80819;180|ACTUAL|2016.Q4|QTD| - 2259.0136;180|ACTUAL|2016.DEC|YTD| - 16282.4972;180|ACTUAL|2012.JUN|YTD| - 7964.1609;1850051|ACTUAL|2017.DEC|YTD| - -75.7018;1850051|ACTUAL|2017.Q4|QTD| - 0.288999999999987;1850051|ACTUAL|2016.Q4|QTD| - -36.188088;1850051|ACTUAL|2016.DEC|YTD| - -80.873088;1850051|ACTUAL|2012.JUN|YTD| - -358.6588;1850052|ACTUAL|2017.DEC|YTD| - -22256.0508;1850052|ACTUAL|2017.Q4|QTD| - -5764.0099;1850052|ACTUAL|2016.Q4|QTD| - -5735.085400000000005;1850052|ACTUAL|2016.DE | P2: C|YTD| - -21822.8839;1850052|ACTUAL|2012.JUN|YTD| - -8756.1180;1850053|ACTUAL|2017.DEC|YTD| - -512.5917;1850053|ACTUAL|2017.Q4|QTD| - -160.0566;1850053|ACTUAL|2016.Q4|QTD| - -44.5144500000001;1850053|ACTUAL|2016.DEC|YTD| - -961.6065;1850053|ACTUAL|2012.JUN|YTD| - -1174.7458;1850054|ACTUAL|2017.DEC|YTD| - -257.42012;1850054|ACTUAL|2017.Q4|QTD| - -122.61212;1850054|ACTUAL|2016.Q4|QTD| - -144.1678;1850054|ACTUAL|2016.DEC|YTD| - -300.5578;1850054|ACTUAL|2012.JUN|YTD| - -429.0672;1850055|ACTUAL|2017.DEC|YTD| - - | Q2: 433.47228;1850055|ACTUAL|2017.Q4|QTD| - -120.7727;1850055|ACTUAL|2016.Q4|QTD| - 369.96407;1850055|ACTUAL|2016.DEC|YTD| - -312.06248;1850055|ACTUAL|2012.JUN|YTD| - -470.0874;185005|ACTUAL|2017.DEC|YTD| - -23535.2367;185005|ACTUAL|2017.Q4|QTD| - -6167.16232;185005|ACTUAL|2016.Q4|QTD| - -5589.991668000000005;185005|ACTUAL|2016.DEC|YTD| - -23477.983768;185005|ACTUAL|2012.JUN|YTD| - -11188.6772;1850151|ACTUAL|2017.DEC|YTD| - -15665.7228;1850151|ACTUAL|2017.Q4|QTD| - -4752.878;1850151|ACTUAL|2016.Q4|QTD| - -3093. | R2: 2264;1850151|ACTUAL|2016.DEC|YTD| - -13310.0418;1850151|ACTUAL|2012.JUN|YTD| - -4248.9438;1850152|ACTUAL|2017.DEC|YTD| - -826.2053;1850152|ACTUAL|2017.Q4|QTD| - 1666.18705;1850152|ACTUAL|2016.Q4|QTD| - 141.22952;1850152|ACTUAL|2016.DEC|YTD| - 602.10522;1850152|ACTUAL|2012.JUN|YTD| - -3292.0815;185015|ACTUAL|2017.DEC|YTD| - -16491.9281;185015|ACTUAL|2017.Q4|QTD| - -3086.69095;185015|ACTUAL|2016.Q4|QTD| - -2951.99688;185015|ACTUAL|2016.DEC|YTD| - -12707.93658;185015|ACTUAL|2012.JUN|YTD| - -7541.0253;185042|AC | S2: TUAL|2012.JUN|YTD| - 20.6178;185045|ACTUAL|2017.DEC|YTD| - -856.27624;185045|ACTUAL|2017.Q4|QTD| - -164.57216;185045|ACTUAL|2016.Q4|QTD| - -259.4552;185045|ACTUAL|2016.DEC|YTD| - -866.6991;185045|ACTUAL|2012.JUN|YTD| - -1243.40986;185|ACTUAL|2017.DEC|YTD| - -40883.44104;185|ACTUAL|2017.Q4|QTD| - -9418.42543000001;185|ACTUAL|2016.Q4|QTD| - -8801.443748000000005;185|ACTUAL|2016.DEC|YTD| - -37052.619448;185|ACTUAL|2012.JUN|YTD| - -19952.49456;187|ACTUAL|2017.DEC|YTD| - -21641.5465;187|ACTUAL|2017.Q4|QTD| - -35 | T2: 40.61724;187|ACTUAL|2016.Q4|QTD| - -6542.430148;187|ACTUAL|2016.DEC|YTD| - -20770.122248;187|ACTUAL|2012.JUN|YTD| - -11988.33366;189|ACTUAL|2017.DEC|YTD| - -15215.0026;189|ACTUAL|2017.Q4|QTD| - -12416.8016;189|ACTUAL|2016.Q4|QTD| - -48.5645000000004;189|ACTUAL|2016.DEC|YTD| - -7638.9045;189|ACTUAL|2012.JUN|YTD| - 0;190|ACTUAL|2017.DEC|YTD| - 116363.51832000101;190|ACTUAL|2017.Q4|QTD| - 21067.64903000303;190|ACTUAL|2016.Q4|QTD| - 38729.05985400398;190|ACTUAL|2016.DEC|YTD| - 133145.286604004;190|ACTUAL|2012.J | U2: UN|YTD| - -41772.558260000002642420526594;19510101|ACTUAL|2017.DEC|YTD| - -22169.6325;19510101|ACTUAL|2017.Q4|QTD| - 1074.10660000001;19510101|ACTUAL|2016.Q4|QTD| - -3092.4739;19510101|ACTUAL|2016.DEC|YTD| - -26588.9271;19510101|ACTUAL|2012.JUN|YTD| - -9773.59198;19510102|ACTUAL|2017.DEC|YTD| - -3728.1162;19510102|ACTUAL|2017.Q4|QTD| - -1830.3767;19510102|ACTUAL|2016.Q4|QTD| - -10.6510999999998;19510102|ACTUAL|2016.DEC|YTD| - -1411.6414;19510102|ACTUAL|2012.JUN|YTD| - -490.61698;1951010|ACTUAL|2017.DEC|YTD| | V2: - -25897.7487;1951010|ACTUAL|2017.Q4|QTD| - -756.270099999994;1951010|ACTUAL|2016.Q4|QTD| - -3103.125;1951010|ACTUAL|2016.DEC|YTD| - -28000.5685;1951010|ACTUAL|2012.JUN|YTD| - -10264.20896;1951012|ACTUAL|2017.DEC|YTD| - 1222.3676;1951012|ACTUAL|2017.Q4|QTD| - 856.6348;1951012|ACTUAL|2016.Q4|QTD| - 1158.029;1951012|ACTUAL|2016.DEC|YTD| - 1724.1149;1951012|ACTUAL|2012.JUN|YTD| - 4464.4107;1951014|ACTUAL|2017.DEC|YTD| - -871.1744;1951014|ACTUAL|2017.Q4|QTD| - -100.7216;1951014|ACTUAL|2016.Q4|QTD| - -12.553599 | W2: 9999998;1951014|ACTUAL|2016.DEC|YTD| - -70.7113999999999;1951014|ACTUAL|2012.JUN|YTD| - 348.1871;1951016|ACTUAL|2017.Q4|QTD| - 230.5563;1951016|ACTUAL|2016.Q4|QTD| - -3850.4518;1951016|ACTUAL|2016.DEC|YTD| - 305.2532;1951016|ACTUAL|2012.JUN|YTD| - 892.212;1951018|ACTUAL|2017.DEC|YTD| - -1512.7964;1951018|ACTUAL|2017.Q4|QTD| - -1049.9303;1951018|ACTUAL|2016.Q4|QTD| - -63.2068000000002;1951018|ACTUAL|2016.DEC|YTD| - -1039.4073;1951018|ACTUAL|2012.JUN|YTD| - -4980.8352;1951020|ACTUAL|2017.DEC|YTD| - -468.6798; | X2: 1951020|ACTUAL|2017.Q4|QTD| - -416.6187;1951020|ACTUAL|2016.Q4|QTD| - 785.016;1951020|ACTUAL|2016.DEC|YTD| - 1331.3652;1951020|ACTUAL|2012.JUN|YTD| - 1240.8224;1951022|ACTUAL|2016.Q4|QTD| - -143.9766;1951022|ACTUAL|2016.DEC|YTD| - -143.9766;1951022|ACTUAL|2012.JUN|YTD| - 592;1951024|ACTUAL|2017.DEC|YTD| - 2869.5243;1951024|ACTUAL|2017.Q4|QTD| - -6611.8091;1951024|ACTUAL|2016.Q4|QTD| - 16140.5318;1951024|ACTUAL|2016.DEC|YTD| - 13479.0602;1951024|ACTUAL|2012.JUN|YTD| - -16717.0126;1951050|ACTUAL|2017.DEC|YTD| | Y2: - -24658.5074;1951050|ACTUAL|2017.Q4|QTD| - -7848.1587;1951050|ACTUAL|2016.Q4|QTD| - 10910.263;1951050|ACTUAL|2016.DEC|YTD| - -12414.8703;1951050|ACTUAL|2012.JUN|YTD| - -24424.42456;1951070|ACTUAL|2017.DEC|YTD| - -79.002;1951070|ACTUAL|2017.Q4|QTD| - -19.3728;1951070|ACTUAL|2016.Q4|QTD| - -34.9926;1951070|ACTUAL|2016.DEC|YTD| - -101.7138;195|ACTUAL|2017.DEC|YTD| - -24737.5094;195|ACTUAL|2017.Q4|QTD| - -7867.5315;195|ACTUAL|2016.Q4|QTD| - 10875.2704;195|ACTUAL|2016.DEC|YTD| - -12516.5841;195|ACTUAL|2012.JUN | Z2: |YTD| - -24424.42456;196|ACTUAL|2017.DEC|YTD| - 91626.00892000101;196|ACTUAL|2017.Q4|QTD| - 13200.11753000303;196|ACTUAL|2016.Q4|QTD| - 49604.33025400398;196|ACTUAL|2016.DEC|YTD| - 120628.702504004;196|ACTUAL|2012.JUN|YTD| - -66196.982820000002642420526594;100|ACTUAL|2017.DEC|YTD| - 91626.00892000101;100|ACTUAL|2017.Q4|QTD| - 13200.11753000303;100|ACTUAL|2016.Q4|QTD| - 49604.33025400398;100|ACTUAL|2016.DEC|YTD| - 120628.702504004;100|ACTUAL|2012.JUN|YTD| - -66196.982820000002642420526594;202|ACTUAL|2017.DEC | AA2: |YTD| - 327716.956;202|ACTUAL|2017.Q4|QTD| - 327716.956;202|ACTUAL|2016.Q4|QTD| - 327973.7807;202|ACTUAL|2016.DEC|YTD| - 327973.7807;202|ACTUAL|2012.JUN|YTD| - 162801.7568;204|ACTUAL|2017.DEC|YTD| - 1031.78264;204|ACTUAL|2017.Q4|QTD| - 1031.78264;204|ACTUAL|2016.Q4|QTD| - 678.98884;204|ACTUAL|2016.DEC|YTD| - 678.98884;204|ACTUAL|2012.JUN|YTD| - 838.4194;206|ACTUAL|2017.DEC|YTD| - 29430.92454;206|ACTUAL|2017.Q4|QTD| - 29430.92454;206|ACTUAL|2016.Q4|QTD| - 37544.28244;206|ACTUAL|2016.DEC|YTD| - 37544.28244;20 | AB2: 6|ACTUAL|2012.JUN|YTD| - 2;208204|ACTUAL|2012.JUN|YTD| - 580.4442;208|ACTUAL|2012.JUN|YTD| - 580.4442;220|ACTUAL|2017.DEC|YTD| - 358179.66318;220|ACTUAL|2017.Q4|QTD| - 358179.66318;220|ACTUAL|2016.Q4|QTD| - 366197.05198;220|ACTUAL|2016.DEC|YTD| - 366197.05198;220|ACTUAL|2012.JUN|YTD| - 164222.6204;2261010|ACTUAL|2017.DEC|YTD| - 129380.92928;2261010|ACTUAL|2017.Q4|QTD| - 129380.92928;2261010|ACTUAL|2016.Q4|QTD| - 141638.46878;2261010|ACTUAL|2016.DEC|YTD| - 141638.46878;2261010|ACTUAL|2012.JUN|YTD| - 76484.68 | AC2: 26;2261014|ACTUAL|2017.DEC|YTD| - 260.5715;2261014|ACTUAL|2017.Q4|QTD| - 260.5715;2261014|ACTUAL|2016.Q4|QTD| - 289.9416;2261014|ACTUAL|2016.DEC|YTD| - 289.9416;2261014|ACTUAL|2012.JUN|YTD| - 170.9682;226|ACTUAL|2017.DEC|YTD| - 129641.50078;226|ACTUAL|2017.Q4|QTD| - 129641.50078;226|ACTUAL|2016.Q4|QTD| - 141928.41038;226|ACTUAL|2016.DEC|YTD| - 141928.41038;226|ACTUAL|2012.JUN|YTD| - 76655.6508;2281010|ACTUAL|2017.DEC|YTD| - 1420.8948;2281010|ACTUAL|2017.Q4|QTD| - 1420.8948;228|ACTUAL|2017.DEC|YTD| - 1420.89 | AD2: 48;228|ACTUAL|2017.Q4|QTD| - 1420.8948;2301010|ACTUAL|2017.DEC|YTD| - 42748.7488;2301010|ACTUAL|2017.Q4|QTD| - 42748.7488;2301010|ACTUAL|2016.Q4|QTD| - 47821.2288;2301010|ACTUAL|2016.DEC|YTD| - 47821.2288;2301010|ACTUAL|2012.JUN|YTD| - 97629.8052000001;230|ACTUAL|2017.DEC|YTD| - 42748.7488;230|ACTUAL|2017.Q4|QTD| - 42748.7488;230|ACTUAL|2016.Q4|QTD| - 47821.2288;230|ACTUAL|2016.DEC|YTD| - 47821.2288;230|ACTUAL|2012.JUN|YTD| - 97629.8052000001;232|ACTUAL|2017.DEC|YTD| - 424287.2534;232|ACTUAL|2017.Q4|QTD| - | AE2: 424287.2534;232|ACTUAL|2016.Q4|QTD| - 359786.731;232|ACTUAL|2016.DEC|YTD| - 359786.731;232|ACTUAL|2012.JUN|YTD| - 151103.9506;2341012|ACTUAL|2017.DEC|YTD| - 20909.0258;2341012|ACTUAL|2017.Q4|QTD| - 20909.0258;2341012|ACTUAL|2016.Q4|QTD| - 26813.7216;2341012|ACTUAL|2016.DEC|YTD| - 26813.7216;2341012|ACTUAL|2012.JUN|YTD| - 47854.0102;234|ACTUAL|2017.DEC|YTD| - 20909.0258;234|ACTUAL|2017.Q4|QTD| - 20909.0258;234|ACTUAL|2016.Q4|QTD| - 26813.7216;234|ACTUAL|2016.DEC|YTD| - 26813.7216;234|ACTUAL|2012.JUN|YTD| - 4 | AF2: 7854.0102;236|ACTUAL|2017.DEC|YTD| - 14729.978913;236|ACTUAL|2017.Q4|QTD| - 14729.978913;236|ACTUAL|2016.Q4|QTD| - 20360.835248;236|ACTUAL|2016.DEC|YTD| - 20360.835248;236|ACTUAL|2012.JUN|YTD| - 13355.29892;238226|ACTUAL|2017.DEC|YTD| - -0.0000000000000186517468137026;238226|ACTUAL|2017.Q4|QTD| - -0.0000000000000186517468137026;238226|ACTUAL|2016.Q4|QTD| - 130.248;238226|ACTUAL|2016.DEC|YTD| - 130.248;238228|ACTUAL|2017.DEC|YTD| - 0;238228|ACTUAL|2017.Q4|QTD| - 0;238230|ACTUAL|2016.Q4|QTD| - 0.0000000000000 | AG2: 21316282072803;238230|ACTUAL|2016.DEC|YTD| - 0.000000000000021316282072803;238231|ACTUAL|2017.DEC|YTD| - 0;238231|ACTUAL|2017.Q4|QTD| - 0;238231|ACTUAL|2016.Q4|QTD| - -0.0000000000000662005172902269;238231|ACTUAL|2016.DEC|YTD| - -0.0000000000000662005172902269;238232|ACTUAL|2017.DEC|YTD| - 387.1348;238232|ACTUAL|2017.Q4|QTD| - 387.1348;238232|ACTUAL|2016.Q4|QTD| - 1686.5761;238232|ACTUAL|2016.DEC|YTD| - 1686.5761;238232|ACTUAL|2012.JUN|YTD| - 0;238234|ACTUAL|2017.DEC|YTD| - 1210.8453;238234|ACTUAL|2017.Q4|Q | AH2: TD| - 1210.8453;238234|ACTUAL|2016.Q4|QTD| - 7.4344;238234|ACTUAL|2016.DEC|YTD| - 7.4344;238|ACTUAL|2017.DEC|YTD| - 1597.9801;238|ACTUAL|2017.Q4|QTD| - 1597.9801;238|ACTUAL|2016.Q4|QTD| - 1824.2585;238|ACTUAL|2016.DEC|YTD| - 1824.2585;238|ACTUAL|2012.JUN|YTD| - 0;240|ACTUAL|2017.DEC|YTD| - 635335.382593;240|ACTUAL|2017.Q4|QTD| - 635335.382593;240|ACTUAL|2016.Q4|QTD| - 598535.185528;240|ACTUAL|2016.DEC|YTD| - 598535.185528;240|ACTUAL|2012.JUN|YTD| - 386598.71572;2421010|ACTUAL|2017.DEC|YTD| - 2178992.76817;2 | AI2: 421010|ACTUAL|2017.Q4|QTD| - 2178992.76817;2421010|ACTUAL|2016.Q4|QTD| - 2189568.24332;2421010|ACTUAL|2016.DEC|YTD| - 2189568.24332;2421010|ACTUAL|2012.JUN|YTD| - 887798.44382;2421020|ACTUAL|2017.DEC|YTD| - -0.000000000000961009050115536;2421020|ACTUAL|2017.Q4|QTD| - -0.000000000000961009050115536;2421020|ACTUAL|2016.Q4|QTD| - -0.000000000000287769807982841;2421020|ACTUAL|2016.DEC|YTD| - -0.000000000000287769807982841;2421020|ACTUAL|2012.JUN|YTD| - 0;242|ACTUAL|2017.DEC|YTD| - 2178992.76817;242|ACTUAL|2017. | AJ2: Q4|QTD| - 2178992.76817;242|ACTUAL|2016.Q4|QTD| - 2189568.24332;242|ACTUAL|2016.DEC|YTD| - 2189568.24332;242|ACTUAL|2012.JUN|YTD| - 887798.44382;2431010|ACTUAL|2017.DEC|YTD| - -88.98;2431010|ACTUAL|2017.Q4|QTD| - -88.98;2431010|ACTUAL|2016.Q4|QTD| - 195.82;2431010|ACTUAL|2016.DEC|YTD| - 195.82;2431010|ACTUAL|2012.JUN|YTD| - 2762.0532;243|ACTUAL|2017.DEC|YTD| - -88.98;243|ACTUAL|2017.Q4|QTD| - -88.98;243|ACTUAL|2016.Q4|QTD| - 195.82;243|ACTUAL|2016.DEC|YTD| - 195.82;243|ACTUAL|2012.JUN|YTD| - 2762.0532;245|A | AK2: CTUAL|2017.DEC|YTD| - 0;245|ACTUAL|2017.Q4|QTD| - 0;245|ACTUAL|2016.Q4|QTD| - 0;245|ACTUAL|2016.DEC|YTD| - 0;245|ACTUAL|2012.JUN|YTD| - 35420.151;2461014|ACTUAL|2012.JUN|YTD| - 1263.678;2461016|ACTUAL|2017.DEC|YTD| - 6.8067;2461016|ACTUAL|2017.Q4|QTD| - 6.8067;2461016|ACTUAL|2016.Q4|QTD| - 7.0047;2461016|ACTUAL|2016.DEC|YTD| - 7.0047;246|ACTUAL|2017.DEC|YTD| - 6.8067;246|ACTUAL|2017.Q4|QTD| - 6.8067;246|ACTUAL|2016.Q4|QTD| - 7.0047;246|ACTUAL|2016.DEC|YTD| - 7.0047;246|ACTUAL|2012.JUN|YTD| - 1263.678;247|AC | AL2: TUAL|2017.DEC|YTD| - 24389.4924;247|ACTUAL|2017.Q4|QTD| - 24389.4924;247|ACTUAL|2016.Q4|QTD| - 24496.348;247|ACTUAL|2016.DEC|YTD| - 24496.348;247|ACTUAL|2012.JUN|YTD| - 39072.051;249|ACTUAL|2017.DEC|YTD| - 16648.74055;249|ACTUAL|2017.Q4|QTD| - 16648.74055;249|ACTUAL|2016.Q4|QTD| - 29169.6153;249|ACTUAL|2016.DEC|YTD| - 29169.6153;249|ACTUAL|2012.JUN|YTD| - 26873.6165;250|ACTUAL|2017.DEC|YTD| - 2219948.82782;250|ACTUAL|2017.Q4|QTD| - 2219948.82782;250|ACTUAL|2016.Q4|QTD| - 2243437.03132;250|ACTUAL|2016.DEC|YT | AM2: D| - 2243437.03132;250|ACTUAL|2012.JUN|YTD| - 993189.99352;252|ACTUAL|2017.DEC|YTD| - 3213463.873593;252|ACTUAL|2017.Q4|QTD| - 3213463.873593;252|ACTUAL|2016.Q4|QTD| - 3208169.268828;252|ACTUAL|2016.DEC|YTD| - 3208169.268828;252|ACTUAL|2012.JUN|YTD| - 1544011.32964;2551010|ACTUAL|2017.DEC|YTD| - 3256.9849;2551010|ACTUAL|2017.Q4|QTD| - 3256.9849;2551010|ACTUAL|2016.Q4|QTD| - 2159.5216;2551010|ACTUAL|2016.DEC|YTD| - 2159.5216;2551010|ACTUAL|2012.JUN|YTD| - 2176.4681;2551012|ACTUAL|2017.DEC|YTD| - 889.4088;255 | AN2: 1012|ACTUAL|2017.Q4|QTD| - 889.4088;2551012|ACTUAL|2016.Q4|QTD| - 642.0975;2551012|ACTUAL|2016.DEC|YTD| - 642.0975;2551012|ACTUAL|2012.JUN|YTD| - 869.7078;2551014|ACTUAL|2017.DEC|YTD| - 488.7636;2551014|ACTUAL|2017.Q4|QTD| - 488.7636;2551014|ACTUAL|2016.Q4|QTD| - 1372.9396;2551014|ACTUAL|2016.DEC|YTD| - 1372.9396;2551014|ACTUAL|2012.JUN|YTD| - 6450.1248;255|ACTUAL|2017.DEC|YTD| - 4635.1573;255|ACTUAL|2017.Q4|QTD| - 4635.1573;255|ACTUAL|2016.Q4|QTD| - 4174.5587;255|ACTUAL|2016.DEC|YTD| - 4174.5587;255|ACTUAL | AO2: |2012.JUN|YTD| - 9496.3007;2601014|ACTUAL|2017.DEC|YTD| - 2414.6596;2601014|ACTUAL|2017.Q4|QTD| - 2414.6596;2601014|ACTUAL|2016.Q4|QTD| - 2858.2379;2601014|ACTUAL|2016.DEC|YTD| - 2858.2379;2601014|ACTUAL|2012.JUN|YTD| - 23711.4114;260|ACTUAL|2017.DEC|YTD| - 2414.6596;260|ACTUAL|2017.Q4|QTD| - 2414.6596;260|ACTUAL|2016.Q4|QTD| - 2858.2379;260|ACTUAL|2016.DEC|YTD| - 2858.2379;260|ACTUAL|2012.JUN|YTD| - 23711.4114;261|ACTUAL|2017.DEC|YTD| - 17545.33974;261|ACTUAL|2017.Q4|QTD| - 17545.33974;261|ACTUAL|2016.Q4|Q | AP2: TD| - 2877.6792;261|ACTUAL|2016.DEC|YTD| - 2877.6792;261|ACTUAL|2012.JUN|YTD| - 1745;2621010|ACTUAL|2017.DEC|YTD| - 896161.2155;2621010|ACTUAL|2017.Q4|QTD| - 896161.2155;2621010|ACTUAL|2016.Q4|QTD| - 868984.9674;2621010|ACTUAL|2016.DEC|YTD| - 868984.9674;2621010|ACTUAL|2012.JUN|YTD| - 756280.244;2621011|ACTUAL|2017.DEC|YTD| - 108402.3542;2621011|ACTUAL|2017.Q4|QTD| - 108402.3542;2621011|ACTUAL|2016.Q4|QTD| - 81002.0021;2621011|ACTUAL|2016.DEC|YTD| - 81002.0021;2621011|ACTUAL|2012.JUN|YTD| - 20896.2481;26210 | AQ2: 12|ACTUAL|2017.DEC|YTD| - -6661.27835;2621012|ACTUAL|2017.Q4|QTD| - -6661.27835;2621012|ACTUAL|2016.Q4|QTD| - -6185.1826;2621012|ACTUAL|2016.DEC|YTD| - -6185.1826;2621012|ACTUAL|2012.JUN|YTD| - -14072.9418;262|ACTUAL|2017.DEC|YTD| - 988778.01943;262|ACTUAL|2017.Q4|QTD| - 988778.01943;262|ACTUAL|2016.Q4|QTD| - 934972.7461;262|ACTUAL|2016.DEC|YTD| - 934972.7461;262|ACTUAL|2012.JUN|YTD| - 763103.5503;2631010|ACTUAL|2017.DEC|YTD| - 1846.6129;2631010|ACTUAL|2017.Q4|QTD| - 1846.6129;2631010|ACTUAL|2016.Q4|QTD| - | AR2: 1784.8258;2631010|ACTUAL|2016.DEC|YTD| - 1784.8258;2631010|ACTUAL|2012.JUN|YTD| - 3844.7962;2631012|ACTUAL|2017.DEC|YTD| - 16097.36184;2631012|ACTUAL|2017.Q4|QTD| - 16097.36184;2631012|ACTUAL|2016.Q4|QTD| - 16531.8656;2631012|ACTUAL|2016.DEC|YTD| - 16531.8656;2631012|ACTUAL|2012.JUN|YTD| - 12395.4098;2631014|ACTUAL|2017.DEC|YTD| - -38.9256;2631014|ACTUAL|2017.Q4|QTD| - -38.9256;2631014|ACTUAL|2012.JUN|YTD| - 7803.7608;2631016|ACTUAL|2012.JUN|YTD| - 7054.6835;2631018|ACTUAL|2017.DEC|YTD| - 2455.5776902;26310 | AS2: 18|ACTUAL|2017.Q4|QTD| - 2455.5776902;2631018|ACTUAL|2016.Q4|QTD| - 1858.7168;2631018|ACTUAL|2016.DEC|YTD| - 1858.7168;2631018|ACTUAL|2012.JUN|YTD| - 3343.2964;2631028|ACTUAL|2017.DEC|YTD| - 8707.10296;2631028|ACTUAL|2017.Q4|QTD| - 8707.10296;2631028|ACTUAL|2016.Q4|QTD| - 17958.6861;2631028|ACTUAL|2016.DEC|YTD| - 17958.6861;2631028|ACTUAL|2012.JUN|YTD| - 11654.2828;263|ACTUAL|2017.DEC|YTD| - 29067.7297902;263|ACTUAL|2017.Q4|QTD| - 29067.7297902;263|ACTUAL|2016.Q4|QTD| - 38134.0943;263|ACTUAL|2016.DEC|YTD| - | AT2: 38134.0943;263|ACTUAL|2012.JUN|YTD| - 46096.2295;264|ACTUAL|2017.DEC|YTD| - 14853.26114;264|ACTUAL|2017.Q4|QTD| - 14853.26114;264|ACTUAL|2016.Q4|QTD| - 19960.7061;264|ACTUAL|2016.DEC|YTD| - 19960.7061;264|ACTUAL|2012.JUN|YTD| - 74634.31671;265|ACTUAL|2012.JUN|YTD| - 5097.5348;268|ACTUAL|2017.DEC|YTD| - 4624.2846;268|ACTUAL|2017.Q4|QTD| - 4624.2846;268|ACTUAL|2016.Q4|QTD| - 3385.2778;268|ACTUAL|2016.DEC|YTD| - 3385.2778;268|ACTUAL|2012.JUN|YTD| - 2168.46456;270|ACTUAL|2017.DEC|YTD| - 1061918.4516002;270|ACT | AU2: UAL|2017.Q4|QTD| - 1061918.4516002;270|ACTUAL|2016.Q4|QTD| - 1006363.3001;270|ACTUAL|2016.DEC|YTD| - 1006363.3001;270|ACTUAL|2012.JUN|YTD| - 926052.80797;2821010|ACTUAL|2012.JUN|YTD| - 165004.6808;282|ACTUAL|2012.JUN|YTD| - 165004.6808;2840101|ACTUAL|2017.DEC|YTD| - 60978.87568;2840101|ACTUAL|2017.Q4|QTD| - 60978.87568;2840101|ACTUAL|2016.Q4|QTD| - 36830.9845;2840101|ACTUAL|2016.DEC|YTD| - 36830.9845;2840101|ACTUAL|2012.JUN|YTD| - 155130.5717;2841012|ACTUAL|2017.DEC|YTD| - 1082904.7862;2841012|ACTUAL|2017.Q | AV2: 4|QTD| - 1082904.7862;2841012|ACTUAL|2016.Q4|QTD| - 1179174.2361;2841012|ACTUAL|2016.DEC|YTD| - 1179174.2361;2841012|ACTUAL|2012.JUN|YTD| - 3795.9208;284|ACTUAL|2017.DEC|YTD| - 1143883.66188;284|ACTUAL|2017.Q4|QTD| - 1143883.66188;284|ACTUAL|2016.Q4|QTD| - 1216005.2206;284|ACTUAL|2016.DEC|YTD| - 1216005.2206;284|ACTUAL|2012.JUN|YTD| - 158926.4925;285|ACTUAL|2017.DEC|YTD| - 1143883.66188;285|ACTUAL|2017.Q4|QTD| - 1143883.66188;285|ACTUAL|2016.Q4|QTD| - 1216005.2206;285|ACTUAL|2016.DEC|YTD| - 1216005.2206;285 | AW2: |ACTUAL|2012.JUN|YTD| - 323931.1733;287|ACTUAL|2017.DEC|YTD| - 2205802.1134802;287|ACTUAL|2017.Q4|QTD| - 2205802.1134802;287|ACTUAL|2016.Q4|QTD| - 2222368.5207;287|ACTUAL|2016.DEC|YTD| - 2222368.5207;287|ACTUAL|2012.JUN|YTD| - 1249983.98127;200|ACTUAL|2017.DEC|YTD| - 5419265.9870732;200|ACTUAL|2017.Q4|QTD| - 5419265.9870732;200|ACTUAL|2016.Q4|QTD| - 5430537.789528;200|ACTUAL|2016.DEC|YTD| - 5430537.789528;200|ACTUAL|2012.JUN|YTD| - 2793995.31091;302|ACTUAL|2017.DEC|YTD| - 111236.7934;302|ACTUAL|2017.Q4|QTD| | AX2: - 111236.7934;302|ACTUAL|2016.Q4|QTD| - 115698.7293;302|ACTUAL|2016.DEC|YTD| - 115698.7293;302|ACTUAL|2012.JUN|YTD| - 92740.8362;303|ACTUAL|2017.DEC|YTD| - -113961.35526;303|ACTUAL|2017.Q4|QTD| - -113961.35526;303|ACTUAL|2016.Q4|QTD| - -114957.89254;303|ACTUAL|2016.DEC|YTD| - -114957.89254;303|ACTUAL|2012.JUN|YTD| - -58939.37092;304|ACTUAL|2017.DEC|YTD| - 105125.00828;304|ACTUAL|2017.Q4|QTD| - 105125.00828;304|ACTUAL|2016.Q4|QTD| - 51259.07434;304|ACTUAL|2016.DEC|YTD| - 51259.07434;304|ACTUAL|2012.JUN|YTD| | AY2: - 53265.628;308|ACTUAL|2017.DEC|YTD| - -52.962;308|ACTUAL|2017.Q4|QTD| - -52.962;308|ACTUAL|2016.Q4|QTD| - -57.274;308|ACTUAL|2016.DEC|YTD| - -57.274;308|ACTUAL|2012.JUN|YTD| - -69.076;312|ACTUAL|2017.DEC|YTD| - 746;312|ACTUAL|2017.Q4|QTD| - 746;312|ACTUAL|2016.Q4|QTD| - 746;312|ACTUAL|2016.DEC|YTD| - 746;312|ACTUAL|2012.JUN|YTD| - -735.9066;314|ACTUAL|2017.DEC|YTD| - -708251.0521;314|ACTUAL|2017.Q4|QTD| - -708251.0521;314|ACTUAL|2016.Q4|QTD| - -303452.9492;314|ACTUAL|2016.DEC|YTD| - -303452.9492;314|ACTUA | AZ2: L|2012.JUN|YTD| - -223.002;3161010|ACTUAL|2017.DEC|YTD| - 1272606.2858609;3161010|ACTUAL|2017.Q4|QTD| - 1272606.2858609;3161010|ACTUAL|2016.Q4|QTD| - 826720.431638002;3161010|ACTUAL|2016.DEC|YTD| - 826720.431638002;3161010|ACTUAL|2012.JUN|YTD| - -17313.67472;3161011|ACTUAL|2017.DEC|YTD| - 793383.14421;3161011|ACTUAL|2017.Q4|QTD| - 793383.14421;3161011|ACTUAL|2016.Q4|QTD| - 883008.13676;3161011|ACTUAL|2016.DEC|YTD| - 883008.13676;3161011|ACTUAL|2012.JUN|YTD| - 983856.81426;3161012|ACTUAL|2017.DEC|YTD| - 2446 | BA2: 43.194122;3161012|ACTUAL|2017.Q4|QTD| - 244643.194122;3161012|ACTUAL|2016.Q4|QTD| - 246663.419332;3161012|ACTUAL|2016.DEC|YTD| - 246663.419332;3161012|ACTUAL|2012.JUN|YTD| - -40716.789548;3161013|ACTUAL|2017.DEC|YTD| - -139;3161013|ACTUAL|2017.Q4|QTD| - -139;3161013|ACTUAL|2016.Q4|QTD| - -139;3161013|ACTUAL|2016.DEC|YTD| - -139;3161013|ACTUAL|2012.JUN|YTD| - -139;3161014|ACTUAL|2017.DEC|YTD| - 462610.6125655;3161014|ACTUAL|2017.Q4|QTD| - 462610.6125655;3161014|ACTUAL|2016.Q4|QTD| - 411910.4138104;3161014|AC | BB2: TUAL|2016.DEC|YTD| - 411910.4138104;3161014|ACTUAL|2012.JUN|YTD| - 4323.2542;3161016|ACTUAL|2017.DEC|YTD| - 133191.7492;3161016|ACTUAL|2017.Q4|QTD| - 133191.7492;3161016|ACTUAL|2016.Q4|QTD| - 137188.3134;3161016|ACTUAL|2016.DEC|YTD| - 137188.3134;316|ACTUAL|2017.DEC|YTD| - 2906295.9859584;316|ACTUAL|2017.Q4|QTD| - 2906295.9859584;316|ACTUAL|2016.Q4|QTD| - 2505351.7149404;316|ACTUAL|2016.DEC|YTD| - 2505351.7149404;316|ACTUAL|2012.JUN|YTD| - 930010.604192;317|ACTUAL|2017.DEC|YTD| - 61145.8097;317|ACTUAL|2017. | BC2: Q4|QTD| - 61145.8097;317|ACTUAL|2016.Q4|QTD| - 65673.3072;317|ACTUAL|2016.DEC|YTD| - 65673.3072;317|ACTUAL|2012.JUN|YTD| - 79615.4812;318|ACTUAL|2017.DEC|YTD| - 2362284.2279784;318|ACTUAL|2017.Q4|QTD| - 2362284.2279784;318|ACTUAL|2016.Q4|QTD| - 2320260.7100404;318|ACTUAL|2016.DEC|YTD| - 2320260.7100404;318|ACTUAL|2012.JUN|YTD| - 1095665.194072;320|ACTUAL|2017.DEC|YTD| - 2362284.2279784;320|ACTUAL|2017.Q4|QTD| - 2362284.2279784;320|ACTUAL|2016.Q4|QTD| - 2320260.7100404;320|ACTUAL|2016.DEC|YTD| - 2320260.7100 | BD2: 404;320|ACTUAL|2012.JUN|YTD| - 1095665.194072;321|ACTUAL|2017.DEC|YTD| - 15596.8549;321|ACTUAL|2017.Q4|QTD| - 15596.8549;321|ACTUAL|2016.Q4|QTD| - 19703.6194;321|ACTUAL|2016.DEC|YTD| - 19703.6194;321|ACTUAL|2012.JUN|YTD| - 5276.9226;322|ACTUAL|2017.DEC|YTD| - 19107.026895;322|ACTUAL|2017.Q4|QTD| - 19107.026895;322|ACTUAL|2016.Q4|QTD| - 19483.00424;322|ACTUAL|2016.DEC|YTD| - 19483.00424;322|ACTUAL|2012.JUN|YTD| - 18275.62702;323|ACTUAL|2017.DEC|YTD| - 3902.22055;323|ACTUAL|2017.Q4|QTD| - 3902.22055;323|ACTUA | BE2: L|2016.Q4|QTD| - 3279.6607;323|ACTUAL|2016.DEC|YTD| - 3279.6607;323|ACTUAL|2012.JUN|YTD| - 217;3241014|ACTUAL|2017.DEC|YTD| - 3234.06222;3241014|ACTUAL|2017.Q4|QTD| - 3234.06222;3241014|ACTUAL|2016.Q4|QTD| - 3777.8148;3241014|ACTUAL|2016.DEC|YTD| - 3777.8148;3241014|ACTUAL|2012.JUN|YTD| - 1208.924;3241100|ACTUAL|2017.DEC|YTD| - 1319.2671;3241100|ACTUAL|2017.Q4|QTD| - 1319.2671;3241100|ACTUAL|2016.Q4|QTD| - 2022.2372;3241100|ACTUAL|2016.DEC|YTD| - 2022.2372;324|ACTUAL|2017.DEC|YTD| - 4553.32932;324|ACTUAL|20 | BF2: 17.Q4|QTD| - 4553.32932;324|ACTUAL|2016.Q4|QTD| - 10575.812;324|ACTUAL|2016.DEC|YTD| - 10575.812;324|ACTUAL|2012.JUN|YTD| - 1208.924;3251014|ACTUAL|2017.DEC|YTD| - 1529.4835;3251014|ACTUAL|2017.Q4|QTD| - 1529.4835;3251014|ACTUAL|2016.Q4|QTD| - 2073.684;3251014|ACTUAL|2016.DEC|YTD| - 2073.684;3251014|ACTUAL|2012.JUN|YTD| - 24039.6156;325|ACTUAL|2017.DEC|YTD| - 1529.4835;325|ACTUAL|2017.Q4|QTD| - 1529.4835;325|ACTUAL|2016.Q4|QTD| - 2073.684;325|ACTUAL|2016.DEC|YTD| - 2073.684;325|ACTUAL|2012.JUN|YTD| - 24039. | BG2: 6156;330|ACTUAL|2017.DEC|YTD| - 0;330|ACTUAL|2017.Q4|QTD| - 0;330|ACTUAL|2016.Q4|QTD| - 0;330|ACTUAL|2016.DEC|YTD| - 0;330|ACTUAL|2012.JUN|YTD| - 43242.5628;332|ACTUAL|2017.DEC|YTD| - 24389.4924;332|ACTUAL|2017.Q4|QTD| - 24389.4924;332|ACTUAL|2016.Q4|QTD| - 24904.4584;332|ACTUAL|2016.DEC|YTD| - 24904.4584;332|ACTUAL|2012.JUN|YTD| - 24985.1722;350|ACTUAL|2017.DEC|YTD| - 69078.407565;350|ACTUAL|2017.Q4|QTD| - 69078.407565;350|ACTUAL|2016.Q4|QTD| - 80020.23874;350|ACTUAL|2016.DEC|YTD| - 80020.23874;350|ACTUAL| | BH2: 2012.JUN|YTD| - 117245.82422;3521014|ACTUAL|2017.DEC|YTD| - 3278.733;3521014|ACTUAL|2017.Q4|QTD| - 3278.733;3521014|ACTUAL|2016.Q4|QTD| - 4320.7071;3521014|ACTUAL|2016.DEC|YTD| - 4320.7071;3521014|ACTUAL|2012.JUN|YTD| - 10845.3306;352|ACTUAL|2017.DEC|YTD| - 3278.733;352|ACTUAL|2017.Q4|QTD| - 3278.733;352|ACTUAL|2016.Q4|QTD| - 4320.7071;352|ACTUAL|2016.DEC|YTD| - 4320.7071;352|ACTUAL|2012.JUN|YTD| - 10845.3306;3541008|ACTUAL|2017.DEC|YTD| - 428075.97368;3541008|ACTUAL|2017.Q4|QTD| - 428075.97368;3541008|ACTU | BI2: AL|2016.Q4|QTD| - 372430.1118;3541008|ACTUAL|2016.DEC|YTD| - 372430.1118;3541008|ACTUAL|2012.JUN|YTD| - 297464.24676;3541010|ACTUAL|2017.DEC|YTD| - 11404.4587;3541010|ACTUAL|2017.Q4|QTD| - 11404.4587;3541010|ACTUAL|2016.Q4|QTD| - 7333.9278;3541010|ACTUAL|2016.DEC|YTD| - 7333.9278;3541010|ACTUAL|2012.JUN|YTD| - 3374.7636;3541012|ACTUAL|2017.DEC|YTD| - 3193.8621;3541012|ACTUAL|2017.Q4|QTD| - 3193.8621;3541012|ACTUAL|2016.Q4|QTD| - 3984.7968;3541012|ACTUAL|2016.DEC|YTD| - 3984.7968;3541012|ACTUAL|2012.JUN|YTD| | BJ2: - 3367.3246;3541014|ACTUAL|2017.DEC|YTD| - 5364.4921;3541014|ACTUAL|2017.Q4|QTD| - 5364.4921;3541014|ACTUAL|2016.Q4|QTD| - 4233.5114;3541014|ACTUAL|2016.DEC|YTD| - 4233.5114;3541014|ACTUAL|2012.JUN|YTD| - 13536.0988;3541016|ACTUAL|2017.DEC|YTD| - 145233.406672;3541016|ACTUAL|2017.Q4|QTD| - 145233.406672;3541016|ACTUAL|2016.Q4|QTD| - 133055.3783;3541016|ACTUAL|2016.DEC|YTD| - 133055.3783;3541016|ACTUAL|2012.JUN|YTD| - 127090.8518;3541018|ACTUAL|2017.DEC|YTD| - 1413.1736;3541018|ACTUAL|2017.Q4|QTD| - 1413.17 | BK2: 36;3541018|ACTUAL|2016.Q4|QTD| - 1824;3541018|ACTUAL|2016.DEC|YTD| - 1824;3541018|ACTUAL|2012.JUN|YTD| - 728.4732;3541020|ACTUAL|2017.DEC|YTD| - 7361.8692;3541020|ACTUAL|2017.Q4|QTD| - 7361.8692;3541020|ACTUAL|2016.Q4|QTD| - 7433.7792;3541020|ACTUAL|2016.DEC|YTD| - 7433.7792;3541020|ACTUAL|2012.JUN|YTD| - 2625.819;3541022|ACTUAL|2017.DEC|YTD| - 10089.7483;3541022|ACTUAL|2017.Q4|QTD| - 10089.7483;3541022|ACTUAL|2016.Q4|QTD| - 15644.5243;3541022|ACTUAL|2016.DEC|YTD| - 15644.5243;3541022|ACTUAL|2012.JUN|YTD| - | BL2: 25742.8719;3541024|ACTUAL|2017.DEC|YTD| - 1577.743;3541024|ACTUAL|2017.Q4|QTD| - 1577.743;3541024|ACTUAL|2016.Q4|QTD| - 1767.1075;3541024|ACTUAL|2016.DEC|YTD| - 1767.1075;3541024|ACTUAL|2012.JUN|YTD| - 2065.6766;3541026|ACTUAL|2017.DEC|YTD| - 68.8967;3541026|ACTUAL|2017.Q4|QTD| - 68.8967;3541026|ACTUAL|2016.Q4|QTD| - 323.4256;3541026|ACTUAL|2016.DEC|YTD| - 323.4256;3541026|ACTUAL|2012.JUN|YTD| - 289.9026;3541028|ACTUAL|2017.DEC|YTD| - 1838.64948;3541028|ACTUAL|2017.Q4|QTD| - 1838.64948;3541028|ACTUAL|2016. | BM2: Q4|QTD| - 2358.7196;3541028|ACTUAL|2016.DEC|YTD| - 2358.7196;3541028|ACTUAL|2012.JUN|YTD| - 3733.009;3541030|ACTUAL|2017.DEC|YTD| - 562.6547;3541030|ACTUAL|2017.Q4|QTD| - 562.6547;3541030|ACTUAL|2016.Q4|QTD| - 876.3024;3541030|ACTUAL|2016.DEC|YTD| - 876.3024;3541030|ACTUAL|2012.JUN|YTD| - 2020.115;3541032|ACTUAL|2012.JUN|YTD| - 2837.4776;3541036|ACTUAL|2016.Q4|QTD| - 6899.1232;3541036|ACTUAL|2016.DEC|YTD| - 6899.1232;3541038|ACTUAL|2017.DEC|YTD| - 18157.399365;3541038|ACTUAL|2017.Q4|QTD| - 18157.399365;3541 | BN2: 038|ACTUAL|2016.Q4|QTD| - 20054.62458;3541038|ACTUAL|2016.DEC|YTD| - 20054.62458;3541038|ACTUAL|2012.JUN|YTD| - 9105.5594;354|ACTUAL|2017.DEC|YTD| - 634342.327597;354|ACTUAL|2017.Q4|QTD| - 634342.327597;354|ACTUAL|2016.Q4|QTD| - 578219.33248;354|ACTUAL|2016.DEC|YTD| - 578219.33248;354|ACTUAL|2012.JUN|YTD| - 493982.18986;355|ACTUAL|2017.DEC|YTD| - 13402.1068;355|ACTUAL|2017.Q4|QTD| - 13402.1068;355|ACTUAL|2016.Q4|QTD| - 15224.4339;355|ACTUAL|2016.DEC|YTD| - 15224.4339;355|ACTUAL|2012.JUN|YTD| - 6706.7593;356 | BO2: 1014|ACTUAL|2017.DEC|YTD| - 9647.5445;3561014|ACTUAL|2017.Q4|QTD| - 9647.5445;3561014|ACTUAL|2016.Q4|QTD| - 6487.6784;3561014|ACTUAL|2016.DEC|YTD| - 6487.6784;3561014|ACTUAL|2012.JUN|YTD| - 3586.106;3561100|ACTUAL|2017.DEC|YTD| - 755.0578;3561100|ACTUAL|2017.Q4|QTD| - 755.0578;3561100|ACTUAL|2016.Q4|QTD| - 892.377;3561100|ACTUAL|2016.DEC|YTD| - 892.377;3561100|ACTUAL|2012.JUN|YTD| - 721.0398;356|ACTUAL|2017.DEC|YTD| - 15017.7623;356|ACTUAL|2017.Q4|QTD| - 15017.7623;356|ACTUAL|2016.Q4|QTD| - 12155.8154;356|A | BP2: CTUAL|2016.DEC|YTD| - 12155.8154;356|ACTUAL|2012.JUN|YTD| - 4307.1458;3571010|ACTUAL|2017.DEC|YTD| - 14696.2326;3571010|ACTUAL|2017.Q4|QTD| - 14696.2326;3571010|ACTUAL|2016.Q4|QTD| - 15909.616;3571010|ACTUAL|2016.DEC|YTD| - 15909.616;3571010|ACTUAL|2012.JUN|YTD| - 478288.531;3571014|ACTUAL|2017.DEC|YTD| - 122198.86062;3571014|ACTUAL|2017.Q4|QTD| - 122198.86062;3571014|ACTUAL|2016.Q4|QTD| - 71539.8965;3571014|ACTUAL|2016.DEC|YTD| - 71539.8965;3571014|ACTUAL|2012.JUN|YTD| - 74756.7788;3571016|ACTUAL|2017.DEC| | BQ2: YTD| - 0;3571016|ACTUAL|2017.Q4|QTD| - 0;3571016|ACTUAL|2016.Q4|QTD| - 0;3571016|ACTUAL|2016.DEC|YTD| - 0;3571016|ACTUAL|2012.JUN|YTD| - 6309.5992;357|ACTUAL|2017.DEC|YTD| - 136895.09322;357|ACTUAL|2017.Q4|QTD| - 136895.09322;357|ACTUAL|2016.Q4|QTD| - 87449.5125;357|ACTUAL|2016.DEC|YTD| - 87449.5125;357|ACTUAL|2012.JUN|YTD| - 559354.9090;358|ACTUAL|2017.DEC|YTD| - 10526.6291;358|ACTUAL|2017.Q4|QTD| - 10526.6291;358|ACTUAL|2016.Q4|QTD| - 9174.4764;358|ACTUAL|2016.DEC|YTD| - 9174.4764;3601014|ACTUAL|2017.DEC| | BR2: YTD| - 35397.0023153;3601014|ACTUAL|2017.Q4|QTD| - 35397.0023153;3601014|ACTUAL|2016.Q4|QTD| - 38150.347;3601014|ACTUAL|2016.DEC|YTD| - 38150.347;3601014|ACTUAL|2012.JUN|YTD| - 20299.1145;3601016|ACTUAL|2017.DEC|YTD| - 63956.19935;3601016|ACTUAL|2017.Q4|QTD| - 63956.19935;3601016|ACTUAL|2016.Q4|QTD| - 54675.6536;3601016|ACTUAL|2016.DEC|YTD| - 54675.6536;3601016|ACTUAL|2012.JUN|YTD| - 23492.26;3601017|ACTUAL|2017.DEC|YTD| - 61.79267;3601017|ACTUAL|2017.Q4|QTD| - 61.79267;3601017|ACTUAL|2016.Q4|QTD| - 107.524 | BS2: 72;3601017|ACTUAL|2016.DEC|YTD| - 107.52472;3601031|ACTUAL|2017.DEC|YTD| - 8790.946434;3601031|ACTUAL|2017.Q4|QTD| - 8790.946434;3601031|ACTUAL|2016.Q4|QTD| - 12147.729;3601031|ACTUAL|2016.DEC|YTD| - 12147.729;3601031|ACTUAL|2012.JUN|YTD| - 6718.8018;3601032|ACTUAL|2017.DEC|YTD| - 8326.125138;3601032|ACTUAL|2017.Q4|QTD| - 8326.125138;3601032|ACTUAL|2016.Q4|QTD| - 6637.388868;3601032|ACTUAL|2016.DEC|YTD| - 6637.388868;3601032|ACTUAL|2012.JUN|YTD| - -1010.269;360|ACTUAL|2017.DEC|YTD| - 116532.0659073;360|ACTU | BT2: AL|2017.Q4|QTD| - 116532.0659073;360|ACTUAL|2016.Q4|QTD| - 111718.643188;360|ACTUAL|2016.DEC|YTD| - 111718.643188;360|ACTUAL|2012.JUN|YTD| - 49499.9073;361|ACTUAL|2017.DEC|YTD| - 386699.1506;361|ACTUAL|2017.Q4|QTD| - 386699.1506;361|ACTUAL|2016.Q4|QTD| - 485927.7315;361|ACTUAL|2016.DEC|YTD| - 485927.7315;362|ACTUAL|2017.DEC|YTD| - 6475.5476;362|ACTUAL|2017.Q4|QTD| - 6475.5476;362|ACTUAL|2016.Q4|QTD| - 9962.7526;362|ACTUAL|2016.DEC|YTD| - 9962.7526;362|ACTUAL|2012.JUN|YTD| - 8837.6054;363|ACTUAL|2017.DEC|YTD | BU2: | - 0;363|ACTUAL|2017.Q4|QTD| - 0;363|ACTUAL|2016.Q4|QTD| - 0;363|ACTUAL|2016.DEC|YTD| - 0;363|ACTUAL|2012.JUN|YTD| - 1523.847;364|ACTUAL|2017.DEC|YTD| - 1476.8512;364|ACTUAL|2017.Q4|QTD| - 1476.8512;364|ACTUAL|2016.Q4|QTD| - 4011.6384;364|ACTUAL|2016.DEC|YTD| - 4011.6384;364|ACTUAL|2012.JUN|YTD| - 8384.8396;365|ACTUAL|2012.JUN|YTD| - 35730.268;380|ACTUAL|2017.DEC|YTD| - 1324646.2673243;380|ACTUAL|2017.Q4|QTD| - 1324646.2673243;380|ACTUAL|2016.Q4|QTD| - 1318165.043468;380|ACTUAL|2016.DEC|YTD| - 1318165.0434 | BV2: 68;380|ACTUAL|2012.JUN|YTD| - 1179172.80186;385|ACTUAL|2017.DEC|YTD| - 1393724.6748893;385|ACTUAL|2017.Q4|QTD| - 1393724.6748893;385|ACTUAL|2016.Q4|QTD| - 1398185.282208;385|ACTUAL|2016.DEC|YTD| - 1398185.282208;385|ACTUAL|2012.JUN|YTD| - 1296418.62608;300|ACTUAL|2017.DEC|YTD| - 3756008.9028677;300|ACTUAL|2017.Q4|QTD| - 3756008.9028677;300|ACTUAL|2016.Q4|QTD| - 3718445.9922484;300|ACTUAL|2016.DEC|YTD| - 3718445.9922484;300|ACTUAL|2012.JUN|YTD| - 2392083.820152;</CELLS></EVDRE><EVDRE ID="BPC Man|001-00001" D | BW2: IMENSION="AccountGrp|BU|Category|ConsoScope|Currency|Datasrc|Entity|Flow|iBU|IntCo|Time|MEASURES|" AXIS="AccountGrp|Category|Time|MEASURES|"><CELLS>P110|ACTUAL|2017.DEC|YTD| - -0.165744000000814;P110|ACTUAL|2017.Q4|QTD| - 41.664656;P110|ACTUAL|2016.Q4|QTD| - 31.6302000000001;P110|ACTUAL|2016.DEC|YTD| - 35.4845000000009;P110|ACTUAL|2012.JUN|YTD| - 1.25560000000041;160|ACTUAL|2017.DEC|YTD| - -0.165744000000814;160|ACTUAL|2017.Q4|QTD| - 41.664656;160|ACTUAL|2016.Q4|QTD| - 31.6302000000001;160|ACTUAL|2016.DEC|Y | BX2: TD| - 35.4845000000009;160|ACTUAL|2012.JUN|YTD| - 1.25560000000041;1050203|ACTUAL|2017.DEC|YTD| - -1172;1050203|ACTUAL|2017.Q4|QTD| - -421;1050203|ACTUAL|2016.Q4|QTD| - -322;1050203|ACTUAL|2016.DEC|YTD| - -1042;1050203|ACTUAL|2012.JUN|YTD| - -478;105020|ACTUAL|2017.DEC|YTD| - -1172;105020|ACTUAL|2017.Q4|QTD| - -421;105020|ACTUAL|2016.Q4|QTD| - -322;105020|ACTUAL|2016.DEC|YTD| - -1042;105020|ACTUAL|2012.JUN|YTD| - -478;105025|ACTUAL|2017.DEC|YTD| - 3552;105025|ACTUAL|2017.Q4|QTD| - 1039;105025|ACTUAL|2016.Q4 | BY2: |QTD| - 810;105025|ACTUAL|2016.DEC|YTD| - 3351;105035|ACTUAL|2017.DEC|YTD| - 194;105035|ACTUAL|2017.Q4|QTD| - 65;105035|ACTUAL|2016.Q4|QTD| - 91;105035|ACTUAL|2016.DEC|YTD| - 295;105035|ACTUAL|2012.JUN|YTD| - 2692;105040|ACTUAL|2016.Q4|QTD| - -1;105040|ACTUAL|2016.DEC|YTD| - -21;105045|ACTUAL|2017.DEC|YTD| - 96.7018;105045|ACTUAL|2017.Q4|QTD| - -14.8577;105045|ACTUAL|2016.Q4|QTD| - -0.00229999999999997;105045|ACTUAL|2016.DEC|YTD| - 7.4452;105045|ACTUAL|2012.JUN|YTD| - 3925.7328;1050602|ACTUAL|2017.DEC|YTD| | BZ2: - 25494.9272;1050602|ACTUAL|2017.Q4|QTD| - 8587.9457;1050602|ACTUAL|2016.Q4|QTD| - 8873.8152;1050602|ACTUAL|2016.DEC|YTD| - 15475.6252;1050602|ACTUAL|2012.JUN|YTD| - 15641.6930;1050603|ACTUAL|2017.DEC|YTD| - 344908.2292;1050603|ACTUAL|2017.Q4|QTD| - 86276.3994;1050603|ACTUAL|2016.Q4|QTD| - 65138.2966;1050603|ACTUAL|2016.DEC|YTD| - 297904.4716;1050603|ACTUAL|2012.JUN|YTD| - 128638.0000;105060|ACTUAL|2017.DEC|YTD| - 397422.1946;105060|ACTUAL|2017.Q4|QTD| - 101667.5202;105060|ACTUAL|2016.Q4|QTD| - 79928.4712;1 | CA2: 05060|ACTUAL|2016.DEC|YTD| - 337399.8932;105060|ACTUAL|2012.JUN|YTD| - 144279.6930;105|ACTUAL|2017.DEC|YTD| - 400092.8964;105|ACTUAL|2017.Q4|QTD| - 102335.6625;105|ACTUAL|2016.Q4|QTD| - 80506.4689;105|ACTUAL|2016.DEC|YTD| - 339990.3384;105|ACTUAL|2012.JUN|YTD| - 150419.4258;1100053|ACTUAL|2016.Q4|QTD| - 0;1100053|ACTUAL|2016.DEC|YTD| - -1;110005|ACTUAL|2016.Q4|QTD| - 0;110005|ACTUAL|2016.DEC|YTD| - -1;1100104|ACTUAL|2017.DEC|YTD| - -3;1100104|ACTUAL|2017.Q4|QTD| - -3;1100104|ACTUAL|2016.Q4|QTD| - -1;1100104 | CB2: |ACTUAL|2016.DEC|YTD| - -70;1100104|ACTUAL|2012.JUN|YTD| - -1;110010|ACTUAL|2017.DEC|YTD| - -3;110010|ACTUAL|2017.Q4|QTD| - -3;110010|ACTUAL|2016.Q4|QTD| - -1;110010|ACTUAL|2016.DEC|YTD| - -70;110010|ACTUAL|2012.JUN|YTD| - -1;1100151|ACTUAL|2017.DEC|YTD| - -13;1100151|ACTUAL|2017.Q4|QTD| - 0;1100151|ACTUAL|2016.Q4|QTD| - -1;1100151|ACTUAL|2016.DEC|YTD| - -4;1100151|ACTUAL|2012.JUN|YTD| - -94;1100152|ACTUAL|2017.DEC|YTD| - 9623;1100152|ACTUAL|2017.Q4|QTD| - 9623;110015|ACTUAL|2017.DEC|YTD| - 9610;110015|ACTU | CC2: AL|2017.Q4|QTD| - 9623;110015|ACTUAL|2016.Q4|QTD| - -1;110015|ACTUAL|2016.DEC|YTD| - -4;110015|ACTUAL|2012.JUN|YTD| - -94;110035|ACTUAL|2012.JUN|YTD| - -16;110045|ACTUAL|2017.DEC|YTD| - -172;110045|ACTUAL|2017.Q4|QTD| - -43;110045|ACTUAL|2016.Q4|QTD| - -142;110045|ACTUAL|2016.DEC|YTD| - -250;110045|ACTUAL|2012.JUN|YTD| - -63.2926;110050|ACTUAL|2016.Q4|QTD| - 14.895;110050|ACTUAL|2012.JUN|YTD| - -3;110070|ACTUAL|2017.DEC|YTD| - 1675.8;110070|ACTUAL|2017.Q4|QTD| - 829.71;110070|ACTUAL|2016.Q4|QTD| - 2.625;110 | CD2: 070|ACTUAL|2016.DEC|YTD| - 280.63;110075|ACTUAL|2017.DEC|YTD| - -4000;110075|ACTUAL|2017.Q4|QTD| - -4000;110|ACTUAL|2017.DEC|YTD| - 7110.8;110|ACTUAL|2017.Q4|QTD| - 6406.71;110|ACTUAL|2016.Q4|QTD| - -126.48;110|ACTUAL|2016.DEC|YTD| - -44.37;110|ACTUAL|2012.JUN|YTD| - -177.2926;115|ACTUAL|2017.DEC|YTD| - 407203.6964;115|ACTUAL|2017.Q4|QTD| - 108742.3725;115|ACTUAL|2016.Q4|QTD| - 80379.9889000001;115|ACTUAL|2016.DEC|YTD| - 339945.9684;115|ACTUAL|2012.JUN|YTD| - 150242.1332;1200051|ACTUAL|2017.DEC|YTD| - -1972 | CE2: 21.0231;1200051|ACTUAL|2017.Q4|QTD| - -51657.6377;1200051|ACTUAL|2016.Q4|QTD| - -46947.0244;1200051|ACTUAL|2016.DEC|YTD| - -176188.5764;1200051|ACTUAL|2012.JUN|YTD| - -72718.518;1200052|ACTUAL|2017.DEC|YTD| - -13679.0475;1200052|ACTUAL|2017.Q4|QTD| - -6644.4098;1200052|ACTUAL|2016.Q4|QTD| - -7167.2612;1200052|ACTUAL|2016.DEC|YTD| - -23358.1612;1200052|ACTUAL|2012.JUN|YTD| - 746.5267;120005|ACTUAL|2017.DEC|YTD| - -210900.0706;120005|ACTUAL|2017.Q4|QTD| - -58302.0475;120005|ACTUAL|2016.Q4|QTD| - -54114.2856;1 | CF2: 20005|ACTUAL|2016.DEC|YTD| - -199546.7376;120005|ACTUAL|2012.JUN|YTD| - -71971.9913;120010|ACTUAL|2017.DEC|YTD| - -7452;120010|ACTUAL|2017.Q4|QTD| - -1873;120010|ACTUAL|2016.Q4|QTD| - -1888;120010|ACTUAL|2016.DEC|YTD| - -7477;120010|ACTUAL|2012.JUN|YTD| - -1972;120015|ACTUAL|2017.DEC|YTD| - -17739.4913;120015|ACTUAL|2017.Q4|QTD| - -6580.0025;120015|ACTUAL|2016.Q4|QTD| - -3502.3853;120015|ACTUAL|2016.DEC|YTD| - -13408.3628;120015|ACTUAL|2012.JUN|YTD| - -5597.6204;120020|ACTUAL|2012.JUN|YTD| - -401.4954;12002 | CG2: 5|ACTUAL|2017.DEC|YTD| - 31506;120025|ACTUAL|2017.Q4|QTD| - 8407;120025|ACTUAL|2016.Q4|QTD| - 10421;120025|ACTUAL|2016.DEC|YTD| - 34969;120025|ACTUAL|2012.JUN|YTD| - 8924;120030|ACTUAL|2017.DEC|YTD| - -193;120030|ACTUAL|2017.Q4|QTD| - -38;120030|ACTUAL|2016.Q4|QTD| - -113.8836;120030|ACTUAL|2016.DEC|YTD| - -151.8836;120030|ACTUAL|2012.JUN|YTD| - -173;120035|ACTUAL|2017.DEC|YTD| - -8136.7921;120035|ACTUAL|2017.Q4|QTD| - -2096.9389;120035|ACTUAL|2016.Q4|QTD| - -1847.5805;120035|ACTUAL|2016.DEC|YTD| - -7307.61 | CH2: 6;120035|ACTUAL|2012.JUN|YTD| - -2599.6405;120040|ACTUAL|2017.DEC|YTD| - -27949.0029;120040|ACTUAL|2017.Q4|QTD| - -8051.0300;120040|ACTUAL|2016.Q4|QTD| - -11104.6003;120040|ACTUAL|2016.DEC|YTD| - -27690.9428;120040|ACTUAL|2012.JUN|YTD| - -7875.5092;120|ACTUAL|2017.DEC|YTD| - -240864.3569;120|ACTUAL|2017.Q4|QTD| - -68534.0189;120|ACTUAL|2016.Q4|QTD| - -62149.7353;120|ACTUAL|2016.DEC|YTD| - -220613.5428;120|ACTUAL|2012.JUN|YTD| - -81667.2568;1300051|ACTUAL|2017.DEC|YTD| - -43739.5650;1300051|ACTUAL|2017.Q4|QT | CI2: D| - -15390.4857;1300051|ACTUAL|2016.Q4|QTD| - -21330.7102;1300051|ACTUAL|2016.DEC|YTD| - -47904.9167;1300051|ACTUAL|2012.JUN|YTD| - -13773.8825;1300052|ACTUAL|2017.DEC|YTD| - -118203.2152;1300052|ACTUAL|2017.Q4|QTD| - -34971.615;1300052|ACTUAL|2016.Q4|QTD| - -23834.4866;1300052|ACTUAL|2016.DEC|YTD| - -89717.6596;1300052|ACTUAL|2012.JUN|YTD| - -53602.8978;1300053|ACTUAL|2017.DEC|YTD| - -10623.6412;1300053|ACTUAL|2017.Q4|QTD| - -2540.5717;1300053|ACTUAL|2016.Q4|QTD| - -2578.4216;1300053|ACTUAL|2016.DEC|YTD| | CJ2: - -9790.6376;1300053|ACTUAL|2012.JUN|YTD| - -4609.1218;1300054|ACTUAL|2017.DEC|YTD| - -30971.9272;1300054|ACTUAL|2017.Q4|QTD| - -8157.8831;1300054|ACTUAL|2016.Q4|QTD| - -7367.4379;1300054|ACTUAL|2016.DEC|YTD| - -29901.2644;1300054|ACTUAL|2012.JUN|YTD| - -14846.6627;130005|ACTUAL|2017.DEC|YTD| - -203538.3486;130005|ACTUAL|2017.Q4|QTD| - -61060.5555;130005|ACTUAL|2016.Q4|QTD| - -55111.0563;130005|ACTUAL|2016.DEC|YTD| - -177314.4783;130005|ACTUAL|2012.JUN|YTD| - -86832.5648;1300102|ACTUAL|2017.DEC|YTD| - -1726 | CK2: 2.6297;1300102|ACTUAL|2017.Q4|QTD| - -6529.9671;1300102|ACTUAL|2016.Q4|QTD| - -10575.4783;1300102|ACTUAL|2016.DEC|YTD| - -27371.194;1300102|ACTUAL|2012.JUN|YTD| - -2230.6101;13001031|ACTUAL|2017.DEC|YTD| - -2072.9998;13001031|ACTUAL|2017.Q4|QTD| - -605.9716;13001031|ACTUAL|2016.Q4|QTD| - -586.1422;13001031|ACTUAL|2016.DEC|YTD| - -2030.3696;13001031|ACTUAL|2012.JUN|YTD| - -1435.2706;13001032|ACTUAL|2017.DEC|YTD| - -178;13001032|ACTUAL|2017.Q4|QTD| - -178;13001032|ACTUAL|2016.Q4|QTD| - 102.3682;13001032|ACTUA | CL2: L|2016.DEC|YTD| - -111;13001032|ACTUAL|2012.JUN|YTD| - -901.881;13001033|ACTUAL|2017.DEC|YTD| - -312;13001033|ACTUAL|2017.Q4|QTD| - -113;13001033|ACTUAL|2016.Q4|QTD| - -48;13001033|ACTUAL|2016.DEC|YTD| - -1447;13001033|ACTUAL|2012.JUN|YTD| - -75;13001034|ACTUAL|2017.DEC|YTD| - -18;13001034|ACTUAL|2017.Q4|QTD| - -18;13001034|ACTUAL|2016.Q4|QTD| - -10;13001034|ACTUAL|2016.DEC|YTD| - -1491;1300103|ACTUAL|2017.DEC|YTD| - -2580.9998;1300103|ACTUAL|2017.Q4|QTD| - -914.9716;1300103|ACTUAL|2016.Q4|QTD| - -541.77399 | CM2: 9999999;1300103|ACTUAL|2016.DEC|YTD| - -5079.3696;1300103|ACTUAL|2012.JUN|YTD| - -2412.1516;1300104|ACTUAL|2017.DEC|YTD| - -2629.5263;1300104|ACTUAL|2017.Q4|QTD| - -354.1807;1300104|ACTUAL|2016.Q4|QTD| - -1066.6185;1300104|ACTUAL|2016.DEC|YTD| - -1824.3655;1300104|ACTUAL|2012.JUN|YTD| - -252;13001063|ACTUAL|2017.DEC|YTD| - 0;13001063|ACTUAL|2017.Q4|QTD| - 0;13001063|ACTUAL|2016.Q4|QTD| - 0;13001063|ACTUAL|2016.DEC|YTD| - 0;1300106|ACTUAL|2017.DEC|YTD| - -34.000000;1300106|ACTUAL|2017.Q4|QTD| - 2.000000;1300 | CN2: 106|ACTUAL|2016.Q4|QTD| - 0;1300106|ACTUAL|2016.DEC|YTD| - 0;130010|ACTUAL|2017.DEC|YTD| - -22507.155800;130010|ACTUAL|2017.Q4|QTD| - -7797.119400;130010|ACTUAL|2016.Q4|QTD| - -12183.8708;130010|ACTUAL|2016.DEC|YTD| - -34274.9291;130010|ACTUAL|2012.JUN|YTD| - -4894.7617;1300151|ACTUAL|2017.DEC|YTD| - -14009.8572;1300151|ACTUAL|2017.Q4|QTD| - -5216.4671;1300151|ACTUAL|2016.Q4|QTD| - -2597;1300151|ACTUAL|2016.DEC|YTD| - -10986;1300151|ACTUAL|2012.JUN|YTD| - -207.3053;130020|ACTUAL|2017.DEC|YTD| - -14009.8572; | CO2: 130020|ACTUAL|2017.Q4|QTD| - -5216.4671;130020|ACTUAL|2016.Q4|QTD| - -2597;130020|ACTUAL|2016.DEC|YTD| - -10986;130020|ACTUAL|2012.JUN|YTD| - -207.3053;130|ACTUAL|2017.DEC|YTD| - -240055.361600;130|ACTUAL|2017.Q4|QTD| - -74074.142000;130|ACTUAL|2016.Q4|QTD| - -69891.9271;130|ACTUAL|2016.DEC|YTD| - -222575.4074;130|ACTUAL|2012.JUN|YTD| - -91934.6318;135|ACTUAL|2017.DEC|YTD| - -73716.022099999998277;135|ACTUAL|2017.Q4|QTD| - -33865.7883999998958;135|ACTUAL|2016.Q4|QTD| - -51661.6734999999005;135|ACTUAL|2016.D | CP2: EC|YTD| - -103242.9817999999996;135|ACTUAL|2012.JUN|YTD| - -23359.75540000000036;140|ACTUAL|2012.JUN|YTD| - -2416.4075;1450051|ACTUAL|2016.Q4|QTD| - -135.3088;1450051|ACTUAL|2016.DEC|YTD| - -135.3088;145005|ACTUAL|2016.Q4|QTD| - -135.3088;145005|ACTUAL|2016.DEC|YTD| - -135.3088;1450101|ACTUAL|2017.DEC|YTD| - 1386.141;1450101|ACTUAL|2017.Q4|QTD| - 0.240500000000111;1450101|ACTUAL|2016.Q4|QTD| - 593;1450101|ACTUAL|2016.DEC|YTD| - 593;145010|ACTUAL|2017.DEC|YTD| - 1386.141;145010|ACTUAL|2017.Q4|QTD| - 0.240500 | CQ2: 000000111;145010|ACTUAL|2016.Q4|QTD| - 593;145010|ACTUAL|2016.DEC|YTD| - 593;145|ACTUAL|2017.DEC|YTD| - 1386.141;145|ACTUAL|2017.Q4|QTD| - 0.240500000000111;145|ACTUAL|2016.Q4|QTD| - 457.6912;145|ACTUAL|2016.DEC|YTD| - 457.6912;155005|ACTUAL|2017.DEC|YTD| - -39371.9079;155005|ACTUAL|2017.Q4|QTD| - -10479.9574;155005|ACTUAL|2016.Q4|QTD| - -7686.9428;155005|ACTUAL|2016.DEC|YTD| - -27751.3788;155005|ACTUAL|2012.JUN|YTD| - -14201;155|ACTUAL|2017.DEC|YTD| - -39371.9079;155|ACTUAL|2017.Q4|QTD| - -10479.9574;155|A | CR2: CTUAL|2016.Q4|QTD| - -7686.9428;155|ACTUAL|2016.DEC|YTD| - -27751.3788;155|ACTUAL|2012.JUN|YTD| - -14201;165|ACTUAL|2017.DEC|YTD| - -111701.95474399999818101059645;165|ACTUAL|2017.Q4|QTD| - -44303.840643999895011989994964;165|ACTUAL|2016.Q4|QTD| - -58859.294899999900881072992343;165|ACTUAL|2016.DEC|YTD| - -130501.18489999999916155957180;165|ACTUAL|2012.JUN|YTD| - -39975.907299999999943156581139;17000512|ACTUAL|2017.DEC|YTD| - -20415.36486;17000512|ACTUAL|2017.Q4|QTD| - -4199.36486;170005|ACTUAL|2017.DEC|YTD | CS2: | - -20415.36486;170005|ACTUAL|2017.Q4|QTD| - -4199.36486;170010|ACTUAL|2012.JUN|YTD| - -5130;170026|ACTUAL|2012.JUN|YTD| - 23509;170030|ACTUAL|2017.DEC|YTD| - 0;170030|ACTUAL|2017.Q4|QTD| - 0;170035|ACTUAL|2012.JUN|YTD| - -2936.8645;170|ACTUAL|2017.DEC|YTD| - -20415.36486;170|ACTUAL|2017.Q4|QTD| - -4199.36486;170|ACTUAL|2012.JUN|YTD| - 15442.1355;175|ACTUAL|2017.DEC|YTD| - -132117.319604;175|ACTUAL|2017.Q4|QTD| - -48503.2055039999;175|ACTUAL|2016.Q4|QTD| - -58859.294899999900881072992343;175|ACTUAL|2016.DE | CT2: C|YTD| - -130501.18489999999916155957180;175|ACTUAL|2012.JUN|YTD| - -24533.771799999999943156581139;1800051|ACTUAL|2017.DEC|YTD| - 3727.5717;1800051|ACTUAL|2017.Q4|QTD| - 1199.3866;1800051|ACTUAL|2016.Q4|QTD| - 426.7453;1800051|ACTUAL|2016.DEC|YTD| - 1971.369;1800051|ACTUAL|2012.JUN|YTD| - 9667.1254;1800052|ACTUAL|2017.DEC|YTD| - 49495;1800052|ACTUAL|2017.Q4|QTD| - 10364;1800052|ACTUAL|2016.Q4|QTD| - 16241.0000;1800052|ACTUAL|2016.DEC|YTD| - 69491.0000;1800052|ACTUAL|2012.JUN|YTD| - 44250.0000;1800054|ACTUA | CU2: L|2017.DEC|YTD| - -2.77140000000007;1800054|ACTUAL|2017.Q4|QTD| - -3.39560000000007;1800054|ACTUAL|2016.Q4|QTD| - 9.65330000000005;1800054|ACTUAL|2016.DEC|YTD| - 7.54710000000002;1800054|ACTUAL|2012.JUN|YTD| - 4.05779999999771;180005|ACTUAL|2017.DEC|YTD| - 53219.8003;180005|ACTUAL|2017.Q4|QTD| - 11559.9910;180005|ACTUAL|2016.Q4|QTD| - 16677.3986;180005|ACTUAL|2016.DEC|YTD| - 71469.9161;180005|ACTUAL|2012.JUN|YTD| - 53921.1832;180010|ACTUAL|2016.Q4|QTD| - 25278.7808;180010|ACTUAL|2016.DEC|YTD| - 25278.7808;1 | CV2: 800151|ACTUAL|2017.DEC|YTD| - 162417.3783;1800151|ACTUAL|2017.Q4|QTD| - 6714.81050000002;1800151|ACTUAL|2016.Q4|QTD| - 9229.0682;1800151|ACTUAL|2016.DEC|YTD| - 37095.5672;1800151|ACTUAL|2012.JUN|YTD| - 76356.0418;1800152|ACTUAL|2017.DEC|YTD| - 12960.7647;1800152|ACTUAL|2017.Q4|QTD| - -4022.5583;1800152|ACTUAL|2016.Q4|QTD| - -8680.3862;1800152|ACTUAL|2016.DEC|YTD| - 24277.2628;1800152|ACTUAL|2012.JUN|YTD| - 18428;1800153|ACTUAL|2017.DEC|YTD| - 7123;1800153|ACTUAL|2017.Q4|QTD| - -63277;1800153|ACTUAL|2016.Q4| | CW2: QTD| - -5254;1800153|ACTUAL|2016.DEC|YTD| - 136882;1800153|ACTUAL|2012.JUN|YTD| - 92;180015|ACTUAL|2017.DEC|YTD| - 196675.143;180015|ACTUAL|2017.Q4|QTD| - -56270.7478;180015|ACTUAL|2016.Q4|QTD| - 1935.68200000003;180015|ACTUAL|2016.DEC|YTD| - 225322.83;180015|ACTUAL|2012.JUN|YTD| - 94876.0418;1800251|ACTUAL|2017.DEC|YTD| - 0;1800251|ACTUAL|2017.Q4|QTD| - 0;1800251|ACTUAL|2016.Q4|QTD| - 0;1800251|ACTUAL|2016.DEC|YTD| - 0;1800254|ACTUAL|2017.DEC|YTD| - 2787;1800254|ACTUAL|2017.Q4|QTD| - 2786;1800254|ACTUAL|20 | CX2: 16.Q4|QTD| - 0;1800254|ACTUAL|2016.DEC|YTD| - 3213;1800254|ACTUAL|2012.JUN|YTD| - 1369;180025|ACTUAL|2017.DEC|YTD| - 2787.0;180025|ACTUAL|2017.Q4|QTD| - 2786;180025|ACTUAL|2016.Q4|QTD| - 0;180025|ACTUAL|2016.DEC|YTD| - 3213;180025|ACTUAL|2012.JUN|YTD| - 1369;180|ACTUAL|2017.DEC|YTD| - 252681.9433;180|ACTUAL|2017.Q4|QTD| - -41924.7568;180|ACTUAL|2016.Q4|QTD| - 43891.861399999989;180|ACTUAL|2016.DEC|YTD| - 325284.5269;180|ACTUAL|2012.JUN|YTD| - 150166.2250;1850051|ACTUAL|2017.DEC|YTD| - -49799.6326;1850051|AC | CY2: TUAL|2017.Q4|QTD| - -11393.9754;1850051|ACTUAL|2016.Q4|QTD| - -12757;1850051|ACTUAL|2016.DEC|YTD| - -61927;1850051|ACTUAL|2012.JUN|YTD| - -65650.053;1850052|ACTUAL|2017.DEC|YTD| - -746.0000;1850052|ACTUAL|2017.Q4|QTD| - 0;1850052|ACTUAL|2016.Q4|QTD| - -42.0000;1850052|ACTUAL|2016.DEC|YTD| - -189.0000;1850052|ACTUAL|2012.JUN|YTD| - -2777.0000;1850053|ACTUAL|2012.JUN|YTD| - -479;1850054|ACTUAL|2017.DEC|YTD| - -10678.3407;1850054|ACTUAL|2017.Q4|QTD| - -2634.4564;1850054|ACTUAL|2016.Q4|QTD| - -2365.4538;1850054 | CZ2: |ACTUAL|2016.DEC|YTD| - -10489.7664;1850054|ACTUAL|2012.JUN|YTD| - -5836.814;1850055|ACTUAL|2017.DEC|YTD| - -1088.6084;1850055|ACTUAL|2017.Q4|QTD| - -64.7274000000001;1850055|ACTUAL|2016.Q4|QTD| - -539.2052;1850055|ACTUAL|2016.DEC|YTD| - -2382;1850055|ACTUAL|2012.JUN|YTD| - -458.7874;1850057|ACTUAL|2017.DEC|YTD| - 630;1850057|ACTUAL|2017.Q4|QTD| - 24;1850057|ACTUAL|2016.Q4|QTD| - 131;1850057|ACTUAL|2016.DEC|YTD| - 3879;1850057|ACTUAL|2012.JUN|YTD| - 7995;185005|ACTUAL|2017.DEC|YTD| - -67068.5817;185005|ACTU | DA2: AL|2017.Q4|QTD| - -15561.1592;185005|ACTUAL|2016.Q4|QTD| - -16142.6590;185005|ACTUAL|2016.DEC|YTD| - -76282.7664;185005|ACTUAL|2012.JUN|YTD| - -67206.6544;1850151|ACTUAL|2017.DEC|YTD| - -39647.0088;1850151|ACTUAL|2017.Q4|QTD| - -9029.298;1850151|ACTUAL|2016.Q4|QTD| - -14543.4781;1850151|ACTUAL|2016.DEC|YTD| - -57131.4755;1850151|ACTUAL|2012.JUN|YTD| - -23457.209;1850152|ACTUAL|2017.DEC|YTD| - -43820.1765;1850152|ACTUAL|2017.Q4|QTD| - 49878.8707;1850152|ACTUAL|2016.Q4|QTD| - 13866.4734;1850152|ACTUAL|2016.DE | DB2: C|YTD| - -69749.2116;1850152|ACTUAL|2012.JUN|YTD| - -6406.8328;1850153|ACTUAL|2017.DEC|YTD| - -16013;1850153|ACTUAL|2017.Q4|QTD| - 12709;1850153|ACTUAL|2012.JUN|YTD| - -73550;185015|ACTUAL|2017.DEC|YTD| - -199487.1853;185015|ACTUAL|2017.Q4|QTD| - 50884.5727;185015|ACTUAL|2016.Q4|QTD| - -5981.00469999999;185015|ACTUAL|2016.DEC|YTD| - -221752.6871;185015|ACTUAL|2012.JUN|YTD| - -103414.0418;185020|ACTUAL|2016.Q4|QTD| - 267;185020|ACTUAL|2012.JUN|YTD| - -670;185042|ACTUAL|2016.Q4|QTD| - 0;185042|ACTUAL|2016.DEC | DC2: |YTD| - -34;185045|ACTUAL|2017.DEC|YTD| - -7784.4534;185045|ACTUAL|2017.Q4|QTD| - 7572.9773;185045|ACTUAL|2016.Q4|QTD| - -2987.3409;185045|ACTUAL|2016.DEC|YTD| - -17351.4461;185045|ACTUAL|2012.JUN|YTD| - -9158;185050|ACTUAL|2017.DEC|YTD| - 4306;185050|ACTUAL|2017.Q4|QTD| - 1636;185050|ACTUAL|2016.Q4|QTD| - 420;185050|ACTUAL|2016.DEC|YTD| - 420;185050|ACTUAL|2012.JUN|YTD| - 7033;185|ACTUAL|2017.DEC|YTD| - -270034.2204;185|ACTUAL|2017.Q4|QTD| - 44532.3908;185|ACTUAL|2016.Q4|QTD| - -24424.0046;185|ACTUAL|2016. | DD2: DEC|YTD| - -315000.8996;185|ACTUAL|2012.JUN|YTD| - -173415.6962;187|ACTUAL|2017.DEC|YTD| - -17352.2771;187|ACTUAL|2017.Q4|QTD| - 2607.634;187|ACTUAL|2016.Q4|QTD| - 19467.8568;187|ACTUAL|2016.DEC|YTD| - 10283.6273;187|ACTUAL|2012.JUN|YTD| - -23249.4712;189|ACTUAL|2017.DEC|YTD| - 894.0918;189|ACTUAL|2017.Q4|QTD| - -4761.3014;189|ACTUAL|2016.Q4|QTD| - 212.108099999999;189|ACTUAL|2016.DEC|YTD| - -2196.1359;189|ACTUAL|2012.JUN|YTD| - 59306.4108;190|ACTUAL|2017.DEC|YTD| - -148575.504904;190|ACTUAL|2017.Q4|QTD| - | DE2: -50656.872904;190|ACTUAL|2016.Q4|QTD| - -39179.3299999999;190|ACTUAL|2016.DEC|YTD| - -122413.6935;190|ACTUAL|2012.JUN|YTD| - 11523.167800000000056843418861;19510101|ACTUAL|2017.DEC|YTD| - 16727.2165;19510101|ACTUAL|2017.Q4|QTD| - 4669.97879999997;19510101|ACTUAL|2016.Q4|QTD| - 9930.9573;19510101|ACTUAL|2016.DEC|YTD| - 9974.572;19510101|ACTUAL|2012.JUN|YTD| - -13339.7368;19510102|ACTUAL|2017.DEC|YTD| - -433.1244;19510102|ACTUAL|2017.Q4|QTD| - -166.704999999999;19510102|ACTUAL|2016.Q4|QTD| - -185.1121;1951010 | DF2: 2|ACTUAL|2016.DEC|YTD| - -206.9752;19510102|ACTUAL|2012.JUN|YTD| - 2.615;1951010|ACTUAL|2017.DEC|YTD| - 16294.0921;1951010|ACTUAL|2017.Q4|QTD| - 4503.27379999997;1951010|ACTUAL|2016.Q4|QTD| - 9745.8452;1951010|ACTUAL|2016.DEC|YTD| - 9767.5968;1951010|ACTUAL|2012.JUN|YTD| - -13337.1218;1951012|ACTUAL|2017.DEC|YTD| - -3686.101519;1951012|ACTUAL|2017.Q4|QTD| - -1962.850919;1951012|ACTUAL|2016.Q4|QTD| - -780.4602;1951012|ACTUAL|2016.DEC|YTD| - -4707.7221;1951014|ACTUAL|2017.DEC|YTD| - -12857.41753;1951014|ACTUA | DG2: L|2017.Q4|QTD| - -1091.29073;1951014|ACTUAL|2016.Q4|QTD| - -3230.3361;1951014|ACTUAL|2016.DEC|YTD| - -4616.9542;1951014|ACTUAL|2012.JUN|YTD| - -1982.9008;1951016|ACTUAL|2017.DEC|YTD| - -577.6668;1951016|ACTUAL|2017.Q4|QTD| - -808.2231;1951016|ACTUAL|2016.Q4|QTD| - -126.5132;1951016|ACTUAL|2016.DEC|YTD| - -305.2532;1951018|ACTUAL|2017.DEC|YTD| - 403.3885;1951018|ACTUAL|2017.Q4|QTD| - 548.1641;1951018|ACTUAL|2016.Q4|QTD| - -37.6862;1951018|ACTUAL|2016.DEC|YTD| - -14.5442;1951020|ACTUAL|2017.DEC|YTD| - 161.406 | DH2: 9;1951020|ACTUAL|2017.Q4|QTD| - 161.4069;1951020|ACTUAL|2012.JUN|YTD| - 8200.9126;1951022|ACTUAL|2017.DEC|YTD| - -395;1951022|ACTUAL|2017.Q4|QTD| - 235;1951022|ACTUAL|2016.Q4|QTD| - 12271.2789;1951022|ACTUAL|2016.DEC|YTD| - 12271.2789;1951024|ACTUAL|2017.DEC|YTD| - -285.9919;1951024|ACTUAL|2017.Q4|QTD| - 147.6873;1951024|ACTUAL|2016.Q4|QTD| - -9271.6512;1951024|ACTUAL|2016.DEC|YTD| - -8779.6512;1951024|ACTUAL|2012.JUN|YTD| - -7246.2344;1951050|ACTUAL|2017.DEC|YTD| - -943.290249000012;1951050|ACTUAL|2017.Q4| | DI2: QTD| - 1733.16735099997;1951050|ACTUAL|2016.Q4|QTD| - 8570.4772;1951050|ACTUAL|2016.DEC|YTD| - 3614.7508;1951050|ACTUAL|2012.JUN|YTD| - -14365.3444;1951070|ACTUAL|2017.DEC|YTD| - -2103;1951070|ACTUAL|2017.Q4|QTD| - -573;1951070|ACTUAL|2016.Q4|QTD| - -539;1951070|ACTUAL|2016.DEC|YTD| - -2040;1951070|ACTUAL|2012.JUN|YTD| - -950;195|ACTUAL|2017.DEC|YTD| - -3046.29024900001;195|ACTUAL|2017.Q4|QTD| - 1160.16735099997;195|ACTUAL|2016.Q4|QTD| - 8031.4772;195|ACTUAL|2016.DEC|YTD| - 1574.7508;195|ACTUAL|2012.JUN|YTD | DJ2: | - -15315.3444;196|ACTUAL|2017.DEC|YTD| - -151621.795153;196|ACTUAL|2017.Q4|QTD| - -49496.705553;196|ACTUAL|2016.Q4|QTD| - -31147.8527999999;196|ACTUAL|2016.DEC|YTD| - -120838.9426999999;196|ACTUAL|2012.JUN|YTD| - -3792.1765999999899431565811392;100|ACTUAL|2017.DEC|YTD| - -151621.795153;100|ACTUAL|2017.Q4|QTD| - -49496.705553;100|ACTUAL|2016.Q4|QTD| - -31147.8527999999;100|ACTUAL|2016.DEC|YTD| - -120838.9426999999;100|ACTUAL|2012.JUN|YTD| - -3792.1765999999899431565811392;204|ACTUAL|2017.DEC|YTD| - 234256; | DK2: 204|ACTUAL|2017.Q4|QTD| - 234256;204|ACTUAL|2016.Q4|QTD| - 194975;204|ACTUAL|2016.DEC|YTD| - 194975;204|ACTUAL|2012.JUN|YTD| - 52928;208204|ACTUAL|2017.DEC|YTD| - 13456;208204|ACTUAL|2017.Q4|QTD| - 13456;208204|ACTUAL|2016.Q4|QTD| - 37049;208204|ACTUAL|2016.DEC|YTD| - 37049;208204|ACTUAL|2012.JUN|YTD| - 42181;208|ACTUAL|2017.DEC|YTD| - 13456;208|ACTUAL|2017.Q4|QTD| - 13456;208|ACTUAL|2016.Q4|QTD| - 37049;208|ACTUAL|2016.DEC|YTD| - 37049;208|ACTUAL|2012.JUN|YTD| - 42181;220|ACTUAL|2017.DEC|YTD| - 247712;220| | DL2: ACTUAL|2017.Q4|QTD| - 247712;220|ACTUAL|2016.Q4|QTD| - 232024;220|ACTUAL|2016.DEC|YTD| - 232024;220|ACTUAL|2012.JUN|YTD| - 95109;2261010|ACTUAL|2017.DEC|YTD| - 732;2261010|ACTUAL|2017.Q4|QTD| - 732;2261010|ACTUAL|2016.Q4|QTD| - 750;2261010|ACTUAL|2016.DEC|YTD| - 750;2261010|ACTUAL|2012.JUN|YTD| - 1070;2261014|ACTUAL|2017.DEC|YTD| - 1240.6192;2261014|ACTUAL|2017.Q4|QTD| - 1240.6192;2261014|ACTUAL|2016.Q4|QTD| - 1377.7999;2261014|ACTUAL|2016.DEC|YTD| - 1377.7999;2261014|ACTUAL|2012.JUN|YTD| - 4360;226|ACTUAL| | DM2: 2017.DEC|YTD| - 1972.6192;226|ACTUAL|2017.Q4|QTD| - 1972.6192;226|ACTUAL|2016.Q4|QTD| - 2127.7999;226|ACTUAL|2016.DEC|YTD| - 2127.7999;226|ACTUAL|2012.JUN|YTD| - 5430;236|ACTUAL|2017.DEC|YTD| - 12084.0512;236|ACTUAL|2017.Q4|QTD| - 12084.0512;236|ACTUAL|2016.Q4|QTD| - 9949.562;236|ACTUAL|2016.DEC|YTD| - 9949.562;236|ACTUAL|2012.JUN|YTD| - 11575;238226|ACTUAL|2017.DEC|YTD| - 807;238226|ACTUAL|2017.Q4|QTD| - 807;238234|ACTUAL|2017.DEC|YTD| - 675.0416;238234|ACTUAL|2017.Q4|QTD| - 675.0416;238234|ACTUAL|2016.Q4| | DN2: QTD| - 2193.7994;238234|ACTUAL|2016.DEC|YTD| - 2193.7994;238234|ACTUAL|2012.JUN|YTD| - 1227;238|ACTUAL|2017.DEC|YTD| - 1482.0416;238|ACTUAL|2017.Q4|QTD| - 1482.0416;238|ACTUAL|2016.Q4|QTD| - 2193.7994;238|ACTUAL|2016.DEC|YTD| - 2193.7994;238|ACTUAL|2012.JUN|YTD| - 1227;240|ACTUAL|2017.DEC|YTD| - 15538.712;240|ACTUAL|2017.Q4|QTD| - 15538.712;240|ACTUAL|2016.Q4|QTD| - 14271.1613;240|ACTUAL|2016.DEC|YTD| - 14271.1613;240|ACTUAL|2012.JUN|YTD| - 18232;2421010|ACTUAL|2017.DEC|YTD| - 3964254.94691;2421010|ACTUAL|2 | DO2: 017.Q4|QTD| - 3964254.94691;2421010|ACTUAL|2016.Q4|QTD| - 3994407.30796;2421010|ACTUAL|2016.DEC|YTD| - 3994407.30796;2421010|ACTUAL|2012.JUN|YTD| - 1550481.53686;242|ACTUAL|2017.DEC|YTD| - 3964254.94691;242|ACTUAL|2017.Q4|QTD| - 3964254.94691;242|ACTUAL|2016.Q4|QTD| - 3994407.30796;242|ACTUAL|2016.DEC|YTD| - 3994407.30796;242|ACTUAL|2012.JUN|YTD| - 1550481.53686;2431010|ACTUAL|2016.Q4|QTD| - 0;2431010|ACTUAL|2016.DEC|YTD| - 0;2431010|ACTUAL|2012.JUN|YTD| - -0.0000000000014148682225823;243|ACTUAL|2016.Q4|QTD | DP2: | - 0;243|ACTUAL|2016.DEC|YTD| - 0;243|ACTUAL|2012.JUN|YTD| - -0.0000000000014148682225823;245|ACTUAL|2012.JUN|YTD| - 629530;2461012|ACTUAL|2012.JUN|YTD| - 2312;2461014|ACTUAL|2017.DEC|YTD| - 8965;2461014|ACTUAL|2017.Q4|QTD| - 8965;2461014|ACTUAL|2016.Q4|QTD| - 8965;2461014|ACTUAL|2016.DEC|YTD| - 8965;2461014|ACTUAL|2012.JUN|YTD| - 17782;2461016|ACTUAL|2017.DEC|YTD| - 576;2461016|ACTUAL|2017.Q4|QTD| - 576;2461016|ACTUAL|2016.Q4|QTD| - 576;2461016|ACTUAL|2016.DEC|YTD| - 576;2461016|ACTUAL|2012.JUN|YTD| - 731 | DQ2: ;246|ACTUAL|2017.DEC|YTD| - 9541;246|ACTUAL|2017.Q4|QTD| - 9541;246|ACTUAL|2016.Q4|QTD| - 9541;246|ACTUAL|2016.DEC|YTD| - 9541;246|ACTUAL|2012.JUN|YTD| - 20825;247|ACTUAL|2012.JUN|YTD| - 62513;249|ACTUAL|2017.DEC|YTD| - 44106.5947;249|ACTUAL|2017.Q4|QTD| - 44106.5947;249|ACTUAL|2016.Q4|QTD| - 47405.5333;249|ACTUAL|2016.DEC|YTD| - 47405.5333;249|ACTUAL|2012.JUN|YTD| - 59450.007;250|ACTUAL|2017.DEC|YTD| - 4017902.54161;250|ACTUAL|2017.Q4|QTD| - 4017902.54161;250|ACTUAL|2016.Q4|QTD| - 4085899.84126;250|ACTUAL| | DR2: 2016.DEC|YTD| - 4085899.84126;250|ACTUAL|2012.JUN|YTD| - 2322799.54386;252|ACTUAL|2017.DEC|YTD| - 4281153.25361;252|ACTUAL|2017.Q4|QTD| - 4281153.25361;252|ACTUAL|2016.Q4|QTD| - 4332195.00256;252|ACTUAL|2016.DEC|YTD| - 4332195.00256;252|ACTUAL|2012.JUN|YTD| - 2436140.54386;2551012|ACTUAL|2017.DEC|YTD| - -10;2551012|ACTUAL|2017.Q4|QTD| - -10;2551012|ACTUAL|2016.Q4|QTD| - 13;2551012|ACTUAL|2016.DEC|YTD| - 13;2551012|ACTUAL|2012.JUN|YTD| - 96;255|ACTUAL|2017.DEC|YTD| - -10;255|ACTUAL|2017.Q4|QTD| - -10;255|ACT | DS2: UAL|2016.Q4|QTD| - 13;255|ACTUAL|2016.DEC|YTD| - 13;255|ACTUAL|2012.JUN|YTD| - 96;2601014|ACTUAL|2017.DEC|YTD| - 55219.5752;2601014|ACTUAL|2017.Q4|QTD| - 55219.5752;2601014|ACTUAL|2016.Q4|QTD| - 55311.1696;2601014|ACTUAL|2016.DEC|YTD| - 55311.1696;2601014|ACTUAL|2012.JUN|YTD| - 106662.4464;260|ACTUAL|2017.DEC|YTD| - 55219.5752;260|ACTUAL|2017.Q4|QTD| - 55219.5752;260|ACTUAL|2016.Q4|QTD| - 55311.1696;260|ACTUAL|2016.DEC|YTD| - 55311.1696;260|ACTUAL|2012.JUN|YTD| - 106662.4464;261|ACTUAL|2017.DEC|YTD| - 48083 | DT2: .4672;261|ACTUAL|2017.Q4|QTD| - 48083.4672;261|ACTUAL|2016.Q4|QTD| - 46364.9136;261|ACTUAL|2016.DEC|YTD| - 46364.9136;261|ACTUAL|2012.JUN|YTD| - 44372;2621010|ACTUAL|2017.DEC|YTD| - 4650.8688;2621010|ACTUAL|2017.Q4|QTD| - 4650.8688;2621010|ACTUAL|2016.Q4|QTD| - 2142.3032;2621010|ACTUAL|2016.DEC|YTD| - 2142.3032;2621010|ACTUAL|2012.JUN|YTD| - 2358.9206;2621011|ACTUAL|2016.Q4|QTD| - 9271.35;2621011|ACTUAL|2016.DEC|YTD| - 9271.35;2621012|ACTUAL|2017.DEC|YTD| - -4000;2621012|ACTUAL|2017.Q4|QTD| - -4000;2621012| | DU2: ACTUAL|2012.JUN|YTD| - -8486.48;262|ACTUAL|2017.DEC|YTD| - 650.8688;262|ACTUAL|2017.Q4|QTD| - 650.8688;262|ACTUAL|2016.Q4|QTD| - 11413.6532;262|ACTUAL|2016.DEC|YTD| - 11413.6532;262|ACTUAL|2012.JUN|YTD| - -6127.5594;2631010|ACTUAL|2017.DEC|YTD| - 16997;2631010|ACTUAL|2017.Q4|QTD| - 16997;2631010|ACTUAL|2016.Q4|QTD| - 5653;2631010|ACTUAL|2016.DEC|YTD| - 5653;2631010|ACTUAL|2012.JUN|YTD| - 11406;2631012|ACTUAL|2017.DEC|YTD| - 749.4346;2631012|ACTUAL|2017.Q4|QTD| - 749.4346;2631012|ACTUAL|2016.Q4|QTD| - 359.05 | DV2: 41;2631012|ACTUAL|2016.DEC|YTD| - 359.0541;2631012|ACTUAL|2012.JUN|YTD| - 2082.2284;2631020|ACTUAL|2012.JUN|YTD| - 555;2631026|ACTUAL|2012.JUN|YTD| - 12326;2631028|ACTUAL|2017.DEC|YTD| - 1663.71108;2631028|ACTUAL|2017.Q4|QTD| - 1663.71108;2631028|ACTUAL|2016.Q4|QTD| - 6269.36328;2631028|ACTUAL|2016.DEC|YTD| - 6269.36328;2631028|ACTUAL|2012.JUN|YTD| - 10485.55135;263|ACTUAL|2017.DEC|YTD| - 19410.14568;263|ACTUAL|2017.Q4|QTD| - 19410.14568;263|ACTUAL|2016.Q4|QTD| - 12281.41738;263|ACTUAL|2016.DEC|YTD| - 12281 | DW2: .41738;263|ACTUAL|2012.JUN|YTD| - 36854.77975;264|ACTUAL|2017.DEC|YTD| - 14223.8913;264|ACTUAL|2017.Q4|QTD| - 14223.8913;264|ACTUAL|2016.Q4|QTD| - 15058.5074;264|ACTUAL|2016.DEC|YTD| - 15058.5074;264|ACTUAL|2012.JUN|YTD| - 7353.7534;265|ACTUAL|2012.JUN|YTD| - 23674;266|ACTUAL|2017.DEC|YTD| - 12587;266|ACTUAL|2017.Q4|QTD| - 12587;268|ACTUAL|2017.DEC|YTD| - 41.956;268|ACTUAL|2017.Q4|QTD| - 41.956;268|ACTUAL|2016.Q4|QTD| - 43.416;268|ACTUAL|2016.DEC|YTD| - 43.416;268|ACTUAL|2012.JUN|YTD| - 5131.8638;270|ACTUAL | DX2: |2017.DEC|YTD| - 154006.90418;270|ACTUAL|2017.Q4|QTD| - 154006.90418;270|ACTUAL|2016.Q4|QTD| - 165532.07718;270|ACTUAL|2016.DEC|YTD| - 165532.07718;270|ACTUAL|2012.JUN|YTD| - 218017.28395;2821010|ACTUAL|2017.DEC|YTD| - 14733;2821010|ACTUAL|2017.Q4|QTD| - 14733;2821010|ACTUAL|2016.Q4|QTD| - 15946.0000;2821010|ACTUAL|2016.DEC|YTD| - 15946.0000;2821010|ACTUAL|2012.JUN|YTD| - 2017318.0000;282|ACTUAL|2017.DEC|YTD| - 14733;282|ACTUAL|2017.Q4|QTD| - 14733;282|ACTUAL|2016.Q4|QTD| - 15946.0000;282|ACTUAL|2016.DEC|YT | DY2: D| - 15946.0000;282|ACTUAL|2012.JUN|YTD| - 2017318.0000;2831010|ACTUAL|2012.JUN|YTD| - 34101;283|ACTUAL|2012.JUN|YTD| - 34101;2840101|ACTUAL|2017.DEC|YTD| - 898781.2824;2840101|ACTUAL|2017.Q4|QTD| - 898781.2824;2840101|ACTUAL|2016.Q4|QTD| - 620379.9472;2840101|ACTUAL|2016.DEC|YTD| - 620379.9472;2840101|ACTUAL|2012.JUN|YTD| - 699872.93752;2841012|ACTUAL|2017.DEC|YTD| - 1114427.0000;2841012|ACTUAL|2017.Q4|QTD| - 1114427.0000;2841012|ACTUAL|2016.Q4|QTD| - 1492586.0000;2841012|ACTUAL|2016.DEC|YTD| - 1492586.000 | DZ2: 0;284|ACTUAL|2017.DEC|YTD| - 2013208.2824;284|ACTUAL|2017.Q4|QTD| - 2013208.2824;284|ACTUAL|2016.Q4|QTD| - 2112965.9472;284|ACTUAL|2016.DEC|YTD| - 2112965.9472;284|ACTUAL|2012.JUN|YTD| - 699872.93752;285|ACTUAL|2017.DEC|YTD| - 2027941.2824;285|ACTUAL|2017.Q4|QTD| - 2027941.2824;285|ACTUAL|2016.Q4|QTD| - 2128911.9472;285|ACTUAL|2016.DEC|YTD| - 2128911.9472;285|ACTUAL|2012.JUN|YTD| - 2751291.93752;287|ACTUAL|2017.DEC|YTD| - 2181948.18658;287|ACTUAL|2017.Q4|QTD| - 2181948.18658;287|ACTUAL|2016.Q4|QTD| - 229444 | EA2: 4.02438;287|ACTUAL|2016.DEC|YTD| - 2294444.02438;287|ACTUAL|2012.JUN|YTD| - 2969309.22147;2881010|ACTUAL|2017.DEC|YTD| - -0.00000000000344968498211529;2881010|ACTUAL|2017.Q4|QTD| - -0.00000000000344968498211529;2881010|ACTUAL|2016.Q4|QTD| - 13493.436;2881010|ACTUAL|2016.DEC|YTD| - 13493.436;2881010|ACTUAL|2012.JUN|YTD| - 25273.56;288|ACTUAL|2017.DEC|YTD| - -0.00000000000344968498211529;288|ACTUAL|2017.Q4|QTD| - -0.00000000000344968498211529;288|ACTUAL|2016.Q4|QTD| - 13493.436;288|ACTUAL|2016.DEC|YTD| - 1349 | EB2: 3.436;288|ACTUAL|2012.JUN|YTD| - 25273.56;200|ACTUAL|2017.DEC|YTD| - 6463101.44019;200|ACTUAL|2017.Q4|QTD| - 6463101.44019;200|ACTUAL|2016.Q4|QTD| - 6640132.46294;200|ACTUAL|2016.DEC|YTD| - 6640132.46294;200|ACTUAL|2012.JUN|YTD| - 5430723.32533;302|ACTUAL|2017.DEC|YTD| - 2020423.6636;302|ACTUAL|2017.Q4|QTD| - 2020423.6636;302|ACTUAL|2016.Q4|QTD| - 2081949.8865;302|ACTUAL|2016.DEC|YTD| - 2081949.8865;302|ACTUAL|2012.JUN|YTD| - 1784549.041;303|ACTUAL|2017.DEC|YTD| - 74857.35862;303|ACTUAL|2017.Q4|QTD| - 74857 | EC2: .35862;303|ACTUAL|2016.Q4|QTD| - 66878.71962;303|ACTUAL|2016.DEC|YTD| - 66878.71962;303|ACTUAL|2012.JUN|YTD| - 27182.31682;304|ACTUAL|2017.DEC|YTD| - 34214.1082;304|ACTUAL|2017.Q4|QTD| - 34214.1082;304|ACTUAL|2016.Q4|QTD| - 32263.7727;304|ACTUAL|2016.DEC|YTD| - 32263.7727;304|ACTUAL|2012.JUN|YTD| - -16965.6933;306|ACTUAL|2017.DEC|YTD| - -68328;306|ACTUAL|2017.Q4|QTD| - -68328;306|ACTUAL|2016.Q4|QTD| - 38777;306|ACTUAL|2016.DEC|YTD| - 38777;306|ACTUAL|2012.JUN|YTD| - -86779;308|ACTUAL|2017.DEC|YTD| - 1004;30 | ED2: 8|ACTUAL|2017.Q4|QTD| - 1004;308|ACTUAL|2016.Q4|QTD| - 1004;308|ACTUAL|2016.DEC|YTD| - 1004;308|ACTUAL|2012.JUN|YTD| - 61;310|ACTUAL|2017.DEC|YTD| - -46976;310|ACTUAL|2017.Q4|QTD| - -46976;310|ACTUAL|2016.Q4|QTD| - -58929;310|ACTUAL|2016.DEC|YTD| - -58929;310|ACTUAL|2012.JUN|YTD| - -35271;312|ACTUAL|2017.DEC|YTD| - 579000;312|ACTUAL|2017.Q4|QTD| - 579000;312|ACTUAL|2016.Q4|QTD| - 364500;312|ACTUAL|2016.DEC|YTD| - 364500;312|ACTUAL|2012.JUN|YTD| - 0;314|ACTUAL|2017.DEC|YTD| - -1813533.0128;314|ACTUAL|2017.Q4 | EE2: |QTD| - -1813533.0128;314|ACTUAL|2016.Q4|QTD| - -1088589.6608;314|ACTUAL|2016.DEC|YTD| - -1088589.6608;314|ACTUAL|2012.JUN|YTD| - 0;3161010|ACTUAL|2017.DEC|YTD| - -824471.6313611;3161010|ACTUAL|2017.Q4|QTD| - -824471.6313611;3161010|ACTUAL|2016.Q4|QTD| - -1037395.2974811;3161010|ACTUAL|2016.DEC|YTD| - -1037395.2974811;3161010|ACTUAL|2012.JUN|YTD| - -257749.5260111;3161011|ACTUAL|2017.DEC|YTD| - 382115.1192;3161011|ACTUAL|2017.Q4|QTD| - 382115.1192;3161011|ACTUAL|2016.Q4|QTD| - 418306.4057;3161011|ACTUAL|201 | EF2: 6.DEC|YTD| - 418306.4057;3161011|ACTUAL|2012.JUN|YTD| - 365531.5245;3161012|ACTUAL|2017.DEC|YTD| - 3785960.3566;3161012|ACTUAL|2017.Q4|QTD| - 3785960.3566;3161012|ACTUAL|2016.Q4|QTD| - 3781805.8684;3161012|ACTUAL|2016.DEC|YTD| - 3781805.8684;3161012|ACTUAL|2012.JUN|YTD| - 3774134.0214;3161014|ACTUAL|2017.DEC|YTD| - -3690476.16069;3161014|ACTUAL|2017.Q4|QTD| - -3690476.16069;3161014|ACTUAL|2016.Q4|QTD| - -3044697.80932;3161014|ACTUAL|2016.DEC|YTD| - -3044697.80932;3161014|ACTUAL|2012.JUN|YTD| - -228707.35;31 | EG2: 61016|ACTUAL|2017.DEC|YTD| - 2225425.7945;3161016|ACTUAL|2017.Q4|QTD| - 2225425.7945;3161016|ACTUAL|2016.Q4|QTD| - 2287809.1725;3161016|ACTUAL|2016.DEC|YTD| - 2287809.1725;316|ACTUAL|2017.DEC|YTD| - 1878553.4782489;316|ACTUAL|2017.Q4|QTD| - 1878553.4782489;316|ACTUAL|2016.Q4|QTD| - 2405828.3397989;316|ACTUAL|2016.DEC|YTD| - 2405828.3397989;316|ACTUAL|2012.JUN|YTD| - 3653208.6698889;317|ACTUAL|2017.DEC|YTD| - 977010.7349;317|ACTUAL|2017.Q4|QTD| - 977010.7349;317|ACTUAL|2016.Q4|QTD| - 984026.7224;317|ACTUAL|2 | EH2: 016.DEC|YTD| - 984026.7224;317|ACTUAL|2012.JUN|YTD| - 811549.0672;318|ACTUAL|2017.DEC|YTD| - 3883934.3307689;318|ACTUAL|2017.Q4|QTD| - 3883934.3307689;318|ACTUAL|2016.Q4|QTD| - 5059730.7802189;318|ACTUAL|2016.DEC|YTD| - 5059730.7802189;318|ACTUAL|2012.JUN|YTD| - 6137534.4016089;320|ACTUAL|2017.DEC|YTD| - 3883934.3307689;320|ACTUAL|2017.Q4|QTD| - 3883934.3307689;320|ACTUAL|2016.Q4|QTD| - 5059730.7802189;320|ACTUAL|2016.DEC|YTD| - 5059730.7802189;320|ACTUAL|2012.JUN|YTD| - 6137534.4016089;321|ACTUAL|2017.DEC| | EI2: YTD| - 2256.2692;321|ACTUAL|2017.Q4|QTD| - 2256.2692;321|ACTUAL|2016.Q4|QTD| - 2741;321|ACTUAL|2016.DEC|YTD| - 2741;321|ACTUAL|2012.JUN|YTD| - 6168.1628;322|ACTUAL|2017.DEC|YTD| - 333834.47808;322|ACTUAL|2017.Q4|QTD| - 333834.47808;322|ACTUAL|2016.Q4|QTD| - 415818.68928;322|ACTUAL|2016.DEC|YTD| - 415818.68928;322|ACTUAL|2012.JUN|YTD| - 240364.074;323|ACTUAL|2017.DEC|YTD| - 1646.7796;323|ACTUAL|2017.Q4|QTD| - 1646.7796;323|ACTUAL|2016.Q4|QTD| - 1547.7376;323|ACTUAL|2016.DEC|YTD| - 1547.7376;323|ACTUAL|2012.J | EJ2: UN|YTD| - 9904;3241100|ACTUAL|2017.DEC|YTD| - 3599.8248;3241100|ACTUAL|2017.Q4|QTD| - 3599.8248;324|ACTUAL|2017.DEC|YTD| - 3599.8248;324|ACTUAL|2017.Q4|QTD| - 3599.8248;3251012|ACTUAL|2017.DEC|YTD| - 686389;3251012|ACTUAL|2017.Q4|QTD| - 686389;3251012|ACTUAL|2016.Q4|QTD| - 771264;3251012|ACTUAL|2016.DEC|YTD| - 771264;3251012|ACTUAL|2012.JUN|YTD| - 2288965;3251014|ACTUAL|2012.JUN|YTD| - 20801;325|ACTUAL|2017.DEC|YTD| - 686389;325|ACTUAL|2017.Q4|QTD| - 686389;325|ACTUAL|2016.Q4|QTD| - 771264;325|ACTUAL|2016.D | EK2: EC|YTD| - 771264;325|ACTUAL|2012.JUN|YTD| - 2309766;326|ACTUAL|2017.DEC|YTD| - 1442098;326|ACTUAL|2017.Q4|QTD| - 1442098;326|ACTUAL|2016.Q4|QTD| - 1071252;326|ACTUAL|2016.DEC|YTD| - 1071252;326|ACTUAL|2012.JUN|YTD| - 488067;328|ACTUAL|2017.DEC|YTD| - 185383;328|ACTUAL|2017.Q4|QTD| - 185383;328|ACTUAL|2016.Q4|QTD| - 231402;328|ACTUAL|2016.DEC|YTD| - 231402;330|ACTUAL|2012.JUN|YTD| - 24478.6885;332|ACTUAL|2012.JUN|YTD| - 1567;350|ACTUAL|2017.DEC|YTD| - 2749965.35168;350|ACTUAL|2017.Q4|QTD| - 2749965.35168;350 | EL2: |ACTUAL|2016.Q4|QTD| - 2639649.42688;350|ACTUAL|2016.DEC|YTD| - 2639649.42688;350|ACTUAL|2012.JUN|YTD| - 3080314.9253;351|ACTUAL|2017.DEC|YTD| - 124905;351|ACTUAL|2017.Q4|QTD| - 124905;351|ACTUAL|2012.JUN|YTD| - 3400;3521012|ACTUAL|2017.DEC|YTD| - 85342;3521012|ACTUAL|2017.Q4|QTD| - 85342;3521012|ACTUAL|2016.Q4|QTD| - 85288;3521012|ACTUAL|2016.DEC|YTD| - 85288;3521012|ACTUAL|2012.JUN|YTD| - 612227;3521014|ACTUAL|2016.Q4|QTD| - 768011;3521014|ACTUAL|2016.DEC|YTD| - 768011;3521014|ACTUAL|2012.JUN|YTD| - 5291; | EM2: 352|ACTUAL|2017.DEC|YTD| - 85342;352|ACTUAL|2017.Q4|QTD| - 85342;352|ACTUAL|2016.Q4|QTD| - 853299;352|ACTUAL|2016.DEC|YTD| - 853299;352|ACTUAL|2012.JUN|YTD| - 617518;353|ACTUAL|2017.DEC|YTD| - 46346;353|ACTUAL|2017.Q4|QTD| - 46346;353|ACTUAL|2016.Q4|QTD| - 46280;353|ACTUAL|2016.DEC|YTD| - 46280;3541008|ACTUAL|2017.DEC|YTD| - 40433.2567;3541008|ACTUAL|2017.Q4|QTD| - 40433.2567;3541008|ACTUAL|2016.Q4|QTD| - 20098.2057;3541008|ACTUAL|2016.DEC|YTD| - 20098.2057;3541008|ACTUAL|2012.JUN|YTD| - 15614.853;3541022|A | EN2: CTUAL|2017.DEC|YTD| - -10856.2664;3541022|ACTUAL|2017.Q4|QTD| - -10856.2664;3541022|ACTUAL|2016.Q4|QTD| - 920.6841;3541022|ACTUAL|2016.DEC|YTD| - 920.6841;3541022|ACTUAL|2012.JUN|YTD| - 2174.3624;3541026|ACTUAL|2017.DEC|YTD| - 3531;3541026|ACTUAL|2017.Q4|QTD| - 3531;3541026|ACTUAL|2016.Q4|QTD| - 4472;3541026|ACTUAL|2016.DEC|YTD| - 4472;3541028|ACTUAL|2017.DEC|YTD| - 1307.2404;3541028|ACTUAL|2017.Q4|QTD| - 1307.2404;3541028|ACTUAL|2016.Q4|QTD| - 1223.2495;3541028|ACTUAL|2016.DEC|YTD| - 1223.2495;3541028|ACTU | EO2: AL|2012.JUN|YTD| - 2556.1285;3541030|ACTUAL|2017.DEC|YTD| - 17868.2314;3541030|ACTUAL|2017.Q4|QTD| - 17868.2314;3541030|ACTUAL|2016.Q4|QTD| - 19664.9894;3541030|ACTUAL|2016.DEC|YTD| - 19664.9894;3541030|ACTUAL|2012.JUN|YTD| - 2000;3541032|ACTUAL|2017.DEC|YTD| - -14;3541032|ACTUAL|2017.Q4|QTD| - -14;3541032|ACTUAL|2012.JUN|YTD| - 21681;3541038|ACTUAL|2017.DEC|YTD| - 28120.832;3541038|ACTUAL|2017.Q4|QTD| - 28120.832;3541038|ACTUAL|2016.Q4|QTD| - 21533.759;3541038|ACTUAL|2016.DEC|YTD| - 21533.759;354|ACTUAL|20 | EP2: 17.DEC|YTD| - 80390.2941;354|ACTUAL|2017.Q4|QTD| - 80390.2941;354|ACTUAL|2016.Q4|QTD| - 67912.8877;354|ACTUAL|2016.DEC|YTD| - 67912.8877;354|ACTUAL|2012.JUN|YTD| - 44026.3439;355|ACTUAL|2017.DEC|YTD| - 3455.7218;355|ACTUAL|2017.Q4|QTD| - 3455.7218;355|ACTUAL|2016.Q4|QTD| - 11222.3664;355|ACTUAL|2016.DEC|YTD| - 11222.3664;355|ACTUAL|2012.JUN|YTD| - 35483;3561100|ACTUAL|2017.DEC|YTD| - 9000;3561100|ACTUAL|2017.Q4|QTD| - 9000;3561100|ACTUAL|2016.Q4|QTD| - 11709.1584;3561100|ACTUAL|2016.DEC|YTD| - 11709.1584;35 | EQ2: 61100|ACTUAL|2012.JUN|YTD| - 10998.3074;356|ACTUAL|2017.DEC|YTD| - 9000;356|ACTUAL|2017.Q4|QTD| - 9000;356|ACTUAL|2016.Q4|QTD| - 11709.1584;356|ACTUAL|2016.DEC|YTD| - 11709.1584;356|ACTUAL|2012.JUN|YTD| - 10998.3074;3571010|ACTUAL|2017.DEC|YTD| - 0.6304;3571010|ACTUAL|2017.Q4|QTD| - 0.6304;3571010|ACTUAL|2016.Q4|QTD| - -3.4842;3571010|ACTUAL|2016.DEC|YTD| - -3.4842;3571010|ACTUAL|2012.JUN|YTD| - 1322288.7833;3571014|ACTUAL|2017.DEC|YTD| - 25975.2232;3571014|ACTUAL|2017.Q4|QTD| - 25975.2232;3571014|ACTUAL|20 | ER2: 16.Q4|QTD| - 8096.6835;3571014|ACTUAL|2016.DEC|YTD| - 8096.6835;3571014|ACTUAL|2012.JUN|YTD| - 78971.8075;3571016|ACTUAL|2012.JUN|YTD| - 10938.0000;357|ACTUAL|2017.DEC|YTD| - 25975.8536;357|ACTUAL|2017.Q4|QTD| - 25975.8536;357|ACTUAL|2016.Q4|QTD| - 8093.1993;357|ACTUAL|2016.DEC|YTD| - 8093.1993;357|ACTUAL|2012.JUN|YTD| - 1412198.5908;358|ACTUAL|2012.JUN|YTD| - 74.334;3601014|ACTUAL|2017.DEC|YTD| - -2530.5648;3601014|ACTUAL|2017.Q4|QTD| - -2530.5648;3601014|ACTUAL|2016.Q4|QTD| - -7792.5559;3601014|ACTUAL|201 | ES2: 6.DEC|YTD| - -7792.5559;3601014|ACTUAL|2012.JUN|YTD| - -4533.1034;3601016|ACTUAL|2017.DEC|YTD| - 44218.0161;3601016|ACTUAL|2017.Q4|QTD| - 44218.0161;3601016|ACTUAL|2016.Q4|QTD| - 51760.8321;3601016|ACTUAL|2016.DEC|YTD| - 51760.8321;3601016|ACTUAL|2012.JUN|YTD| - 33810.7648;3601017|ACTUAL|2017.DEC|YTD| - 3836;3601017|ACTUAL|2017.Q4|QTD| - 3836;3601017|ACTUAL|2016.Q4|QTD| - 4993.9384;3601017|ACTUAL|2016.DEC|YTD| - 4993.9384;3601017|ACTUAL|2012.JUN|YTD| - 18265;3601018|ACTUAL|2012.JUN|YTD| - 54642;3601020|ACTU | ET2: AL|2012.JUN|YTD| - 79137;3601032|ACTUAL|2017.DEC|YTD| - 20743.74416;3601032|ACTUAL|2017.Q4|QTD| - 20743.74416;3601032|ACTUAL|2016.Q4|QTD| - 19699.666;3601032|ACTUAL|2016.DEC|YTD| - 19699.666;3601032|ACTUAL|2012.JUN|YTD| - -3982.6747;360|ACTUAL|2017.DEC|YTD| - 66267.19546;360|ACTUAL|2017.Q4|QTD| - 66267.19546;360|ACTUAL|2016.Q4|QTD| - 68661.8806;360|ACTUAL|2016.DEC|YTD| - 68661.8806;360|ACTUAL|2012.JUN|YTD| - 177338.9867;361|ACTUAL|2017.DEC|YTD| - 1967280.8488;361|ACTUAL|2017.Q4|QTD| - 1967280.8488;361|ACTUA | EU2: L|2016.Q4|QTD| - 2103423.9495;361|ACTUAL|2016.DEC|YTD| - 2103423.9495;361|ACTUAL|2012.JUN|YTD| - 43209;362|ACTUAL|2017.DEC|YTD| - 1038;362|ACTUAL|2017.Q4|QTD| - 1038;362|ACTUAL|2016.Q4|QTD| - 1026;362|ACTUAL|2016.DEC|YTD| - 1026;362|ACTUAL|2012.JUN|YTD| - 783;364|ACTUAL|2012.JUN|YTD| - 814;365|ACTUAL|2012.JUN|YTD| - 4588.2732;380|ACTUAL|2017.DEC|YTD| - 2521288.91376;380|ACTUAL|2017.Q4|QTD| - 2521288.91376;380|ACTUAL|2016.Q4|QTD| - 3171848.4419;380|ACTUAL|2016.DEC|YTD| - 3171848.4419;380|ACTUAL|2012.JUN|YTD| | EV2: - 2350431.8360;385|ACTUAL|2017.DEC|YTD| - 5271254.26544;385|ACTUAL|2017.Q4|QTD| - 5271254.26544;385|ACTUAL|2016.Q4|QTD| - 5811497.86878;385|ACTUAL|2016.DEC|YTD| - 5811497.86878;385|ACTUAL|2012.JUN|YTD| - 5430746.7613;300|ACTUAL|2017.DEC|YTD| - 9155188.5962089;300|ACTUAL|2017.Q4|QTD| - 9155188.5962089;300|ACTUAL|2016.Q4|QTD| - 10871228.6489989;300|ACTUAL|2016.DEC|YTD| - 10871228.6489989;300|ACTUAL|2012.JUN|YTD| - 11568281.1629089;</CELLS></EVDRE><EVDRE ID="DFDS AS_PLBS|001-00001" DIMENSION="AccountGrp|BU|Ca | EW2: tegory|ConsoScope|Currency|Datasrc|Entity|Flow|iBU|IntCo|Time|MEASURES|" AXIS="AccountGrp|Category|Time|MEASURES|"><CELLS>P110|ACTUAL|2017.DEC|YTD| - -4.24231120001059;P1300152|ACTUAL|2017.DEC|YTD| - -0.149376799999999;160|ACTUAL|2017.DEC|YTD| - -4.39168800001059;105005|ACTUAL|2017.DEC|YTD| - 5407562.7007;1050102|ACTUAL|2017.DEC|YTD| - 3006.5088;1050101|ACTUAL|2017.DEC|YTD| - 227729.02638;105010|ACTUAL|2017.DEC|YTD| - 230735.53518;105015|ACTUAL|2017.DEC|YTD| - 1391720.55492;1050201|ACTUAL|2017.DEC|YTD| - 42 | EX2: 5430.31318;1050202|ACTUAL|2017.DEC|YTD| - 642602.7627;1050203|ACTUAL|2017.DEC|YTD| - 44311.13686;105020|ACTUAL|2017.DEC|YTD| - 1112344.21274;105025|ACTUAL|2017.DEC|YTD| - 80826.83924;105027|ACTUAL|2017.DEC|YTD| - 43095;105030|ACTUAL|2017.DEC|YTD| - 375937;105035|ACTUAL|2017.DEC|YTD| - 77415.8552;105036|ACTUAL|2017.DEC|YTD| - 22;105040|ACTUAL|2017.DEC|YTD| - 59318.10704;105045|ACTUAL|2017.DEC|YTD| - 24898.32616;105050|ACTUAL|2017.DEC|YTD| - 40852.6492;105055|ACTUAL|2017.DEC|YTD| - 486270.8824;1050602|ACTUAL| | EY2: 2017.DEC|YTD| - 38741.65472;1050603|ACTUAL|2017.DEC|YTD| - 146124.3259542;105060|ACTUAL|2017.DEC|YTD| - 184865.9806742;105|ACTUAL|2017.DEC|YTD| - 9515865.6434542;1100052|ACTUAL|2017.DEC|YTD| - 9644;1100053|ACTUAL|2017.DEC|YTD| - -1184304.3282338;110005|ACTUAL|2017.DEC|YTD| - -1174660.3282338;1100101|ACTUAL|2017.DEC|YTD| - -76529.7154636;1100102|ACTUAL|2017.DEC|YTD| - -231476.60114;1100103|ACTUAL|2017.DEC|YTD| - -195454.7294364;1100104|ACTUAL|2017.DEC|YTD| - -44547.537316;110010|ACTUAL|2017.DEC|YTD| - -54800 | EZ2: 8.583356;1100151|ACTUAL|2017.DEC|YTD| - -201261.9905518;1100152|ACTUAL|2017.DEC|YTD| - -41838.341043;110015|ACTUAL|2017.DEC|YTD| - -243100.3315948;1100201|ACTUAL|2017.DEC|YTD| - -1341331.3538074;110020|ACTUAL|2017.DEC|YTD| - -1341331.3538074;110025|ACTUAL|2017.DEC|YTD| - -1388766.83;110030|ACTUAL|2017.DEC|YTD| - -671447.0998;110035|ACTUAL|2017.DEC|YTD| - -47294.1051234;110045|ACTUAL|2017.DEC|YTD| - -94192;110050|ACTUAL|2017.DEC|YTD| - -272952.759;110055|ACTUAL|2017.DEC|YTD| - -6818.4386;110060|ACTUAL|2017.D | FA2: EC|YTD| - -6274.8026;110065|ACTUAL|2017.DEC|YTD| - 917;110070|ACTUAL|2017.DEC|YTD| - -6220.0574404;110075|ACTUAL|2017.DEC|YTD| - 3956.3504;110|ACTUAL|2017.DEC|YTD| - -5796193.3391558;115|ACTUAL|2017.DEC|YTD| - 3719672.3042984;1200051|ACTUAL|2017.DEC|YTD| - -912542.3351914;1200052|ACTUAL|2017.DEC|YTD| - -16318.4738;120005|ACTUAL|2017.DEC|YTD| - -928860.8089914;120010|ACTUAL|2017.DEC|YTD| - -7452;120015|ACTUAL|2017.DEC|YTD| - -53123.7337306;120025|ACTUAL|2017.DEC|YTD| - 31506;120030|ACTUAL|2017.DEC|YTD| - -78 | FB2: 4.7544;120035|ACTUAL|2017.DEC|YTD| - -41534.7446036;120040|ACTUAL|2017.DEC|YTD| - -75805.8187848;120|ACTUAL|2017.DEC|YTD| - -1076055.8605104;1300051|ACTUAL|2017.DEC|YTD| - -78580.6131228;1300052|ACTUAL|2017.DEC|YTD| - -123545.1584;1300053|ACTUAL|2017.DEC|YTD| - -15661.6294486;1300054|ACTUAL|2017.DEC|YTD| - -39715.4456168;130005|ACTUAL|2017.DEC|YTD| - -257502.8465882;1300102|ACTUAL|2017.DEC|YTD| - -38041.4741244;13001031|ACTUAL|2017.DEC|YTD| - -1152.4562;13001032|ACTUAL|2017.DEC|YTD| - -218;13001033|ACTUAL|2 | FC2: 017.DEC|YTD| - -366.5614;13001034|ACTUAL|2017.DEC|YTD| - -18;1300103|ACTUAL|2017.DEC|YTD| - -1755.0176;1300104|ACTUAL|2017.DEC|YTD| - -2284.2632;13001063|ACTUAL|2017.DEC|YTD| - 0;1300106|ACTUAL|2017.DEC|YTD| - -12285.7659768;130010|ACTUAL|2017.DEC|YTD| - -54366.5209012;1300151|ACTUAL|2017.DEC|YTD| - -164472.261193;1300152|ACTUAL|2017.DEC|YTD| - -350720.5442342;130020|ACTUAL|2017.DEC|YTD| - -515192.8054272;130|ACTUAL|2017.DEC|YTD| - -827062.1729166;135|ACTUAL|2017.DEC|YTD| - 1816554.2708714;1450051|ACTUAL|20 | FD2: 17.DEC|YTD| - -211;145005|ACTUAL|2017.DEC|YTD| - -211;1450101|ACTUAL|2017.DEC|YTD| - 263;145010|ACTUAL|2017.DEC|YTD| - 263;145|ACTUAL|2017.DEC|YTD| - 52;155005|ACTUAL|2017.DEC|YTD| - -495200.3744;155010|ACTUAL|2017.DEC|YTD| - 8534;155|ACTUAL|2017.DEC|YTD| - -486666.3744;165|ACTUAL|2017.DEC|YTD| - 1329935.5047834;17000512|ACTUAL|2017.DEC|YTD| - -23047;170005|ACTUAL|2017.DEC|YTD| - -23047;170020|ACTUAL|2017.DEC|YTD| - 8963;170021|ACTUAL|2017.DEC|YTD| - 1193;170025|ACTUAL|2017.DEC|YTD| - 106994;170030|ACTUAL|2 | FE2: 017.DEC|YTD| - 55100;170|ACTUAL|2017.DEC|YTD| - 149203;175|ACTUAL|2017.DEC|YTD| - 1479138.5047834;1800051|ACTUAL|2017.DEC|YTD| - 3163;1800052|ACTUAL|2017.DEC|YTD| - 35816;1800054|ACTUAL|2017.DEC|YTD| - 41.4129300000004;180005|ACTUAL|2017.DEC|YTD| - 39020.41293;1800151|ACTUAL|2017.DEC|YTD| - 173436.9878;1800152|ACTUAL|2017.DEC|YTD| - 23327.5312;1800153|ACTUAL|2017.DEC|YTD| - 7123;180015|ACTUAL|2017.DEC|YTD| - 218061.519;1800251|ACTUAL|2017.DEC|YTD| - 234540;1800254|ACTUAL|2017.DEC|YTD| - 2787;180025|ACTUAL|2 | FF2: 017.DEC|YTD| - 237327;180|ACTUAL|2017.DEC|YTD| - 494408.93193;1850051|ACTUAL|2017.DEC|YTD| - -49795;1850052|ACTUAL|2017.DEC|YTD| - -58;1850055|ACTUAL|2017.DEC|YTD| - -1083;1850057|ACTUAL|2017.DEC|YTD| - 630;185005|ACTUAL|2017.DEC|YTD| - -55692;1850151|ACTUAL|2017.DEC|YTD| - -47317.62506;1850152|ACTUAL|2017.DEC|YTD| - -40664.5424;1850153|ACTUAL|2017.DEC|YTD| - -16013;185015|ACTUAL|2017.DEC|YTD| - -204002.16746;185045|ACTUAL|2017.DEC|YTD| - -7928.76384;185050|ACTUAL|2017.DEC|YTD| - 4306;185|ACTUAL|2017.DEC|YT | FG2: D| - -263316.9313;187|ACTUAL|2017.DEC|YTD| - 231092.00063;190|ACTUAL|2017.DEC|YTD| - 1710230.5054134;19510101|ACTUAL|2017.DEC|YTD| - -53566.7016;19510102|ACTUAL|2017.DEC|YTD| - -104.1404;1951010|ACTUAL|2017.DEC|YTD| - -53670.842;1951012|ACTUAL|2017.DEC|YTD| - 84599;1951014|ACTUAL|2017.DEC|YTD| - -30062;1951018|ACTUAL|2017.DEC|YTD| - -223.158;1951022|ACTUAL|2017.DEC|YTD| - -395;1951024|ACTUAL|2017.DEC|YTD| - 345;1951050|ACTUAL|2017.DEC|YTD| - 593;1951070|ACTUAL|2017.DEC|YTD| - -2103;195|ACTUAL|2017.DEC|YTD| | FH2: - -1510;196|ACTUAL|2017.DEC|YTD| - 1708720.5054134;100|ACTUAL|2017.DEC|YTD| - 1708720.5054134;202|ACTUAL|2017.DEC|YTD| - 118088;204|ACTUAL|2017.DEC|YTD| - 234256;206|ACTUAL|2017.DEC|YTD| - 0;208204|ACTUAL|2017.DEC|YTD| - 14766.3024;208|ACTUAL|2017.DEC|YTD| - 14766.3024;220|ACTUAL|2017.DEC|YTD| - 367110.3024;2261010|ACTUAL|2017.DEC|YTD| - 732;2261014|ACTUAL|2017.DEC|YTD| - 1346.1348;226|ACTUAL|2017.DEC|YTD| - 2078.1348;2281010|ACTUAL|2017.DEC|YTD| - 24186.8861;2281012|ACTUAL|2017.DEC|YTD| - 2786;2281014|ACTU | FI2: AL|2017.DEC|YTD| - 1289;228|ACTUAL|2017.DEC|YTD| - 28261.8861;2301010|ACTUAL|2017.DEC|YTD| - 3855939.792932;230|ACTUAL|2017.DEC|YTD| - 3855939.792932;232|ACTUAL|2017.DEC|YTD| - 102197;2341010|ACTUAL|2017.DEC|YTD| - 0;234|ACTUAL|2017.DEC|YTD| - 0;236|ACTUAL|2017.DEC|YTD| - 16690.8898;238226|ACTUAL|2017.DEC|YTD| - 807;238228|ACTUAL|2017.DEC|YTD| - 0;238230|ACTUAL|2017.DEC|YTD| - 278462.352;238231|ACTUAL|2017.DEC|YTD| - 6125.3193;238232|ACTUAL|2017.DEC|YTD| - 1637;238234|ACTUAL|2017.DEC|YTD| - 659;238|ACTUAL|2 | FJ2: 017.DEC|YTD| - 287690.6713;240|ACTUAL|2017.DEC|YTD| - 4292858.374932;2421010|ACTUAL|2017.DEC|YTD| - 3950923;242|ACTUAL|2017.DEC|YTD| - 3950923;2431010|ACTUAL|2017.DEC|YTD| - 138;243|ACTUAL|2017.DEC|YTD| - 138;2461014|ACTUAL|2017.DEC|YTD| - 8965;2461016|ACTUAL|2017.DEC|YTD| - 576;246|ACTUAL|2017.DEC|YTD| - 9541;248|ACTUAL|2017.DEC|YTD| - 111115;250|ACTUAL|2017.DEC|YTD| - 4071717;252|ACTUAL|2017.DEC|YTD| - 8731685.677332;2551010|ACTUAL|2017.DEC|YTD| - 65188.9881;2551012|ACTUAL|2017.DEC|YTD| - 7495.9062;255101 | FK2: 4|ACTUAL|2017.DEC|YTD| - 71362.3766;255|ACTUAL|2017.DEC|YTD| - 144047.2709;2601014|ACTUAL|2017.DEC|YTD| - 213918.1543773;260|ACTUAL|2017.DEC|YTD| - 213918.1543773;261|ACTUAL|2017.DEC|YTD| - 53372;2621010|ACTUAL|2017.DEC|YTD| - 471643.5079552;2621011|ACTUAL|2017.DEC|YTD| - -18789.166196;2621012|ACTUAL|2017.DEC|YTD| - -4000;262|ACTUAL|2017.DEC|YTD| - 428560.0950451;2631010|ACTUAL|2017.DEC|YTD| - 26959.103;2631018|ACTUAL|2017.DEC|YTD| - -148.898;2631028|ACTUAL|2017.DEC|YTD| - 13086.7873;2631030|ACTUAL|2017.DEC | FL2: |YTD| - 886;263|ACTUAL|2017.DEC|YTD| - 40782.9923;264|ACTUAL|2017.DEC|YTD| - 49318.0460719;266|ACTUAL|2017.DEC|YTD| - 12587;269|ACTUAL|2017.DEC|YTD| - 3800;270|ACTUAL|2017.DEC|YTD| - 946385.5586943;2821010|ACTUAL|2017.DEC|YTD| - 20117;282|ACTUAL|2017.DEC|YTD| - 20117;2840101|ACTUAL|2017.DEC|YTD| - 937551.5886;2841012|ACTUAL|2017.DEC|YTD| - 849638;284|ACTUAL|2017.DEC|YTD| - 1787189.5886;285|ACTUAL|2017.DEC|YTD| - 1807306.5886;287|ACTUAL|2017.DEC|YTD| - 2753692.1472943;200|ACTUAL|2017.DEC|YTD| - 11485377.8246 | FM2: 263;302|ACTUAL|2017.DEC|YTD| - 1140000.1;304|ACTUAL|2017.DEC|YTD| - -5600;306|ACTUAL|2017.DEC|YTD| - -68328;308|ACTUAL|2017.DEC|YTD| - 1004;310|ACTUAL|2017.DEC|YTD| - -46976;312|ACTUAL|2017.DEC|YTD| - 579000;314|ACTUAL|2017.DEC|YTD| - -579000;3161010|ACTUAL|2017.DEC|YTD| - 4116050.9074155;3161011|ACTUAL|2017.DEC|YTD| - 25582.7512;3161012|ACTUAL|2017.DEC|YTD| - 4116583.258299;3161014|ACTUAL|2017.DEC|YTD| - -4554767.3677;316|ACTUAL|2017.DEC|YTD| - 3703449.5492145;318|ACTUAL|2017.DEC|YTD| - 4971257.6492145;320 | FN2: |ACTUAL|2017.DEC|YTD| - 4971257.6492145;321|ACTUAL|2017.DEC|YTD| - 2344;322|ACTUAL|2017.DEC|YTD| - 969;323|ACTUAL|2017.DEC|YTD| - 6586.657608;3241014|ACTUAL|2017.DEC|YTD| - 451;3241100|ACTUAL|2017.DEC|YTD| - 4414.8257;324|ACTUAL|2017.DEC|YTD| - 20316.8257;3251012|ACTUAL|2017.DEC|YTD| - 686389;325|ACTUAL|2017.DEC|YTD| - 686389;326|ACTUAL|2017.DEC|YTD| - 1442098;328|ACTUAL|2017.DEC|YTD| - 185383;329|ACTUAL|2017.DEC|YTD| - 94758;350|ACTUAL|2017.DEC|YTD| - 2438844.483308;351|ACTUAL|2017.DEC|YTD| - 124905;352101 | FO2: 2|ACTUAL|2017.DEC|YTD| - 85342;352|ACTUAL|2017.DEC|YTD| - 85342;353|ACTUAL|2017.DEC|YTD| - 46346;3541008|ACTUAL|2017.DEC|YTD| - 692175.4207661;3541010|ACTUAL|2017.DEC|YTD| - 119299.6384;3541012|ACTUAL|2017.DEC|YTD| - 123882.69767;3541014|ACTUAL|2017.DEC|YTD| - 3234;3541016|ACTUAL|2017.DEC|YTD| - 9845.8821;3541018|ACTUAL|2017.DEC|YTD| - 4055.1553;3541020|ACTUAL|2017.DEC|YTD| - 163;3541022|ACTUAL|2017.DEC|YTD| - 1056.3347;3541024|ACTUAL|2017.DEC|YTD| - 1187.6166;3541026|ACTUAL|2017.DEC|YTD| - 3531;3541028|ACT | FP2: UAL|2017.DEC|YTD| - 501.5633;3541030|ACTUAL|2017.DEC|YTD| - 17777;3541032|ACTUAL|2017.DEC|YTD| - 5332;3541038|ACTUAL|2017.DEC|YTD| - 5547.1768;354|ACTUAL|2017.DEC|YTD| - 987588.4856361;355|ACTUAL|2017.DEC|YTD| - 3492;3561014|ACTUAL|2017.DEC|YTD| - 1485;356|ACTUAL|2017.DEC|YTD| - 11608;3571014|ACTUAL|2017.DEC|YTD| - 126398.822801;357|ACTUAL|2017.DEC|YTD| - 126398.822801;358|ACTUAL|2017.DEC|YTD| - 206;3601014|ACTUAL|2017.DEC|YTD| - 18691.0154881;3601016|ACTUAL|2017.DEC|YTD| - 149117.7523215;3601017|ACTUAL|201 | FQ2: 7.DEC|YTD| - 3836;3601031|ACTUAL|2017.DEC|YTD| - 193.3429;3601032|ACTUAL|2017.DEC|YTD| - 32022.191883;360|ACTUAL|2017.DEC|YTD| - 203860.3025926;361|ACTUAL|2017.DEC|YTD| - 2262572.83516;362|ACTUAL|2017.DEC|YTD| - 111666.2941;366|ACTUAL|2017.DEC|YTD| - 111288;380|ACTUAL|2017.DEC|YTD| - 4075273.7402897;385|ACTUAL|2017.DEC|YTD| - 6514118.2235977;300|ACTUAL|2017.DEC|YTD| - 11485375.8728122;</CELLS></EVDRE></EVDRE_CACHE>

Sheet tabel forside (hidden)
A2: DATAGRUNDLAG ER KC-PL
B5: DFDS key figures | D5: 3. kvt | E5: 3. kvt | I5: Q1 2015 | J5: Q1 2014 | K5: Change | L5: 2014-2015 | M5: 2014 | N5: Change
B6: DKK million | D6: 2011 | E6: 2010 | F6: Ændr., % | G6: Ændr. | L6: LTM | M6: Full year
B7: Revenue
B8: Revenue | D8: =ROUND('Group PL'!#REF!,0) ->  | E8: =ROUND('Group PL'!#REF!,0) ->  | F8: =(+D8/E8-1)*100 ->  | G8: =+D8-E8 ->  | I8: =ROUND('Group PL'!C7,1) -> 4241 | J8: =ROUND('Group PL'!D7,1) -> 3894 | K8: =+I8-J8 -> 347 | L8: =ROUND('Group PL'!G7,1) -> 16449 | M8: =ROUND('Group PL'!H7,1) -> 15717 | N8: =+L8-M8 -> 732 | P8: =+L8/M8 -> 1.046573774
B9: EBITDA before special items | D9: =ROUND('Group PL'!#REF!,0) ->  | E9: =ROUND('Group PL'!#REF!,0) ->  | F9: =(+D9/E9-1)*100 ->  | G9: =+D9-E9 ->  | I9: =ROUND('Group PL'!C16,1) -> 989 | J9: =ROUND('Group PL'!D16,1) -> 802 | K9: =+I9-J9 -> 187 | L9: =ROUND('Group PL'!G16,1) -> 3399 | M9: =ROUND('Group PL'!H16,1) -> 2988 | N9: =+L9-M9 -> 411
B10: EBIT before special items | D10: =ROUND('Group PL'!#REF!,0) ->  | E10: =ROUND('Group PL'!#REF!,0) ->  | F10: =(+D10/E10-1)*100 ->  | G10: =+D10-E10 ->  | I10: =ROUND('Group PL'!C24,1) -> 541 | J10: =ROUND('Group PL'!D24,1) -> 533 | K10: =+I10-J10 -> 8 | L10: =ROUND('Group PL'!G24,1) -> 1935 | M10: =ROUND('Group PL'!H24,1) -> 1909 | N10: =+L10-M10 -> 26
B11: Profit before tax and special items | D11: =D13-D12 ->  | E11: =E13-E12 ->  | F11: =(+D11/E11-1)*100 ->  | G11: =+D11-E11 ->  | I11: =I13-I12 -> 485 | J11: =J13-J12 -> 494 | K11: =+I11-J11 -> -9 | L11: =L13-L12 -> 1689 | M11: =M13-M12 -> 1743 | N11: =+L11-M11 -> -54
B12: Special items, net | D12: =ROUND('Group PL'!#REF!,0) ->  | E12: =ROUND('Group PL'!#REF!,0) ->  | F12: =(-G12/E12)*100 ->  | G12: =ROUND(+D12-E12,dec) ->  | I12: =ROUND('Group PL'!C26,1) -> -29 | J12: =ROUND('Group PL'!D26,1) -> -63 | K12: =ROUND(+I12-J12,dec) ->  | L12: =ROUND('Group PL'!G26,1) -> -4 | M12: =ROUND('Group PL'!H26,1) -> -49 | N12: =ROUND(+L12-M12,1) -> 45
B13: Profit before tax | D13: =ROUND('Group PL'!#REF!,0) ->  | E13: =ROUND('Group PL'!#REF!,0) ->  | F13: =(+D13/E13-1)*100 ->  | G13: =ROUND(+D13-E13,0) ->  | I13: =ROUND('Group PL'!C33,1) -> 456 | J13: =ROUND('Group PL'!D33,1) -> 431 | K13: =ROUND(+I13-J13,0) -> 25 | L13: =ROUND('Group PL'!G33,1) -> 1685 | M13: =ROUND('Group PL'!H33,1) -> 1694 | N13: =ROUND(+L13-M13,1) -> -9
D15: =+D11+D12 ->  | E15: =+E11+E12 -> 
B25: DFDS key figures DKK m | D25: Q3 2011 | E25: Q3 2010 | F25: Change, % | G25: Change | I25: Q3 2013 | J25: Q3 2012 | K25: Change
B27: Revenue | D27: =D8 ->  | F27: =(+D27/E27-1)*100 ->  | G27: =+D27-E27 ->  | I27: =I8 -> 4241 | J27: =J8 -> 3894 | K27: =K8 -> 347
B28: EBITDA before special items | F28: =(+D28/E28-1)*100 ->  | G28: =+D28-E28 ->  | I28: =I9 -> 989 | J28: 802 | K28: =K9 -> 187
B29: EBIT before special items | F29: =F10 ->  | G29: =G10 ->  | H29: =H10 -> 0 | I29: 541 | J29: 533 | K29: =K10 -> 8
B30: Profit before tax and special items | F30: =(+D30/E30-1)*100 ->  | G30: =+D30-E30 ->  | I30: 485 | J30: 494 | K30: =K11 -> -9
B31: Special items, net | D31: =+D12 ->  | E31: =E12 ->  | F31: =-(+D31/E31-1)*100 ->  | G31: =G12 ->  | I31: =I12 -> -29 | J31: =J12 -> -63 | K31: =K12 -> 
B32: Profit before tax | D32: =D13 ->  | E32: =E13 ->  | F32: =(+D32/E32-1)*100 ->  | G32: =G13 ->  | I32: =I13 -> 456 | J32: =J13 -> 431 | K32: =K13 -> 25
M39: 225 | N39: =M39/I42 -> 30.16449706
M40: 275 | N40: =M40/I42 -> 36.86771863
I41: Q3 2014 | J41: Q3 2013
B42: DKK/EUR | D42: 0 | E42: 0 | I42: 7.4591 | J42: 7.4575 | K42: AVERAGE EXCH.RATE
B43: Decimals | I43: 0 | J43: 0
B46: DFDS key figures EUR mill. | D46: Q3 2011 | E46: Q3 2010 | F46: Change, % | G46: Change | I46: =+I5 -> Q1 2015 | J46: =+J5 -> Q1 2014 | K46: Change | L46: change %
B48: Revenue | D48: =D27/$D$42 ->  | E48: =E27/$E$42 ->  | F48: =F27 ->  | G48: =+D48-E48 ->  | I48: =I8/$I$42 -> 568.6 | J48: =J8/$J$42 -> 522.2 | K48: =+I48-J48 -> 46.4 | L48: =+K48/J48 -> 0.09
B49: EBITDA before special items | D49: =D28/$D$42 ->  | E49: =E28/$E$42 ->  | F49: =F28 ->  | G49: =+D49-E49 ->  | I49: =I9/$I$42 -> 132.6 | J49: =J9/$J$42 -> 107.5 | K49: =+I49-J49 -> 25.1 | L49: =+K49/J49 -> 0.23
B50: EBIT before special items | D50: =D29/$D$42 ->  | E50: =E29/$E$42 ->  | F50: =F29 ->  | G50: =G24 -> 0 | H50: =H24 -> 0 | I50: =I10/$I$42 -> 72.5 | J50: =J10/$J$42 -> 71.5 | K50: =+I50-J50 -> 1 | L50: =+K50/J50 -> 0.01
B51: Profit before tax and special items | D51: =D30/$D$42 ->  | E51: =E30/$E$42 ->  | F51: =F30 ->  | G51: =+D51-E51 ->  | I51: =I11/$I$42 -> 65 | J51: =J11/$J$42 -> 66.2 | K51: =+I51-J51 -> -1.2 | L51: =+K51/J51 -> -0.02
E52: =#REF!/$E$42 -> 
B53: Special items, net | D53: =D31/$D$42 ->  | E53: =E31/$E$42 ->  | F53: =F31 ->  | G53: =+D53-E53 ->  | I53: =I12/$I$42 -> -3.9 | J53: =J12/$J$42 -> -8.4 | K53: =+I53-J53 -> 4.5 | L53: =+K53/J53 -> -0.54
B54: Profit before tax | D54: =D32/$D$42 ->  | E54: =E32/$E$42 ->  | F54: =F32 ->  | G54: =+D54-E54 ->  | I54: =I13/$I$42 -> 61.1 | J54: =J13/$J$42 -> 57.8 | K54: =+I54-J54 -> 3.3 | L54: =+K54/J54 -> 0.06
B56: DKK | I56: EURO
A57: Investering | B57: 120 | I57: =B57/$I$42 -> 16.08773176 | J57: Investering 120 mio.
A58: driftsres | B58: 1.1 | I58: =B58/$I$42 -> 0.1474708745 | J58: Driftsresultat
A59: driftsres | B59: 1.3 | I59: =B59/$I$42 -> 0.1742837608

Sheet Koncernens hovedtal_DK (hidden)
A1: Hoved- og nøgletal DFDS Group
B3: 2014 | D3: 2013 | F3: =+B3 -> 2014 | H3: =+D3 -> 2013 | J3: 2013
A4: DKK mio | B4: Q3 | D4: =B4 -> Q3 | F4: Q1-Q3 | H4: =F4 -> Q1-Q3 | J4: Full year
A6: Resultatopgørelse
A7: Nettoomsætning | B7: =ROUND('Group PL'!C7,0) -> 4241 | D7: =ROUND('Group PL'!D7,0) -> 3894 | F7: =ROUND('Group PL'!E7,0) -> 8111 | H7: =ROUND('Group PL'!F7,0) -> 7379 | J7: =ROUND('Group PL'!H7,0) -> 15717 | N7: =+B7-D7 -> 347 | P7: Henter data fra PL
A8: Shipping Division | B8: =+#REF! ->  | D8: =+#REF! ->  | F8: =+#REF! ->  | H8: =+#REF! ->  | J8: =#REF! ->  | P8: Henter data fra division - husk formel opdatering
A9: Logistics Division | B9: =+#REF! ->  | D9: =+#REF! ->  | F9: =+#REF! ->  | H9: =+#REF! ->  | J9: =#REF! ->  | P9: Henter data fra division - husk formel opdatering
A10: Ikke-fordelte poster | B10: =ROUND(+#REF!-70,0) ->  | D10: 77 | F10: =ROUND(+#REF!,0) ->  | H10: =ROUND(+#REF!,0) ->  | J10: =ROUND(290.328,0) -> 290 | P10: 2011 tal er tastet fra 2011 2. halvår kvartalsrapport (offentliggjort) + 3kvt. er fratrukket 1. H 2012 (off.meddelelse)
A11: Elimineringer | B11: =B7-B8-B9-B10 ->  | D11: =D7-D8-D9-D10 ->  | F11: =F7-F8-F9-F10 ->  | H11: =H7-H8-H9-H10 ->  | J11: =J7-J8-J9-J10 -> 
A12: Driftsresultat før afskrivninger (EBITDA) og særlige poster | B12: =ROUND('Group PL'!C16,0) -> 989 | D12: =ROUND('Group PL'!D16,0)+1 -> 803 | F12: =ROUND('Group PL'!E16,0) -> 1667 | H12: =ROUND('Group PL'!F16,0) -> 1255 | J12: =ROUND('Group PL'!H16,0) -> 2988 | N12: 186 | P12: Henter data fra PL
A13: Shipping Division | B13: =+#REF! ->  | D13: =+#REF! ->  | F13: =+#REF! ->  | H13: =+#REF! ->  | J13: =#REF! ->  | P13: Henter data fra division - husk formel opdatering
A14: Logistics Division | B14: =+#REF! ->  | D14: =+#REF! ->  | F14: =+#REF! ->  | H14: =+#REF! ->  | J14: =#REF! ->  | P14: Henter data fra division - husk formel opdatering
A15: Ikke-fordelte poster | B15: =B12-B13-B14 ->  | D15: =D12-D13-D14 ->  | F15: =F12-F13-F14 ->  | H15: =H12-H13-H14 ->  | J15: =J12-J13-J14 -> 
A16: Avance ved salg af langfristede aktiver, netto | B16: ='Group PL'!C19 -> 0 | D16: ='Group PL'!D19 -> 3 | F16: ='Group PL'!E19 -> 2 | H16: ='Group PL'!F19 -> 5 | J16: =('Group PL'!H19) -> 7 | P16: Henter data fra PL
A17: Driftsresultat (EBIT) før særlige poster | B17: ='Group PL'!C24 -> 541 | D17: ='Group PL'!D24+1 -> 534 | F17: ='Group PL'!E24 -> 775 | H17: ='Group PL'!F24 -> 749 | J17: ='Group PL'!H24 -> 1909 | P17: Henter data fra PL
A18: Særlige poster, netto | B18: ='Group PL'!C26 -> -29 | D18: ='Group PL'!D26 -> -63 | F18: ='Group PL'!E26 -> -44 | H18: ='Group PL'!F26 -> -90 | J18: ='Group PL'!H26 -> -49 | P18: Henter data fra PL
A19: Driftsresultat (EBIT) | B19: ='Group PL'!C28 -> 512 | D19: ='Group PL'!D28 -> 470 | F19: ='Group PL'!E28 -> 731 | H19: ='Group PL'!F28 -> 659 | J19: ='Group PL'!H28 -> 1859 | P19: Henter data fra PL
A20: Finansielle poster, netto | B20: =ROUND('Group PL'!C30+'Group PL'!C31,0) -> -56 | D20: =ROUND('Group PL'!D30+'Group PL'!D31,0) -> -39 | F20: =ROUND('Group PL'!E30+'Group PL'!E31,0) -> -131 | H20: =ROUND('Group PL'!F30+'Group PL'!F31,0) -> -51 | J20: =ROUND('Group PL'!H30+'Group PL'!H31,0) -> -165 | P20: Henter data fra PL
A21: Resultat før skat | B21: ='Group PL'!C33 -> 456 | D21: ='Group PL'!D33 -> 431 | F21: ='Group PL'!E33 -> 600 | H21: ='Group PL'!F33 -> 608 | J21: ='Group PL'!H33 -> 1694 | P21: Henter data fra PL
A22: Periodens resultat | B22: ='Group PL'!C37 -> 434 | D22: ='Group PL'!D37 -> 407 | F22: ='Group PL'!E37 -> 554 | H22: ='Group PL'!F37 -> 564 | J22: ='Group PL'!H37 -> 1637 | P22: Henter data fra PL
A23: Periodens resultat eksklusive minoriteter | B23: ='Group PL'!C40 -> 433 | D23: ='Group PL'!D40 -> 407 | F23: ='Group PL'!E40 -> 553 | H23: ='Group PL'!F40 -> 563 | J23: ='Group PL'!H40 -> 1630 | P23: Henter data fra PL
A25: Kapital
A26: Aktiver i alt | B26: - | D26: 0 | F26: =+'Group Assets'!C41 -> 25821 | H26: ='Group Assets'!D41 -> 21454 | J26: =+'Group Assets'!E41 -> 22132 | P26: Henter data fra aktiver
A27: DFDS A/S' andel af egenkapital | B27: - | D27: 0 | F27: =+'Group Liabilities'!B12 -> 9300 | H27: =+'Group Liabilities'!C12 -> 7868 | J27: =+'Group Liabilities'!D12 -> 9175 | P27: Henter data fra passiver
A28: Egenkapital | B28: - | D28: 0 | F28: ='Group Liabilities'!B14 -> 9380 | H28: ='Group Liabilities'!C14 -> 7935 | J28: ='Group Liabilities'!D14 -> 9255 | P28: Henter data fra passiver
A29: Nettorentebærende gæld | B29: - | D29: 0 | F29: =ROUND(2334.187,0) -> 2334 | H29: 2261 | J29: 2189 | P29: NB: ind data - beløb kommer fra ROIC ark
A30: Investeret kapital, ultimo | B30: - | D30: 0 | F30: =ROUND(8458.195,0) -> 8458 | H30: =ROUND(8618,0) -> 8618 | J30: 8555 | N30: =+B30/J30-1 -> 
A31: Investeret kapital, gennemsnit | B31: =#REF! ->  | D31: =+#REF! ->  | F31: =+#REF! ->  | H31: =+#REF! ->  | J31: =+#REF! ->  | N31: =+B31/J31-1 ->  | P31: Henter data fra division - husk formel opdatering for kvartalet | V31: =+F31/H31-1 -> 
A33: Antal medarbejdere, gennemsnit | B33: - | D33: 0 | F33: 6310 | H33: 5888 | J33: 5930 | P33: NB: ind data
A35: Pengestrømme
A36: Pengestrøm fra driften, før finansiering og efter skat | B36: =+'Group Cash Flow'!C12+'Group Cash Flow'!C15 -> 1017 | D36: =+'Group Cash Flow'!D12+'Group Cash Flow'!D15 -> 872 | F36: =+'Group Cash Flow'!E12+'Group Cash Flow'!E15 -> 1690 | H36: =+'Group Cash Flow'!F12+'Group Cash Flow'!F15 -> 1216 | J36: =+'Group Cash Flow'!H12+'Group Cash Flow'!H15 -> 2516 | P36: Henter data fra likviditet
A37: Pengestrøm til/fra investeringsaktivitet | B37: =ROUND('Group Cash Flow'!C25,0) -> -748 | D37: =ROUND('Group Cash Flow'!D25,1) -> -3878 | F37: =ROUND('Group Cash Flow'!E25,0) -> -1566 | H37: =ROUND('Group Cash Flow'!F25,0) -> -4113 | J37: =ROUND('Group Cash Flow'!H25,0) -> -4802 | P37: Henter data fra likviditet
A38: - Køb af virksomheder og aktiviteter | B38: =ROUND('Group Cash Flow'!C22,0) -> -4 | D38: =ROUND('Group Cash Flow'!D22,0) -> -3569 | F38: =ROUND('Group Cash Flow'!E22,0) -> -4 | H38: =ROUND('Group Cash Flow'!F22,0) -> -3638 | J38: =ROUND('Group Cash Flow'!H22,0) -> -3635 | P38: NB: ind data
A39: - Øvrige investeringer, netto | B39: =B37-B38 -> -744 | D39: =D37-D38 -> -309 | F39: =F37-F38 -> -1562 | H39: =H37-H38 -> -475 | J39: =J37-J38 -> -1167 | P39: Formler
A40: Fri pengestrøm fra driften | B40: =+B37+B36 -> 269 | D40: =+(D37+D36) -> -3006 | F40: =+F37+F36 -> 124 | H40: =+H37+H36 -> -2897 | J40: =+J37+J36 -> -2286 | P40: Formler
A42: Nøgletal for drift og afkast
A43: Antal skibe pr. balancedagen | B43: - | D43: 0 | F43: 46 | H43: 48 | J43: 48 | P43: NB: ind data
A44: Omsætningsvækst, % | B44: =(+B7-D7)*100/D7 -> 8.9 | D44: 5.3 | F44: =(+F7-H7)*100/H7 -> 9.9 | H44: 3.3 | J44: 3.4 | P44: NB: ind data for LY
A45: EBITDA-margin, % (før særlige poster) | B45: =+B12/B7*100 -> 23.3 | D45: =+D12/D7*100 -> 20.6 | F45: =+F12/F7*100 -> 20.6 | H45: =+H12/H7*100 -> 17 | J45: =J12/J7*100 -> 19 | P45: Formler
A46: Driftsmarginal, % (før særlige poster) | B46: =+B17/B7*100 -> 12.8 | D46: =+(D17/D7*100)-0.1 -> 13.6 | F46: =+F17/F7*100 -> 9.6 | H46: =+H17/H7*100 -> 10.2 | J46: =+J17/J7*100 -> 12.1 | P46: Formler
A47: Omsætningshastighed, investeret kapital gns. (antal gange) | B47: =(B7*4/1)/B31 ->  | D47: =(D7*4/1)/D31 ->  | F47: =(F7*4/2)/F31 ->  | H47: =(H7*4/3)/H31 ->  | J47: =J7/J31 ->  | P47: Formler, NB: Husk at opdatere formler for YTD
A48: Afkast af investeret kapital efter særlige poster (ROIC) p.a., % | B48: =#REF! ->  | D48: =#REF! ->  | F48: =#REF! ->  | H48: =#REF! ->  | J48: =#REF! ->  | P48: Henter data fra division, NB: Husk at opdatere formler
A49: Egenkapitalforrentning p.a., % | B49: =(B23*(4/1))/(('Group Liabilities'!B12+'Group Liabilities'!D12)/2)*100 -> 18.7 | D49: 18.2 | F49: =(F23*(4/3))/(('Group Liabilities'!D12+'Group Liabilities'!B12)/2)*100 -> 8 | H49: 5 | J49: =(J23*(1/1))/(('Group Liabilities'!D12+6882)/2)*100 -> 20.3 | P49: NB: ind data, husk at opdatere formler
A51: Nøgletal for kapital og pr. aktie
A52: Egenkapitalandel, % | B52: - | D52: 0 | F52: =+F28/F26*100 -> 36.3 | H52: =+H28/H26*100 -> 37 | J52: =+J28/J26*100 -> 41.8 | P52: Formler
A53: Nettorentebærende gæld/EBITDA, (antal gange) | B53: - | D53: 0 | F53: =F29/(F12+J12-H12) -> 0.69 | H53: 2.02 | J53: =J29/J12 -> 0.73 | P53: Formler (EBITDA skal være de seneste 12 måneder)
A54: Resultat pr. aktie (EPS), DKK | B54: =+'Group PL'!C45 -> 7.57 | D54: =+'Group PL'!D45 -> 7.29 | F54: =+'Group PL'!E45 -> 9.67 | H54: =+'Group PL'!F45 -> 10.2 | J54: =+'Group PL'!H45 -> 28.99 | P54: Formler
A55: Udbytte pr. aktie, DKK | B55: - | D55: 0 | F55: 0 | H55: 0 | J55: 14 | P55: NB: ind data
A56: Antal aktier ultimo perioden, tusinde | B56: - | D56: 0 | F56: 13300 | H56: 14856 | J56: 14856 | P56: NB: ind data
A57: Aktiekurs ultimo perioden, DKK | B57: - | D57: 0 | F57: 464 | H57: 403.5 | J57: 437 | P57: NB: ind data
A58: Markedsværdi, DKK mio. | B58: - | D58: =((D56-352.714)*D57/1000) -> 0 | F58: =((F56-1048.48)*F57/1000) -> 5684.7 | H58: =(H57*H56)/1000 -> 5994 | J58: =((J56-2135.444)*J57/1000) -> 5559 | P58: Formler
A60: Definitioner: Side 26.
B64: =((B56-352.714-80)*B57/1000) -> 
B65: =20*4544 -> 90880

Sheet tabel forside sbn (hidden)
A2: DATAGRUNDLAG ER KC-PL
B5: DFDS key figures | D5: 3. kvt | E5: 3. kvt | I5: Q3 Jul-Sep | J5: Q3 Jul-Sep | K5: ∆ % | L5: LTM | M5: 12 M | N5: ∆ % | O5: 12 M
B6: DKK m | D6: 2011 | E6: 2010 | F6: Ændr., % | G6: Ændr. | L6: Oct-Sep | M6: Oct-Sep | O6: Jan-Dec
I7: 2014 | J7: 2013 | L7: 2014-13 | M7: 2013-12 | O7: 2013
B8: Revenue
B9: Revenue | D9: =ROUND('Group PL'!#REF!,0) ->  | E9: =ROUND('Group PL'!#REF!,0) ->  | F9: =(+D9/E9-1)*100 ->  | G9: =+D9-E9 ->  | I9: =ROUND('Group PL'!C7,0) -> 4241 | J9: =ROUND('Group PL'!D7,0) -> 3894 | K9: =+I9/J9-1 -> 0.09 | L9: =ROUND('Group PL'!G7,0) -> 16449 | M9: =12097-2994+2886 -> 11989 | N9: =+L9/M9-1 -> 0.37 | O9: =ROUND('Group PL'!H7,0) -> 15717 | P9: =+L9/O9 -> 1.046573774
B10: EBITDA before special items | D10: =ROUND('Group PL'!#REF!,0) ->  | E10: =ROUND('Group PL'!#REF!,0) ->  | F10: =(+D10/E10-1)*100 ->  | G10: =+D10-E10 ->  | I10: =ROUND('Group PL'!C16,0) -> 989 | J10: =ROUND('Group PL'!D16,1) -> 802 | K10: =+I10/J10-1 -> 0.23 | L10: =ROUND('Group PL'!G16,0) -> 3399 | M10: =1213-277+184 -> 1120 | N10: =+L10/M10-1 -> 2.03 | O10: =ROUND('Group PL'!H16,0) -> 2988
B11: EBIT before special items | D11: =ROUND('Group PL'!#REF!,0) ->  | E11: =ROUND('Group PL'!#REF!,0) ->  | F11: =(+D11/E11-1)*100 ->  | G11: =+D11-E11 ->  | I11: =ROUND('Group PL'!C24,0) -> 541 | J11: =ROUND('Group PL'!D24,1) -> 533 | K11: =+I11/J11-1 -> 0.02 | L11: =ROUND('Group PL'!G24,0) -> 1935 | M11: =503-102+8 -> 409 | N11: =+L11/M11-1 -> 3.73 | O11: =ROUND('Group PL'!H24,0) -> 1909
B12: Profit before tax & special items | D12: =D14-D13 ->  | E12: =E14-E13 ->  | F12: =(+D12/E12-1)*100 ->  | G12: =+D12-E12 ->  | I12: =I14-I13 -> 485 | J12: =J14-J13 -> 494 | K12: =+I12/J12-1 -> -0.02 | L12: =L14-L13 -> 1689 | N12: =+L12/M12-1 ->  | O12: =O14-O13 -> 1743
B13: Special items, net | D13: =ROUND('Group PL'!#REF!,0) ->  | E13: =ROUND('Group PL'!#REF!,0) ->  | F13: =(-G13/E13)*100 ->  | G13: =ROUND(+D13-E13,dec) ->  | I13: =ROUND('Group PL'!C26,0) -> -29 | J13: =ROUND('Group PL'!D26,1) -> -63 | K13: n.a. | L13: =ROUND('Group PL'!G26,0) -> -4 | N13: n.a. | O13: =ROUND('Group PL'!H26,0) -> -49
B14: Profit before tax | D14: =ROUND('Group PL'!#REF!,0) ->  | E14: =ROUND('Group PL'!#REF!,0) ->  | F14: =(+D14/E14-1)*100 ->  | G14: =ROUND(+D14-E14,0) ->  | I14: =ROUND('Group PL'!C33,0) -> 456 | J14: =ROUND('Group PL'!D33,1) -> 431 | K14: =+I14/J14-1 -> 0.06 | L14: =ROUND('Group PL'!G33,0) -> 1685 | M14: =350-68-50 -> 232 | N14: =+L14/M14-1 -> 6.26 | O14: =ROUND('Group PL'!H33,0) -> 1694
D16: =+D12+D13 ->  | E16: =+E12+E13 -> 
B26: DFDS key figures DKK m | D26: Q3 2011 | E26: Q3 2010 | F26: Change, % | G26: Change | I26: Q3 2013 | J26: Q3 2012 | K26: Change
B28: Revenue | D28: =D9 ->  | E28: =E9 ->  | F28: =(+D28/E28-1)*100 ->  | G28: =+D28-E28 ->  | I28: =I9 -> 4241 | J28: =J9 -> 3894 | K28: =K9 -> 0
B29: EBITDA before special items | D29: =D10 ->  | E29: =E10 ->  | F29: =(+D29/E29-1)*100 ->  | G29: =+D29-E29 ->  | I29: =I10 -> 989 | J29: 802 | K29: 0
B30: EBIT before special items | D30: =D11 ->  | E30: =E11 ->  | H30: 0 | I30: 541 | J30: 533 | K30: 0
B31: Profit before tax and special items | D31: =D12 ->  | F31: =(+D31/E31-1)*100 ->  | G31: =+D31-E31 ->  | I31: 485 | J31: 494 | K31: 0
B32: Special items, net | D32: =+D13 ->  | E32: =E13 ->  | F32: =-(+D32/E32-1)*100 ->  | G32: =G13 ->  | I32: -29 | J32: -63 | K32: n.a.
B33: Profit before tax | D33: =D14 ->  | E33: =E14 ->  | F33: =(+D33/E33-1)*100 ->  | G33: =G14 ->  | I33: 456 | J33: 431 | K33: 0
M40: 225 | N40: =M40/I43 -> 30.15034974
M41: 275 | N41: =M41/I43 -> 36.85042746
I42: Q2 2014 | J42: Q2 2013
B43: DKK/EUR | D43: 0 | E43: 0 | I43: 7.4626 | J43: 7.4572 | K43: AVERAGE EXCH.RATE
B44: Decimals | I44: 0 | J44: 0
B47: DFDS key figures EUR mill. | D47: Q3 2011 | E47: Q3 2010 | F47: Change, % | G47: Change | I47: =+I5 -> Q3 Jul-Sep | J47: =+J5 -> Q3 Jul-Sep | K47: Change
B49: Revenue | D49: =D28/$D$43 ->  | E49: =E28/$E$43 ->  | F49: =F28 ->  | G49: =+D49-E49 ->  | I49: =I9/$I$43 -> 568.3 | J49: =J9/$J$43 -> 522.2 | K49: =+I49-J49 -> 46.1
B50: EBITDA before special items | D50: =D29/$D$43 ->  | E50: =E29/$E$43 ->  | F50: =F29 ->  | G50: =+D50-E50 ->  | I50: =I10/$I$43 -> 132.5 | J50: =J10/$J$43 -> 107.5 | K50: =+I50-J50 -> 25
B51: EBIT before special items | D51: =D30/$D$43 ->  | E51: =E30/$E$43 ->  | F51: =F30 ->  | G51: =G25 -> 0 | H51: =H25 -> 0 | I51: =I11/$I$43 -> 72.5 | J51: =J11/$J$43 -> 71.5 | K51: =+I51-J51 -> 1
B52: Profit before tax and special items | D52: =D31/$D$43 ->  | E52: =E31/$E$43 ->  | F52: =F31 ->  | G52: =+D52-E52 ->  | I52: =I12/$I$43 -> 65 | J52: =J12/$J$43 -> 66.2 | K52: =+I52-J52 -> -1.2
E53: =#REF!/$E$43 -> 
B54: Special items, net | D54: =D32/$D$43 ->  | E54: =E32/$E$43 ->  | F54: =F32 ->  | G54: =+D54-E54 ->  | I54: =I13/$I$43 -> -3.9 | J54: =J13/$J$43 -> -8.4 | K54: =+I54-J54 -> 4.5
B55: Profit before tax | D55: =D33/$D$43 ->  | E55: =E33/$E$43 ->  | F55: =F33 ->  | G55: =+D55-E55 ->  | I55: =I14/$I$43 -> 61.1 | J55: =J14/$J$43 -> 57.8 | K55: =+I55-J55 -> 3.3
B57: DKK | I57: EURO
A58: Investering | B58: 120 | I58: =B58/$I$43 -> 16.08018653 | J58: Investering 120 mio.
A59: driftsres | B59: 1.1 | I59: =B59/$I$43 -> 0.1474017099 | J59: Driftsresultat
A60: driftsres | B60: 1.3 | I60: =B60/$I$43 -> 0.1742020207

Sheet tabel forside_DKK (hidden)
A2: DATAGRUNDLAG ER KC-PL
B5: DFDS hovedtal | D5: 3. kvt | E5: 3. kvt | I5: Q3 2014 | J5: Q3 2013 | K5: Ændr. | L5: 2013-2014 | M5: 2013 | N5: Ændr.
B6: DKK mio | D6: 2011 | E6: 2010 | F6: Ændr., % | G6: Ændr. | L6: LTM | M6: Hele året
B7: Revenue
B8: Omsætning | D8: =ROUND('Group PL'!#REF!,0) ->  | E8: =ROUND('Group PL'!#REF!,0) ->  | F8: =(+D8/E8-1)*100 ->  | G8: =+D8-E8 ->  | I8: =+'tabel forside'!I8 -> 4241 | J8: =+'tabel forside'!J8 -> 3894 | K8: =+'tabel forside'!K8 -> 347 | L8: =+'tabel forside'!L8 -> 16449 | M8: =+'tabel forside'!M8 -> 15717 | N8: =+'tabel forside'!N8 -> 732
B9: EBITDA før særlige poster | D9: =ROUND('Group PL'!#REF!,0) ->  | E9: =ROUND('Group PL'!#REF!,0) ->  | F9: =(+D9/E9-1)*100 ->  | G9: =+D9-E9 ->  | I9: =+'tabel forside'!I9 -> 989 | J9: =+'tabel forside'!J9 -> 802 | K9: =+'tabel forside'!K9 -> 187 | L9: =+'tabel forside'!L9 -> 3399 | M9: =+'tabel forside'!M9 -> 2988 | N9: =+'tabel forside'!N9 -> 411
B10: EBIT før særlige poster | D10: =ROUND('Group PL'!#REF!,0) ->  | E10: =ROUND('Group PL'!#REF!,0) ->  | F10: =(+D10/E10-1)*100 ->  | G10: =+D10-E10 ->  | I10: =+'tabel forside'!I10 -> 541 | J10: =+'tabel forside'!J10 -> 533 | K10: =+'tabel forside'!K10 -> 8 | L10: =+'tabel forside'!L10 -> 1935 | M10: =+'tabel forside'!M10 -> 1909 | N10: =+'tabel forside'!N10 -> 26
B11: Resulatat før skat og særlige poster | D11: =D13-D12 ->  | E11: =E13-E12 ->  | F11: =(+D11/E11-1)*100 ->  | G11: =+D11-E11 ->  | I11: =+'tabel forside'!I11 -> 485 | J11: =+'tabel forside'!J11 -> 494 | K11: =+'tabel forside'!K11 -> -9 | L11: =+'tabel forside'!L11 -> 1689 | M11: =+'tabel forside'!M11 -> 1743 | N11: =+'tabel forside'!N11 -> -54
B12: Særlige poster, netto | D12: =ROUND('Group PL'!#REF!,0) ->  | E12: =ROUND('Group PL'!#REF!,0) ->  | F12: =(-G12/E12)*100 ->  | G12: =ROUND(+D12-E12,dec) ->  | I12: =+'tabel forside'!I12 -> -29 | J12: =+'tabel forside'!J12 -> -63 | K12: =+'tabel forside'!K12 ->  | L12: =+'tabel forside'!L12 -> -4 | M12: =+'tabel forside'!M12 -> -49 | N12: =+'tabel forside'!N12 -> 45
B13: Resulatat før skat | D13: =ROUND('Group PL'!#REF!,0) ->  | E13: =ROUND('Group PL'!#REF!,0) ->  | F13: =(+D13/E13-1)*100 ->  | G13: =ROUND(+D13-E13,0) ->  | I13: =+'tabel forside'!I13 -> 456 | J13: =+'tabel forside'!J13 -> 431 | K13: =+'tabel forside'!K13 -> 25 | L13: =+'tabel forside'!L13 -> 1685 | M13: =+'tabel forside'!M13 -> 1694 | N13: =+'tabel forside'!N13 -> -9
D15: =+D11+D12 ->  | E15: =+E11+E12 -> 
B25: DFDS key figures DKK m | D25: Q3 2011 | E25: Q3 2010 | F25: Change, % | G25: Change | I25: Q3 2013 | J25: Q3 2012 | K25: Change
B27: Revenue | D27: =D8 ->  | E27: =E8 ->  | F27: =(+D27/E27-1)*100 ->  | G27: =+D27-E27 ->  | I27: =I8 -> 4241 | J27: =J8 -> 3894 | K27: =K8 -> 347
B28: EBITDA before special items | D28: =D9 ->  | E28: =E9 ->  | F28: =(+D28/E28-1)*100 ->  | G28: =+D28-E28 ->  | I28: =I9 -> 989 | J28: 802 | K28: 187
B29: EBIT before special items | D29: =D10 ->  | E29: =E10 ->  | H29: 0 | I29: 541 | J29: 533 | K29: 8
B30: Profit before tax and special items | D30: =D11 ->  | F30: =(+D30/E30-1)*100 ->  | G30: =+D30-E30 ->  | I30: 485 | J30: 494 | K30: -9
B31: Special items, net | D31: =+D12 ->  | E31: =E12 ->  | F31: =-(+D31/E31-1)*100 ->  | G31: =G12 ->  | I31: -29 | J31: -63
B32: Profit before tax | D32: =D13 ->  | E32: =E13 ->  | F32: =(+D32/E32-1)*100 ->  | G32: =G13 ->  | I32: 456 | J32: 431 | K32: 25
N39: 225 | O39: =N39/I42 -> 30.15034974
N40: 275 | O40: =N40/I42 -> 36.85042746
I41: Q2 2014 | J41: Q2 2013
B42: DKK/EUR | D42: 0 | E42: 0 | I42: 7.4626 | J42: 7.4572 | K42: AVERAGE EXCH.RATE
B43: Decimals | I43: 0 | J43: 0
B46: DFDS key figures EUR mill. | D46: Q3 2011 | E46: Q3 2010 | F46: Change, % | G46: Change | I46: =+I5 -> Q3 2014 | J46: =+J5 -> Q3 2013 | K46: Change
B48: Revenue | D48: =D27/$D$42 ->  | E48: =E27/$E$42 ->  | F48: =F27 ->  | G48: =+D48-E48 ->  | I48: =I8/$I$42 -> 568.3 | J48: =J8/$J$42 -> 522.2 | K48: =+I48-J48 -> 46.1
B49: EBITDA before special items | D49: =D28/$D$42 ->  | E49: =E28/$E$42 ->  | F49: =F28 ->  | G49: =+D49-E49 ->  | I49: =I9/$I$42 -> 132.5 | J49: =J9/$J$42 -> 107.5 | K49: =+I49-J49 -> 25
B50: EBIT before special items | D50: =D29/$D$42 ->  | E50: =E29/$E$42 ->  | F50: =F29 ->  | G50: =G24 -> 0 | H50: =H24 -> 0 | I50: =I10/$I$42 -> 72.5 | J50: =J10/$J$42 -> 71.5 | K50: =+I50-J50 -> 1
B51: Profit before tax and special items | D51: =D30/$D$42 ->  | E51: =E30/$E$42 ->  | F51: =F30 ->  | G51: =+D51-E51 ->  | I51: =I11/$I$42 -> 65 | J51: =J11/$J$42 -> 66.2 | K51: =+I51-J51 -> -1.2
E52: =#REF!/$E$42 -> 
B53: Special items, net | D53: =D31/$D$42 ->  | E53: =E31/$E$42 ->  | F53: =F31 ->  | G53: =+D53-E53 ->  | I53: =I12/$I$42 -> -3.9 | J53: =J12/$J$42 -> -8.4 | K53: =+I53-J53 -> 4.5
B54: Profit before tax | D54: =D32/$D$42 ->  | E54: =E32/$E$42 ->  | F54: =F32 ->  | G54: =+D54-E54 ->  | I54: =I13/$I$42 -> 61.1 | J54: =J13/$J$42 -> 57.8 | K54: =+I54-J54 -> 3.3
B56: DKK | I56: EURO
A57: Investering | B57: 120 | I57: =B57/$I$42 -> 16.08018653 | J57: Investering 120 mio.
A58: driftsres | B58: 1.1 | I58: =B58/$I$42 -> 0.1474017099 | J58: Driftsresultat
A59: driftsres | B59: 1.3 | I59: =B59/$I$42 -> 0.1742020207

Sheet Division and Group Q by Q
A4: Ferry Division
B6: 2019 | D6: 2019 | E6: 2018* | F6: 2018* | J6: 2018-19* | K6: 2018*
A7: DKK m | B7: Q1 | C7: Q2 | D7: H1 | E7: H1 | F7: Q1 | G7: Q2 | H7: Q3 | I7: Q4 | J7: LTM | K7: Full year
A8: Revenue | B8: 2714 | C8: 3101 | D8: 5815 | E8: 5030 | F8: 2301 | G8: 2729 | H8: 3280 | I8: 2807 | J8: 11902 | K8: 11117
A9: EBITDA before special items | B9: 584 | C9: 877 | D9: 1461 | E9: 1329 | F9: 500 | G9: 829 | H9: 1099 | I9: 751 | J9: 3311 | K9: 3179
A10: Share of profit/loss of associates and joint ventures | B10: 2 | C10: 6 | D10: 8 | E10: 4 | F10: 3 | G10: 1 | H10: -1 | I10: -1 | J10: 6 | K10: 2
A11: Profit/loss on disposal of non-current assets, net | B11: 1 | C11: 0 | D11: 1 | E11: 1 | F11: 1 | G11: 0 | H11: 0 | I11: 0 | J11: 1 | K11: 1
A12: Depreciation and impairment | B12: -363 | C12: -365 | D12: -728 | E12: -628 | F12: -298 | G12: -330 | H12: -357 | I12: -338 | J12: -1423 | K12: -1323
A13: EBIT before special items | B13: 223 | C13: 518 | D13: 741 | E13: 706 | F13: 206 | G13: 500 | H13: 742 | I13: 411 | J13: 1894 | K13: 1859
A14: EBIT margin before special items, % | B14: 8.2 | C14: 16.7 | D14: 12.7 | E14: 14 | F14: 9 | G14: 18.3 | H14: 22.6 | I14: 14.6 | J14: 15.9 | K14: 16.7
A15: Special items, net | B15: 0 | C15: -6 | D15: -6 | E15: -46 | F15: -1 | G15: -45 | H15: 23 | I15: 40 | J15: 56 | K15: 17
A16: EBIT | B16: 223 | C16: 512 | D16: 735 | E16: 661 | F16: 205 | G16: 456 | H16: 764 | I16: 451 | J16: 1950 | K16: 1876
A17: Invested capital, average | B17: 18841 | C17: 19193 | D17: 19018 | E17: 12619 | F17: 10203 | G17: 13858 | H17: 17422 | I17: 18031 | J17: 18380 | K17: 14783
A18: ROIC before special items, % | B18: - | C18: - | D18: - | E18: - | F18: - | G18: - | H18: - | I18: - | J18: 10.2 | K18: 12.4
A19: Lane metres, '000 | B19: 10593 | C19: 9715 | D19: 20308 | E19: 19582 | F19: 9536 | G19: 10046 | H19: 10211 | I19: 10283 | J19: 40803 | K19: 40077
A20: Passengers, '000 | B20: 732 | C20: 1390 | D20: 2122 | E20: 2271 | F20: 862 | G20: 1409 | H20: 2163 | I20: 1003 | J20: 5290 | K20: 5439
A21: * Comparative 2018 numbers are restated to IFRS 16 on a proforma and unaudited basis
A22: Logistics Division
B24: 2019 | D24: 2019 | E24: 2018* | F24: 2018* | J24: 2018-19* | K24: 2018*
A25: DKK m | B25: Q1 | C25: Q2 | D25: H1 | E25: H1 | F25: Q1 | G25: Q2 | H25: Q3 | I25: Q4 | J25: LTM | K25: Full year
A26: Revenue | B26: 1348 | C26: 1318 | D26: 2666 | E26: 2726 | F26: 1385 | G26: 1341 | H26: 1272 | I26: 1325 | J26: 5264 | K26: 5324
A27: EBITDA before special items | B27: 109 | C27: 116 | D27: 225 | E27: 220 | F27: 105 | G27: 116 | H27: 103 | I27: 107 | J27: 437 | K27: 431
A28: Share of profit/loss of associates and joint ventures | B28: 0 | C28: 0 | D28: 0 | E28: 0 | F28: 0 | G28: 0 | H28: 0 | I28: 0 | J28: 0 | K28: 0
A29: Profit/loss on disposal of non-current assets, net | B29: 1 | C29: 0 | D29: 1 | E29: 4 | F29: 1 | G29: 2 | H29: 1 | I29: 0 | J29: 3 | K29: 5
A30: Depreciation and impairment | B30: -65 | C30: -70 | D30: -134 | E30: -113 | F30: -56 | G30: -56 | H30: -58 | I30: -58 | J30: -250 | K30: -229
A31: EBIT before special items | B31: 45 | C31: 47 | D31: 92 | E31: 111 | F31: 49 | G31: 61 | H31: 48 | I31: 49 | J31: 189 | K31: 207
A32: EBIT margin before special items, % | B32: 3.3 | C32: 3.5 | D32: 3.4 | E32: 4.1 | F32: 3.5 | G32: 4.6 | H32: 3.7 | I32: 3.7 | J32: 3.6 | K32: 3.9
A33: Special items, net | B33: 0 | C33: -6 | D33: -7 | E33: -17 | F33: -17 | G33: 0 | H33: 0 | I33: 5 | J33: -1 | K33: -11
A34: EBIT | B34: 45 | C34: 41 | D34: 85 | E34: 94 | F34: 32 | G34: 61 | H34: 48 | I34: 54 | J34: 188 | K34: 196
A35: Invested capital, average | B35: 1527 | C35: 1591 | D35: 1547 | E35: 1410 | F35: 1412 | G35: 1445 | H35: 1405 | I35: 1432 | J35: 1490 | K35: 1418
A36: ROIC before special items, % | B36: - | C36: - | D36: - | E36: - | F36: - | G36: - | H36: - | I36: - | J36: 10.1 | K36: 12.3
A37: Tons, '000 | B37: 174.3 | C37: 185.3 | D37: 359.6 | E37: 200.5 | F37: 97.7 | G37: 102.8 | H37: 103.5 | I37: 113.2 | J37: 576.4 | K37: 417.3
A38: Units, '000 | B38: 135.1 | C38: 134.8 | D38: 269.8 | E38: 292.3 | F38: 145.5 | G38: 146.7 | H38: 133.1 | I38: 141.7 | J38: 544.5 | K38: 567
A39: * Comparative 2018 numbers are restated to IFRS 16 on a proforma and unaudited basis
A41: Non-allocated items
A43: EBITDA before special items | B43: -16 | C43: -4 | D43: -19 | E43: -3 | F43: -8 | G43: 4 | H43: -5 | I43: -11 | J43: -38 | K43: -21
A44: Share of profit/loss of associates and joint ventures | B44: 0 | C44: 0 | D44: 0 | E44: 0 | F44: 0 | G44: 0 | H44: 0 | I44: -1 | J44: -1 | K44: -1
A45: Profit/loss on disposal of non-current assets, net | B45: 0 | C45: 0 | D45: 0 | E45: 0 | F45: 0 | G45: 0 | H45: 0 | I45: 0 | J45: 0 | K45: 0
A46: Depreciation and impairment | B46: -19 | C46: -20 | D46: -39 | E46: -38 | F46: -19 | G46: -19 | H46: -20 | I46: -21 | J46: -80 | K46: -80
A47: EBIT before special items | B47: -35 | C47: -23 | D47: -58 | E47: -41 | F47: -26 | G47: -15 | H47: -27 | I47: -33 | J47: -119 | K47: -101
A48: Special items, net | B48: -14 | C48: -17 | D48: -31 | E48: -28 | F48: -9 | G48: -19 | H48: -19 | I48: -8 | J48: -59 | K48: -55
A49: EBIT | B49: -49 | C49: -40 | D49: -89 | E49: -69 | F49: -35 | G49: -34 | H49: -46 | I49: -41 | J49: -178 | K49: -156
A51: DFDS Group
B53: 2019 | D53: 2019 | E53: 2018* | F53: 2018* | J53: 2018-19* | K53: 2018*
A54: DKK million | B54: Q1 | C54: Q2 | D54: H1 | E54: H1 | F54: Q1 | G54: Q2 | H54: Q3 | I54: Q4 | J54: LTM | K54: Full year
A55: Revenue | B55: 3870 | C55: 4241 | D55: 8111 | E55: 7379 | F55: 3485 | G55: 3894 | H55: 4383 | I55: 3955 | J55: 16449 | K55: 15717
A56: EBITDA before special items | B56: 677 | C56: 989 | D56: 1667 | E56: 1546 | F56: 597 | G56: 948 | H56: 1197 | I56: 847 | J56: 3710 | K56: 3589
A57: Share of profit/loss of associates and joint ventures | B57: 2 | C57: 6 | D57: 8 | E57: 4 | F57: 3 | G57: 1 | H57: -1 | I57: -3 | J57: 5 | K57: 1
A58: Profit/loss on disposal of non-current assets, net | B58: 1 | C58: 0 | D58: 2 | E58: 5 | F58: 2 | G58: 3 | H58: 2 | I58: 0 | J58: 3 | K58: 7
A59: Depreciation and impairment | B59: -447 | C59: -455 | D59: -901 | E59: -779 | F59: -374 | G59: -405 | H59: -435 | I59: -417 | J59: -1754 | K59: -1631
A60: EBIT before special items | B60: 234 | C60: 541 | D60: 775 | E60: 776 | F60: 229 | G60: 547 | H60: 762 | I60: 427 | J60: 1964 | K60: 1965
A61: EBIT margin before special items, % | B61: 6 | C61: 12.8 | D61: 9.6 | E61: 10.5 | F61: 6.6 | G61: 14 | H61: 17.4 | I61: 10.8 | J61: 11.9 | K61: 12.5
A62: Special items, net | B62: -15 | C62: -29 | D62: -44 | E62: -90 | F62: -27 | G62: -63 | H62: 3 | I62: 37 | J62: -4 | K62: -49
A63: EBIT | B63: 219 | C63: 512 | D63: 731 | E63: 686 | F63: 203 | G63: 484 | H63: 766 | I63: 464 | J63: 1960 | K63: 1916
A64: Profit before tax | B64: 144 | C64: 456 | D64: 600 | E64: 609 | F64: 178 | G64: 431 | H64: 625 | I64: 460 | J64: 1685 | K64: 1694
A65: Invested capital, average | B65: 20809 | C65: 21264 | D65: 20996 | E65: 13931 | F65: 11478 | G65: 15193 | H65: 18818 | I65: 19629 | J65: 20124 | K65: 16210
A66: ROIC before special items, % | B66: - | C66: - | D66: 0 | E66: - | F66: - | G66: - | H66: - | I66: - | J66: 9.4 | K66: 11.8
A67: * Comparative 2018 numbers are restated to IFRS 16 on a proforma and unaudited basis

Sheet BU table Ferry
A1: Ferry Division
B2: 2019 | D2: 2019 | E2: 2018* | F2: 2018* | J2: 2018-19* | K2: 2018*
A3: DKK m | B3: Q1 | C3: Q2 | D3: H1 | E3: H1 | F3: Q1 | G3: Q2 | H3: Q3 | I3: Q4 | J3: LTM | K3: Full year
A4: North Sea
A5: Revenue | B5: 963 | C5: 963 | D5: 1927 | E5: 1930 | F5: 967 | G5: 964 | H5: 897 | I5: 907 | J5: 3730 | K5: 3734
A6: EBIT before special items | B6: 190 | C6: 199 | D6: 389 | E6: 359 | F6: 161 | G6: 198 | H6: 151 | I6: 186 | J6: 726 | K6: 696
A7: Invested capital | B7: 5596 | C7: 5617 | D7: 5443 | E7: 5777 | F7: 5861 | G7: 5623 | H7: 5514 | I7: 5116 | J7: 5493 | K7: 5592
A8: ROIC before special items, % | B8: - | C8: - | D8: 0 | E8: - | F8: - | G8: - | H8: - | I8: - | J8: 13 | K8: 12.2
A9: Lane metres freight, '000 | B9: 3327 | C9: 3039 | D9: 6366 | E9: 6714 | F9: 3347 | G9: 3367 | H9: 3148 | I9: 3215 | J9: 12729 | K9: 13077
A11: Baltic Sea
A12: Revenue | B12: 350 | C12: 389 | D12: 739 | E12: 735 | F12: 343 | G12: 392 | H12: 410 | I12: 364 | J12: 1513 | K12: 1509
A13: EBIT before special items | B13: 40 | C13: 97 | D13: 137 | E13: 174 | F13: 70 | G13: 104 | H13: 111 | I13: 77 | J13: 325 | K13: 363
A14: Invested capital | B14: 1322 | C14: 1272 | D14: 1439 | E14: 2716 | F14: 1358 | G14: 1359 | H14: 1211 | I14: 1722 | J14: 1377 | K14: 1393
A15: ROIC before special items, % | B15: - | C15: - | D15: 0 | E15: - | F15: - | G15: - | H15: - | I15: - | J15: 23.5 | K15: 26
A16: Lane metres freight, '000 | B16: 1187 | C16: 1171 | D16: 2358 | E16: 2284 | F16: 1102 | G16: 1182 | H16: 1148 | I16: 1143 | J16: 4649 | K16: 4575
A17: Passengers, '000 | B17: 43 | C17: 68 | D17: 110 | E17: 94 | F17: 36 | G17: 58 | H17: 83 | I17: 47 | J17: 241 | K17: 224
A19: Channel
A20: Revenue | B20: 571 | C20: 638 | D20: 1210 | E20: 1261 | F20: 573 | G20: 687 | H20: 895 | I20: 647 | J20: 2752 | K20: 2803
A21: EBIT before special items | B21: 34 | C21: 31 | D21: 66 | E21: 105 | F21: 25 | G21: 80 | H21: 222 | I21: 71 | J21: 358 | K21: 397
A22: Invested capital | B22: 1979 | C22: 1854 | D22: 1859 | E22: 1933 | F22: 2039 | G22: 1884 | H22: 1786 | I22: 1744 | J22: 1849 | K22: 1866
A23: ROIC before special items, % | B23: - | C23: - | D23: 0 | E23: - | F23: - | G23: - | H23: - | I23: - | J23: 19.3 | K23: 21.2
A24: Lane metres freight, '000 | B24: 4902 | C24: 4311 | D24: 9214 | E24: 9891 | F24: 4896 | G24: 4995 | H24: 4906 | I24: 4866 | J24: 18986 | K24: 19663
A25: Passengers, '000 | B25: 468 | C25: 936 | D25: 1404 | E25: 1548 | F25: 556 | G25: 992 | H25: 1659 | I25: 644 | J25: 3706 | K25: 3850
A27: Mediterranean
A28: Revenue | B28: 515 | C28: 567 | D28: 1082 | E28: 200 | F28: 31 | G28: 170 | H28: 443 | I28: 481 | J28: 2006 | K28: 1124
A29: EBIT before special items | B29: 46 | C29: 80 | D29: 126 | E29: 32 | F29: 3 | G29: 29 | H29: 67 | I29: 83 | J29: 276 | K29: 182
A30: Invested capital | B30: 9047 | C30: 9529 | D30: 9031 | E30: 2558 | F30: 123 | G30: 7436 | H30: 7468 | I30: 8517 | J30: 8399 | K30: 4732
A31: ROIC before special items, % | B31: - | C31: - | D31: 0 | E31: - | F31: - | G31: - | H31: - | I31: - | J31: 3.2 | K31: 3.8
A32: Lane metres freight, '000 | B32: 1071 | C32: 1060 | D32: 2131 | E32: 412 | F32: 61 | G32: 351 | H32: 875 | I32: 919 | J32: 3925 | K32: 2206
A34: Passenger
A35: Revenue | B35: 251 | C35: 497 | D35: 748 | E35: 764 | F35: 298 | G35: 466 | H35: 604 | I35: 360 | J35: 1711 | K35: 1728
A36: EBIT before special items | B36: -110 | C36: 76 | D36: -33 | E36: -23 | F36: -80 | G36: 57 | H36: 164 | I36: -25 | J36: 106 | K36: 116
A37: Invested capital | B37: 704 | C37: 716 | D37: 734 | E37: 607 | F37: 585 | G37: 501 | H37: 671 | I37: 780 | J37: 674 | K37: 654
A38: ROIC before special items, % | B38: - | C38: - | D38: 0 | E38: - | F38: - | G38: - | H38: - | I38: - | J38: 15.2 | K38: 17.4
A39: Lane metres freight, '000 | B39: 106 | C39: 133 | D39: 239 | E39: 281 | F39: 130 | G39: 151 | H39: 134 | I39: 140 | J39: 513 | K39: 556
A40: Passengers, '000 | B40: 222 | C40: 386 | D40: 608 | E40: 631 | F40: 270 | G40: 361 | H40: 421 | I40: 312 | J40: 1341 | K40: 1365
A42: Non-allocated items
A43: Revenue | B43: 107 | C43: 105 | D43: 212 | E43: 229 | F43: 119 | G43: 110 | H43: 99 | I43: 154 | J43: 464 | K43: 481
A44: EBIT before special items | B44: 23 | C44: 34 | D44: 58 | E44: 60 | F44: 27 | G44: 33 | H44: 26 | I44: 19 | J44: 103 | K44: 105
A46: * Comparative 2018 numbers are restated to IFRS 16 on a proforma and unaudited basis
A47: The invested capital in the quarter is shown as per the end of the period. For the full year, the invested capital is shown as an average.

Sheet BU table Logistic
A1: Logistics Division
B2: 2019 | D2: 2019 | E2: 2018* | F2: 2018* | J2: 2018-19* | K2: 2018*
A3: DKK m | B3: Q1 | C3: Q2 | D3: H1 | E3: H1 | F3: Q1 | G3: Q2 | H3: Q3 | I3: Q4 | J3: LTM | K3: Full year
A4: Nordic
A5: Revenue | B5: 448 | C5: 450 | D5: 898 | E5: 1002 | F5: 517 | G5: 485 | H5: 413 | I5: 451 | J5: 1763 | K5: 1866
A6: EBIT before special items | B6: 16 | C6: 15 | D6: 31 | E6: 53 | F6: 26 | G6: 27 | H6: 15 | I6: 22 | J6: 68 | K6: 90
A7: Invested capital | B7: 454 | C7: 477 | D7: 465 | E7: 471 | F7: 486 | G7: 421 | H7: 402 | I7: 465 | J7: 444 | K7: 456
A8: ROIC before special items, % | B8: - | C8: - | D8: - | E8: - | F8: - | G8: - | H8: - | I8: - | J8: 12.3 | K8: 17.8
A9: Units, '000 ** | B9: 30.3 | C9: 29.1 | D9: 59.5 | E9: 72.3 | F9: 37.6 | G9: 34.7 | H9: 29.6 | I9: 32.7 | J9: 121.8 | K9: 134.6
A10: Tons, '000 | B10: 174.3 | C10: 185.3 | D10: 359.6 | E10: 200.5 | F10: 97.7 | G10: 102.8 | H10: 103.5 | I10: 113.2 | J10: 576.4 | K10: 417.3
A12: Continent
A13: Revenue | B13: 618 | C13: 586 | D13: 1204 | E13: 1248 | F13: 626 | G13: 622 | H13: 598 | I13: 612 | J13: 2413 | K13: 2458
A14: EBIT before special items | B14: 14 | C14: 17 | D14: 31 | E14: 40 | F14: 18 | G14: 22 | H14: 19 | I14: 8 | J14: 58 | K14: 67
A15: Invested capital | B15: 655 | C15: 679 | D15: 643 | E15: 519 | F15: 567 | G15: 572 | H15: 574 | I15: 596 | J15: 615 | K15: 545
A16: ROIC before special items, % | B16: - | C16: - | D16: - | E16: - | F16: - | G16: - | H16: - | I16: - | J16: 7.6 | K16: 10
A17: Units, '000 | B17: 62.4 | C17: 60.3 | D17: 122.7 | E17: 134.9 | F17: 66.8 | G17: 68.1 | H17: 62.6 | I17: 64.4 | J17: 249.7 | K17: 261.8
A19: UK & Ireland
A20: Revenue | B20: 328 | C20: 325 | D20: 653 | E20: 558 | F20: 274 | G20: 284 | H20: 292 | I20: 304 | J20: 1249 | K20: 1154
A21: EBIT before special items | B21: 15 | C21: 15 | D21: 30 | E21: 17 | F21: 4 | G21: 13 | H21: 14 | I21: 19 | J21: 63 | K21: 50
A22: Invested capital | B22: 487 | C22: 432 | D22: 438 | E22: 419 | F22: 431 | G22: 413 | H22: 429 | I22: 397 | J22: 432 | K22: 416
A23: ROIC before special items, % | B23: - | C23: - | D23: - | E23: - | F23: - | G23: - | H23: - | I23: - | J23: 11.2 | K23: 9.2
A24: Units, '000 | B24: 42.3 | C24: 45.3 | D24: 87.7 | E24: 85.1 | F24: 41.2 | G24: 43.9 | H24: 41 | I24: 44.5 | J24: 173.1 | K24: 170.5
A26: Non-allocated items
A27: Revenue | B27: 62 | C27: 61 | D27: 122 | E27: 131 | F27: 74 | G27: 57 | H27: 58 | I27: 54 | J27: 235 | K27: 244
A28: EBIT before special items | B28: 0 | C28: 0 | D28: 0 | E28: 0 | F28: 0 | G28: 0 | H28: 0 | I28: 0 | J28: 0 | K28: 0
A30: * Comparative 2018 numbers are restated to IFRS 16 on a proforma and unaudited basis
A31: ** Excluding volumes related to automotive Logistics contract.
A32: The invested capital in the quarter is shown as per the end of the period. For the full year, the invested capital is shown as an average.

Sheet Group PL
A1: DFDS Group - Income Statement
C4: 2019 | D4: 2018* | E4: 2019 | F4: 2018* | G4: 2018-19* | H4: 2018*
A5: DKK m | B5: Note | C5: Q2 | D5: Q2 | E5: H1 | F5: H1 | G5: LTM | H5: Full year
A7: Revenue | B7: 3 | C7: 4241 | D7: 3894 | E7: 8111 | F7: 7379 | G7: 16449 | H7: 15717
A9: Costs
A10: Ship operation and maintenance | C10: -935 | D10: -826 | E10: -1803 | F10: -1587 | G10: -3800 | H10: -3583
A11: Freight handling | C11: -628 | D11: -623 | E11: -1266 | F11: -1214 | G11: -2499 | H11: -2447
A12: Transport solutions | C12: -748 | D12: -790 | E12: -1524 | F12: -1609 | G12: -3106 | H12: -3191
A13: Employee costs | C13: -771 | D13: -696 | E13: -1536 | F13: -1371 | G13: -2962 | H13: -2796
A14: Costs of sales and administration | C14: -169 | D14: -157 | E14: -315 | F14: -343 | G14: -683 | H14: -712
A16: Operating profit before depreciation (EBITDA) and special items | C16: 989 | D16: 802 | E16: 1667 | F16: 1255 | G16: 3399 | H16: 2988
A18: Share of profit/loss of associates and joint ventures | C18: 6 | D18: 1 | E18: 8 | F18: 4 | G18: 5 | H18: 1
A19: Profit/loss on disposal of non-current assets, net | C19: 0 | D19: 3 | E19: 2 | F19: 5 | G19: 3 | H19: 7
A20: Depreciation, ships | C20: -298 | D20: -203 | E20: -592 | F20: -387 | G20: -994 | H20: -790
A21: Depreciation, other non-current assets | C21: -156 | D21: -69 | E21: -309 | F21: -128 | G21: -477 | H21: -296
A22: Impairment losses, other non-current assets | C22: 0 | D22: 0 | E22: -1 | F22: 0 | G22: -1 | H22: -1
A24: Operating profit (EBIT) before special items | C24: 541 | D24: 533 | E24: 775 | F24: 749 | G24: 1935 | H24: 1909
A26: Special items, net | B26: 4 | C26: -29 | D26: -63 | E26: -44 | F26: -90 | G26: -4 | H26: -49
A28: Operating profit (EBIT) | C28: 512 | D28: 470 | E28: 731 | F28: 659 | G28: 1931 | H28: 1859
A30: Financial income | C30: 14 | D30: 1 | E30: 5 | F30: 2 | G30: 9 | H30: 6
A31: Financial costs | C31: -70 | D31: -40 | E31: -136 | F31: -53 | G31: -254 | H31: -171
A33: Profit before tax | C33: 456 | D33: 431 | E33: 600 | F33: 608 | G33: 1685 | H33: 1694
A35: Tax on profit | C35: -23 | D35: -24 | E35: -46 | F35: -45 | G35: -58 | H35: -57
A37: Profit for the period | C37: 434 | D37: 407 | E37: 554 | F37: 564 | G37: 1627 | H37: 1637
A39: Attributable to:
A40: Equity holders of DFDS A/S | C40: 433 | D40: 407 | E40: 553 | F40: 563 | G40: 1619 | H40: 1630
A41: Non-controlling interests | C41: 0 | D41: 0 | E41: 1 | F41: 1 | G41: 8 | H41: 8
A42: Profit for the period | C42: 434 | D42: 407 | E42: 554 | F42: 564 | G42: 1627 | H42: 1637
A44: Earnings per share
A45: Basic earnings per share (EPS) of DKK 20, DKK | C45: 7.57 | D45: 7.29 | E45: 9.67 | F45: 10.2 | G45: 28.31 | H45: 28.99
A46: Diluted earnings per share (EPS-D) of DKK 20, DKK | C46: 7.55 | D46: 7.27 | E46: 9.64 | F46: 10.15 | G46: 28.22 | H46: 28.87
A49: * Comparative 2018 numbers are not restated to IFRS 16

Sheet Group OCI
A1: DFDS Group - Statement of Comprehensive income
B5: 2019 | C5: 2018* | D5: 2019 | E5: 2018* | F5: 2018-19* | G5: 2018*
A6: DKK m | B6: Q2 | C6: Q2 | D6: H1 | E6: H1 | F6: LTM | G6: Full year
A8: Profit for the period | B8: 434 | C8: 407 | D8: 554 | E8: 564 | F8: 1627 | G8: 1637
A10: Other comprehensive income
A11: Items that will not be reclassified subsequently to the Income statement:
A12: Remeasurement of defined benefit pension obligations | B12: 0 | C12: 0 | D12: 0 | E12: 0 | F12: 121 | G12: 122
A13: Items that will not be reclassified subsequently to the Income statement | B13: 0 | C13: 0 | D13: 0 | E13: 0 | F13: 121 | G13: 122
A14: Items that are or may be reclassified subsequently to the Income statement:
A15: Value adjustment of hedging instruments:
A16: Value adjustment for the period | B16: -31 | C16: 214 | D16: 71 | E16: 289 | F16: 103 | G16: 321
A17: Value adjustment transferred to operating costs | B17: 0 | C17: -2 | D17: 2 | E17: -2 | F17: -3 | G17: -7
A18: Value adjustment transferred to financial costs | B18: 6 | C18: -8 | D18: 11 | E18: -101 | F18: 65 | G18: -48
A19: Value adjustment transferred to non-current tangible assets | B19: -54 | C19: -4 | D19: -62 | E19: 1 | F19: -84 | G19: -21
A20: Tax on items that may be reclassified to the Income statement | B20: 4 | C20: -41 | D20: 5 | E20: -41 | F20: 45 | G20: -1
A21: Foreign exchange adjustments, subsidiaries | B21: -33 | C21: -23 | D21: -12 | E21: -66 | F21: -4 | G21: -59
A22: Items that are or may be reclassified subsequently to the Income statement | B22: -107 | C22: 135 | D22: 15 | E22: 79 | F22: 121 | G22: 186
A24: Total other comprehensive income after tax | B24: -107 | C24: 135 | D24: 14 | E24: 79 | F24: 243 | G24: 308
A25: Total comprehensive income | B25: 326 | C25: 543 | D25: 568 | E25: 643 | F25: 1870 | G25: 1945
A27: Attributable to:
A28: Equity holders of DFDS A/S | B28: 325 | C28: 542 | D28: 567 | E28: 642 | F28: 1861 | G28: 1937
A29: Non-controlling interests | B29: 1 | C29: 0 | D29: 1 | E29: 1 | F29: 9 | G29: 8
A30: Total comprehensive income | B30: 326 | C30: 543 | D30: 568 | E30: 643 | F30: 1870 | G30: 1945
A32: * Comparative 2018 numbers are not restated to IFRS 16

Sheet Group Assets
A1: DFDS Group - Balance Sheet, Assets
C5: 2019 | D5: 2018* | E5: 2018*
A6: DKK m | B6: Note | C6: H1 | D6: H1 | E6: Full year
A8: Goodwill | C8: 3333 | D8: 1746 | E8: 3337
A9: Other non-current intangible assets | C9: 1186 | D9: 2095 | E9: 1205
A10: Software | C10: 241 | D10: 243 | E10: 245
A11: Development projects in progress | C11: 8 | D11: 9 | E11: 2
A12: Non-current intangible assets | C12: 4768 | D12: 4093 | E12: 4788
A14: Land and buildings | C14: 160 | D14: 161 | E14: 163
A15: Terminals | B15: 5 | C15: 743 | D15: 733 | E15: 1434
A16: Ships | C16: 10800 | D16: 10598 | E16: 9731
A17: Equipment, etc. | B17: 5 | C17: 708 | D17: 739 | E17: 740
A18: Assets under construction and prepayments | C18: 804 | D18: 611 | E18: 1021
A19: Right of use assets | B19: 5 | C19: 3293 | D19: 0 | E19: 0
A20: Non-current tangible assets | C20: 16508 | D20: 12842 | E20: 13089
A22: Investments in associates, joint ventures and securities | C22: 54 | D22: 45 | E22: 43
A23: Receivables | C23: 30 | D23: 138 | E23: 138
A24: Prepaid costs | C24: 93 | D24: 0 | E24: 91
A25: Deferred tax | C25: 73 | D25: 68 | E25: 70
A26: Derivative financial instruments | C26: 194 | D26: 114 | E26: 175
A27: Other non-current assets | C27: 443 | D27: 365 | E27: 517
A28: Non-current assets | C28: 21720 | D28: 17300 | E28: 18395
A30: Inventories | C30: 206 | D30: 205 | E30: 201
A31: Trade receivables | C31: 2523 | D31: 2257 | E31: 2077
A32: Receivables from associates and joint ventures | C32: 48 | D32: 66 | E32: 86
A33: Other receivables | C33: 457 | D33: 189 | E33: 296
A34: Prepaid costs | C34: 323 | D34: 162 | E34: 259
A35: Derivative financial instruments | C35: 73 | D35: 33 | E35: 57
A36: Cash | C36: 416 | D36: 1185 | E36: 761
A37: Current assets | C37: 4044 | D37: 4097 | E37: 3736
A38: Assets classified as held for sale | C38: 57 | D38: 57 | E38: 0
A39: Total current assets | C39: 4101 | D39: 4154 | E39: 3736
A41: Assets | C41: 25821 | D41: 21454 | E41: 22132
A42: * Comparative 2018 numbers are not restated to IFRS 16

Sheet Group Liabilities
A1: DFDS Group - Balance Sheet, Equity and Liabilities
B5: 2019 | C5: 2018* | D5: 2018*
A6: DKK m | B6: H1 | C6: H1 | D6: Full year
A8: Share capital | B8: 1173 | C8: 1173 | D8: 1173
A9: Reserves | B9: -241 | C9: -318 | D9: -251
A10: Retained earnings | B10: 8368 | C10: 7013 | D10: 8019
A11: Proposed dividends | B11: 0 | C11: 0 | D11: 235
A12: Equity attributable to equity holders of DFDS A/S | B12: 9300 | C12: 7868 | D12: 9175
A13: Non-controlling interests | B13: 80 | C13: 66 | D13: 80
A14: Equity | B14: 9380 | C14: 7935 | D14: 9255
A16: Interest-bearing liabilities | B16: 11128 | C16: 8438 | D16: 8389
A17: Deferred tax | B17: 203 | C17: 205 | D17: 211
A18: Pension and jubilee liabilities | B18: 259 | C18: 378 | D18: 263
A19: Other provisions | B19: 28 | C19: 42 | D19: 17
A20: Derivative financial instruments | B20: 65 | C20: 23 | D20: 74
A21: Non-current liabilities | B21: 11683 | C21: 9086 | D21: 8954
A23: Interest-bearing liabilities | B23: 1135 | C23: 1012 | D23: 869
A24: Trade payables | B24: 2472 | C24: 2393 | D24: 2296
A25: Payables to associates and joint ventures | B25: 69 | C25: 32 | D25: 24
A26: Other provisions | B26: 39 | C26: 71 | D26: 50
A27: Corporation tax | B27: 46 | C27: 65 | D27: 23
A28: Other payables | B28: 611 | C28: 526 | D28: 470
A29: Derivative financial instruments | B29: 21 | C29: 19 | D29: 20
A30: Prepayments from customers | B30: 364 | C30: 317 | D30: 171
A31: Current liabilities | B31: 4758 | C31: 4434 | D31: 3923
A32: Liabilities | B32: 16441 | C32: 13520 | D32: 12877
A34: Equity and liabilities | B34: 25821 | C34: 21454 | D34: 22132
A35: * Comparative 2018 numbers are not restated to IFRS 16

Sheet Group Cash Flow
A2: DFDS Group - Statement of Cash flows
C5: 2019 | D5: 2018* | E5: 2019 | F5: 2018* | G5: 2018-19* | H5: 2018* | J5: 2011 | L5: 2010
A6: DKK m | B6: Note | C6: Q2 | D6: Q2 | E6: H1 | F6: H1 | G6: LTM | H6: Full year | J6: 1. halvår | L6: 1. halvår
A7: Operating profit before depreciation (EBITDA) and special items | C7: 989 | D7: 802 | E7: 1667 | F7: 1255 | G7: 3399 | H7: 2988 | J7: 628.7 | L7: 449.9
A8: Cash flow effect from special items related to operating activities | C8: -1 | D8: -29 | E8: -24 | F8: -40 | G8: -84 | H8: -99 | J8: -60.1 | L8: -21 | M8: -9.2
A9: Adjustments for non-cash operating items, etc. | C9: 4 | D9: 0 | E9: 14 | F9: 3 | G9: 31 | H9: 20 | J9: 4.1 | L9: -3.3
A10: Change in working capital | C10: 37 | D10: 111 | E10: 96 | F10: 54 | G10: -241 | H10: -283 | J10: 195.3 | L10: -29.8 | M10: 42.1
A11: Payment of pension liabilities and other provisions | C11: -7 | D11: -8 | E11: -37 | F11: -22 | G11: -56 | H11: -41 | J11: -48.3 | L11: -3.8
A12: Cash flow from operating activities, gross | C12: 1023 | D12: 877 | E12: 1715 | F12: 1250 | G12: 3051 | H12: 2585 | J12: 719.7 | L12: 392 | M12: 1017.2 | N12: 871.9
A13: Interest received, etc. | C13: 1 | D13: 1 | E13: 2 | F13: 2 | G13: 6 | H13: 5 | J13: 41.4 | L13: 40.8 | M13: -81.9
A14: Interest paid, etc. | C14: -83 | D14: -80 | E14: -129 | F14: -90 | G14: -272 | H14: -233 | J14: -139.9 | L14: -107.2 | M14: -227.5
A15: Taxes paid | C15: -6 | D15: -5 | E15: -25 | F15: -34 | G15: -61 | H15: -69 | J15: -12.6 | L15: -5.6
A16: Cash flow from operating activities, net | C16: 935 | D16: 793 | E16: 1563 | F16: 1128 | G16: 2724 | H16: 2289 | J16: 608.6 | L16: 320 | M16: 124.1 | N16: -2896.9
A17: Investments in ships including dockings, rebuildings and ships under construction (incl. settlement of forward exchange contracts) related thereto | C17: -675 | D17: -282 | E17: -1271 | F17: -420 | G17: -1785 | H17: -934 | J17: -361 | L17: -64.7
A18: Sale of ships | C18: 0 | D18: 0 | E18: 0 | F18: 0 | G18: 84 | H18: 84
A19: Investments in other non-current tangible assets | C19: -58 | D19: -33 | E19: -274 | F19: -63 | G19: -517 | H19: -306 | J19: -45.7 | L19: -8.8
A20: Sale of other non-current tangible assets | C20: 4 | D20: 6 | E20: 9 | F20: 12 | G20: 14 | H20: 16
A21: Investments in non-current intangible assets | C21: -14 | D21: -7 | E21: -28 | F21: -13 | G21: -44 | H21: -30 | J21: -28.8 | L21: -14.1
A22: Acquisition of enterprises, associates, joint ventures and activities | C22: -4 | D22: -3569 | E22: -4 | F22: -3638 | G22: -1 | H22: -3635 | J22: 0 | L22: 3.3
A23: Sale of activities etc. | C23: 0 | D23: 1 | E23: 0 | F23: 2 | G23: 0 | H23: 2
A24: Other investing cash flows | C24: -1 | D24: 6 | E24: 3 | F24: 8 | G24: -4 | H24: 1
A25: Cash flow to/from investing activities, net | C25: -748 | D25: -3878 | E25: -1566 | F25: -4113 | G25: -2255 | H25: -4802 | J25: 526.5 | L25: -80.9
A26: Cash flow before financing activities, net | C26: 187 | D26: -3084 | E26: -3 | F26: -2985 | G26: 469 | H26: -2513
A27: Proceed from bank loans and loans secured by mortgage in ships | B27: 7 | C27: 325 | D27: 5608 | E27: 695 | F27: 5608 | G27: 1366 | H27: 6279 | M27: FY korrigeret -0.1 (MKOLE)
A28: Repayment and instalments of bank loans and loans secured by mortgage in ships | B28: 6 | C28: -240 | D28: -148 | E28: -288 | F28: -167 | G28: -1412 | H28: -1290 | M28: -605.9
A29: Proceed from issuance of corporate bonds | C29: 304 | D29: 0 | E29: 304 | F29: 0 | G29: 304 | H29: 0
A30: Repayment of corporate bonds incl. settlement of cross currency swap | B30: 6 | C30: -500 | D30: 0 | E30: -500 | F30: -203 | G30: -500 | H30: -203
A31: Payment of loan in acquired entity | C31: 0 | D31: -2756 | E31: 0 | F31: -2756 | G31: 0 | H31: -2756
A32: Payment of lease liabilities | B32: 6 | C32: -170 | D32: -1 | E32: -330 | F32: -2 | G32: -781 | H32: -453 | J32: -7.8 | L32: -4.9
A33: Acquisition of treasury shares | C33: 0 | D33: -29 | E33: 0 | F33: -190 | G33: 0 | H33: -190
A34: Cash received from exercise of share options | C34: 3 | D34: 0 | E34: 5 | F34: 59 | G34: 5 | H34: 59
A35: Government grants received related to purchase of assets | C35: 0 | D35: 6 | E35: 0 | F35: 6 | G35: 1 | H35: 7
A36: Other financing cash flows | C36: 0 | D36: 0 | E36: 0 | F36: 0 | G36: 8 | H36: 7
A37: Proceed from increase of share capital | C37: 0 | D37: 1000 | E37: 0 | F37: 1000 | G37: 0 | H37: 1000
A38: Dividends paid | C38: 0 | D38: 0 | E38: -229 | F38: -219 | G38: -229 | H38: -219 | J38: -117.1 | L38: 0
A39: Cash flow to/from financing activities, net | C39: -278 | D39: 3679 | E39: -342 | F39: 3137 | G39: -1237 | H39: 2242 | J39: -543.2 | L39: -231.2
A40: Net increase (decrease) in cash and cash equivalents | C40: -90 | D40: 595 | E40: -345 | F40: 152 | G40: -769 | H40: -272 | J40: 591.9 | L40: 7.9
A41: Cash and cash equivalents at beginning of period | C41: 506 | D41: 591 | E41: 761 | F41: 1033 | G41: 1185 | H41: 1033 | J41: 1084 | L41: 154.6
A42: Foreign exchange and value adjustments of cash and cash equivalents | C42: 0 | D42: -1 | E42: 0 | F42: 0 | G42: -1 | H42: -1 | J42: -6 | L42: 2.6 | M42: FY korrigeret -0.1 (MKOLE)
A43: Cash and cash equivalents at end of period ** | C43: 416 | D43: 1185 | E43: 416 | F43: 1185 | G43: 416 | H43: 761 | J43: 1669.9 | L43: 165.1
A45: * Realised currency gains and losses are included gross in the Cash flow statement whereas in the Income statement they are included net either under Financial income or Financial costs.
A47: * Comparative 2018 numbers are not restated to IFRS 16
A48: ** At 30 June 2019 DKK 108m (30 June 2018: DKK 42m) of the cash was deposited on restricted bank accounts.
A49: The statement of cash flows cannot directly be derived from the Income Statement and the Balance Sheet.

Sheet EBIT BU UK (hidden)
B3: Shipping Division
B6: EBIT before speciel items per business area, DKK mill. | C6: Q309 | D6: Q310 | E6: Dev.
B8: North Sea | C8: =#REF! ->  | D8: =#REF! ->  | E8: =#REF! -> 
B9: Baltic Sea | C9: =#REF! ->  | D9: =#REF! ->  | E9: =#REF! -> 
B10: Irish Sea | C10: =#REF! ->  | D10: =#REF! ->  | E10: =#REF! -> 
B11: English Channel | C11: =#REF! ->  | D11: =#REF! ->  | E11: =#REF! -> 
B12: Passenger | C12: =#REF! ->  | D12: =#REF! ->  | E12: =#REF! -> 
B13: Total business areas | C13: =SUM(C8:C12) ->  | D13: =SUM(D8:D12) ->  | E13: =D13-C13 -> 
B14: Non-allocated items | C14: =#REF! ->  | D14: =#REF! ->  | E14: =#REF! -> 
B15: Total Shipping Division | C15: =+C13+C14 ->  | D15: =+D13+D14 ->  | E15: =D15-C15 -> 
B17: Vessel Pool | C17: =#REF! ->  | D17: =#REF! ->  | E17: =#REF! -> 
B18: Non-allocated | C18: =#REF! ->  | D18: =#REF! ->  | E18: =#REF! -> 
B19: Total Shipping Division | C19: =+C13+C17+C18 ->  | D19: =+D13+D17+D18 ->  | E19: =D19-C19 ->  | H19: =C19-#REF! ->  | I19: =D19-#REF! -> 
B21: Logistics Division
B24: EBIT before speciel items per business area, DKK mill. | C24: Q309 | D24: Q310 | E24: Dev.
B26: Nordic Transport | C26: =#REF! ->  | D26: =#REF! ->  | E26: =#REF! -> 
B27: Continental Transport | C27: =#REF! ->  | D27: =#REF! ->  | E27: =#REF! -> 
B28: European Contract | C28: =#REF! ->  | D28: =#REF! ->  | E28: =#REF! -> 
B29: Intermodal | C29: =#REF! ->  | D29: =#REF! ->  | E29: =#REF! -> 
B30: Nordic Contract | C30: =#REF! ->  | D30: =#REF! ->  | E30: =#REF! -> 
B31: Total business areas | C31: =SUM(C26:C30) ->  | D31: =SUM(D26:D30) ->  | E31: =D31-C31 -> 
B32: Non-allocated items | C32: =#REF! ->  | D32: =#REF! ->  | E32: =#REF! -> 
B33: Total Logistics Division | C33: =+C31+C32 ->  | D33: =+D31+D32 ->  | E33: =D33-C33 ->  | H33: =C33-#REF! ->  | I33: =D33-#REF! -> 
B36: Group items
B37: Group Management | C37: =#REF! ->  | D37: =#REF! ->  | E37: =#REF! ->  | H37: Ændring i regnskabspraksis stillet her!
B38: DFDS Group EBIT before special items | C38: =#REF! ->  | D38: =#REF! ->  | E38: =#REF! -> 
B40: Integration costs | C40: =#REF! ->  | D40: =#REF! ->  | E40: =#REF! -> 
B41: River costs | C41: =#REF! ->  | D41: =#REF! ->  | E41: =#REF! -> 
B42: DFDS Group EBIT after special items | C42: =+C38 ->  | D42: =+D41+D40+D38 ->  | E42: =D42-C42 -> 
B44: Finance, net | C44: =#REF! ->  | D44: =#REF! ->  | E44: =#REF! -> 
B45: DFDS Group PTP | C45: =C42+C44 ->  | D45: =D42+D44 ->  | E45: =D45-C45 -> 
E49: =SUM(E8:E12) -> 
E50: =SUM(E26:E30) -> 
